Workbook

Sheet OCT
A1: ="PLAN DE CHARGE DU MOIS D'OCTOBRE "&'Fermetures & jours fériés'!D1 -> PLAN DE CHARGE DU MOIS D'OCTOBRE 2019 | Q1: =DATE('Fermetures & jours fériés'!D1,S5,1) -> 2019-10-01
A2: Légende : | B2: Chantier fait | D2: Cellule à définir avec feuille de marge réelle | E2: = H estimatives | G2: < H estimatives | I2: > H estimatives | K2: Pose prév. Impératif | L2: Rechercher un client : Ctrl+F > Options > Dans "Classeur" > Décocher "Totalité de la cellule" > Entrer NOM
J3: 40 | K3: =IF(J3<52,J3+1,1) -> 41 | L3: =IF(K3<52,K3+1,1) -> 42 | M3: =IF(L3<52,L3+1,1) -> 43 | N3: 44
I4: =IF(SUMIFS(PDC_OCT[H estim.],PDC_OCT[Projet],"BOZARC",PDC_OCT[Pose prév. S],PDC_OCT[[#Headers],[40]])>87.5,"Trop de BozArc prévu","") ->  | J4: =IF(SUMIFS(PDC_OCT[H estim.],PDC_OCT[Projet],"BOZARC",PDC_OCT[Pose prév. S],PDC_OCT[[#Headers],[41]])>70,"Trop de BozArc prévu","") ->  | K4: =IF(SUMIFS(PDC_OCT[H estim.],PDC_OCT[Projet],"BOZARC",PDC_OCT[Pose prév. S],PDC_OCT[[#Headers],[41]])>87.5,"Trop de BozArc prévu","") ->  | L4: =IF(SUMIFS(PDC_OCT[H estim.],PDC_OCT[Projet],"BOZARC",PDC_OCT[Pose prév. S],PDC_OCT[[#Headers],[43]])>70,"Trop de BozArc prévu","") ->  | M4: =IF(SUMIFS(PDC_OCT[H estim.],PDC_OCT[Projet],"BOZARC",PDC_OCT[Pose prév. S],PDC_OCT[[#Headers],[44]])>87.5,"Trop de BozArc prévu","") -> 
A5: =IF(R7>=R13,"MOIS COMPLET - PLUS DE SAISIE","") ->  | J5: =IF(SUMIF(PDC_OCT[Pose prév. S],PDC_OCT[[#Headers],[40]],PDC_OCT[H estim.])>=U$16,"Semaine complète","") ->  | K5: =IF(SUMIF(PDC_OCT[Pose prév. S],PDC_OCT[[#Headers],[41]],PDC_OCT[H estim.])>=V$16,"Semaine complète","") ->  | L5: =IF(SUMIF(PDC_OCT[Pose prév. S],PDC_OCT[[#Headers],[42]],PDC_OCT[H estim.])>=W$16,"Semaine complète","") ->  | M5: =IF(SUMIF(PDC_OCT[Pose prév. S],PDC_OCT[[#Headers],[43]],PDC_OCT[H estim.])>=X$16,"Semaine complète","") ->  | N5: =IF(SUMIF(PDC_OCT[Pose prév. S],PDC_OCT[[#Headers],[44]],PDC_OCT[H estim.])>=Y$16,"Semaine complète","") ->  | S5: 10
A6: Chantiers | B6: Ccial | C6: Projet | D6: Ville | E6: H estim. | F6: H réalisées | G6: CA | H6: S de liv. | I6: Pose prév. S | J6: 40 | K6: 41 | L6: 42 | M6: 43 | N6: 44 | O6: Plannifié et validé | Q6: Indicateurs | T6: Éxécutants | U6: 40 | V6: 41 | W6: 42 | X6: 43 | Y6: 44
J7: =IF(PDC_OCT[[#This Row],[Pose prév. S]]=J$3,PDC_OCT[[#This Row],[CA]],"") ->  | K7: =IF(PDC_OCT[[#This Row],[Pose prév. S]]=K$3,PDC_OCT[[#This Row],[CA]],"") ->  | L7: =IF(PDC_OCT[[#This Row],[Pose prév. S]]=L$3,PDC_OCT[[#This Row],[CA]],"") ->  | M7: =IF(PDC_OCT[[#This Row],[Pose prév. S]]=M$3,PDC_OCT[[#This Row],[CA]],"") ->  | N7: =IF(PDC_OCT[[#This Row],[Pose prév. S]]=N$3,PDC_OCT[[#This Row],[CA]],"") ->  | Q7: Heures estimatives | R7: =PDC_OCT[[#Totals],[H estim.]] -> 0 | T7: Poseur 1 | U7: =INDEX(H_productives[],MATCH(U$6&$S$5,H_productives[N°S]&H_productives[N°Mois],0),MATCH($T7,H_productives[#Headers],0)) -> 34.25 | V7: =INDEX(H_productives[],MATCH(V$6&$S$5,H_productives[N°S]&H_productives[N°Mois],0),MATCH($T7,H_productives[#Headers],0)) -> 26.25 | W7: =INDEX(H_productives[],MATCH(W$6&$S$5,H_productives[N°S]&H_productives[N°Mois],0),MATCH($T7,H_productives[#Headers],0)) -> 43 | X7: =INDEX(H_productives[],MATCH(X$6&$S$5,H_productives[N°S]&H_productives[N°Mois],0),MATCH($T7,H_productives[#Headers],0)) -> 35 | Y7: =INDEX(H_productives[],MATCH(Y$6&$S$5,H_productives[N°S]&H_productives[N°Mois],0),MATCH($T7,H_productives[#Headers],0)) -> 35
J8: =IF(PDC_OCT[[#This Row],[Pose prév. S]]=J$3,PDC_OCT[[#This Row],[CA]],"") ->  | K8: =IF(PDC_OCT[[#This Row],[Pose prév. S]]=K$3,PDC_OCT[[#This Row],[CA]],"") ->  | L8: =IF(PDC_OCT[[#This Row],[Pose prév. S]]=L$3,PDC_OCT[[#This Row],[CA]],"") ->  | M8: =IF(PDC_OCT[[#This Row],[Pose prév. S]]=M$3,PDC_OCT[[#This Row],[CA]],"") ->  | N8: =IF(PDC_OCT[[#This Row],[Pose prév. S]]=N$3,PDC_OCT[[#This Row],[CA]],"") ->  | Q8: Heures estimatives cumulées | R8: =R7 -> 0 | T8: Poseur 2 | U8: =INDEX(H_productives[],MATCH(U$6&$S$5,H_productives[N°S]&H_productives[N°Mois],0),MATCH($T8,H_productives[#Headers],0)) -> 34.25 | V8: =INDEX(H_productives[],MATCH(V$6&$S$5,H_productives[N°S]&H_productives[N°Mois],0),MATCH($T8,H_productives[#Headers],0)) -> 26.25 | W8: =INDEX(H_productives[],MATCH(W$6&$S$5,H_productives[N°S]&H_productives[N°Mois],0),MATCH($T8,H_productives[#Headers],0)) -> 43 | X8: =INDEX(H_productives[],MATCH(X$6&$S$5,H_productives[N°S]&H_productives[N°Mois],0),MATCH($T8,H_productives[#Headers],0)) -> 35 | Y8: =INDEX(H_productives[],MATCH(Y$6&$S$5,H_productives[N°S]&H_productives[N°Mois],0),MATCH($T8,H_productives[#Headers],0)) -> 35
J9: =IF(PDC_OCT[[#This Row],[Pose prév. S]]=J$3,PDC_OCT[[#This Row],[CA]],"") ->  | K9: =IF(PDC_OCT[[#This Row],[Pose prév. S]]=K$3,PDC_OCT[[#This Row],[CA]],"") ->  | L9: =IF(PDC_OCT[[#This Row],[Pose prév. S]]=L$3,PDC_OCT[[#This Row],[CA]],"") ->  | M9: =IF(PDC_OCT[[#This Row],[Pose prév. S]]=M$3,PDC_OCT[[#This Row],[CA]],"") ->  | N9: =IF(PDC_OCT[[#This Row],[Pose prév. S]]=N$3,PDC_OCT[[#This Row],[CA]],"") ->  | T9: Poseur 3 | U9: =INDEX(H_productives[],MATCH(U$6&$S$5,H_productives[N°S]&H_productives[N°Mois],0),MATCH($T9,H_productives[#Headers],0)) -> 34.25 | V9: =INDEX(H_productives[],MATCH(V$6&$S$5,H_productives[N°S]&H_productives[N°Mois],0),MATCH($T9,H_productives[#Headers],0)) -> 26.25 | W9: =INDEX(H_productives[],MATCH(W$6&$S$5,H_productives[N°S]&H_productives[N°Mois],0),MATCH($T9,H_productives[#Headers],0)) -> 43 | X9: =INDEX(H_productives[],MATCH(X$6&$S$5,H_productives[N°S]&H_productives[N°Mois],0),MATCH($T9,H_productives[#Headers],0)) -> 35 | Y9: =INDEX(H_productives[],MATCH(Y$6&$S$5,H_productives[N°S]&H_productives[N°Mois],0),MATCH($T9,H_productives[#Headers],0)) -> 35
A10: =SUBTOTAL(103,PDC_OCT[Chantiers]) -> 0 | E10: =SUBTOTAL(109,PDC_OCT[H estim.]) -> 0 | F10: =SUBTOTAL(109,PDC_OCT[H réalisées]) -> 0 | G10: =SUBTOTAL(109,PDC_OCT[CA]) -> 0 | J10: =SUBTOTAL(109,PDC_OCT[40]) -> 0 | K10: =SUBTOTAL(109,PDC_OCT[41]) -> 0 | L10: =SUBTOTAL(109,PDC_OCT[42]) -> 0 | M10: =SUBTOTAL(109,PDC_OCT[43]) -> 0 | N10: =SUBTOTAL(109,PDC_OCT[44]) -> 0 | O10: =SUBTOTAL(103,PDC_OCT[Plannifié et validé]) -> 0 | Q10: Heures en surplus (à décaler) | R10: =IF(TODAY()<=Q1,IF(Q2>0,IF((R7+Q2)>R13,(R7+Q2)-R13,0),IF(R7>R13,R7-R13,0)),IF(R7>R13,R7-R13,0)) -> 0 | T10: Poseur 4 | U10: =INDEX(H_productives[],MATCH(U$6&$S$5,H_productives[N°S]&H_productives[N°Mois],0),MATCH($T10,H_productives[#Headers],0)) -> 34.25 | V10: =INDEX(H_productives[],MATCH(V$6&$S$5,H_productives[N°S]&H_productives[N°Mois],0),MATCH($T10,H_productives[#Headers],0)) -> 26.25 | W10: =INDEX(H_productives[],MATCH(W$6&$S$5,H_productives[N°S]&H_productives[N°Mois],0),MATCH($T10,H_productives[#Headers],0)) -> 43 | X10: =INDEX(H_productives[],MATCH(X$6&$S$5,H_productives[N°S]&H_productives[N°Mois],0),MATCH($T10,H_productives[#Headers],0)) -> 35 | Y10: =INDEX(H_productives[],MATCH(Y$6&$S$5,H_productives[N°S]&H_productives[N°Mois],0),MATCH($T10,H_productives[#Headers],0)) -> 35
E11: Nombre d'h prévues : | J11: =SUMIF(PDC_OCT[Pose prév. S],PDC_OCT[[#Headers],[40]],PDC_OCT[H estim.]) -> 0 | K11: =SUMIF(PDC_OCT[Pose prév. S],PDC_OCT[[#Headers],[41]],PDC_OCT[H estim.]) -> 0 | L11: =SUMIF(PDC_OCT[Pose prév. S],PDC_OCT[[#Headers],[42]],PDC_OCT[H estim.]) -> 0 | M11: =SUMIF(PDC_OCT[Pose prév. S],PDC_OCT[[#Headers],[43]],PDC_OCT[H estim.]) -> 0 | N11: =SUMIF(PDC_OCT[Pose prév. S],PDC_OCT[[#Headers],[44]],PDC_OCT[H estim.]) -> 0 | Q11: Heures restantes | R11: =IF(R10=0,R13-(R7),0) -> 884.85 | T11: Poseur 5 | U11: =INDEX(H_productives[],MATCH(U$6&$S$5,H_productives[N°S]&H_productives[N°Mois],0),MATCH($T11,H_productives[#Headers],0)) -> 34.25 | V11: =INDEX(H_productives[],MATCH(V$6&$S$5,H_productives[N°S]&H_productives[N°Mois],0),MATCH($T11,H_productives[#Headers],0)) -> 26.25 | W11: =INDEX(H_productives[],MATCH(W$6&$S$5,H_productives[N°S]&H_productives[N°Mois],0),MATCH($T11,H_productives[#Headers],0)) -> 43 | X11: =INDEX(H_productives[],MATCH(X$6&$S$5,H_productives[N°S]&H_productives[N°Mois],0),MATCH($T11,H_productives[#Headers],0)) -> 35 | Y11: =INDEX(H_productives[],MATCH(Y$6&$S$5,H_productives[N°S]&H_productives[N°Mois],0),MATCH($T11,H_productives[#Headers],0)) -> 35
E12: Différence d'h (H prévues - H prod.) : | J12: =J11-U16 -> -174.675 | K12: =K11-V16 -> -133.875 | L12: =L11-W16 -> -219.3 | M12: =M11-X16 -> -178.5 | N12: =N11-Y16 -> -178.5 | T12: Poseur 6 | U12: =INDEX(H_productives[],MATCH(U$6&$S$5,H_productives[N°S]&H_productives[N°Mois],0),MATCH($T12,H_productives[#Headers],0)) -> 34.25 | V12: =INDEX(H_productives[],MATCH(V$6&$S$5,H_productives[N°S]&H_productives[N°Mois],0),MATCH($T12,H_productives[#Headers],0)) -> 26.25 | W12: =INDEX(H_productives[],MATCH(W$6&$S$5,H_productives[N°S]&H_productives[N°Mois],0),MATCH($T12,H_productives[#Headers],0)) -> 43 | X12: =INDEX(H_productives[],MATCH(X$6&$S$5,H_productives[N°S]&H_productives[N°Mois],0),MATCH($T12,H_productives[#Headers],0)) -> 35 | Y12: =INDEX(H_productives[],MATCH(Y$6&$S$5,H_productives[N°S]&H_productives[N°Mois],0),MATCH($T12,H_productives[#Headers],0)) -> 35
E13: CA/mois TOTAL | G13: =SUMIF(PDC_OCT[Plannifié et validé],"ü",PDC_OCT[CA]) -> 0 | Q13: Heures prod. | R13: =SUM(U16:Y16) -> 884.85 | T13: Poseur 7 | U13: =INDEX(H_productives[],MATCH(U$6&$S$5,H_productives[N°S]&H_productives[N°Mois],0),MATCH($T13,H_productives[#Headers],0)) -> 0 | V13: =INDEX(H_productives[],MATCH(V$6&$S$5,H_productives[N°S]&H_productives[N°Mois],0),MATCH($T13,H_productives[#Headers],0)) -> 0 | W13: =INDEX(H_productives[],MATCH(W$6&$S$5,H_productives[N°S]&H_productives[N°Mois],0),MATCH($T13,H_productives[#Headers],0)) -> 0 | X13: =INDEX(H_productives[],MATCH(X$6&$S$5,H_productives[N°S]&H_productives[N°Mois],0),MATCH($T13,H_productives[#Headers],0)) -> 0 | Y13: =INDEX(H_productives[],MATCH(Y$6&$S$5,H_productives[N°S]&H_productives[N°Mois],0),MATCH($T13,H_productives[#Headers],0)) -> 0
Q14: Heures prod. cumulées | R14: =R13 -> 884.85 | T14: Total | U14: =SUBTOTAL(109,Tps_travaillées_OCT[40]) -> 205.5 | V14: =SUBTOTAL(109,Tps_travaillées_OCT[41]) -> 157.5 | W14: =SUBTOTAL(109,Tps_travaillées_OCT[42]) -> 258 | X14: =SUBTOTAL(109,Tps_travaillées_OCT[43]) -> 210 | Y14: =SUBTOTAL(109,Tps_travaillées_OCT[44]) -> 210
T15: -0.15 | U15: =Tps_travaillées_OCT[[#Totals],[40]]*$T$15 -> -30.825 | V15: =Tps_travaillées_OCT[[#Totals],[41]]*$T$15 -> -23.625 | W15: =Tps_travaillées_OCT[[#Totals],[42]]*$T$15 -> -38.7 | X15: =Tps_travaillées_OCT[[#Totals],[43]]*$T$15 -> -31.5 | Y15: =Tps_travaillées_OCT[[#Totals],[44]]*$T$15 -> -31.5
Q16: Heures réelles réalisées | R16: =PDC_OCT[[#Totals],[H réalisées]] -> 0 | T16: Heure productives | U16: =SUM(U14:U15) -> 174.675 | V16: =SUM(V14:V15) -> 133.875 | W16: =SUM(W14:W15) -> 219.3 | X16: =SUM(X14:X15) -> 178.5 | Y16: =SUM(Y14:Y15) -> 178.5
Q17: Heures réelles réalisées cumulées | R17: =R16 -> 0 | T17: Soit en JOURS | U17: =U16/8.75 -> 19.96285714 | V17: =V16/8.75 -> 15.3 | W17: =W16/8.75 -> 25.06285714 | X17: =X16/8.75 -> 20.4 | Y17: =Y16/8.75 -> 20.4
Q19: Moyenne CA/h estimatives | R19: =SUM(PDC_OCT[[#Totals],[CA]]/E10) -> 
Q20: Moyenne CA/h réalisées | R20: =G13/PDC_OCT[[#Totals],[H réalisées]] -> 
Q21: Moyenne CA/h réalisées cumulées | R21: =R25/R17 -> 
Q23: CA prévi. à poser au cours de l'année | R23: =PDC_OCT[[#Totals],[CA]]+NOV!R23 -> 0
Q24: CA prévision cumulé | R24: =PDC_OCT[[#Totals],[CA]] -> 0
Q25: CA réel cumulé | R25: =G13 -> 0

Sheet NOV
A1: ="PLAN DE CHARGE DU MOIS DE NOVEMBRE "&'Fermetures & jours fériés'!D1 -> PLAN DE CHARGE DU MOIS DE NOVEMBRE 2019 | Q1: =EDATE(OCT!Q1,1) -> 2019-11-01
A2: Légende : | B2: Chantier fait | D2: Cellule à définir avec feuille de marge réelle | E2: = H estimatives | G2: < H estimatives | I2: > H estimatives | K2: Pose prév. Impératif | L2: Rechercher un client : Ctrl+F > Options > Dans "Classeur" > Décocher "Totalité de la cellule" > Entrer NOM
J3: 44 | K3: =IF(J3<52,J3+1,1) -> 45 | L3: =IF(K3<52,K3+1,1) -> 46 | M3: 47 | N3: 48
J4: =IF(SUMIFS(PDC_NOV[H estimatives],PDC_NOV[Projet],"BOZARC",PDC_NOV[Pose prév. S],PDC_NOV[[#Headers],[44]])>87.5,"Trop de BozArc prévu","") ->  | K4: =IF(SUMIFS(PDC_NOV[H estimatives],PDC_NOV[Projet],"BOZARC",PDC_NOV[Pose prév. S],PDC_NOV[[#Headers],[45]])>70,"Trop de BozArc prévu","") ->  | L4: =IF(SUMIFS(PDC_NOV[H estimatives],PDC_NOV[Projet],"BOZARC",PDC_NOV[Pose prév. S],PDC_NOV[[#Headers],[46]])>87.5,"Trop de BozArc prévu","") ->  | M4: =IF(SUMIFS(PDC_NOV[H estimatives],PDC_NOV[Projet],"BOZARC",PDC_NOV[Pose prév. S],PDC_NOV[[#Headers],[47]])>70,"Trop de BozArc prévu","") ->  | N4: =IF(SUMIFS(PDC_NOV[H estimatives],PDC_NOV[Projet],"BOZARC",PDC_NOV[Pose prév. S],PDC_NOV[[#Headers],[48]])>87.5,"Trop de BozArc prévu","") -> 
A5: =IF(OR(R7>=R13,R10>0),"MOIS COMPLET - PLUS DE SAISIE","") ->  | J5: =IF(SUMIF(PDC_NOV[Pose prév. S],PDC_NOV[[#Headers],[44]],PDC_NOV[H estimatives])>=U$16,"Semaine complète","") -> Semaine complète | K5: =IF(SUMIF(PDC_NOV[Pose prév. S],PDC_NOV[[#Headers],[45]],PDC_NOV[H estimatives])>=V$16,"Semaine complète","") ->  | L5: =IF(SUMIF(PDC_NOV[Pose prév. S],PDC_NOV[[#Headers],[46]],PDC_NOV[H estimatives])>=W$16,"Semaine complète","") ->  | M5: =IF(SUMIF(PDC_NOV[Pose prév. S],PDC_NOV[[#Headers],[47]],PDC_NOV[H estimatives])>=X$16,"Semaine complète","") ->  | N5: =IF(SUMIF(PDC_NOV[Pose prév. S],PDC_NOV[[#Headers],[48]],PDC_NOV[H estimatives])>=Y$16,"Semaine complète","") ->  | T5: =OCT!S5+1 -> 11
A6: Chantiers | B6: Ccial | C6: Projet | D6: Ville | E6: H estimatives | F6: H réelles réalisées | G6: CA | H6: S de liv. | I6: Pose prév. S | J6: 44 | K6: 45 | L6: 46 | M6: 47 | N6: 48 | O6: Plannifié et validé | Q6: Indicateurs | T6: Éxécutants | U6: 44 | V6: 45 | W6: 46 | X6: 47 | Y6: 48
J7: =IF(PDC_NOV[[#This Row],[Pose prév. S]]=J$3,PDC_NOV[[#This Row],[CA]],"") ->  | K7: =IF(PDC_NOV[[#This Row],[Pose prév. S]]=K$3,PDC_NOV[[#This Row],[CA]],"") ->  | L7: =IF(PDC_NOV[[#This Row],[Pose prév. S]]=L$3,PDC_NOV[[#This Row],[CA]],"") ->  | M7: =IF(PDC_NOV[[#This Row],[Pose prév. S]]=M$3,PDC_NOV[[#This Row],[CA]],"") ->  | N7: =IF(PDC_NOV[[#This Row],[Pose prév. S]]=N$3,PDC_NOV[[#This Row],[CA]],"") ->  | Q7: Heures estimatives | R7: =PDC_NOV[[#Totals],[H estimatives]] -> 0 | T7: Poseur 1 | U7: =INDEX(H_productives[],MATCH(U$6&$T$5,H_productives[N°S]&H_productives[N°Mois],0),MATCH($T7,H_productives[#Headers],0)) -> 0 | V7: =INDEX(H_productives[],MATCH(V$6&$T$5,H_productives[N°S]&H_productives[N°Mois],0),MATCH($T7,H_productives[#Headers],0)) -> 35 | W7: =INDEX(H_productives[],MATCH(W$6&$T$5,H_productives[N°S]&H_productives[N°Mois],0),MATCH($T7,H_productives[#Headers],0)) -> 34.25 | X7: =INDEX(H_productives[],MATCH(X$6&$T$5,H_productives[N°S]&H_productives[N°Mois],0),MATCH($T7,H_productives[#Headers],0)) -> 35 | Y7: =INDEX(H_productives[],MATCH(Y$6&$T$5,H_productives[N°S]&H_productives[N°Mois],0),MATCH($T7,H_productives[#Headers],0)) -> 43
J8: =IF(PDC_NOV[[#This Row],[Pose prév. S]]=J$3,PDC_NOV[[#This Row],[CA]],"") ->  | K8: =IF(PDC_NOV[[#This Row],[Pose prév. S]]=K$3,PDC_NOV[[#This Row],[CA]],"") ->  | L8: =IF(PDC_NOV[[#This Row],[Pose prév. S]]=L$3,PDC_NOV[[#This Row],[CA]],"") ->  | M8: =IF(PDC_NOV[[#This Row],[Pose prév. S]]=M$3,PDC_NOV[[#This Row],[CA]],"") ->  | N8: =IF(PDC_NOV[[#This Row],[Pose prév. S]]=N$3,PDC_NOV[[#This Row],[CA]],"") ->  | Q8: Heures estimatives cumulées | R8: =R7+OCT!R8 -> 0 | T8: Poseur 2 | U8: =INDEX(H_productives[],MATCH(U$6&$T$5,H_productives[N°S]&H_productives[N°Mois],0),MATCH($T8,H_productives[#Headers],0)) -> 0 | V8: =INDEX(H_productives[],MATCH(V$6&$T$5,H_productives[N°S]&H_productives[N°Mois],0),MATCH($T8,H_productives[#Headers],0)) -> 35 | W8: =INDEX(H_productives[],MATCH(W$6&$T$5,H_productives[N°S]&H_productives[N°Mois],0),MATCH($T8,H_productives[#Headers],0)) -> 34.25 | X8: =INDEX(H_productives[],MATCH(X$6&$T$5,H_productives[N°S]&H_productives[N°Mois],0),MATCH($T8,H_productives[#Headers],0)) -> 35 | Y8: =INDEX(H_productives[],MATCH(Y$6&$T$5,H_productives[N°S]&H_productives[N°Mois],0),MATCH($T8,H_productives[#Headers],0)) -> 43
J9: =IF(PDC_NOV[[#This Row],[Pose prév. S]]=J$3,PDC_NOV[[#This Row],[CA]],"") ->  | K9: =IF(PDC_NOV[[#This Row],[Pose prév. S]]=K$3,PDC_NOV[[#This Row],[CA]],"") ->  | L9: =IF(PDC_NOV[[#This Row],[Pose prév. S]]=L$3,PDC_NOV[[#This Row],[CA]],"") ->  | M9: =IF(PDC_NOV[[#This Row],[Pose prév. S]]=M$3,PDC_NOV[[#This Row],[CA]],"") ->  | N9: =IF(PDC_NOV[[#This Row],[Pose prév. S]]=N$3,PDC_NOV[[#This Row],[CA]],"") ->  | T9: Poseur 3 | U9: =INDEX(H_productives[],MATCH(U$6&$T$5,H_productives[N°S]&H_productives[N°Mois],0),MATCH($T9,H_productives[#Headers],0)) -> 0 | V9: =INDEX(H_productives[],MATCH(V$6&$T$5,H_productives[N°S]&H_productives[N°Mois],0),MATCH($T9,H_productives[#Headers],0)) -> 35 | W9: =INDEX(H_productives[],MATCH(W$6&$T$5,H_productives[N°S]&H_productives[N°Mois],0),MATCH($T9,H_productives[#Headers],0)) -> 34.25 | X9: =INDEX(H_productives[],MATCH(X$6&$T$5,H_productives[N°S]&H_productives[N°Mois],0),MATCH($T9,H_productives[#Headers],0)) -> 35 | Y9: =INDEX(H_productives[],MATCH(Y$6&$T$5,H_productives[N°S]&H_productives[N°Mois],0),MATCH($T9,H_productives[#Headers],0)) -> 43
A10: =SUBTOTAL(103,PDC_NOV[Chantiers]) -> 0 | E10: =SUBTOTAL(109,PDC_NOV[H estimatives]) -> 0 | F10: =SUBTOTAL(109,PDC_NOV[H réelles réalisées]) -> 0 | G10: =SUBTOTAL(109,PDC_NOV[CA]) -> 0 | J10: =SUBTOTAL(109,PDC_NOV[44]) -> 0 | K10: =SUBTOTAL(109,PDC_NOV[45]) -> 0 | L10: =SUBTOTAL(109,PDC_NOV[46]) -> 0 | M10: =SUBTOTAL(109,PDC_NOV[47]) -> 0 | N10: =SUBTOTAL(109,PDC_NOV[48]) -> 0 | Q10: Heures en surplus (à décaler) | R10: =IF(TODAY()<=Q1,IF(OCT!R10>0,IF((R7+OCT!R10)>R13,(R7+OCT!R10)-R13,0),IF(R7>R13,R7-R13,0)),IF(R7>R13,R7-R13,0)) -> 0 | T10: Poseur 4 | U10: =INDEX(H_productives[],MATCH(U$6&$T$5,H_productives[N°S]&H_productives[N°Mois],0),MATCH($T10,H_productives[#Headers],0)) -> 0 | V10: =INDEX(H_productives[],MATCH(V$6&$T$5,H_productives[N°S]&H_productives[N°Mois],0),MATCH($T10,H_productives[#Headers],0)) -> 35 | W10: =INDEX(H_productives[],MATCH(W$6&$T$5,H_productives[N°S]&H_productives[N°Mois],0),MATCH($T10,H_productives[#Headers],0)) -> 34.25 | X10: =INDEX(H_productives[],MATCH(X$6&$T$5,H_productives[N°S]&H_productives[N°Mois],0),MATCH($T10,H_productives[#Headers],0)) -> 35 | Y10: =INDEX(H_productives[],MATCH(Y$6&$T$5,H_productives[N°S]&H_productives[N°Mois],0),MATCH($T10,H_productives[#Headers],0)) -> 43
E11: Nombre d'h prévues : | J11: =SUMIF(PDC_NOV[Pose prév. S],PDC_NOV[[#Headers],[44]],PDC_NOV[H estimatives]) -> 0 | K11: =SUMIF(PDC_NOV[Pose prév. S],PDC_NOV[[#Headers],[45]],PDC_NOV[H estimatives]) -> 0 | L11: =SUMIF(PDC_NOV[Pose prév. S],PDC_NOV[[#Headers],[46]],PDC_NOV[H estimatives]) -> 0 | M11: =SUMIF(PDC_NOV[Pose prév. S],PDC_NOV[[#Headers],[47]],PDC_NOV[H estimatives]) -> 0 | N11: =SUMIF(PDC_NOV[Pose prév. S],PDC_NOV[[#Headers],[48]],PDC_NOV[H estimatives]) -> 0 | Q11: Heures restantes | R11: =IF(R10=0,IF(TODAY()<=Q1,R13-(R7+OCT!R10),R13-R7),0) -> 810.475 | T11: Poseur 5 | U11: =INDEX(H_productives[],MATCH(U$6&$T$5,H_productives[N°S]&H_productives[N°Mois],0),MATCH($T11,H_productives[#Headers],0)) -> 0 | V11: =INDEX(H_productives[],MATCH(V$6&$T$5,H_productives[N°S]&H_productives[N°Mois],0),MATCH($T11,H_productives[#Headers],0)) -> 35 | W11: =INDEX(H_productives[],MATCH(W$6&$T$5,H_productives[N°S]&H_productives[N°Mois],0),MATCH($T11,H_productives[#Headers],0)) -> 34.25 | X11: =INDEX(H_productives[],MATCH(X$6&$T$5,H_productives[N°S]&H_productives[N°Mois],0),MATCH($T11,H_productives[#Headers],0)) -> 35 | Y11: =INDEX(H_productives[],MATCH(Y$6&$T$5,H_productives[N°S]&H_productives[N°Mois],0),MATCH($T11,H_productives[#Headers],0)) -> 43
E12: Différence d'h (H prévues - H prod.) : | J12: =J11-U16 -> 0 | K12: =K11-V16 -> -178.5 | L12: =L11-W16 -> -174.675 | M12: =M11-X16 -> -208.25 | N12: =N11-Y16 -> -249.05 | T12: Poseur 6 | U12: =INDEX(H_productives[],MATCH(U$6&$T$5,H_productives[N°S]&H_productives[N°Mois],0),MATCH($T12,H_productives[#Headers],0)) -> 0 | V12: =INDEX(H_productives[],MATCH(V$6&$T$5,H_productives[N°S]&H_productives[N°Mois],0),MATCH($T12,H_productives[#Headers],0)) -> 35 | W12: =INDEX(H_productives[],MATCH(W$6&$T$5,H_productives[N°S]&H_productives[N°Mois],0),MATCH($T12,H_productives[#Headers],0)) -> 34.25 | X12: =INDEX(H_productives[],MATCH(X$6&$T$5,H_productives[N°S]&H_productives[N°Mois],0),MATCH($T12,H_productives[#Headers],0)) -> 35 | Y12: =INDEX(H_productives[],MATCH(Y$6&$T$5,H_productives[N°S]&H_productives[N°Mois],0),MATCH($T12,H_productives[#Headers],0)) -> 43
E13: CA/mois TOTAL | G13: =SUMIF(PDC_NOV[Plannifié et validé],"ü",PDC_NOV[CA]) -> 0 | Q13: Heures prod. | R13: =SUM(U16:Y16) -> 810.475 | T13: Poseur 7 | U13: =INDEX(H_productives[],MATCH(U$6&$T$5,H_productives[N°S]&H_productives[N°Mois],0),MATCH($T13,H_productives[#Headers],0)) -> 0 | V13: =INDEX(H_productives[],MATCH(V$6&$T$5,H_productives[N°S]&H_productives[N°Mois],0),MATCH($T13,H_productives[#Headers],0)) -> 0 | W13: =INDEX(H_productives[],MATCH(W$6&$T$5,H_productives[N°S]&H_productives[N°Mois],0),MATCH($T13,H_productives[#Headers],0)) -> 0 | X13: =INDEX(H_productives[],MATCH(X$6&$T$5,H_productives[N°S]&H_productives[N°Mois],0),MATCH($T13,H_productives[#Headers],0)) -> 35 | Y13: =INDEX(H_productives[],MATCH(Y$6&$T$5,H_productives[N°S]&H_productives[N°Mois],0),MATCH($T13,H_productives[#Headers],0)) -> 35
Q14: Heures prod. cumulées | R14: =R13+OCT!R14 -> 1695.325 | T14: Total | U14: =SUBTOTAL(109,Tps_travaillées_OCT381[44]) -> 0 | V14: =SUBTOTAL(109,Tps_travaillées_OCT381[45]) -> 210 | W14: =SUBTOTAL(109,Tps_travaillées_OCT381[46]) -> 205.5 | X14: =SUBTOTAL(109,Tps_travaillées_OCT381[47]) -> 245 | Y14: =SUBTOTAL(109,Tps_travaillées_OCT381[48]) -> 293
T15: -0.15 | U15: =Tps_travaillées_OCT381[[#Totals],[44]]*$T$15 -> 0 | V15: =Tps_travaillées_OCT381[[#Totals],[45]]*$T$15 -> -31.5 | W15: =Tps_travaillées_OCT381[[#Totals],[46]]*$T$15 -> -30.825 | X15: =Tps_travaillées_OCT381[[#Totals],[47]]*$T$15 -> -36.75 | Y15: =Tps_travaillées_OCT381[[#Totals],[48]]*$T$15 -> -43.95
Q16: Heures réelles réalisées | R16: =PDC_NOV[[#Totals],[H réelles réalisées]] -> 0 | T16: Heure réelles travaillées | U16: =SUM(U14:U15) -> 0 | V16: =SUM(V14:V15) -> 178.5 | W16: =SUM(W14:W15) -> 174.675 | X16: =SUM(X14:X15) -> 208.25 | Y16: =SUM(Y14:Y15) -> 249.05
Q17: Heures réelles réalisées cumulées | R17: =R16+OCT!R17 -> 0 | T17: Soit en JOURS | U17: =U16/8.75 -> 0 | V17: =V16/8.75 -> 20.4 | W17: =W16/8.75 -> 19.96285714 | X17: =X16/8.75 -> 23.8 | Y17: =Y16/8.75 -> 28.46285714
Q19: Moyenne CA/h estimatives | R19: =SUM(PDC_NOV[[#Totals],[CA]]/E10) -> 
Q20: Moyenne CA/h réalisées | R20: =G13/PDC_NOV[[#Totals],[H réelles réalisées]] -> 
Q21: Moyenne CA/h réalisées cumulées | R21: =R25/R17 -> 
Q23: CA prévi. à poser au cours de l'année | R23: =PDC_NOV[[#Totals],[CA]]+DEC!S23 -> 0
Q24: CA prévision cumulé | R24: =PDC_NOV[[#Totals],[CA]]+OCT!R24 -> 0
Q25: CA réel cumulé | R25: =G13+OCT!R25 -> 0

Sheet DEC
A1: ="PLAN DE CHARGE DU MOIS DE DECEMBRE "&'Fermetures & jours fériés'!D1 -> PLAN DE CHARGE DU MOIS DE DECEMBRE 2019 | R1: =EDATE(NOV!Q1,1) -> 2019-12-01
A2: Légende : | B2: Chantier fait | D2: Cellule à définir avec feuille de marge réelle | E2: = H estimatives | G2: < H estimatives | I2: > H estimatives | K2: Pose prév. Impératif | M2: Rechercher un client : Ctrl+F > Options > Dans "Classeur" > Décocher "Totalité de la cellule" > Entrer NOM
J3: 48 | K3: =IF(J3<52,J3+1,1) -> 49 | L3: =IF(K3<52,K3+1,1) -> 50 | M3: 51 | N3: 52 | O3: 1
J4: =IF(SUMIFS(PDC_DEC[H estimatives],PDC_DEC[Projet],"BOZARC",PDC_DEC[Pose prév. S],PDC_DEC[[#Headers],[48]])>87.5,"Trop de BozArc prévu","") ->  | K4: =IF(SUMIFS(PDC_DEC[H estimatives],PDC_DEC[Projet],"BOZARC",PDC_DEC[Pose prév. S],PDC_DEC[[#Headers],[49]])>70,"Trop de BozArc prévu","") ->  | L4: =IF(SUMIFS(PDC_DEC[H estimatives],PDC_DEC[Projet],"BOZARC",PDC_DEC[Pose prév. S],PDC_DEC[[#Headers],[50]])>87.5,"Trop de BozArc prévu","") ->  | M4: =IF(SUMIFS(PDC_DEC[H estimatives],PDC_DEC[Projet],"BOZARC",PDC_DEC[Pose prév. S],PDC_DEC[[#Headers],[51]])>70,"Trop de BozArc prévu","") ->  | N4: =IF(SUMIFS(PDC_DEC[H estimatives],PDC_DEC[Projet],"BOZARC",PDC_DEC[Pose prév. S],PDC_DEC[[#Headers],[52]])>87.5,"Trop de BozArc prévu","") ->  | O4: =IF(SUMIFS(PDC_DEC[H estimatives],PDC_DEC[Projet],"BOZARC",PDC_DEC[Pose prév. S],PDC_DEC[[#Headers],[1]])>70,"Trop de BozArc prévu","") -> 
A5: =IF(OR(S7>=S13,S10>0),"MOIS COMPLET - PLUS DE SAISIE","") ->  | J5: =IF(SUMIF(PDC_DEC[Pose prév. S],PDC_DEC[[#Headers],[48]],PDC_DEC[H estimatives])>=V$16,"Semaine complète","") -> Semaine complète | K5: =IF(SUMIF(PDC_DEC[Pose prév. S],PDC_DEC[[#Headers],[49]],PDC_DEC[H estimatives])>=W$16,"Semaine complète","") ->  | L5: =IF(SUMIF(PDC_DEC[Pose prév. S],PDC_DEC[[#Headers],[50]],PDC_DEC[H estimatives])>=X$16,"Semaine complète","") ->  | M5: =IF(SUMIF(PDC_DEC[Pose prév. S],PDC_DEC[[#Headers],[51]],PDC_DEC[H estimatives])>=Y$16,"Semaine complète","") ->  | N5: =IF(SUMIF(PDC_DEC[Pose prév. S],PDC_DEC[[#Headers],[52]],PDC_DEC[H estimatives])>=Z$16,"Semaine complète","") ->  | O5: =IF(SUMIF(PDC_DEC[Pose prév. S],PDC_DEC[[#Headers],[1]],PDC_DEC[H estimatives])>=AA$16,"Semaine complète","") -> Semaine complète | U5: =NOV!T5+1 -> 12
A6: Chantiers | B6: Ccial | C6: Projet | D6: Ville | E6: H estimatives | F6: H réelles réalisées | G6: CA | H6: S de liv. | I6: Pose prév. S | J6: 48 | K6: 49 | L6: 50 | M6: 51 | N6: 52 | O6: 1 | P6: Plannifié et validé | R6: Indicateurs | U6: Éxécutants | V6: 48 | W6: 49 | X6: 50 | Y6: 51 | Z6: 52 | AA6: 1
J7: =IF(PDC_DEC[[#This Row],[Pose prév. S]]=J$3,PDC_DEC[[#This Row],[CA]],"") ->  | K7: =IF(PDC_DEC[[#This Row],[Pose prév. S]]=K$3,PDC_DEC[[#This Row],[CA]],"") ->  | L7: =IF(PDC_DEC[[#This Row],[Pose prév. S]]=L$3,PDC_DEC[[#This Row],[CA]],"") ->  | M7: =IF(PDC_DEC[[#This Row],[Pose prév. S]]=M$3,PDC_DEC[[#This Row],[CA]],"") ->  | N7: =IF(PDC_DEC[[#This Row],[Pose prév. S]]=N$3,PDC_DEC[[#This Row],[CA]],"") ->  | O7: =IF(PDC_DEC[[#This Row],[Pose prév. S]]=O$3,PDC_DEC[[#This Row],[CA]],"") ->  | R7: Heures estimatives | S7: =PDC_DEC[[#Totals],[H estimatives]] -> 0 | U7: Poseur 1 | V7: =INDEX(H_productives[],MATCH(V$6&$U$5,H_productives[N°S]&H_productives[N°Mois],0),MATCH($U7,H_productives[#Headers],0)) -> 0 | W7: =INDEX(H_productives[],MATCH(W$6&$U$5,H_productives[N°S]&H_productives[N°Mois],0),MATCH($U7,H_productives[#Headers],0)) -> 35 | X7: =INDEX(H_productives[],MATCH(X$6&$U$5,H_productives[N°S]&H_productives[N°Mois],0),MATCH($U7,H_productives[#Headers],0)) -> 43 | Y7: =INDEX(H_productives[],MATCH(Y$6&$U$5,H_productives[N°S]&H_productives[N°Mois],0),MATCH($U7,H_productives[#Headers],0)) -> 35 | Z7: =INDEX(H_productives[],MATCH(Z$6&$U$5,H_productives[N°S]&H_productives[N°Mois],0),MATCH($U7,H_productives[#Headers],0)) -> 17.5 | AA7: =INDEX(H_productives[],MATCH(AA$6&$U$5,H_productives[N°S]&H_productives[N°Mois],0),MATCH($U7,H_productives[#Headers],0)) -> 0
J8: =IF(PDC_DEC[[#This Row],[Pose prév. S]]=J$3,PDC_DEC[[#This Row],[CA]],"") ->  | K8: =IF(PDC_DEC[[#This Row],[Pose prév. S]]=K$3,PDC_DEC[[#This Row],[CA]],"") ->  | L8: =IF(PDC_DEC[[#This Row],[Pose prév. S]]=L$3,PDC_DEC[[#This Row],[CA]],"") ->  | M8: =IF(PDC_DEC[[#This Row],[Pose prév. S]]=M$3,PDC_DEC[[#This Row],[CA]],"") ->  | N8: =IF(PDC_DEC[[#This Row],[Pose prév. S]]=N$3,PDC_DEC[[#This Row],[CA]],"") ->  | O8: =IF(PDC_DEC[[#This Row],[Pose prév. S]]=O$3,PDC_DEC[[#This Row],[CA]],"") ->  | R8: Heures estimatives cumulées | S8: =S7+NOV!R8 -> 0 | U8: Poseur 2 | V8: =INDEX(H_productives[],MATCH(V$6&$U$5,H_productives[N°S]&H_productives[N°Mois],0),MATCH($U8,H_productives[#Headers],0)) -> 0 | W8: =INDEX(H_productives[],MATCH(W$6&$U$5,H_productives[N°S]&H_productives[N°Mois],0),MATCH($U8,H_productives[#Headers],0)) -> 35 | X8: =INDEX(H_productives[],MATCH(X$6&$U$5,H_productives[N°S]&H_productives[N°Mois],0),MATCH($U8,H_productives[#Headers],0)) -> 43 | Y8: =INDEX(H_productives[],MATCH(Y$6&$U$5,H_productives[N°S]&H_productives[N°Mois],0),MATCH($U8,H_productives[#Headers],0)) -> 35 | Z8: =INDEX(H_productives[],MATCH(Z$6&$U$5,H_productives[N°S]&H_productives[N°Mois],0),MATCH($U8,H_productives[#Headers],0)) -> 17.5 | AA8: =INDEX(H_productives[],MATCH(AA$6&$U$5,H_productives[N°S]&H_productives[N°Mois],0),MATCH($U8,H_productives[#Headers],0)) -> 0
J9: =IF(PDC_DEC[[#This Row],[Pose prév. S]]=J$3,PDC_DEC[[#This Row],[CA]],"") ->  | K9: =IF(PDC_DEC[[#This Row],[Pose prév. S]]=K$3,PDC_DEC[[#This Row],[CA]],"") ->  | L9: =IF(PDC_DEC[[#This Row],[Pose prév. S]]=L$3,PDC_DEC[[#This Row],[CA]],"") ->  | M9: =IF(PDC_DEC[[#This Row],[Pose prév. S]]=M$3,PDC_DEC[[#This Row],[CA]],"") ->  | N9: =IF(PDC_DEC[[#This Row],[Pose prév. S]]=N$3,PDC_DEC[[#This Row],[CA]],"") ->  | O9: =IF(PDC_DEC[[#This Row],[Pose prév. S]]=O$3,PDC_DEC[[#This Row],[CA]],"") ->  | U9: Poseur 3 | V9: =INDEX(H_productives[],MATCH(V$6&$U$5,H_productives[N°S]&H_productives[N°Mois],0),MATCH($U9,H_productives[#Headers],0)) -> 0 | W9: =INDEX(H_productives[],MATCH(W$6&$U$5,H_productives[N°S]&H_productives[N°Mois],0),MATCH($U9,H_productives[#Headers],0)) -> 35 | X9: =INDEX(H_productives[],MATCH(X$6&$U$5,H_productives[N°S]&H_productives[N°Mois],0),MATCH($U9,H_productives[#Headers],0)) -> 43 | Y9: =INDEX(H_productives[],MATCH(Y$6&$U$5,H_productives[N°S]&H_productives[N°Mois],0),MATCH($U9,H_productives[#Headers],0)) -> 35 | Z9: =INDEX(H_productives[],MATCH(Z$6&$U$5,H_productives[N°S]&H_productives[N°Mois],0),MATCH($U9,H_productives[#Headers],0)) -> 17.5 | AA9: =INDEX(H_productives[],MATCH(AA$6&$U$5,H_productives[N°S]&H_productives[N°Mois],0),MATCH($U9,H_productives[#Headers],0)) -> 0
A10: =SUBTOTAL(103,PDC_DEC[Chantiers]) -> 0 | E10: =SUBTOTAL(109,PDC_DEC[H estimatives]) -> 0 | F10: =SUBTOTAL(109,PDC_DEC[H réelles réalisées]) -> 0 | G10: =SUBTOTAL(109,PDC_DEC[CA]) -> 0 | R10: Heures en surplus (à décaler) | S10: =IF(TODAY()<=R1,IF(NOV!R10>0,IF((S7+NOV!R10)>S13,(S7+NOV!R10)-S13,0),IF(S7>S13,S7-S13,0)),IF(S7>S13,S7-S13,0)) -> 0 | U10: Poseur 4 | V10: =INDEX(H_productives[],MATCH(V$6&$U$5,H_productives[N°S]&H_productives[N°Mois],0),MATCH($U10,H_productives[#Headers],0)) -> 0 | W10: =INDEX(H_productives[],MATCH(W$6&$U$5,H_productives[N°S]&H_productives[N°Mois],0),MATCH($U10,H_productives[#Headers],0)) -> 35 | X10: =INDEX(H_productives[],MATCH(X$6&$U$5,H_productives[N°S]&H_productives[N°Mois],0),MATCH($U10,H_productives[#Headers],0)) -> 43 | Y10: =INDEX(H_productives[],MATCH(Y$6&$U$5,H_productives[N°S]&H_productives[N°Mois],0),MATCH($U10,H_productives[#Headers],0)) -> 35 | Z10: =INDEX(H_productives[],MATCH(Z$6&$U$5,H_productives[N°S]&H_productives[N°Mois],0),MATCH($U10,H_productives[#Headers],0)) -> 17.5 | AA10: =INDEX(H_productives[],MATCH(AA$6&$U$5,H_productives[N°S]&H_productives[N°Mois],0),MATCH($U10,H_productives[#Headers],0)) -> 0
F11: Nombre d'h prévues : | J11: =SUMIF(PDC_DEC[Pose prév. S],PDC_DEC[[#Headers],[48]],PDC_DEC[H estimatives]) -> 0 | K11: =SUMIF(PDC_DEC[Pose prév. S],PDC_DEC[[#Headers],[49]],PDC_DEC[H estimatives]) -> 0 | L11: =SUMIF(PDC_DEC[Pose prév. S],PDC_DEC[[#Headers],[50]],PDC_DEC[H estimatives]) -> 0 | M11: =SUMIF(PDC_DEC[Pose prév. S],PDC_DEC[[#Headers],[51]],PDC_DEC[H estimatives]) -> 0 | N11: =SUMIF(PDC_DEC[Pose prév. S],PDC_DEC[[#Headers],[52]],PDC_DEC[H estimatives]) -> 0 | O11: =SUMIF(PDC_DEC[Pose prév. S],PDC_DEC[[#Headers],[1]],PDC_DEC[H estimatives]) -> 0 | R11: Heures restantes | S11: =IF(S10=0,IF(TODAY()<=R1,S13-(S7+NOV!R10),S13-S7),0) -> 769.675 | U11: Poseur 5 | V11: =INDEX(H_productives[],MATCH(V$6&$U$5,H_productives[N°S]&H_productives[N°Mois],0),MATCH($U11,H_productives[#Headers],0)) -> 0 | W11: =INDEX(H_productives[],MATCH(W$6&$U$5,H_productives[N°S]&H_productives[N°Mois],0),MATCH($U11,H_productives[#Headers],0)) -> 35 | X11: =INDEX(H_productives[],MATCH(X$6&$U$5,H_productives[N°S]&H_productives[N°Mois],0),MATCH($U11,H_productives[#Headers],0)) -> 43 | Y11: =INDEX(H_productives[],MATCH(Y$6&$U$5,H_productives[N°S]&H_productives[N°Mois],0),MATCH($U11,H_productives[#Headers],0)) -> 35 | Z11: =INDEX(H_productives[],MATCH(Z$6&$U$5,H_productives[N°S]&H_productives[N°Mois],0),MATCH($U11,H_productives[#Headers],0)) -> 17.5 | AA11: =INDEX(H_productives[],MATCH(AA$6&$U$5,H_productives[N°S]&H_productives[N°Mois],0),MATCH($U11,H_productives[#Headers],0)) -> 0
F12: Différence d'h (H prévues - H prod.) : | J12: =J11-V16 -> 0 | K12: =K11-W16 -> -208.25 | L12: =L11-X16 -> -249.05 | M12: =M11-Y16 -> -208.25 | N12: =N11-Z16 -> -104.125 | O12: =O11-AA16 -> 0 | U12: Poseur 6 | V12: =INDEX(H_productives[],MATCH(V$6&$U$5,H_productives[N°S]&H_productives[N°Mois],0),MATCH($U12,H_productives[#Headers],0)) -> 0 | W12: =INDEX(H_productives[],MATCH(W$6&$U$5,H_productives[N°S]&H_productives[N°Mois],0),MATCH($U12,H_productives[#Headers],0)) -> 35 | X12: =INDEX(H_productives[],MATCH(X$6&$U$5,H_productives[N°S]&H_productives[N°Mois],0),MATCH($U12,H_productives[#Headers],0)) -> 43 | Y12: =INDEX(H_productives[],MATCH(Y$6&$U$5,H_productives[N°S]&H_productives[N°Mois],0),MATCH($U12,H_productives[#Headers],0)) -> 35 | Z12: =INDEX(H_productives[],MATCH(Z$6&$U$5,H_productives[N°S]&H_productives[N°Mois],0),MATCH($U12,H_productives[#Headers],0)) -> 17.5 | AA12: =INDEX(H_productives[],MATCH(AA$6&$U$5,H_productives[N°S]&H_productives[N°Mois],0),MATCH($U12,H_productives[#Headers],0)) -> 0
F13: CA/mois TOTAL | G13: =SUMIF(PDC_DEC[Plannifié et validé],"ü",PDC_DEC[CA]) -> 0 | R13: Heures prod. | S13: =SUM(V16:AA16) -> 769.675 | U13: Poseur 7 | V13: =INDEX(H_productives[],MATCH(V$6&$U$5,H_productives[N°S]&H_productives[N°Mois],0),MATCH($U13,H_productives[#Headers],0)) -> 0 | W13: =INDEX(H_productives[],MATCH(W$6&$U$5,H_productives[N°S]&H_productives[N°Mois],0),MATCH($U13,H_productives[#Headers],0)) -> 35 | X13: =INDEX(H_productives[],MATCH(X$6&$U$5,H_productives[N°S]&H_productives[N°Mois],0),MATCH($U13,H_productives[#Headers],0)) -> 35 | Y13: =INDEX(H_productives[],MATCH(Y$6&$U$5,H_productives[N°S]&H_productives[N°Mois],0),MATCH($U13,H_productives[#Headers],0)) -> 35 | Z13: =INDEX(H_productives[],MATCH(Z$6&$U$5,H_productives[N°S]&H_productives[N°Mois],0),MATCH($U13,H_productives[#Headers],0)) -> 17.5 | AA13: =INDEX(H_productives[],MATCH(AA$6&$U$5,H_productives[N°S]&H_productives[N°Mois],0),MATCH($U13,H_productives[#Headers],0)) -> 0
R14: Heures prod. cumulées | S14: =S13+NOV!R14 -> 2465 | U14: Total | V14: =SUBTOTAL(109,Tps_travaillées_OCT381382[48]) -> 0 | W14: =SUBTOTAL(109,Tps_travaillées_OCT381382[49]) -> 245 | X14: =SUBTOTAL(109,Tps_travaillées_OCT381382[50]) -> 293 | Y14: =SUBTOTAL(109,Tps_travaillées_OCT381382[51]) -> 245 | Z14: =SUBTOTAL(109,Tps_travaillées_OCT381382[52]) -> 122.5 | AA14: =SUBTOTAL(109,Tps_travaillées_OCT381382[1]) -> 0
U15: -0.15 | V15: =Tps_travaillées_OCT381382[[#Totals],[48]]*$U$15 -> 0 | W15: =Tps_travaillées_OCT381382[[#Totals],[49]]*$U$15 -> -36.75 | X15: =Tps_travaillées_OCT381382[[#Totals],[50]]*$U$15 -> -43.95 | Y15: =Tps_travaillées_OCT381382[[#Totals],[51]]*$U$15 -> -36.75 | Z15: =Tps_travaillées_OCT381382[[#Totals],[52]]*$U$15 -> -18.375 | AA15: =Tps_travaillées_OCT381382[[#Totals],[1]]*$U$15 -> 0
R16: Heures réelles réalisées | S16: =PDC_DEC[[#Totals],[H réelles réalisées]] -> 0 | U16: Heure réelles travaillées | V16: =SUM(V14:V15) -> 0 | W16: 208.25 | X16: 249.05 | Y16: 208.25 | Z16: 104.125 | AA16: 0
R17: Heures réelles réalisées cumulées | S17: =S16+NOV!R17 -> 0 | U17: Soit en JOURS | V17: =V16/8.75 -> 0 | W17: 23.8 | X17: 28.46285714 | Y17: 23.8 | Z17: 11.9 | AA17: 0
R19: Moyenne CA/h estimatives | S19: =SUM(PDC_DEC[[#Totals],[CA]]/E10) -> 
R20: Moyenne CA/h réalisées | S20: =G13/PDC_DEC[[#Totals],[H réelles réalisées]] -> 
R21: Moyenne CA/h réalisées cumulées | S21: =S25/S17 -> 
R23: CA prévi. à poser au cours de l'année | S23: =PDC_DEC[[#Totals],[CA]]+JAN!R23 -> 0
R24: CA prévision cumulé | S24: =PDC_DEC[[#Totals],[CA]]+NOV!R24 -> 0
R25: CA réel cumulé | S25: =G13+NOV!R25 -> 0

Sheet JAN
A1: ="PLAN DE CHARGE DU MOIS DE JANVIER "&'Fermetures & jours fériés'!D2 -> PLAN DE CHARGE DU MOIS DE JANVIER 2020 | Q1: =EDATE(DEC!R1,1) -> 2020-01-01
A2: Légende : | B2: Chantier fait | D2: Cellule à définir avec feuille de marge réelle | E2: = H estimatives | G2: < H estimatives | I2: > H estimatives | K2: Pose prév. Impératif | L2: Rechercher un client : Ctrl+F > Options > Dans "Classeur" > Décocher "Totalité de la cellule" > Entrer NOM
J3: 1 | K3: =IF(J3<52,J3+1,1) -> 2 | L3: =IF(K3<52,K3+1,1) -> 3 | M3: 4 | N3: 5
J4: =IF(SUMIFS(PDC_JAN[H estimatives],PDC_JAN[Projet],"BOZARC",PDC_JAN[Pose prév. S],PDC_JAN[[#Headers],[1]])>70,"Trop de BozArc prévu","") ->  | K4: =IF(SUMIFS(PDC_JAN[H estimatives],PDC_JAN[Projet],"BOZARC",PDC_JAN[Pose prév. S],PDC_JAN[[#Headers],[2]])>87.5,"Trop de BozArc prévu","") ->  | L4: =IF(SUMIFS(PDC_JAN[H estimatives],PDC_JAN[Projet],"BOZARC",PDC_JAN[Pose prév. S],PDC_JAN[[#Headers],[3]])>70,"Trop de BozArc prévu","") ->  | M4: =IF(SUMIFS(PDC_JAN[H estimatives],PDC_JAN[Projet],"BOZARC",PDC_JAN[Pose prév. S],PDC_JAN[[#Headers],[4]])>87.5,"Trop de BozArc prévu","") ->  | N4: =IF(SUMIFS(PDC_JAN[H estimatives],PDC_JAN[Projet],"BOZARC",PDC_JAN[Pose prév. S],PDC_JAN[[#Headers],[5]])>70,"Trop de BozArc prévu","") -> 
A5: =IF(OR(R7>=R13,R10>0),"MOIS COMPLET - PLUS DE SAISIE","") ->  | J5: =IF(SUMIF(PDC_JAN[Pose prév. S],PDC_JAN[[#Headers],[1]],PDC_JAN[H estimatives])>=U$16,"Semaine complète","") ->  | K5: =IF(SUMIF(PDC_JAN[Pose prév. S],PDC_JAN[[#Headers],[2]],PDC_JAN[H estimatives])>=V$16,"Semaine complète","") ->  | L5: =IF(SUMIF(PDC_JAN[Pose prév. S],PDC_JAN[[#Headers],[3]],PDC_JAN[H estimatives])>=W$16,"Semaine complète","") ->  | M5: =IF(SUMIF(PDC_JAN[Pose prév. S],PDC_JAN[[#Headers],[4]],PDC_JAN[H estimatives])>=X$16,"Semaine complète","") ->  | N5: =IF(SUMIF(PDC_JAN[Pose prév. S],PDC_JAN[[#Headers],[5]],PDC_JAN[H estimatives])>=Y$16,"Semaine complète","") ->  | T5: 1
A6: Chantiers | B6: Ccial | C6: Projet | D6: Ville | E6: H estimatives | F6: H réelles réalisées | G6: CA | H6: S de liv. | I6: Pose prév. S | J6: 1 | K6: 2 | L6: 3 | M6: 4 | N6: 5 | O6: Plannifié et validé | Q6: Indicateurs | T6: Éxécutants | U6: 1 | V6: 2 | W6: 3 | X6: 4 | Y6: 5
J7: =IF(PDC_JAN[[#This Row],[Pose prév. S]]=J$3,PDC_JAN[[#This Row],[CA]],"") ->  | K7: =IF(PDC_JAN[[#This Row],[Pose prév. S]]=K$3,PDC_JAN[[#This Row],[CA]],"") ->  | L7: =IF(PDC_JAN[[#This Row],[Pose prév. S]]=L$3,PDC_JAN[[#This Row],[CA]],"") ->  | M7: =IF(PDC_JAN[[#This Row],[Pose prév. S]]=M$3,PDC_JAN[[#This Row],[CA]],"") ->  | N7: =IF(PDC_JAN[[#This Row],[Pose prév. S]]=N$3,PDC_JAN[[#This Row],[CA]],"") ->  | Q7: Heures estimatives | R7: =PDC_JAN[[#Totals],[H estimatives]] -> 0 | T7: Poseur 1 | U7: =INDEX(H_productives[],MATCH(U$6&$T$5,H_productives[N°S]&H_productives[N°Mois],0),MATCH($T7,H_productives[#Headers],0)) -> 0 | V7: =INDEX(H_productives[],MATCH(V$6&$T$5,H_productives[N°S]&H_productives[N°Mois],0),MATCH($T7,H_productives[#Headers],0)) -> 43 | W7: =INDEX(H_productives[],MATCH(W$6&$T$5,H_productives[N°S]&H_productives[N°Mois],0),MATCH($T7,H_productives[#Headers],0)) -> 35 | X7: =INDEX(H_productives[],MATCH(X$6&$T$5,H_productives[N°S]&H_productives[N°Mois],0),MATCH($T7,H_productives[#Headers],0)) -> 43 | Y7: =INDEX(H_productives[],MATCH(Y$6&$T$5,H_productives[N°S]&H_productives[N°Mois],0),MATCH($T7,H_productives[#Headers],0)) -> 35
J8: =IF(PDC_JAN[[#This Row],[Pose prév. S]]=J$3,PDC_JAN[[#This Row],[CA]],"") ->  | K8: =IF(PDC_JAN[[#This Row],[Pose prév. S]]=K$3,PDC_JAN[[#This Row],[CA]],"") ->  | L8: =IF(PDC_JAN[[#This Row],[Pose prév. S]]=L$3,PDC_JAN[[#This Row],[CA]],"") ->  | M8: =IF(PDC_JAN[[#This Row],[Pose prév. S]]=M$3,PDC_JAN[[#This Row],[CA]],"") ->  | N8: =IF(PDC_JAN[[#This Row],[Pose prév. S]]=N$3,PDC_JAN[[#This Row],[CA]],"") ->  | Q8: Heures estimatives cumulées | R8: =R7+DEC!S8 -> 0 | T8: Poseur 2 | U8: =INDEX(H_productives[],MATCH(U$6&$T$5,H_productives[N°S]&H_productives[N°Mois],0),MATCH($T8,H_productives[#Headers],0)) -> 0 | V8: =INDEX(H_productives[],MATCH(V$6&$T$5,H_productives[N°S]&H_productives[N°Mois],0),MATCH($T8,H_productives[#Headers],0)) -> 43 | W8: =INDEX(H_productives[],MATCH(W$6&$T$5,H_productives[N°S]&H_productives[N°Mois],0),MATCH($T8,H_productives[#Headers],0)) -> 35 | X8: =INDEX(H_productives[],MATCH(X$6&$T$5,H_productives[N°S]&H_productives[N°Mois],0),MATCH($T8,H_productives[#Headers],0)) -> 43 | Y8: =INDEX(H_productives[],MATCH(Y$6&$T$5,H_productives[N°S]&H_productives[N°Mois],0),MATCH($T8,H_productives[#Headers],0)) -> 35
J9: =IF(PDC_JAN[[#This Row],[Pose prév. S]]=J$3,PDC_JAN[[#This Row],[CA]],"") ->  | K9: =IF(PDC_JAN[[#This Row],[Pose prév. S]]=K$3,PDC_JAN[[#This Row],[CA]],"") ->  | L9: =IF(PDC_JAN[[#This Row],[Pose prév. S]]=L$3,PDC_JAN[[#This Row],[CA]],"") ->  | M9: =IF(PDC_JAN[[#This Row],[Pose prév. S]]=M$3,PDC_JAN[[#This Row],[CA]],"") ->  | N9: =IF(PDC_JAN[[#This Row],[Pose prév. S]]=N$3,PDC_JAN[[#This Row],[CA]],"") ->  | T9: Poseur 3 | U9: =INDEX(H_productives[],MATCH(U$6&$T$5,H_productives[N°S]&H_productives[N°Mois],0),MATCH($T9,H_productives[#Headers],0)) -> 0 | V9: =INDEX(H_productives[],MATCH(V$6&$T$5,H_productives[N°S]&H_productives[N°Mois],0),MATCH($T9,H_productives[#Headers],0)) -> 43 | W9: =INDEX(H_productives[],MATCH(W$6&$T$5,H_productives[N°S]&H_productives[N°Mois],0),MATCH($T9,H_productives[#Headers],0)) -> 35 | X9: =INDEX(H_productives[],MATCH(X$6&$T$5,H_productives[N°S]&H_productives[N°Mois],0),MATCH($T9,H_productives[#Headers],0)) -> 43 | Y9: =INDEX(H_productives[],MATCH(Y$6&$T$5,H_productives[N°S]&H_productives[N°Mois],0),MATCH($T9,H_productives[#Headers],0)) -> 35
A10: =SUBTOTAL(103,PDC_JAN[Chantiers]) -> 0 | E10: =SUBTOTAL(109,PDC_JAN[H estimatives]) -> 0 | F10: =SUBTOTAL(109,PDC_JAN[H réelles réalisées]) -> 0 | G10: =SUBTOTAL(109,PDC_JAN[CA]) -> 0 | Q10: Heures en surplus (à décaler) | R10: =IF(TODAY()<=Q1,IF(DEC!S10>0,IF((R7+DEC!S10)>R13,(R7+DEC!S10)-R13,0),IF(R7>R13,R7-R13,0)),IF(R7>R13,R7-R13,0)) -> 0 | T10: Poseur 4 | U10: =INDEX(H_productives[],MATCH(U$6&$T$5,H_productives[N°S]&H_productives[N°Mois],0),MATCH($T10,H_productives[#Headers],0)) -> 0 | V10: =INDEX(H_productives[],MATCH(V$6&$T$5,H_productives[N°S]&H_productives[N°Mois],0),MATCH($T10,H_productives[#Headers],0)) -> 43 | W10: =INDEX(H_productives[],MATCH(W$6&$T$5,H_productives[N°S]&H_productives[N°Mois],0),MATCH($T10,H_productives[#Headers],0)) -> 35 | X10: =INDEX(H_productives[],MATCH(X$6&$T$5,H_productives[N°S]&H_productives[N°Mois],0),MATCH($T10,H_productives[#Headers],0)) -> 43 | Y10: =INDEX(H_productives[],MATCH(Y$6&$T$5,H_productives[N°S]&H_productives[N°Mois],0),MATCH($T10,H_productives[#Headers],0)) -> 35
F11: Nombre d'h prévues : | J11: =SUMIF(PDC_JAN[Pose prév. S],PDC_JAN[[#Headers],[1]],PDC_JAN[H estimatives]) -> 0 | K11: =SUMIF(PDC_JAN[Pose prév. S],PDC_JAN[[#Headers],[2]],PDC_JAN[H estimatives]) -> 0 | L11: =SUMIF(PDC_JAN[Pose prév. S],PDC_JAN[[#Headers],[3]],PDC_JAN[H estimatives]) -> 0 | M11: =SUMIF(PDC_JAN[Pose prév. S],PDC_JAN[[#Headers],[4]],PDC_JAN[H estimatives]) -> 0 | N11: =SUMIF(PDC_JAN[Pose prév. S],PDC_JAN[[#Headers],[5]],PDC_JAN[H estimatives]) -> 0 | Q11: Heures restantes | R11: =IF(R10=0,IF(TODAY()<=Q1,R13-(R7+DEC!S10),R13-R7),0) -> 944.35 | T11: Poseur 5 | U11: =INDEX(H_productives[],MATCH(U$6&$T$5,H_productives[N°S]&H_productives[N°Mois],0),MATCH($T11,H_productives[#Headers],0)) -> 0 | V11: =INDEX(H_productives[],MATCH(V$6&$T$5,H_productives[N°S]&H_productives[N°Mois],0),MATCH($T11,H_productives[#Headers],0)) -> 43 | W11: =INDEX(H_productives[],MATCH(W$6&$T$5,H_productives[N°S]&H_productives[N°Mois],0),MATCH($T11,H_productives[#Headers],0)) -> 35 | X11: =INDEX(H_productives[],MATCH(X$6&$T$5,H_productives[N°S]&H_productives[N°Mois],0),MATCH($T11,H_productives[#Headers],0)) -> 43 | Y11: =INDEX(H_productives[],MATCH(Y$6&$T$5,H_productives[N°S]&H_productives[N°Mois],0),MATCH($T11,H_productives[#Headers],0)) -> 35
F12: Différence d'h (H prévues - H prod.) : | J12: =J11-U16 -> -29.75 | K12: =K11-V16 -> -249.05 | L12: =L11-W16 -> -208.25 | M12: =M11-X16 -> -249.05 | N12: =N11-Y16 -> -208.25 | T12: Poseur 6 | U12: =INDEX(H_productives[],MATCH(U$6&$T$5,H_productives[N°S]&H_productives[N°Mois],0),MATCH($T12,H_productives[#Headers],0)) -> 0 | V12: =INDEX(H_productives[],MATCH(V$6&$T$5,H_productives[N°S]&H_productives[N°Mois],0),MATCH($T12,H_productives[#Headers],0)) -> 43 | W12: =INDEX(H_productives[],MATCH(W$6&$T$5,H_productives[N°S]&H_productives[N°Mois],0),MATCH($T12,H_productives[#Headers],0)) -> 35 | X12: =INDEX(H_productives[],MATCH(X$6&$T$5,H_productives[N°S]&H_productives[N°Mois],0),MATCH($T12,H_productives[#Headers],0)) -> 43 | Y12: =INDEX(H_productives[],MATCH(Y$6&$T$5,H_productives[N°S]&H_productives[N°Mois],0),MATCH($T12,H_productives[#Headers],0)) -> 35
F13: CA/mois TOTAL | G13: =SUMIF(PDC_JAN[Plannifié et validé],"ü",PDC_JAN[CA]) -> 0 | Q13: Heures prod. | R13: =SUM(U16:Y16) -> 944.35 | T13: Poseur 7 | U13: =INDEX(H_productives[],MATCH(U$6&$T$5,H_productives[N°S]&H_productives[N°Mois],0),MATCH($T13,H_productives[#Headers],0)) -> 35 | V13: =INDEX(H_productives[],MATCH(V$6&$T$5,H_productives[N°S]&H_productives[N°Mois],0),MATCH($T13,H_productives[#Headers],0)) -> 35 | W13: =INDEX(H_productives[],MATCH(W$6&$T$5,H_productives[N°S]&H_productives[N°Mois],0),MATCH($T13,H_productives[#Headers],0)) -> 35 | X13: =INDEX(H_productives[],MATCH(X$6&$T$5,H_productives[N°S]&H_productives[N°Mois],0),MATCH($T13,H_productives[#Headers],0)) -> 35 | Y13: =INDEX(H_productives[],MATCH(Y$6&$T$5,H_productives[N°S]&H_productives[N°Mois],0),MATCH($T13,H_productives[#Headers],0)) -> 35
Q14: Heures prod. cumulées | R14: =R13+DEC!S14 -> 3409.35 | T14: Total | U14: =SUBTOTAL(109,Tps_travaillées_OCT381382383[1]) -> 35 | V14: =SUBTOTAL(109,Tps_travaillées_OCT381382383[2]) -> 293 | W14: =SUBTOTAL(109,Tps_travaillées_OCT381382383[3]) -> 245 | X14: =SUBTOTAL(109,Tps_travaillées_OCT381382383[4]) -> 293 | Y14: =SUBTOTAL(109,Tps_travaillées_OCT381382383[5]) -> 245
T15: -0.15 | U15: =Tps_travaillées_OCT381382383[[#Totals],[1]]*$T$15 -> -5.25 | V15: =Tps_travaillées_OCT381382383[[#Totals],[2]]*$T$15 -> -43.95 | W15: =Tps_travaillées_OCT381382383[[#Totals],[3]]*$T$15 -> -36.75 | X15: =Tps_travaillées_OCT381382383[[#Totals],[4]]*$T$15 -> -43.95 | Y15: =Tps_travaillées_OCT381382383[[#Totals],[5]]*$T$15 -> -36.75
Q16: Heures réelles réalisées | R16: =PDC_JAN[[#Totals],[H réelles réalisées]] -> 0 | T16: Heure réelles travaillées | U16: =SUM(U14:U15) -> 29.75 | V16: =SUM(V14:V15) -> 249.05 | W16: =SUM(W14:W15) -> 208.25 | X16: =SUM(X14:X15) -> 249.05 | Y16: =SUM(Y14:Y15) -> 208.25
Q17: Heures réelles réalisées cumulées | R17: =R16+DEC!S17 -> 0 | T17: Soit en JOURS | U17: =U16/8.75 -> 3.4 | V17: =V16/8.75 -> 28.46285714 | W17: =W16/8.75 -> 23.8 | X17: =X16/8.75 -> 28.46285714 | Y17: =Y16/8.75 -> 23.8
Q19: Moyenne CA/h estimatives | R19: =SUM(PDC_JAN[[#Totals],[CA]]/E10) -> 
Q20: Moyenne CA/h réalisées | R20: =G13/PDC_JAN[[#Totals],[H réelles réalisées]] -> 
Q21: Moyenne CA/h réalisées cumulées | R21: =R25/R17 -> 
Q23: CA prévi. à poser au cours de l'année | R23: =PDC_JAN[[#Totals],[CA]]+FEV!R23 -> 0
Q24: CA prévision cumulé | R24: =PDC_JAN[[#Totals],[CA]]+DEC!S24 -> 0
Q25: CA réel cumulé | R25: =G13+DEC!S25 -> 0

Sheet FEV
A1: ="PLAN DE CHARGE DU MOIS DE FEVRIER "&'Fermetures & jours fériés'!D2 -> PLAN DE CHARGE DU MOIS DE FEVRIER 2020 | P1: =EDATE(JAN!P1,1) -> 1900-01-31 | Q1: =DATE('Fermetures & jours fériés'!D2,T5,1) -> 2020-02-01
A2: Légende : | B2: Chantier fait | D2: Cellule à définir avec feuille de marge réelle | E2: = H estimatives | G2: < H estimatives | I2: > H estimatives | K2: Pose prév. Impératif | L2: Rechercher un client : Ctrl+F > Options > Dans "Classeur" > Décocher "Totalité de la cellule" > Entrer NOM
J3: 5 | K3: =IF(J3<52,J3+1,1) -> 6 | L3: =IF(K3<52,K3+1,1) -> 7 | M3: 8 | N3: 9
J4: =IF(SUMIFS(PDC_FEV[H estimatives],PDC_FEV[Projet],"BOZARC",PDC_FEV[Pose prév. S],PDC_FEV[[#Headers],[5]])>70,"Trop de BozArc prévu","") ->  | K4: =IF(SUMIFS(PDC_FEV[H estimatives],PDC_FEV[Projet],"BOZARC",PDC_FEV[Pose prév. S],PDC_FEV[[#Headers],[6]])>87.5,"Trop de BozArc prévu","") ->  | L4: =IF(SUMIFS(PDC_FEV[H estimatives],PDC_FEV[Projet],"BOZARC",PDC_FEV[Pose prév. S],PDC_FEV[[#Headers],[7]])>70,"Trop de BozArc prévu","") ->  | M4: =IF(SUMIFS(PDC_FEV[H estimatives],PDC_FEV[Projet],"BOZARC",PDC_FEV[Pose prév. S],PDC_FEV[[#Headers],[8]])>87.5,"Trop de BozArc prévu","") ->  | N4: =IF(SUMIFS(PDC_FEV[H estimatives],PDC_FEV[Projet],"BOZARC",PDC_FEV[Pose prév. S],PDC_FEV[[#Headers],[9]])>70,"Trop de BozArc prévu","") -> 
A5: =IF(OR(R7>=R13,R10>0),"MOIS COMPLET - PLUS DE SAISIE","") ->  | J5: =IF(SUMIF(PDC_FEV[Pose prév. S],PDC_FEV[[#Headers],[5]],PDC_FEV[H estimatives])>=U$16,"Semaine complète","") -> Semaine complète | K5: =IF(SUMIF(PDC_FEV[Pose prév. S],PDC_FEV[[#Headers],[6]],PDC_FEV[H estimatives])>=V$16,"Semaine complète","") ->  | L5: =IF(SUMIF(PDC_FEV[Pose prév. S],PDC_FEV[[#Headers],[7]],PDC_FEV[H estimatives])>=W$16,"Semaine complète","") ->  | M5: =IF(SUMIF(PDC_FEV[Pose prév. S],PDC_FEV[[#Headers],[8]],PDC_FEV[H estimatives])>=X$16,"Semaine complète","") ->  | N5: =IF(SUMIF(PDC_FEV[Pose prév. S],PDC_FEV[[#Headers],[9]],PDC_FEV[H estimatives])>=Y$16,"Semaine complète","") ->  | O5: Décalage | T5: =JAN!T5+1 -> 2
A6: Chantiers | B6: Ccial | C6: Projet | D6: Ville | E6: H estimatives | F6: H réelles réalisées | G6: CA | H6: S de liv. | I6: Pose prév. S | J6: 5 | K6: 6 | L6: 7 | M6: 8 | N6: 9 | O6: Plannifié et validé | Q6: Indicateurs | T6: Éxécutants | U6: 5 | V6: 6 | W6: 7 | X6: 8 | Y6: 9
J7: =IF(PDC_FEV[[#This Row],[Pose prév. S]]=J$3,PDC_FEV[[#This Row],[CA]],"") ->  | K7: =IF(PDC_FEV[[#This Row],[Pose prév. S]]=K$3,PDC_FEV[[#This Row],[CA]],"") ->  | L7: =IF(PDC_FEV[[#This Row],[Pose prév. S]]=L$3,PDC_FEV[[#This Row],[CA]],"") ->  | M7: =IF(PDC_FEV[[#This Row],[Pose prév. S]]=M$3,PDC_FEV[[#This Row],[CA]],"") ->  | N7: =IF(PDC_FEV[[#This Row],[Pose prév. S]]=N$3,PDC_FEV[[#This Row],[CA]],"") ->  | Q7: Heures estimatives | R7: =PDC_FEV[[#Totals],[H estimatives]] -> 0 | T7: Poseur 1 | U7: =INDEX(H_productives[],MATCH(U$6&$T$5,H_productives[N°S]&H_productives[N°Mois],0),MATCH($T7,H_productives[#Headers],0)) -> 0 | V7: =INDEX(H_productives[],MATCH(V$6&$T$5,H_productives[N°S]&H_productives[N°Mois],0),MATCH($T7,H_productives[#Headers],0)) -> 43 | W7: =INDEX(H_productives[],MATCH(W$6&$T$5,H_productives[N°S]&H_productives[N°Mois],0),MATCH($T7,H_productives[#Headers],0)) -> 35 | X7: =INDEX(H_productives[],MATCH(X$6&$T$5,H_productives[N°S]&H_productives[N°Mois],0),MATCH($T7,H_productives[#Headers],0)) -> 43 | Y7: =INDEX(H_productives[],MATCH(Y$6&$T$5,H_productives[N°S]&H_productives[N°Mois],0),MATCH($T7,H_productives[#Headers],0)) -> 35
J8: =IF(PDC_FEV[[#This Row],[Pose prév. S]]=J$3,PDC_FEV[[#This Row],[CA]],"") ->  | K8: =IF(PDC_FEV[[#This Row],[Pose prév. S]]=K$3,PDC_FEV[[#This Row],[CA]],"") ->  | L8: =IF(PDC_FEV[[#This Row],[Pose prév. S]]=L$3,PDC_FEV[[#This Row],[CA]],"") ->  | M8: =IF(PDC_FEV[[#This Row],[Pose prév. S]]=M$3,PDC_FEV[[#This Row],[CA]],"") ->  | N8: =IF(PDC_FEV[[#This Row],[Pose prév. S]]=N$3,PDC_FEV[[#This Row],[CA]],"") ->  | Q8: Heures estimatives cumulées | R8: =R7+JAN!R8 -> 0 | T8: Poseur 2 | U8: =INDEX(H_productives[],MATCH(U$6&$T$5,H_productives[N°S]&H_productives[N°Mois],0),MATCH($T8,H_productives[#Headers],0)) -> 0 | V8: =INDEX(H_productives[],MATCH(V$6&$T$5,H_productives[N°S]&H_productives[N°Mois],0),MATCH($T8,H_productives[#Headers],0)) -> 43 | W8: =INDEX(H_productives[],MATCH(W$6&$T$5,H_productives[N°S]&H_productives[N°Mois],0),MATCH($T8,H_productives[#Headers],0)) -> 35 | X8: =INDEX(H_productives[],MATCH(X$6&$T$5,H_productives[N°S]&H_productives[N°Mois],0),MATCH($T8,H_productives[#Headers],0)) -> 43 | Y8: =INDEX(H_productives[],MATCH(Y$6&$T$5,H_productives[N°S]&H_productives[N°Mois],0),MATCH($T8,H_productives[#Headers],0)) -> 35
J9: =IF(PDC_FEV[[#This Row],[Pose prév. S]]=J$3,PDC_FEV[[#This Row],[CA]],"") ->  | K9: =IF(PDC_FEV[[#This Row],[Pose prév. S]]=K$3,PDC_FEV[[#This Row],[CA]],"") ->  | L9: =IF(PDC_FEV[[#This Row],[Pose prév. S]]=L$3,PDC_FEV[[#This Row],[CA]],"") ->  | M9: =IF(PDC_FEV[[#This Row],[Pose prév. S]]=M$3,PDC_FEV[[#This Row],[CA]],"") ->  | N9: =IF(PDC_FEV[[#This Row],[Pose prév. S]]=N$3,PDC_FEV[[#This Row],[CA]],"") ->  | T9: Poseur 3 | U9: =INDEX(H_productives[],MATCH(U$6&$T$5,H_productives[N°S]&H_productives[N°Mois],0),MATCH($T9,H_productives[#Headers],0)) -> 0 | V9: =INDEX(H_productives[],MATCH(V$6&$T$5,H_productives[N°S]&H_productives[N°Mois],0),MATCH($T9,H_productives[#Headers],0)) -> 43 | W9: =INDEX(H_productives[],MATCH(W$6&$T$5,H_productives[N°S]&H_productives[N°Mois],0),MATCH($T9,H_productives[#Headers],0)) -> 35 | X9: =INDEX(H_productives[],MATCH(X$6&$T$5,H_productives[N°S]&H_productives[N°Mois],0),MATCH($T9,H_productives[#Headers],0)) -> 43 | Y9: =INDEX(H_productives[],MATCH(Y$6&$T$5,H_productives[N°S]&H_productives[N°Mois],0),MATCH($T9,H_productives[#Headers],0)) -> 35
A10: =SUBTOTAL(103,PDC_FEV[Chantiers]) -> 0 | E10: =SUBTOTAL(109,PDC_FEV[H estimatives]) -> 0 | F10: =SUBTOTAL(109,PDC_FEV[H réelles réalisées]) -> 0 | G10: =SUBTOTAL(109,PDC_FEV[CA]) -> 0 | Q10: Heures en surplus (à décaler) | R10: =IF(TODAY()<=Q1,IF(JAN!R10>0,IF((R7+JAN!R10)>R13,(R7+JAN!R10)-R13,0),IF(R7>R13,R7-R13,0)),IF(R7>R13,R7-R13,0)) -> 0 | T10: Poseur 4 | U10: =INDEX(H_productives[],MATCH(U$6&$T$5,H_productives[N°S]&H_productives[N°Mois],0),MATCH($T10,H_productives[#Headers],0)) -> 0 | V10: =INDEX(H_productives[],MATCH(V$6&$T$5,H_productives[N°S]&H_productives[N°Mois],0),MATCH($T10,H_productives[#Headers],0)) -> 43 | W10: =INDEX(H_productives[],MATCH(W$6&$T$5,H_productives[N°S]&H_productives[N°Mois],0),MATCH($T10,H_productives[#Headers],0)) -> 35 | X10: =INDEX(H_productives[],MATCH(X$6&$T$5,H_productives[N°S]&H_productives[N°Mois],0),MATCH($T10,H_productives[#Headers],0)) -> 43 | Y10: =INDEX(H_productives[],MATCH(Y$6&$T$5,H_productives[N°S]&H_productives[N°Mois],0),MATCH($T10,H_productives[#Headers],0)) -> 35
F11: Nombre d'h prévues : | J11: =SUMIF(PDC_FEV[Pose prév. S],PDC_FEV[[#Headers],[5]],PDC_FEV[H estimatives]) -> 0 | K11: =SUMIF(PDC_FEV[Pose prév. S],PDC_FEV[[#Headers],[6]],PDC_FEV[H estimatives]) -> 0 | L11: =SUMIF(PDC_FEV[Pose prév. S],PDC_FEV[[#Headers],[7]],PDC_FEV[H estimatives]) -> 0 | M11: =SUMIF(PDC_FEV[Pose prév. S],PDC_FEV[[#Headers],[8]],PDC_FEV[H estimatives]) -> 0 | N11: =SUMIF(PDC_FEV[Pose prév. S],PDC_FEV[[#Headers],[9]],PDC_FEV[H estimatives]) -> 0 | Q11: Heures restantes | R11: =IF(R10=0,IF(TODAY()<=Q1,R13-(R7+JAN!R10),R13-R7),0) -> 1076 | T11: Poseur 5 | U11: =INDEX(H_productives[],MATCH(U$6&$T$5,H_productives[N°S]&H_productives[N°Mois],0),MATCH($T11,H_productives[#Headers],0)) -> 0 | V11: =INDEX(H_productives[],MATCH(V$6&$T$5,H_productives[N°S]&H_productives[N°Mois],0),MATCH($T11,H_productives[#Headers],0)) -> 43 | W11: =INDEX(H_productives[],MATCH(W$6&$T$5,H_productives[N°S]&H_productives[N°Mois],0),MATCH($T11,H_productives[#Headers],0)) -> 35 | X11: =INDEX(H_productives[],MATCH(X$6&$T$5,H_productives[N°S]&H_productives[N°Mois],0),MATCH($T11,H_productives[#Headers],0)) -> 43 | Y11: =INDEX(H_productives[],MATCH(Y$6&$T$5,H_productives[N°S]&H_productives[N°Mois],0),MATCH($T11,H_productives[#Headers],0)) -> 35
F12: Différence d'h (H prévues - H prod.) : | J12: =J11-U16 -> 0 | K12: =K11-V16 -> -249.05 | L12: =L11-W16 -> -208.25 | M12: =M11-X16 -> -249.05 | N12: =N11-Y16 -> -208.25 | T12: Poseur 6 | U12: =INDEX(H_productives[],MATCH(U$6&$T$5,H_productives[N°S]&H_productives[N°Mois],0),MATCH($T12,H_productives[#Headers],0)) -> 0 | V12: =INDEX(H_productives[],MATCH(V$6&$T$5,H_productives[N°S]&H_productives[N°Mois],0),MATCH($T12,H_productives[#Headers],0)) -> 43 | W12: =INDEX(H_productives[],MATCH(W$6&$T$5,H_productives[N°S]&H_productives[N°Mois],0),MATCH($T12,H_productives[#Headers],0)) -> 35 | X12: =INDEX(H_productives[],MATCH(X$6&$T$5,H_productives[N°S]&H_productives[N°Mois],0),MATCH($T12,H_productives[#Headers],0)) -> 43 | Y12: =INDEX(H_productives[],MATCH(Y$6&$T$5,H_productives[N°S]&H_productives[N°Mois],0),MATCH($T12,H_productives[#Headers],0)) -> 35
F13: CA/mois TOTAL | G13: =SUMIF(PDC_FEV[Plannifié et validé],"ü",PDC_FEV[CA]) -> 0 | Q13: Heures prod. | R13: =SUM(Tps_travaillées_OCT384[[#Totals],[5]:[9]]) -> 1076 | T13: Poseur 7 | U13: =INDEX(H_productives[],MATCH(U$6&$T$5,H_productives[N°S]&H_productives[N°Mois],0),MATCH($T13,H_productives[#Headers],0)) -> 0 | V13: =INDEX(H_productives[],MATCH(V$6&$T$5,H_productives[N°S]&H_productives[N°Mois],0),MATCH($T13,H_productives[#Headers],0)) -> 35 | W13: =INDEX(H_productives[],MATCH(W$6&$T$5,H_productives[N°S]&H_productives[N°Mois],0),MATCH($T13,H_productives[#Headers],0)) -> 35 | X13: =INDEX(H_productives[],MATCH(X$6&$T$5,H_productives[N°S]&H_productives[N°Mois],0),MATCH($T13,H_productives[#Headers],0)) -> 35 | Y13: =INDEX(H_productives[],MATCH(Y$6&$T$5,H_productives[N°S]&H_productives[N°Mois],0),MATCH($T13,H_productives[#Headers],0)) -> 35
Q14: Heures prod. cumulées | R14: =R13+JAN!R14 -> 4485.35 | T14: Total | U14: =SUBTOTAL(109,Tps_travaillées_OCT384[5]) -> 0 | V14: =SUBTOTAL(109,Tps_travaillées_OCT384[6]) -> 293 | W14: =SUBTOTAL(109,Tps_travaillées_OCT384[7]) -> 245 | X14: =SUBTOTAL(109,Tps_travaillées_OCT384[8]) -> 293 | Y14: =SUBTOTAL(109,Tps_travaillées_OCT384[9]) -> 245
T15: -0.15 | U15: =Tps_travaillées_OCT384[[#Totals],[5]]*$T$15 -> 0 | V15: =Tps_travaillées_OCT384[[#Totals],[6]]*$T$15 -> -43.95 | W15: =Tps_travaillées_OCT384[[#Totals],[7]]*$T$15 -> -36.75 | X15: =Tps_travaillées_OCT384[[#Totals],[8]]*$T$15 -> -43.95 | Y15: =Tps_travaillées_OCT384[[#Totals],[9]]*$T$15 -> -36.75
Q16: Heures réelles réalisées | R16: =PDC_FEV[[#Totals],[H réelles réalisées]] -> 0 | T16: Heure réelles travaillées | U16: =SUM(U14:U15) -> 0 | V16: =SUM(V14:V15) -> 249.05 | W16: =SUM(W14:W15) -> 208.25 | X16: =SUM(X14:X15) -> 249.05 | Y16: =SUM(Y14:Y15) -> 208.25
Q17: Heures réelles réalisées cumulées | R17: =R16+JAN!R17 -> 0 | T17: Soit en JOURS | U17: =U16/8.75 -> 0 | V17: =V16/8.75 -> 28.46285714 | W17: =W16/8.75 -> 23.8 | X17: =X16/8.75 -> 28.46285714 | Y17: =Y16/8.75 -> 23.8
Q19: Moyenne CA/h estimatives | R19: =SUM(PDC_FEV[[#Totals],[CA]]/E10) -> 
Q20: Moyenne CA/h réalisées | R20: =G13/PDC_FEV[[#Totals],[H réelles réalisées]] -> 
Q21: Moyenne CA/h réalisées cumulées | R21: =R25/R17 -> 
Q23: CA prévi. à poser au cours de l'année | R23: =PDC_FEV[[#Totals],[CA]]+MARS!S23 -> 0
Q24: CA prévision cumulé | R24: =PDC_FEV[[#Totals],[CA]]+JAN!R24 -> 0
Q25: CA réel cumulé | R25: =G13+JAN!R25 -> 0

Sheet MARS
A1: ="PLAN DE CHARGE DU MOIS DE MARS "&'Fermetures & jours fériés'!D2 -> PLAN DE CHARGE DU MOIS DE MARS 2020 | R1: =DATE('Fermetures & jours fériés'!D2,U5,1) -> 2020-03-01
A2: Légende : | B2: Chantier fait | D2: Cellule à définir avec feuille de marge réelle | E2: = H estimatives | G2: < H estimatives | I2: > H estimatives | K2: Pose prév. Impératif | M2: Rechercher un client : Ctrl+F > Options > Dans "Classeur" > Décocher "Totalité de la cellule" > Entrer NOM
J3: 9 | K3: =IF(J3<52,J3+1,1) -> 10 | L3: =IF(K3<52,K3+1,1) -> 11 | M3: 12 | N3: 13 | O3: 14
J4: =IF(SUMIFS(PDC_MARS[H estimatives],PDC_MARS[Projet],"BOZARC",PDC_MARS[Pose prév. S],PDC_MARS[[#Headers],[9]])>70,"Trop de BozArc prévu","") ->  | K4: =IF(SUMIFS(PDC_MARS[H estimatives],PDC_MARS[Projet],"BOZARC",PDC_MARS[Pose prév. S],PDC_MARS[[#Headers],[10]])>87.5,"Trop de BozArc prévu","") ->  | L4: =IF(SUMIFS(PDC_MARS[H estimatives],PDC_MARS[Projet],"BOZARC",PDC_MARS[Pose prév. S],PDC_MARS[[#Headers],[11]])>70,"Trop de BozArc prévu","") ->  | M4: =IF(SUMIFS(PDC_MARS[H estimatives],PDC_MARS[Projet],"BOZARC",PDC_MARS[Pose prév. S],PDC_MARS[[#Headers],[12]])>87.5,"Trop de BozArc prévu","") ->  | N4: =IF(SUMIFS(PDC_MARS[H estimatives],PDC_MARS[Projet],"BOZARC",PDC_MARS[Pose prév. S],PDC_MARS[[#Headers],[13]])>70,"Trop de BozArc prévu","") ->  | O4: =IF(SUMIFS(PDC_MARS[H estimatives],PDC_MARS[Projet],"BOZARC",PDC_MARS[Pose prév. S],PDC_MARS[[#Headers],[14]])>87.5,"Trop de BozArc prévu","") -> 
A5: =IF(OR(S7>=S13,S10>0),"MOIS COMPLET - PLUS DE SAISIE","") ->  | J5: =IF(SUMIF(PDC_MARS[Pose prév. S],PDC_MARS[[#Headers],[9]],PDC_MARS[H estimatives])>=V$16,"Semaine complète","") -> Semaine complète | K5: =IF(SUMIF(PDC_MARS[Pose prév. S],PDC_MARS[[#Headers],[10]],PDC_MARS[H estimatives])>=W$16,"Semaine complète","") ->  | L5: =IF(SUMIF(PDC_MARS[Pose prév. S],PDC_MARS[[#Headers],[11]],PDC_MARS[H estimatives])>=X$16,"Semaine complète","") ->  | M5: =IF(SUMIF(PDC_MARS[Pose prév. S],PDC_MARS[[#Headers],[12]],PDC_MARS[H estimatives])>=Y$16,"Semaine complète","") ->  | N5: =IF(SUMIF(PDC_MARS[Pose prév. S],PDC_MARS[[#Headers],[13]],PDC_MARS[H estimatives])>=Z$16,"Semaine complète","") ->  | O5: =IF(SUMIF(PDC_MARS[Pose prév. S],PDC_MARS[[#Headers],[14]],PDC_MARS[H estimatives])>=AA$16,"Semaine complète","") ->  | P5: Décalage | U5: =FEV!T5+1 -> 3
A6: Chantiers | B6: Ccial | C6: Projet | D6: Ville | E6: H estimatives | F6: H réelles réalisées | G6: CA | H6: S de liv. | I6: Pose prév. S | J6: 9 | K6: 10 | L6: 11 | M6: 12 | N6: 13 | O6: 14 | P6: Plannifié et validé | R6: Indicateurs | U6: Éxécutants | V6: 9 | W6: 10 | X6: 11 | Y6: 12 | Z6: 13 | AA6: 14
J7: =IF(PDC_MARS[[#This Row],[Pose prév. S]]=J$3,PDC_MARS[[#This Row],[CA]],"") ->  | K7: =IF(PDC_MARS[[#This Row],[Pose prév. S]]=K$3,PDC_MARS[[#This Row],[CA]],"") ->  | L7: =IF(PDC_MARS[[#This Row],[Pose prév. S]]=L$3,PDC_MARS[[#This Row],[CA]],"") ->  | M7: =IF(PDC_MARS[[#This Row],[Pose prév. S]]=M$3,PDC_MARS[[#This Row],[CA]],"") ->  | N7: =IF(PDC_MARS[[#This Row],[Pose prév. S]]=N$3,PDC_MARS[[#This Row],[CA]],"") ->  | O7: =IF(PDC_MARS[[#This Row],[Pose prév. S]]=O$3,PDC_MARS[[#This Row],[CA]],"") ->  | R7: Heures estimatives | S7: =PDC_MARS[[#Totals],[H estimatives]] -> 0 | U7: Poseur 1 | V7: =INDEX(H_productives[],MATCH(V$6&$U$5,H_productives[N°S]&H_productives[N°Mois],0),MATCH($U7,H_productives[#Headers],0)) -> 0 | W7: =INDEX(H_productives[],MATCH(W$6&$U$5,H_productives[N°S]&H_productives[N°Mois],0),MATCH($U7,H_productives[#Headers],0)) -> 43 | X7: =INDEX(H_productives[],MATCH(X$6&$U$5,H_productives[N°S]&H_productives[N°Mois],0),MATCH($U7,H_productives[#Headers],0)) -> 35 | Y7: =INDEX(H_productives[],MATCH(Y$6&$U$5,H_productives[N°S]&H_productives[N°Mois],0),MATCH($U7,H_productives[#Headers],0)) -> 43 | Z7: =INDEX(H_productives[],MATCH(Z$6&$U$5,H_productives[N°S]&H_productives[N°Mois],0),MATCH($U7,H_productives[#Headers],0)) -> 35 | AA7: =INDEX(H_productives[],MATCH(AA$6&$U$5,H_productives[N°S]&H_productives[N°Mois],0),MATCH($U7,H_productives[#Headers],0)) -> 17.5
J8: =IF(PDC_MARS[[#This Row],[Pose prév. S]]=J$3,PDC_MARS[[#This Row],[CA]],"") ->  | K8: =IF(PDC_MARS[[#This Row],[Pose prév. S]]=K$3,PDC_MARS[[#This Row],[CA]],"") ->  | L8: =IF(PDC_MARS[[#This Row],[Pose prév. S]]=L$3,PDC_MARS[[#This Row],[CA]],"") ->  | M8: =IF(PDC_MARS[[#This Row],[Pose prév. S]]=M$3,PDC_MARS[[#This Row],[CA]],"") ->  | N8: =IF(PDC_MARS[[#This Row],[Pose prév. S]]=N$3,PDC_MARS[[#This Row],[CA]],"") ->  | O8: =IF(PDC_MARS[[#This Row],[Pose prév. S]]=O$3,PDC_MARS[[#This Row],[CA]],"") ->  | R8: Heures estimatives cumulées | S8: =S7+FEV!R8 -> 0 | U8: Poseur 2 | V8: =INDEX(H_productives[],MATCH(V$6&$U$5,H_productives[N°S]&H_productives[N°Mois],0),MATCH($U8,H_productives[#Headers],0)) -> 0 | W8: =INDEX(H_productives[],MATCH(W$6&$U$5,H_productives[N°S]&H_productives[N°Mois],0),MATCH($U8,H_productives[#Headers],0)) -> 43 | X8: =INDEX(H_productives[],MATCH(X$6&$U$5,H_productives[N°S]&H_productives[N°Mois],0),MATCH($U8,H_productives[#Headers],0)) -> 35 | Y8: =INDEX(H_productives[],MATCH(Y$6&$U$5,H_productives[N°S]&H_productives[N°Mois],0),MATCH($U8,H_productives[#Headers],0)) -> 43 | Z8: =INDEX(H_productives[],MATCH(Z$6&$U$5,H_productives[N°S]&H_productives[N°Mois],0),MATCH($U8,H_productives[#Headers],0)) -> 35 | AA8: =INDEX(H_productives[],MATCH(AA$6&$U$5,H_productives[N°S]&H_productives[N°Mois],0),MATCH($U8,H_productives[#Headers],0)) -> 17.5
J9: =IF(PDC_MARS[[#This Row],[Pose prév. S]]=J$3,PDC_MARS[[#This Row],[CA]],"") ->  | K9: =IF(PDC_MARS[[#This Row],[Pose prév. S]]=K$3,PDC_MARS[[#This Row],[CA]],"") ->  | L9: =IF(PDC_MARS[[#This Row],[Pose prév. S]]=L$3,PDC_MARS[[#This Row],[CA]],"") ->  | M9: =IF(PDC_MARS[[#This Row],[Pose prév. S]]=M$3,PDC_MARS[[#This Row],[CA]],"") ->  | N9: =IF(PDC_MARS[[#This Row],[Pose prév. S]]=N$3,PDC_MARS[[#This Row],[CA]],"") ->  | O9: =IF(PDC_MARS[[#This Row],[Pose prév. S]]=O$3,PDC_MARS[[#This Row],[CA]],"") ->  | U9: Poseur 3 | V9: =INDEX(H_productives[],MATCH(V$6&$U$5,H_productives[N°S]&H_productives[N°Mois],0),MATCH($U9,H_productives[#Headers],0)) -> 0 | W9: =INDEX(H_productives[],MATCH(W$6&$U$5,H_productives[N°S]&H_productives[N°Mois],0),MATCH($U9,H_productives[#Headers],0)) -> 43 | X9: =INDEX(H_productives[],MATCH(X$6&$U$5,H_productives[N°S]&H_productives[N°Mois],0),MATCH($U9,H_productives[#Headers],0)) -> 35 | Y9: =INDEX(H_productives[],MATCH(Y$6&$U$5,H_productives[N°S]&H_productives[N°Mois],0),MATCH($U9,H_productives[#Headers],0)) -> 43 | Z9: =INDEX(H_productives[],MATCH(Z$6&$U$5,H_productives[N°S]&H_productives[N°Mois],0),MATCH($U9,H_productives[#Headers],0)) -> 35 | AA9: =INDEX(H_productives[],MATCH(AA$6&$U$5,H_productives[N°S]&H_productives[N°Mois],0),MATCH($U9,H_productives[#Headers],0)) -> 17.5
A10: =SUBTOTAL(103,PDC_MARS[Chantiers]) -> 0 | E10: =SUBTOTAL(109,PDC_MARS[H estimatives]) -> 0 | F10: =SUBTOTAL(109,PDC_MARS[H réelles réalisées]) -> 0 | G10: =SUBTOTAL(109,PDC_MARS[CA]) -> 0 | R10: Heures en surplus (à décaler) | S10: =IF(TODAY()<=R1,IF(FEV!R10>0,IF((S7+FEV!R10)>S13,(S7+FEV!R10)-S13,0),IF(S7>S13,S7-S13,0)),IF(S7>S13,S7-S13,0)) -> 0 | U10: Poseur 4 | V10: =INDEX(H_productives[],MATCH(V$6&$U$5,H_productives[N°S]&H_productives[N°Mois],0),MATCH($U10,H_productives[#Headers],0)) -> 0 | W10: =INDEX(H_productives[],MATCH(W$6&$U$5,H_productives[N°S]&H_productives[N°Mois],0),MATCH($U10,H_productives[#Headers],0)) -> 43 | X10: =INDEX(H_productives[],MATCH(X$6&$U$5,H_productives[N°S]&H_productives[N°Mois],0),MATCH($U10,H_productives[#Headers],0)) -> 35 | Y10: =INDEX(H_productives[],MATCH(Y$6&$U$5,H_productives[N°S]&H_productives[N°Mois],0),MATCH($U10,H_productives[#Headers],0)) -> 43 | Z10: =INDEX(H_productives[],MATCH(Z$6&$U$5,H_productives[N°S]&H_productives[N°Mois],0),MATCH($U10,H_productives[#Headers],0)) -> 35 | AA10: =INDEX(H_productives[],MATCH(AA$6&$U$5,H_productives[N°S]&H_productives[N°Mois],0),MATCH($U10,H_productives[#Headers],0)) -> 17.5
F11: Nombre d'h prévues : | J11: =SUMIF(PDC_MARS[Pose prév. S],PDC_MARS[[#Headers],[9]],PDC_MARS[H estimatives]) -> 0 | K11: =SUMIF(PDC_MARS[Pose prév. S],PDC_MARS[[#Headers],[10]],PDC_MARS[H estimatives]) -> 0 | L11: =SUMIF(PDC_MARS[Pose prév. S],PDC_MARS[[#Headers],[11]],PDC_MARS[H estimatives]) -> 0 | M11: =SUMIF(PDC_MARS[Pose prév. S],PDC_MARS[[#Headers],[12]],PDC_MARS[H estimatives]) -> 0 | N11: =SUMIF(PDC_MARS[Pose prév. S],PDC_MARS[[#Headers],[13]],PDC_MARS[H estimatives]) -> 0 | O11: =SUMIF(PDC_MARS[Pose prév. S],PDC_MARS[[#Headers],[14]],PDC_MARS[H estimatives]) -> 0 | R11: Heures restantes | S11: =IF(S10=0,IF(TODAY()<=R1,S13-(S7+FEV!R10),S13-S7),0) -> 1216 | U11: Poseur 5 | V11: =INDEX(H_productives[],MATCH(V$6&$U$5,H_productives[N°S]&H_productives[N°Mois],0),MATCH($U11,H_productives[#Headers],0)) -> 0 | W11: =INDEX(H_productives[],MATCH(W$6&$U$5,H_productives[N°S]&H_productives[N°Mois],0),MATCH($U11,H_productives[#Headers],0)) -> 43 | X11: =INDEX(H_productives[],MATCH(X$6&$U$5,H_productives[N°S]&H_productives[N°Mois],0),MATCH($U11,H_productives[#Headers],0)) -> 35 | Y11: =INDEX(H_productives[],MATCH(Y$6&$U$5,H_productives[N°S]&H_productives[N°Mois],0),MATCH($U11,H_productives[#Headers],0)) -> 43 | Z11: =INDEX(H_productives[],MATCH(Z$6&$U$5,H_productives[N°S]&H_productives[N°Mois],0),MATCH($U11,H_productives[#Headers],0)) -> 35 | AA11: =INDEX(H_productives[],MATCH(AA$6&$U$5,H_productives[N°S]&H_productives[N°Mois],0),MATCH($U11,H_productives[#Headers],0)) -> 17.5
F12: Différence d'h (H prévues - H prod.) : | J12: =J11-V16 -> 0 | K12: =K11-W16 -> -249.05 | L12: =L11-X16 -> -208.25 | M12: =M11-Y16 -> -249.05 | N12: =N11-Z16 -> -208.25 | O12: =O11-AA16 -> -119 | U12: Poseur 6 | V12: =INDEX(H_productives[],MATCH(V$6&$U$5,H_productives[N°S]&H_productives[N°Mois],0),MATCH($U12,H_productives[#Headers],0)) -> 0 | W12: =INDEX(H_productives[],MATCH(W$6&$U$5,H_productives[N°S]&H_productives[N°Mois],0),MATCH($U12,H_productives[#Headers],0)) -> 43 | X12: =INDEX(H_productives[],MATCH(X$6&$U$5,H_productives[N°S]&H_productives[N°Mois],0),MATCH($U12,H_productives[#Headers],0)) -> 35 | Y12: =INDEX(H_productives[],MATCH(Y$6&$U$5,H_productives[N°S]&H_productives[N°Mois],0),MATCH($U12,H_productives[#Headers],0)) -> 43 | Z12: =INDEX(H_productives[],MATCH(Z$6&$U$5,H_productives[N°S]&H_productives[N°Mois],0),MATCH($U12,H_productives[#Headers],0)) -> 35 | AA12: =INDEX(H_productives[],MATCH(AA$6&$U$5,H_productives[N°S]&H_productives[N°Mois],0),MATCH($U12,H_productives[#Headers],0)) -> 17.5
F13: CA/mois TOTAL | G13: =SUMIF(PDC_MARS[Plannifié et validé],"ü",PDC_MARS[CA]) -> 0 | R13: Heures prod. | S13: =SUM(Tps_travaillées_OCT381382385[[#Totals],[9]:[14]]) -> 1216 | U13: Poseur 7 | V13: =INDEX(H_productives[],MATCH(V$6&$U$5,H_productives[N°S]&H_productives[N°Mois],0),MATCH($U13,H_productives[#Headers],0)) -> 0 | W13: =INDEX(H_productives[],MATCH(W$6&$U$5,H_productives[N°S]&H_productives[N°Mois],0),MATCH($U13,H_productives[#Headers],0)) -> 35 | X13: =INDEX(H_productives[],MATCH(X$6&$U$5,H_productives[N°S]&H_productives[N°Mois],0),MATCH($U13,H_productives[#Headers],0)) -> 35 | Y13: =INDEX(H_productives[],MATCH(Y$6&$U$5,H_productives[N°S]&H_productives[N°Mois],0),MATCH($U13,H_productives[#Headers],0)) -> 35 | Z13: =INDEX(H_productives[],MATCH(Z$6&$U$5,H_productives[N°S]&H_productives[N°Mois],0),MATCH($U13,H_productives[#Headers],0)) -> 35 | AA13: =INDEX(H_productives[],MATCH(AA$6&$U$5,H_productives[N°S]&H_productives[N°Mois],0),MATCH($U13,H_productives[#Headers],0)) -> 35
R14: Heures prod. cumulées | S14: =S13+FEV!R14 -> 5701.35 | U14: Total | V14: =SUBTOTAL(109,Tps_travaillées_OCT381382385[9]) -> 0 | W14: =SUBTOTAL(109,Tps_travaillées_OCT381382385[10]) -> 293 | X14: =SUBTOTAL(109,Tps_travaillées_OCT381382385[11]) -> 245 | Y14: =SUBTOTAL(109,Tps_travaillées_OCT381382385[12]) -> 293 | Z14: =SUBTOTAL(109,Tps_travaillées_OCT381382385[13]) -> 245 | AA14: =SUBTOTAL(109,Tps_travaillées_OCT381382385[14]) -> 140
U15: -0.15 | V15: =Tps_travaillées_OCT381382385[[#Totals],[9]]*$U$15 -> 0 | W15: =Tps_travaillées_OCT381382385[[#Totals],[10]]*$U$15 -> -43.95 | X15: =Tps_travaillées_OCT381382385[[#Totals],[11]]*$U$15 -> -36.75 | Y15: =Tps_travaillées_OCT381382385[[#Totals],[12]]*$U$15 -> -43.95 | Z15: =Tps_travaillées_OCT381382385[[#Totals],[13]]*$U$15 -> -36.75 | AA15: =Tps_travaillées_OCT381382385[[#Totals],[14]]*$U$15 -> -21
R16: Heures réelles réalisées | S16: =PDC_MARS[[#Totals],[H réelles réalisées]] -> 0 | U16: Heure réelles travaillées | V16: =SUM(V14:V15) -> 0 | W16: 249.05 | X16: 208.25 | Y16: 249.05 | Z16: 208.25 | AA16: 119
R17: Heures réelles réalisées cumulées | S17: =S16+FEV!R17 -> 0 | U17: Soit en JOURS | V17: =V16/8.75 -> 0 | W17: 28.46285714 | X17: 23.8 | Y17: 28.46285714 | Z17: 23.8 | AA17: 13.6
R19: Moyenne CA/h estimatives | S19: =SUM(PDC_MARS[[#Totals],[CA]]/E10) -> 
R20: Moyenne CA/h réalisées | S20: =G13/PDC_MARS[[#Totals],[H réelles réalisées]] -> 
R21: Moyenne CA/h réalisées cumulées | S21: =S25/S17 -> 
R23: CA prévi. à poser au cours de l'année | S23: =PDC_MARS[[#Totals],[CA]]+AVRIL!R23 -> 0
R24: CA prévision cumulé | S24: =PDC_MARS[[#Totals],[CA]]+FEV!R24 -> 0
R25: CA réel cumulé | S25: =G13+FEV!R25 -> 0

Sheet AVRIL
A1: ="PLAN DE CHARGE DU MOIS D'AVRIL "&'Fermetures & jours fériés'!D2 -> PLAN DE CHARGE DU MOIS D'AVRIL 2020 | P1: =EDATE(MARS!R1,1) -> 2020-04-01 | Q1: =DATE('Fermetures & jours fériés'!D2,T5,1) -> 2020-04-01
A2: Légende : | B2: Chantier fait | D2: Cellule à définir avec feuille de marge réelle | E2: = H estimatives | G2: < H estimatives | I2: > H estimatives | K2: Pose prév. Impératif | L2: Rechercher un client : Ctrl+F > Options > Dans "Classeur" > Décocher "Totalité de la cellule" > Entrer NOM
J3: 14 | K3: =IF(J3<52,J3+1,1) -> 15 | L3: =IF(K3<52,K3+1,1) -> 16 | M3: 17 | N3: 18
J4: =IF(SUMIFS(PDC_AVRIL[H estimatives],PDC_AVRIL[Projet],"BOZARC",PDC_AVRIL[Pose prév. S],PDC_AVRIL[[#Headers],[14]])>87.5,"Trop de BozArc prévu","") ->  | K4: =IF(SUMIFS(PDC_AVRIL[H estimatives],PDC_AVRIL[Projet],"BOZARC",PDC_AVRIL[Pose prév. S],PDC_AVRIL[[#Headers],[15]])>70,"Trop de BozArc prévu","") ->  | L4: =IF(SUMIFS(PDC_AVRIL[H estimatives],PDC_AVRIL[Projet],"BOZARC",PDC_AVRIL[Pose prév. S],PDC_AVRIL[[#Headers],[16]])>87.5,"Trop de BozArc prévu","") ->  | M4: =IF(SUMIFS(PDC_AVRIL[H estimatives],PDC_AVRIL[Projet],"BOZARC",PDC_AVRIL[Pose prév. S],PDC_AVRIL[[#Headers],[17]])>70,"Trop de BozArc prévu","") ->  | N4: =IF(SUMIFS(PDC_AVRIL[H estimatives],PDC_AVRIL[Projet],"BOZARC",PDC_AVRIL[Pose prév. S],PDC_AVRIL[[#Headers],[18]])>87.5,"Trop de BozArc prévu","") -> 
A5: =IF(OR(R7>=R13,R10>0),"MOIS COMPLET - PLUS DE SAISIE","") ->  | J5: =IF(SUMIF(PDC_AVRIL[Pose prév. S],PDC_AVRIL[[#Headers],[14]],PDC_AVRIL[H estimatives])>=U$16,"Semaine complète","") ->  | K5: =IF(SUMIF(PDC_AVRIL[Pose prév. S],PDC_AVRIL[[#Headers],[15]],PDC_AVRIL[H estimatives])>=V$16,"Semaine complète","") ->  | L5: =IF(SUMIF(PDC_AVRIL[Pose prév. S],PDC_AVRIL[[#Headers],[16]],PDC_AVRIL[H estimatives])>=W$16,"Semaine complète","") ->  | M5: =IF(SUMIF(PDC_AVRIL[Pose prév. S],PDC_AVRIL[[#Headers],[17]],PDC_AVRIL[H estimatives])>=X$16,"Semaine complète","") ->  | N5: =IF(SUMIF(PDC_AVRIL[Pose prév. S],PDC_AVRIL[[#Headers],[18]],PDC_AVRIL[H estimatives])>=Y$16,"Semaine complète","") ->  | O5: Décalage | T5: =MARS!U5+1 -> 4
A6: Chantiers | B6: Ccial | C6: Projet | D6: Ville | E6: H estimatives | F6: H réelles réalisées | G6: CA | H6: S de liv. | I6: Pose prév. S | J6: 14 | K6: 15 | L6: 16 | M6: 17 | N6: 18 | O6: Plannifié et validé | Q6: Indicateurs | T6: Éxécutants | U6: 14 | V6: 15 | W6: 16 | X6: 17 | Y6: 18
J7: =IF(PDC_AVRIL[[#This Row],[Pose prév. S]]=J$3,PDC_AVRIL[[#This Row],[CA]],"") ->  | K7: =IF(PDC_AVRIL[[#This Row],[Pose prév. S]]=K$3,PDC_AVRIL[[#This Row],[CA]],"") ->  | L7: =IF(PDC_AVRIL[[#This Row],[Pose prév. S]]=L$3,PDC_AVRIL[[#This Row],[CA]],"") ->  | M7: =IF(PDC_AVRIL[[#This Row],[Pose prév. S]]=M$3,PDC_AVRIL[[#This Row],[CA]],"") ->  | N7: =IF(PDC_AVRIL[[#This Row],[Pose prév. S]]=N$3,PDC_AVRIL[[#This Row],[CA]],"") ->  | Q7: Heures estimatives | R7: =PDC_AVRIL[[#Totals],[H estimatives]] -> 0 | T7: Poseur 1 | U7: =INDEX(H_productives[],MATCH(U$6&$T$5,H_productives[N°S]&H_productives[N°Mois],0),MATCH($T7,H_productives[#Headers],0)) -> 25.5 | V7: =INDEX(H_productives[],MATCH(V$6&$T$5,H_productives[N°S]&H_productives[N°Mois],0),MATCH($T7,H_productives[#Headers],0)) -> 35 | W7: =INDEX(H_productives[],MATCH(W$6&$T$5,H_productives[N°S]&H_productives[N°Mois],0),MATCH($T7,H_productives[#Headers],0)) -> 34.25 | X7: =INDEX(H_productives[],MATCH(X$6&$T$5,H_productives[N°S]&H_productives[N°Mois],0),MATCH($T7,H_productives[#Headers],0)) -> 35 | Y7: =INDEX(H_productives[],MATCH(Y$6&$T$5,H_productives[N°S]&H_productives[N°Mois],0),MATCH($T7,H_productives[#Headers],0)) -> 35
J8: =IF(PDC_AVRIL[[#This Row],[Pose prév. S]]=J$3,PDC_AVRIL[[#This Row],[CA]],"") ->  | K8: =IF(PDC_AVRIL[[#This Row],[Pose prév. S]]=K$3,PDC_AVRIL[[#This Row],[CA]],"") ->  | L8: =IF(PDC_AVRIL[[#This Row],[Pose prév. S]]=L$3,PDC_AVRIL[[#This Row],[CA]],"") ->  | M8: =IF(PDC_AVRIL[[#This Row],[Pose prév. S]]=M$3,PDC_AVRIL[[#This Row],[CA]],"") ->  | N8: =IF(PDC_AVRIL[[#This Row],[Pose prév. S]]=N$3,PDC_AVRIL[[#This Row],[CA]],"") ->  | Q8: Heures estimatives cumulées | R8: =R7+MARS!S8 -> 0 | T8: Poseur 2 | U8: =INDEX(H_productives[],MATCH(U$6&$T$5,H_productives[N°S]&H_productives[N°Mois],0),MATCH($T8,H_productives[#Headers],0)) -> 25.5 | V8: =INDEX(H_productives[],MATCH(V$6&$T$5,H_productives[N°S]&H_productives[N°Mois],0),MATCH($T8,H_productives[#Headers],0)) -> 35 | W8: =INDEX(H_productives[],MATCH(W$6&$T$5,H_productives[N°S]&H_productives[N°Mois],0),MATCH($T8,H_productives[#Headers],0)) -> 34.25 | X8: =INDEX(H_productives[],MATCH(X$6&$T$5,H_productives[N°S]&H_productives[N°Mois],0),MATCH($T8,H_productives[#Headers],0)) -> 35 | Y8: =INDEX(H_productives[],MATCH(Y$6&$T$5,H_productives[N°S]&H_productives[N°Mois],0),MATCH($T8,H_productives[#Headers],0)) -> 35
J9: =IF(PDC_AVRIL[[#This Row],[Pose prév. S]]=J$3,PDC_AVRIL[[#This Row],[CA]],"") ->  | K9: =IF(PDC_AVRIL[[#This Row],[Pose prév. S]]=K$3,PDC_AVRIL[[#This Row],[CA]],"") ->  | L9: =IF(PDC_AVRIL[[#This Row],[Pose prév. S]]=L$3,PDC_AVRIL[[#This Row],[CA]],"") ->  | M9: =IF(PDC_AVRIL[[#This Row],[Pose prév. S]]=M$3,PDC_AVRIL[[#This Row],[CA]],"") ->  | N9: =IF(PDC_AVRIL[[#This Row],[Pose prév. S]]=N$3,PDC_AVRIL[[#This Row],[CA]],"") ->  | T9: Poseur 3 | U9: =INDEX(H_productives[],MATCH(U$6&$T$5,H_productives[N°S]&H_productives[N°Mois],0),MATCH($T9,H_productives[#Headers],0)) -> 25.5 | V9: =INDEX(H_productives[],MATCH(V$6&$T$5,H_productives[N°S]&H_productives[N°Mois],0),MATCH($T9,H_productives[#Headers],0)) -> 35 | W9: =INDEX(H_productives[],MATCH(W$6&$T$5,H_productives[N°S]&H_productives[N°Mois],0),MATCH($T9,H_productives[#Headers],0)) -> 34.25 | X9: =INDEX(H_productives[],MATCH(X$6&$T$5,H_productives[N°S]&H_productives[N°Mois],0),MATCH($T9,H_productives[#Headers],0)) -> 35 | Y9: =INDEX(H_productives[],MATCH(Y$6&$T$5,H_productives[N°S]&H_productives[N°Mois],0),MATCH($T9,H_productives[#Headers],0)) -> 35
A10: =SUBTOTAL(103,PDC_AVRIL[Chantiers]) -> 0 | E10: =SUBTOTAL(109,PDC_AVRIL[H estimatives]) -> 0 | F10: =SUBTOTAL(109,PDC_AVRIL[H réelles réalisées]) -> 0 | G10: =SUBTOTAL(109,PDC_AVRIL[CA]) -> 0 | Q10: Heures en surplus (à décaler) | R10: =IF(TODAY()<=Q1,IF(MARS!S10>0,IF((R7+MARS!S10)>R13,(R7+MARS!S10)-R13,0),IF(R7>R13,R7-R13,0)),IF(R7>R13,R7-R13,0)) -> 0 | T10: Poseur 4 | U10: =INDEX(H_productives[],MATCH(U$6&$T$5,H_productives[N°S]&H_productives[N°Mois],0),MATCH($T10,H_productives[#Headers],0)) -> 25.5 | V10: =INDEX(H_productives[],MATCH(V$6&$T$5,H_productives[N°S]&H_productives[N°Mois],0),MATCH($T10,H_productives[#Headers],0)) -> 35 | W10: =INDEX(H_productives[],MATCH(W$6&$T$5,H_productives[N°S]&H_productives[N°Mois],0),MATCH($T10,H_productives[#Headers],0)) -> 34.25 | X10: =INDEX(H_productives[],MATCH(X$6&$T$5,H_productives[N°S]&H_productives[N°Mois],0),MATCH($T10,H_productives[#Headers],0)) -> 35 | Y10: =INDEX(H_productives[],MATCH(Y$6&$T$5,H_productives[N°S]&H_productives[N°Mois],0),MATCH($T10,H_productives[#Headers],0)) -> 35
F11: Nombre d'h prévues : | J11: =SUMIF(PDC_AVRIL[Pose prév. S],PDC_AVRIL[[#Headers],[14]],PDC_AVRIL[H estimatives]) -> 0 | K11: =SUMIF(PDC_AVRIL[Pose prév. S],PDC_AVRIL[[#Headers],[15]],PDC_AVRIL[H estimatives]) -> 0 | L11: =SUMIF(PDC_AVRIL[Pose prév. S],PDC_AVRIL[[#Headers],[16]],PDC_AVRIL[H estimatives]) -> 0 | M11: =SUMIF(PDC_AVRIL[Pose prév. S],PDC_AVRIL[[#Headers],[17]],PDC_AVRIL[H estimatives]) -> 0 | N11: =SUMIF(PDC_AVRIL[Pose prév. S],PDC_AVRIL[[#Headers],[18]],PDC_AVRIL[H estimatives]) -> 0 | Q11: Heures restantes | R11: =IF(R10=0,IF(TODAY()<=Q1,R13-(R7+MARS!S10),R13-R7),0) -> 1156.5 | T11: Poseur 5 | U11: =INDEX(H_productives[],MATCH(U$6&$T$5,H_productives[N°S]&H_productives[N°Mois],0),MATCH($T11,H_productives[#Headers],0)) -> 25.5 | V11: =INDEX(H_productives[],MATCH(V$6&$T$5,H_productives[N°S]&H_productives[N°Mois],0),MATCH($T11,H_productives[#Headers],0)) -> 35 | W11: =INDEX(H_productives[],MATCH(W$6&$T$5,H_productives[N°S]&H_productives[N°Mois],0),MATCH($T11,H_productives[#Headers],0)) -> 34.25 | X11: =INDEX(H_productives[],MATCH(X$6&$T$5,H_productives[N°S]&H_productives[N°Mois],0),MATCH($T11,H_productives[#Headers],0)) -> 35 | Y11: =INDEX(H_productives[],MATCH(Y$6&$T$5,H_productives[N°S]&H_productives[N°Mois],0),MATCH($T11,H_productives[#Headers],0)) -> 35
F12: Différence d'h (H prévues - H prod.) : | J12: =J11-U16 -> -150.45 | K12: =K11-V16 -> -212.5 | L12: =L11-W16 -> -201.875 | M12: =M11-X16 -> -212.5 | N12: =N11-Y16 -> -205.7 | T12: Poseur 6 | U12: =INDEX(H_productives[],MATCH(U$6&$T$5,H_productives[N°S]&H_productives[N°Mois],0),MATCH($T12,H_productives[#Headers],0)) -> 25.5 | V12: =INDEX(H_productives[],MATCH(V$6&$T$5,H_productives[N°S]&H_productives[N°Mois],0),MATCH($T12,H_productives[#Headers],0)) -> 35 | W12: =INDEX(H_productives[],MATCH(W$6&$T$5,H_productives[N°S]&H_productives[N°Mois],0),MATCH($T12,H_productives[#Headers],0)) -> 34.25 | X12: =INDEX(H_productives[],MATCH(X$6&$T$5,H_productives[N°S]&H_productives[N°Mois],0),MATCH($T12,H_productives[#Headers],0)) -> 35 | Y12: =INDEX(H_productives[],MATCH(Y$6&$T$5,H_productives[N°S]&H_productives[N°Mois],0),MATCH($T12,H_productives[#Headers],0)) -> 35
F13: CA/mois TOTAL | G13: =SUMIF(PDC_AVRIL[Plannifié et validé],"ü",PDC_AVRIL[CA]) -> 0 | Q13: Heures prod. | R13: =SUM(Tps_travaillées_OCT384386[[#Totals],[14]:[18]]) -> 1156.5 | T13: Poseur 7 | U13: =INDEX(H_productives[],MATCH(U$6&$T$5,H_productives[N°S]&H_productives[N°Mois],0),MATCH($T13,H_productives[#Headers],0)) -> 24 | V13: =INDEX(H_productives[],MATCH(V$6&$T$5,H_productives[N°S]&H_productives[N°Mois],0),MATCH($T13,H_productives[#Headers],0)) -> 40 | W13: =INDEX(H_productives[],MATCH(W$6&$T$5,H_productives[N°S]&H_productives[N°Mois],0),MATCH($T13,H_productives[#Headers],0)) -> 32 | X13: =INDEX(H_productives[],MATCH(X$6&$T$5,H_productives[N°S]&H_productives[N°Mois],0),MATCH($T13,H_productives[#Headers],0)) -> 40 | Y13: =INDEX(H_productives[],MATCH(Y$6&$T$5,H_productives[N°S]&H_productives[N°Mois],0),MATCH($T13,H_productives[#Headers],0)) -> 32
Q14: Heures prod. cumulées | R14: =R13+MARS!S14 -> 6857.85 | T14: Total | U14: =SUBTOTAL(109,Tps_travaillées_OCT384386[14]) -> 177 | V14: =SUBTOTAL(109,Tps_travaillées_OCT384386[15]) -> 250 | W14: =SUBTOTAL(109,Tps_travaillées_OCT384386[16]) -> 237.5 | X14: =SUBTOTAL(109,Tps_travaillées_OCT384386[17]) -> 250 | Y14: =SUBTOTAL(109,Tps_travaillées_OCT384386[18]) -> 242
T15: -0.15 | U15: =Tps_travaillées_OCT384386[[#Totals],[14]]*$T$15 -> -26.55 | V15: =Tps_travaillées_OCT384386[[#Totals],[15]]*$T$15 -> -37.5 | W15: =Tps_travaillées_OCT384386[[#Totals],[16]]*$T$15 -> -35.625 | X15: =Tps_travaillées_OCT384386[[#Totals],[17]]*$T$15 -> -37.5 | Y15: =Tps_travaillées_OCT384386[[#Totals],[18]]*$T$15 -> -36.3
Q16: Heures réelles réalisées | R16: =PDC_AVRIL[[#Totals],[H réelles réalisées]] -> 0 | T16: Heure réelles travaillées | U16: =SUM(U14:U15) -> 150.45 | V16: =SUM(V14:V15) -> 212.5 | W16: =SUM(W14:W15) -> 201.875 | X16: =SUM(X14:X15) -> 212.5 | Y16: =SUM(Y14:Y15) -> 205.7
Q17: Heures réelles réalisées cumulées | R17: =R16+MARS!S17 -> 0 | T17: Soit en JOURS | U17: =U16/8.75 -> 17.19428571 | V17: =V16/8.75 -> 24.28571429 | W17: =W16/8.75 -> 23.07142857 | X17: =X16/8.75 -> 24.28571429 | Y17: =Y16/8.75 -> 23.50857143
Q19: Moyenne CA/h estimatives | R19: =SUM(PDC_AVRIL[[#Totals],[CA]]/E10) -> 
Q20: Moyenne CA/h réalisées | R20: =G13/PDC_AVRIL[[#Totals],[H réelles réalisées]] -> 
Q21: Moyenne CA/h réalisées cumulées | R21: =R25/R17 -> 
Q23: CA prévi. à poser au cours de l'année | R23: =PDC_AVRIL[[#Totals],[CA]]+MAI!R23 -> 0
Q24: CA prévision cumulé | R24: =PDC_AVRIL[[#Totals],[CA]]+MARS!S24 -> 0
Q25: CA réel cumulé | R25: =G13+MARS!S25 -> 0

Sheet MAI
A1: ="PLAN DE CHARGE DU MOIS DE MAI "&'Fermetures & jours fériés'!D2 -> PLAN DE CHARGE DU MOIS DE MAI 2020 | P1: =EDATE(AVRIL!P1,1) -> 2020-05-01 | Q1: =DATE('Fermetures & jours fériés'!D2,T5,1) -> 2020-05-01
A2: Légende : | B2: Chantier fait | D2: Cellule à définir avec feuille de marge réelle | E2: = H estimatives | G2: < H estimatives | I2: > H estimatives | K2: Pose prév. Impératif | L2: Rechercher un client : Ctrl+F > Options > Dans "Classeur" > Décocher "Totalité de la cellule" > Entrer NOM
J3: 18 | K3: =IF(J3<52,J3+1,1) -> 19 | L3: =IF(K3<52,K3+1,1) -> 20 | M3: 21 | N3: 22
J4: =IF(SUMIFS(PDC_MAI[H estimatives],PDC_MAI[Projet],"BOZARC",PDC_MAI[Pose prév. S],PDC_MAI[[#Headers],[18]])>87.5,"Trop de BozArc prévu","") ->  | K4: =IF(SUMIFS(PDC_MAI[H estimatives],PDC_MAI[Projet],"BOZARC",PDC_MAI[Pose prév. S],PDC_MAI[[#Headers],[19]])>70,"Trop de BozArc prévu","") ->  | L4: =IF(SUMIFS(PDC_MAI[H estimatives],PDC_MAI[Projet],"BOZARC",PDC_MAI[Pose prév. S],PDC_MAI[[#Headers],[20]])>87.5,"Trop de BozArc prévu","") ->  | M4: =IF(SUMIFS(PDC_MAI[H estimatives],PDC_MAI[Projet],"BOZARC",PDC_MAI[Pose prév. S],PDC_MAI[[#Headers],[21]])>70,"Trop de BozArc prévu","") ->  | N4: =IF(SUMIFS(PDC_MAI[H estimatives],PDC_MAI[Projet],"BOZARC",PDC_MAI[Pose prév. S],PDC_MAI[[#Headers],[22]])>87.5,"Trop de BozArc prévu","") -> 
A5: =IF(OR(R7>=R13,R10>0),"MOIS COMPLET - PLUS DE SAISIE","") ->  | J5: =IF(SUMIF(PDC_MAI[Pose prév. S],PDC_MAI[[#Headers],[18]],PDC_MAI[H estimatives])>=U$16,"Semaine complète","") -> Semaine complète | K5: =IF(SUMIF(PDC_MAI[Pose prév. S],PDC_MAI[[#Headers],[19]],PDC_MAI[H estimatives])>=V$16,"Semaine complète","") ->  | L5: =IF(SUMIF(PDC_MAI[Pose prév. S],PDC_MAI[[#Headers],[20]],PDC_MAI[H estimatives])>=W$16,"Semaine complète","") ->  | M5: =IF(SUMIF(PDC_MAI[Pose prév. S],PDC_MAI[[#Headers],[21]],PDC_MAI[H estimatives])>=X$16,"Semaine complète","") ->  | N5: =IF(SUMIF(PDC_MAI[Pose prév. S],PDC_MAI[[#Headers],[22]],PDC_MAI[H estimatives])>=Y$16,"Semaine complète","") ->  | O5: Décalage | T5: =AVRIL!T5+1 -> 5
A6: Chantiers | B6: Ccial | C6: Projet | D6: Ville | E6: H estimatives | F6: H réelles réalisées | G6: CA | H6: S de liv. | I6: Pose prév. S | J6: 18 | K6: 19 | L6: 20 | M6: 21 | N6: 22 | O6: Plannifié et validé | Q6: Indicateurs | T6: Éxécutants | U6: 18 | V6: 19 | W6: 20 | X6: 21 | Y6: 22
J7: =IF(PDC_MAI[[#This Row],[Pose prév. S]]=J$3,PDC_MAI[[#This Row],[CA]],"") ->  | K7: =IF(PDC_MAI[[#This Row],[Pose prév. S]]=K$3,PDC_MAI[[#This Row],[CA]],"") ->  | L7: =IF(PDC_MAI[[#This Row],[Pose prév. S]]=L$3,PDC_MAI[[#This Row],[CA]],"") ->  | M7: =IF(PDC_MAI[[#This Row],[Pose prév. S]]=M$3,PDC_MAI[[#This Row],[CA]],"") ->  | N7: =IF(PDC_MAI[[#This Row],[Pose prév. S]]=N$3,PDC_MAI[[#This Row],[CA]],"") ->  | Q7: Heures estimatives | R7: =PDC_MAI[[#Totals],[H estimatives]] -> 0 | T7: Poseur 1 | U7: =INDEX(H_productives[],MATCH(U$6&$T$5,H_productives[N°S]&H_productives[N°Mois],0),MATCH($T7,H_productives[#Headers],0)) -> 0 | V7: =INDEX(H_productives[],MATCH(V$6&$T$5,H_productives[N°S]&H_productives[N°Mois],0),MATCH($T7,H_productives[#Headers],0)) -> 35 | W7: =INDEX(H_productives[],MATCH(W$6&$T$5,H_productives[N°S]&H_productives[N°Mois],0),MATCH($T7,H_productives[#Headers],0)) -> 43 | X7: =INDEX(H_productives[],MATCH(X$6&$T$5,H_productives[N°S]&H_productives[N°Mois],0),MATCH($T7,H_productives[#Headers],0)) -> 26.25 | Y7: =INDEX(H_productives[],MATCH(Y$6&$T$5,H_productives[N°S]&H_productives[N°Mois],0),MATCH($T7,H_productives[#Headers],0)) -> 43
J8: =IF(PDC_MAI[[#This Row],[Pose prév. S]]=J$3,PDC_MAI[[#This Row],[CA]],"") ->  | K8: =IF(PDC_MAI[[#This Row],[Pose prév. S]]=K$3,PDC_MAI[[#This Row],[CA]],"") ->  | L8: =IF(PDC_MAI[[#This Row],[Pose prév. S]]=L$3,PDC_MAI[[#This Row],[CA]],"") ->  | M8: =IF(PDC_MAI[[#This Row],[Pose prév. S]]=M$3,PDC_MAI[[#This Row],[CA]],"") ->  | N8: =IF(PDC_MAI[[#This Row],[Pose prév. S]]=N$3,PDC_MAI[[#This Row],[CA]],"") ->  | Q8: Heures estimatives cumulées | R8: =R7+AVRIL!R8 -> 0 | T8: Poseur 2 | U8: =INDEX(H_productives[],MATCH(U$6&$T$5,H_productives[N°S]&H_productives[N°Mois],0),MATCH($T8,H_productives[#Headers],0)) -> 0 | V8: =INDEX(H_productives[],MATCH(V$6&$T$5,H_productives[N°S]&H_productives[N°Mois],0),MATCH($T8,H_productives[#Headers],0)) -> 35 | W8: =INDEX(H_productives[],MATCH(W$6&$T$5,H_productives[N°S]&H_productives[N°Mois],0),MATCH($T8,H_productives[#Headers],0)) -> 43 | X8: =INDEX(H_productives[],MATCH(X$6&$T$5,H_productives[N°S]&H_productives[N°Mois],0),MATCH($T8,H_productives[#Headers],0)) -> 26.25 | Y8: =INDEX(H_productives[],MATCH(Y$6&$T$5,H_productives[N°S]&H_productives[N°Mois],0),MATCH($T8,H_productives[#Headers],0)) -> 43
J9: =IF(PDC_MAI[[#This Row],[Pose prév. S]]=J$3,PDC_MAI[[#This Row],[CA]],"") ->  | K9: =IF(PDC_MAI[[#This Row],[Pose prév. S]]=K$3,PDC_MAI[[#This Row],[CA]],"") ->  | L9: =IF(PDC_MAI[[#This Row],[Pose prév. S]]=L$3,PDC_MAI[[#This Row],[CA]],"") ->  | M9: =IF(PDC_MAI[[#This Row],[Pose prév. S]]=M$3,PDC_MAI[[#This Row],[CA]],"") ->  | N9: =IF(PDC_MAI[[#This Row],[Pose prév. S]]=N$3,PDC_MAI[[#This Row],[CA]],"") ->  | T9: Poseur 3 | U9: =INDEX(H_productives[],MATCH(U$6&$T$5,H_productives[N°S]&H_productives[N°Mois],0),MATCH($T9,H_productives[#Headers],0)) -> 0 | V9: =INDEX(H_productives[],MATCH(V$6&$T$5,H_productives[N°S]&H_productives[N°Mois],0),MATCH($T9,H_productives[#Headers],0)) -> 35 | W9: =INDEX(H_productives[],MATCH(W$6&$T$5,H_productives[N°S]&H_productives[N°Mois],0),MATCH($T9,H_productives[#Headers],0)) -> 43 | X9: =INDEX(H_productives[],MATCH(X$6&$T$5,H_productives[N°S]&H_productives[N°Mois],0),MATCH($T9,H_productives[#Headers],0)) -> 26.25 | Y9: =INDEX(H_productives[],MATCH(Y$6&$T$5,H_productives[N°S]&H_productives[N°Mois],0),MATCH($T9,H_productives[#Headers],0)) -> 43
A10: =SUBTOTAL(103,PDC_MAI[Chantiers]) -> 0 | E10: =SUBTOTAL(109,PDC_MAI[H estimatives]) -> 0 | F10: =SUBTOTAL(109,PDC_MAI[H réelles réalisées]) -> 0 | G10: =SUBTOTAL(109,PDC_MAI[CA]) -> 0 | Q10: Heures en surplus (à décaler) | R10: =IF(TODAY()<=Q1,IF(AVRIL!R10>0,IF((R7+AVRIL!R10)>R13,(R7+AVRIL!R10)-R13,0),IF(R7>R13,R7-R13,0)),IF(R7>R13,R7-R13,0)) -> 0 | T10: Poseur 4 | U10: =INDEX(H_productives[],MATCH(U$6&$T$5,H_productives[N°S]&H_productives[N°Mois],0),MATCH($T10,H_productives[#Headers],0)) -> 0 | V10: =INDEX(H_productives[],MATCH(V$6&$T$5,H_productives[N°S]&H_productives[N°Mois],0),MATCH($T10,H_productives[#Headers],0)) -> 35 | W10: =INDEX(H_productives[],MATCH(W$6&$T$5,H_productives[N°S]&H_productives[N°Mois],0),MATCH($T10,H_productives[#Headers],0)) -> 43 | X10: =INDEX(H_productives[],MATCH(X$6&$T$5,H_productives[N°S]&H_productives[N°Mois],0),MATCH($T10,H_productives[#Headers],0)) -> 26.25 | Y10: =INDEX(H_productives[],MATCH(Y$6&$T$5,H_productives[N°S]&H_productives[N°Mois],0),MATCH($T10,H_productives[#Headers],0)) -> 43
F11: Nombre d'h prévues : | J11: =SUMIF(PDC_MAI[Pose prév. S],PDC_MAI[[#Headers],[18]],PDC_MAI[H estimatives]) -> 0 | K11: =SUMIF(PDC_MAI[Pose prév. S],PDC_MAI[[#Headers],[19]],PDC_MAI[H estimatives]) -> 0 | L11: =SUMIF(PDC_MAI[Pose prév. S],PDC_MAI[[#Headers],[20]],PDC_MAI[H estimatives]) -> 0 | M11: =SUMIF(PDC_MAI[Pose prév. S],PDC_MAI[[#Headers],[21]],PDC_MAI[H estimatives]) -> 0 | N11: =SUMIF(PDC_MAI[Pose prév. S],PDC_MAI[[#Headers],[22]],PDC_MAI[H estimatives]) -> 0 | Q11: Heures restantes | R11: =IF(R10=0,IF(TODAY()<=Q1,R13-(R7+AVRIL!R10),R13-R7),0) -> 1035.5 | T11: Poseur 5 | U11: =INDEX(H_productives[],MATCH(U$6&$T$5,H_productives[N°S]&H_productives[N°Mois],0),MATCH($T11,H_productives[#Headers],0)) -> 0 | V11: =INDEX(H_productives[],MATCH(V$6&$T$5,H_productives[N°S]&H_productives[N°Mois],0),MATCH($T11,H_productives[#Headers],0)) -> 35 | W11: =INDEX(H_productives[],MATCH(W$6&$T$5,H_productives[N°S]&H_productives[N°Mois],0),MATCH($T11,H_productives[#Headers],0)) -> 43 | X11: =INDEX(H_productives[],MATCH(X$6&$T$5,H_productives[N°S]&H_productives[N°Mois],0),MATCH($T11,H_productives[#Headers],0)) -> 26.25 | Y11: =INDEX(H_productives[],MATCH(Y$6&$T$5,H_productives[N°S]&H_productives[N°Mois],0),MATCH($T11,H_productives[#Headers],0)) -> 43
F12: Différence d'h (H prévues - H prod.) : | J12: =J11-U16 -> 0 | K12: =K11-V16 -> -212.5 | L12: =L11-W16 -> -253.3 | M12: =M11-X16 -> -161.075 | N12: =N11-Y16 -> -253.3 | T12: Poseur 6 | U12: =INDEX(H_productives[],MATCH(U$6&$T$5,H_productives[N°S]&H_productives[N°Mois],0),MATCH($T12,H_productives[#Headers],0)) -> 0 | V12: =INDEX(H_productives[],MATCH(V$6&$T$5,H_productives[N°S]&H_productives[N°Mois],0),MATCH($T12,H_productives[#Headers],0)) -> 35 | W12: =INDEX(H_productives[],MATCH(W$6&$T$5,H_productives[N°S]&H_productives[N°Mois],0),MATCH($T12,H_productives[#Headers],0)) -> 43 | X12: =INDEX(H_productives[],MATCH(X$6&$T$5,H_productives[N°S]&H_productives[N°Mois],0),MATCH($T12,H_productives[#Headers],0)) -> 26.25 | Y12: =INDEX(H_productives[],MATCH(Y$6&$T$5,H_productives[N°S]&H_productives[N°Mois],0),MATCH($T12,H_productives[#Headers],0)) -> 43
F13: CA/mois TOTAL | G13: =SUMIF(PDC_MAI[Plannifié et validé],"ü",PDC_MAI[CA]) -> 0 | Q13: Heures prod. | R13: =SUM(Tps_travaillées_OCT384386387[[#Totals],[18]:[22]]) -> 1035.5 | T13: Poseur 7 | U13: =INDEX(H_productives[],MATCH(U$6&$T$5,H_productives[N°S]&H_productives[N°Mois],0),MATCH($T13,H_productives[#Headers],0)) -> 0 | V13: =INDEX(H_productives[],MATCH(V$6&$T$5,H_productives[N°S]&H_productives[N°Mois],0),MATCH($T13,H_productives[#Headers],0)) -> 40 | W13: =INDEX(H_productives[],MATCH(W$6&$T$5,H_productives[N°S]&H_productives[N°Mois],0),MATCH($T13,H_productives[#Headers],0)) -> 40 | X13: =INDEX(H_productives[],MATCH(X$6&$T$5,H_productives[N°S]&H_productives[N°Mois],0),MATCH($T13,H_productives[#Headers],0)) -> 32 | Y13: =INDEX(H_productives[],MATCH(Y$6&$T$5,H_productives[N°S]&H_productives[N°Mois],0),MATCH($T13,H_productives[#Headers],0)) -> 40
Q14: Heures prod. cumulées | R14: =R13+AVRIL!R14 -> 7893.35 | T14: Total | U14: =SUBTOTAL(109,Tps_travaillées_OCT384386387[18]) -> 0 | V14: =SUBTOTAL(109,Tps_travaillées_OCT384386387[19]) -> 250 | W14: =SUBTOTAL(109,Tps_travaillées_OCT384386387[20]) -> 298 | X14: =SUBTOTAL(109,Tps_travaillées_OCT384386387[21]) -> 189.5 | Y14: =SUBTOTAL(109,Tps_travaillées_OCT384386387[22]) -> 298
T15: -0.15 | U15: =Tps_travaillées_OCT384386387[[#Totals],[18]]*$T$15 -> 0 | V15: =Tps_travaillées_OCT384386387[[#Totals],[19]]*$T$15 -> -37.5 | W15: =Tps_travaillées_OCT384386387[[#Totals],[20]]*$T$15 -> -44.7 | X15: =Tps_travaillées_OCT384386387[[#Totals],[21]]*$T$15 -> -28.425 | Y15: =Tps_travaillées_OCT384386387[[#Totals],[22]]*$T$15 -> -44.7
Q16: Heures réelles réalisées | R16: =PDC_MAI[[#Totals],[H réelles réalisées]] -> 0 | T16: Heure réelles travaillées | U16: =SUM(U14:U15) -> 0 | V16: =SUM(V14:V15) -> 212.5 | W16: =SUM(W14:W15) -> 253.3 | X16: =SUM(X14:X15) -> 161.075 | Y16: =SUM(Y14:Y15) -> 253.3
Q17: Heures réelles réalisées cumulées | R17: =R16+AVRIL!R17 -> 0 | T17: Soit en JOURS | U17: =U16/8.75 -> 0 | V17: =V16/8.75 -> 24.28571429 | W17: =W16/8.75 -> 28.94857143 | X17: =X16/8.75 -> 18.40857143 | Y17: =Y16/8.75 -> 28.94857143
Q19: Moyenne CA/h estimatives | R19: =SUM(PDC_MAI[[#Totals],[CA]]/E10) -> 
Q20: Moyenne CA/h réalisées | R20: =G13/PDC_MAI[[#Totals],[H réelles réalisées]] -> 
Q21: Moyenne CA/h réalisées cumulées | R21: =R25/R17 -> 
Q23: CA prévi. à poser au cours de l'année | R23: =PDC_MAI[[#Totals],[CA]]+JUIN!R23 -> 0
Q24: CA prévision cumulé | R24: =PDC_MAI[[#Totals],[CA]]+AVRIL!R24 -> 0
Q25: CA réel cumulé | R25: =G13+AVRIL!R25 -> 0

Sheet JUIN
A1: ="PLAN DE CHARGE DU MOIS DE JUIN "&'Fermetures & jours fériés'!D2 -> PLAN DE CHARGE DU MOIS DE JUIN 2020 | P1: =EDATE(MAI!P1,1) -> 2020-06-01 | Q1: =DATE('Fermetures & jours fériés'!D2,T5,1) -> 2020-06-01
A2: Légende : | B2: Chantier fait | D2: Cellule à définir avec feuille de marge réelle | E2: = H estimatives | G2: < H estimatives | I2: > H estimatives | K2: Pose prév. Impératif | L2: Rechercher un client : Ctrl+F > Options > Dans "Classeur" > Décocher "Totalité de la cellule" > Entrer NOM
J3: 23 | K3: =IF(J3<52,J3+1,1) -> 24 | L3: =IF(K3<52,K3+1,1) -> 25 | M3: 26 | N3: 27
J4: =IF(SUMIFS(PDC_JUIN[H estimatives],PDC_JUIN[Projet],"BOZARC",PDC_JUIN[Pose prév. S],PDC_JUIN[[#Headers],[23]])>70,"Trop de BozArc prévu","") ->  | K4: =IF(SUMIFS(PDC_JUIN[H estimatives],PDC_JUIN[Projet],"BOZARC",PDC_JUIN[Pose prév. S],PDC_JUIN[[#Headers],[24]])>87.5,"Trop de BozArc prévu","") ->  | L4: =IF(SUMIFS(PDC_JUIN[H estimatives],PDC_JUIN[Projet],"BOZARC",PDC_JUIN[Pose prév. S],PDC_JUIN[[#Headers],[25]])>70,"Trop de BozArc prévu","") ->  | M4: =IF(SUMIFS(PDC_JUIN[H estimatives],PDC_JUIN[Projet],"BOZARC",PDC_JUIN[Pose prév. S],PDC_JUIN[[#Headers],[26]])>87.5,"Trop de BozArc prévu","") ->  | N4: =IF(SUMIFS(PDC_JUIN[H estimatives],PDC_JUIN[Projet],"BOZARC",PDC_JUIN[Pose prév. S],PDC_JUIN[[#Headers],[27]])>70,"Trop de BozArc prévu","") -> 
A5: =IF(OR(R7>=R13,R10>0),"MOIS COMPLET - PLUS DE SAISIE","") ->  | J5: =IF(SUMIF(PDC_JUIN[Pose prév. S],PDC_JUIN[[#Headers],[23]],PDC_JUIN[H estimatives])>=U$16,"Semaine complète","") ->  | K5: =IF(SUMIF(PDC_JUIN[Pose prév. S],PDC_JUIN[[#Headers],[24]],PDC_JUIN[H estimatives])>=V$16,"Semaine complète","") ->  | L5: =IF(SUMIF(PDC_JUIN[Pose prév. S],PDC_JUIN[[#Headers],[25]],PDC_JUIN[H estimatives])>=W$16,"Semaine complète","") ->  | M5: =IF(SUMIF(PDC_JUIN[Pose prév. S],PDC_JUIN[[#Headers],[26]],PDC_JUIN[H estimatives])>=X$16,"Semaine complète","") ->  | N5: =IF(SUMIF(PDC_JUIN[Pose prév. S],PDC_JUIN[[#Headers],[27]],PDC_JUIN[H estimatives])>=Y$16,"Semaine complète","") ->  | O5: Décalage | T5: =MAI!T5+1 -> 6
A6: Chantiers | B6: Ccial | C6: Projet | D6: Ville | E6: H estimatives | F6: H réelles réalisées | G6: CA | H6: S de liv. | I6: Pose prév. S | J6: 23 | K6: 24 | L6: 25 | M6: 26 | N6: 27 | O6: Plannifié et validé | Q6: Indicateurs | T6: Éxécutants | U6: 23 | V6: 24 | W6: 25 | X6: 26 | Y6: 27
J7: =IF(PDC_JUIN[[#This Row],[Pose prév. S]]=J$3,PDC_JUIN[[#This Row],[CA]],"") ->  | K7: =IF(PDC_JUIN[[#This Row],[Pose prév. S]]=K$3,PDC_JUIN[[#This Row],[CA]],"") ->  | L7: =IF(PDC_JUIN[[#This Row],[Pose prév. S]]=L$3,PDC_JUIN[[#This Row],[CA]],"") ->  | M7: =IF(PDC_JUIN[[#This Row],[Pose prév. S]]=M$3,PDC_JUIN[[#This Row],[CA]],"") ->  | N7: =IF(PDC_JUIN[[#This Row],[Pose prév. S]]=N$3,PDC_JUIN[[#This Row],[CA]],"") ->  | Q7: Heures estimatives | R7: =PDC_JUIN[[#Totals],[H estimatives]] -> 0 | T7: Poseur 1 | U7: =INDEX(H_productives[],MATCH(U$6&$T$5,H_productives[N°S]&H_productives[N°Mois],0),MATCH($T7,H_productives[#Headers],0)) -> 26.25 | V7: =INDEX(H_productives[],MATCH(V$6&$T$5,H_productives[N°S]&H_productives[N°Mois],0),MATCH($T7,H_productives[#Headers],0)) -> 43 | W7: =INDEX(H_productives[],MATCH(W$6&$T$5,H_productives[N°S]&H_productives[N°Mois],0),MATCH($T7,H_productives[#Headers],0)) -> 35 | X7: =INDEX(H_productives[],MATCH(X$6&$T$5,H_productives[N°S]&H_productives[N°Mois],0),MATCH($T7,H_productives[#Headers],0)) -> 43 | Y7: =INDEX(H_productives[],MATCH(Y$6&$T$5,H_productives[N°S]&H_productives[N°Mois],0),MATCH($T7,H_productives[#Headers],0)) -> 17.5
J8: =IF(PDC_JUIN[[#This Row],[Pose prév. S]]=J$3,PDC_JUIN[[#This Row],[CA]],"") ->  | K8: =IF(PDC_JUIN[[#This Row],[Pose prév. S]]=K$3,PDC_JUIN[[#This Row],[CA]],"") ->  | L8: =IF(PDC_JUIN[[#This Row],[Pose prév. S]]=L$3,PDC_JUIN[[#This Row],[CA]],"") ->  | M8: =IF(PDC_JUIN[[#This Row],[Pose prév. S]]=M$3,PDC_JUIN[[#This Row],[CA]],"") ->  | N8: =IF(PDC_JUIN[[#This Row],[Pose prév. S]]=N$3,PDC_JUIN[[#This Row],[CA]],"") ->  | Q8: Heures estimatives cumulées | R8: =R7+MAI!R8 -> 0 | T8: Poseur 2 | U8: =INDEX(H_productives[],MATCH(U$6&$T$5,H_productives[N°S]&H_productives[N°Mois],0),MATCH($T8,H_productives[#Headers],0)) -> 26.25 | V8: =INDEX(H_productives[],MATCH(V$6&$T$5,H_productives[N°S]&H_productives[N°Mois],0),MATCH($T8,H_productives[#Headers],0)) -> 43 | W8: =INDEX(H_productives[],MATCH(W$6&$T$5,H_productives[N°S]&H_productives[N°Mois],0),MATCH($T8,H_productives[#Headers],0)) -> 35 | X8: =INDEX(H_productives[],MATCH(X$6&$T$5,H_productives[N°S]&H_productives[N°Mois],0),MATCH($T8,H_productives[#Headers],0)) -> 43 | Y8: =INDEX(H_productives[],MATCH(Y$6&$T$5,H_productives[N°S]&H_productives[N°Mois],0),MATCH($T8,H_productives[#Headers],0)) -> 17.5
J9: =IF(PDC_JUIN[[#This Row],[Pose prév. S]]=J$3,PDC_JUIN[[#This Row],[CA]],"") ->  | K9: =IF(PDC_JUIN[[#This Row],[Pose prév. S]]=K$3,PDC_JUIN[[#This Row],[CA]],"") ->  | L9: =IF(PDC_JUIN[[#This Row],[Pose prév. S]]=L$3,PDC_JUIN[[#This Row],[CA]],"") ->  | M9: =IF(PDC_JUIN[[#This Row],[Pose prév. S]]=M$3,PDC_JUIN[[#This Row],[CA]],"") ->  | N9: =IF(PDC_JUIN[[#This Row],[Pose prév. S]]=N$3,PDC_JUIN[[#This Row],[CA]],"") ->  | T9: Poseur 3 | U9: =INDEX(H_productives[],MATCH(U$6&$T$5,H_productives[N°S]&H_productives[N°Mois],0),MATCH($T9,H_productives[#Headers],0)) -> 26.25 | V9: =INDEX(H_productives[],MATCH(V$6&$T$5,H_productives[N°S]&H_productives[N°Mois],0),MATCH($T9,H_productives[#Headers],0)) -> 43 | W9: =INDEX(H_productives[],MATCH(W$6&$T$5,H_productives[N°S]&H_productives[N°Mois],0),MATCH($T9,H_productives[#Headers],0)) -> 35 | X9: =INDEX(H_productives[],MATCH(X$6&$T$5,H_productives[N°S]&H_productives[N°Mois],0),MATCH($T9,H_productives[#Headers],0)) -> 43 | Y9: =INDEX(H_productives[],MATCH(Y$6&$T$5,H_productives[N°S]&H_productives[N°Mois],0),MATCH($T9,H_productives[#Headers],0)) -> 17.5
A10: =SUBTOTAL(103,PDC_JUIN[Chantiers]) -> 0 | E10: =SUBTOTAL(109,PDC_JUIN[H estimatives]) -> 0 | F10: =SUBTOTAL(109,PDC_JUIN[H réelles réalisées]) -> 0 | G10: =SUBTOTAL(109,PDC_JUIN[CA]) -> 0 | Q10: Heures en surplus (à décaler) | R10: =IF(TODAY()<=Q1,IF(MAI!R10>0,IF((R7+MAI!R10)>R13,(R7+MAI!R10)-R13,0),IF(R7>R13,R7-R13,0)),IF(R7>R13,R7-R13,0)) -> 0 | T10: Poseur 4 | U10: =INDEX(H_productives[],MATCH(U$6&$T$5,H_productives[N°S]&H_productives[N°Mois],0),MATCH($T10,H_productives[#Headers],0)) -> 26.25 | V10: =INDEX(H_productives[],MATCH(V$6&$T$5,H_productives[N°S]&H_productives[N°Mois],0),MATCH($T10,H_productives[#Headers],0)) -> 43 | W10: =INDEX(H_productives[],MATCH(W$6&$T$5,H_productives[N°S]&H_productives[N°Mois],0),MATCH($T10,H_productives[#Headers],0)) -> 35 | X10: =INDEX(H_productives[],MATCH(X$6&$T$5,H_productives[N°S]&H_productives[N°Mois],0),MATCH($T10,H_productives[#Headers],0)) -> 43 | Y10: =INDEX(H_productives[],MATCH(Y$6&$T$5,H_productives[N°S]&H_productives[N°Mois],0),MATCH($T10,H_productives[#Headers],0)) -> 17.5
F11: Nombre d'h prévues : | J11: =SUMIF(PDC_JUIN[Pose prév. S],PDC_JUIN[[#Headers],[23]],PDC_JUIN[H estimatives]) -> 0 | K11: =SUMIF(PDC_JUIN[Pose prév. S],PDC_JUIN[[#Headers],[24]],PDC_JUIN[H estimatives]) -> 0 | L11: =SUMIF(PDC_JUIN[Pose prév. S],PDC_JUIN[[#Headers],[25]],PDC_JUIN[H estimatives]) -> 0 | M11: =SUMIF(PDC_JUIN[Pose prév. S],PDC_JUIN[[#Headers],[26]],PDC_JUIN[H estimatives]) -> 0 | N11: =SUMIF(PDC_JUIN[Pose prév. S],PDC_JUIN[[#Headers],[27]],PDC_JUIN[H estimatives]) -> 0 | Q11: Heures restantes | R11: =IF(R10=0,IF(TODAY()<=Q1,R13-(R7+MAI!R10),R13-R7),0) -> 1156.5 | T11: Poseur 5 | U11: =INDEX(H_productives[],MATCH(U$6&$T$5,H_productives[N°S]&H_productives[N°Mois],0),MATCH($T11,H_productives[#Headers],0)) -> 26.25 | V11: =INDEX(H_productives[],MATCH(V$6&$T$5,H_productives[N°S]&H_productives[N°Mois],0),MATCH($T11,H_productives[#Headers],0)) -> 43 | W11: =INDEX(H_productives[],MATCH(W$6&$T$5,H_productives[N°S]&H_productives[N°Mois],0),MATCH($T11,H_productives[#Headers],0)) -> 35 | X11: =INDEX(H_productives[],MATCH(X$6&$T$5,H_productives[N°S]&H_productives[N°Mois],0),MATCH($T11,H_productives[#Headers],0)) -> 43 | Y11: =INDEX(H_productives[],MATCH(Y$6&$T$5,H_productives[N°S]&H_productives[N°Mois],0),MATCH($T11,H_productives[#Headers],0)) -> 17.5
F12: Différence d'h (H prévues - H prod.) : | J12: =J11-U16 -> -161.075 | K12: =K11-V16 -> -253.3 | L12: =L11-W16 -> -212.5 | M12: =M11-X16 -> -253.3 | N12: =N11-Y16 -> -102.85 | T12: Poseur 6 | U12: =INDEX(H_productives[],MATCH(U$6&$T$5,H_productives[N°S]&H_productives[N°Mois],0),MATCH($T12,H_productives[#Headers],0)) -> 26.25 | V12: =INDEX(H_productives[],MATCH(V$6&$T$5,H_productives[N°S]&H_productives[N°Mois],0),MATCH($T12,H_productives[#Headers],0)) -> 43 | W12: =INDEX(H_productives[],MATCH(W$6&$T$5,H_productives[N°S]&H_productives[N°Mois],0),MATCH($T12,H_productives[#Headers],0)) -> 35 | X12: =INDEX(H_productives[],MATCH(X$6&$T$5,H_productives[N°S]&H_productives[N°Mois],0),MATCH($T12,H_productives[#Headers],0)) -> 43 | Y12: =INDEX(H_productives[],MATCH(Y$6&$T$5,H_productives[N°S]&H_productives[N°Mois],0),MATCH($T12,H_productives[#Headers],0)) -> 17.5
F13: CA/mois TOTAL | G13: =SUMIF(PDC_JUIN[Plannifié et validé],"ü",PDC_JUIN[CA]) -> 0 | Q13: Heures prod. | R13: =SUM(Tps_travaillées_OCT384386387388[[#Totals],[23]:[27]]) -> 1156.5 | T13: Poseur 7 | U13: =INDEX(H_productives[],MATCH(U$6&$T$5,H_productives[N°S]&H_productives[N°Mois],0),MATCH($T13,H_productives[#Headers],0)) -> 32 | V13: =INDEX(H_productives[],MATCH(V$6&$T$5,H_productives[N°S]&H_productives[N°Mois],0),MATCH($T13,H_productives[#Headers],0)) -> 40 | W13: =INDEX(H_productives[],MATCH(W$6&$T$5,H_productives[N°S]&H_productives[N°Mois],0),MATCH($T13,H_productives[#Headers],0)) -> 40 | X13: =INDEX(H_productives[],MATCH(X$6&$T$5,H_productives[N°S]&H_productives[N°Mois],0),MATCH($T13,H_productives[#Headers],0)) -> 40 | Y13: =INDEX(H_productives[],MATCH(Y$6&$T$5,H_productives[N°S]&H_productives[N°Mois],0),MATCH($T13,H_productives[#Headers],0)) -> 16
Q14: Heures prod. cumulées | R14: =R13+MAI!R14 -> 9049.85 | T14: Total | U14: =SUBTOTAL(109,Tps_travaillées_OCT384386387388[23]) -> 189.5 | V14: =SUBTOTAL(109,Tps_travaillées_OCT384386387388[24]) -> 298 | W14: =SUBTOTAL(109,Tps_travaillées_OCT384386387388[25]) -> 250 | X14: =SUBTOTAL(109,Tps_travaillées_OCT384386387388[26]) -> 298 | Y14: =SUBTOTAL(109,Tps_travaillées_OCT384386387388[27]) -> 121
T15: -0.15 | U15: =Tps_travaillées_OCT384386387388[[#Totals],[23]]*$T$15 -> -28.425 | V15: =Tps_travaillées_OCT384386387388[[#Totals],[24]]*$T$15 -> -44.7 | W15: =Tps_travaillées_OCT384386387388[[#Totals],[25]]*$T$15 -> -37.5 | X15: =Tps_travaillées_OCT384386387388[[#Totals],[26]]*$T$15 -> -44.7 | Y15: =Tps_travaillées_OCT384386387388[[#Totals],[27]]*$T$15 -> -18.15
Q16: Heures réelles réalisées | R16: =PDC_JUIN[[#Totals],[H réelles réalisées]] -> 0 | T16: Heure réelles travaillées | U16: =SUM(U14:U15) -> 161.075 | V16: =SUM(V14:V15) -> 253.3 | W16: =SUM(W14:W15) -> 212.5 | X16: =SUM(X14:X15) -> 253.3 | Y16: =SUM(Y14:Y15) -> 102.85
Q17: Heures réelles réalisées cumulées | R17: =R16+MAI!R17 -> 0 | T17: Soit en JOURS | U17: =U16/8.75 -> 18.40857143 | V17: =V16/8.75 -> 28.94857143 | W17: =W16/8.75 -> 24.28571429 | X17: =X16/8.75 -> 28.94857143 | Y17: =Y16/8.75 -> 11.75428571
Q19: Moyenne CA/h estimatives | R19: =SUM(PDC_JUIN[[#Totals],[CA]]/E10) -> 
Q20: Moyenne CA/h réalisées | R20: =G13/PDC_JUIN[[#Totals],[H réelles réalisées]] -> 
Q21: Moyenne CA/h réalisées cumulées | R21: =R25/R17 -> 
Q23: CA prévi. à poser au cours de l'année | R23: =PDC_JUIN[[#Totals],[CA]]+JUILLET!R23 -> 0
Q24: CA prévision cumulé | R24: =PDC_JUIN[[#Totals],[CA]]+MAI!R24 -> 0
Q25: CA réel cumulé | R25: =G13+MAI!R25 -> 0

Sheet JUILLET
A1: ="PLAN DE CHARGE DU MOIS DE JUILLET "&'Fermetures & jours fériés'!D2 -> PLAN DE CHARGE DU MOIS DE JUILLET 2020 | P1: =EDATE(JUIN!P1,1) -> 2020-07-01 | Q1: =DATE('Fermetures & jours fériés'!D2,T5,1) -> 2020-07-01
A2: Légende : | B2: Chantier fait | D2: Cellule à définir avec feuille de marge réelle | E2: = H estimatives | G2: < H estimatives | I2: > H estimatives | K2: Pose prév. Impératif | L2: Rechercher un client : Ctrl+F > Options > Dans "Classeur" > Décocher "Totalité de la cellule" > Entrer NOM
J3: 27 | K3: =IF(J3<52,J3+1,1) -> 28 | L3: =IF(K3<52,K3+1,1) -> 29 | M3: 30 | N3: 31
J4: =IF(SUMIFS(PDC_JUILLET[H estimatives],PDC_JUILLET[Projet],"BOZARC",PDC_JUILLET[Pose prév. S],PDC_JUILLET[27])>70,"Trop de BozArc prévu","") ->  | K4: =IF(SUMIFS(PDC_JUILLET[H estimatives],PDC_JUILLET[Projet],"BOZARC",PDC_JUILLET[Pose prév. S],PDC_JUILLET[28])>87.5,"Trop de BozArc prévu","") ->  | L4: =IF(SUMIFS(PDC_JUILLET[H estimatives],PDC_JUILLET[Projet],"BOZARC",PDC_JUILLET[Pose prév. S],PDC_JUILLET[29])>70,"Trop de BozArc prévu","") ->  | M4: =IF(SUMIFS(PDC_JUILLET[H estimatives],PDC_JUILLET[Projet],"BOZARC",PDC_JUILLET[Pose prév. S],PDC_JUILLET[30])>87.5,"Trop de BozArc prévu","") ->  | N4: =IF(SUMIFS(PDC_JUILLET[H estimatives],PDC_JUILLET[Projet],"BOZARC",PDC_JUILLET[Pose prév. S],PDC_JUILLET[31])>70,"Trop de BozArc prévu","") -> 
A5: =IF(OR(R7>=R13,R10>0),"MOIS COMPLET - PLUS DE SAISIE","") ->  | J5: =IF(SUMIF(PDC_JUILLET[Pose prév. S],PDC_JUILLET[[#Headers],[27]],PDC_JUILLET[H estimatives])>=U$16,"Semaine complète","") ->  | K5: =IF(SUMIF(PDC_JUILLET[Pose prév. S],PDC_JUILLET[[#Headers],[28]],PDC_JUILLET[H estimatives])>=V$16,"Semaine complète","") ->  | L5: =IF(SUMIF(PDC_JUILLET[Pose prév. S],PDC_JUILLET[[#Headers],[29]],PDC_JUILLET[H estimatives])>=W$16,"Semaine complète","") ->  | M5: =IF(SUMIF(PDC_JUILLET[Pose prév. S],PDC_JUILLET[[#Headers],[30]],PDC_JUILLET[H estimatives])>=X$16,"Semaine complète","") ->  | N5: =IF(SUMIF(PDC_JUILLET[Pose prév. S],PDC_JUILLET[[#Headers],[31]],PDC_JUILLET[H estimatives])>=Y$16,"Semaine complète","") ->  | O5: Décalage | T5: =JUIN!T5+1 -> 7
A6: Chantiers | B6: Ccial | C6: Projet | D6: Ville | E6: H estimatives | F6: H réelles réalisées | G6: CA | H6: S de liv. | I6: Pose prév. S | J6: 27 | K6: 28 | L6: 29 | M6: 30 | N6: 31 | O6: Plannifié et validé | Q6: Indicateurs | T6: Éxécutants | U6: 27 | V6: 28 | W6: 29 | X6: 30 | Y6: 31
J7: =IF(PDC_JUILLET[[#This Row],[Pose prév. S]]=J$3,PDC_JUILLET[[#This Row],[CA]],"") ->  | K7: =IF(PDC_JUILLET[[#This Row],[Pose prév. S]]=K$3,PDC_JUILLET[[#This Row],[CA]],"") ->  | L7: =IF(PDC_JUILLET[[#This Row],[Pose prév. S]]=L$3,PDC_JUILLET[[#This Row],[CA]],"") ->  | M7: =IF(PDC_JUILLET[[#This Row],[Pose prév. S]]=M$3,PDC_JUILLET[[#This Row],[CA]],"") ->  | N7: =IF(PDC_JUILLET[[#This Row],[Pose prév. S]]=N$3,PDC_JUILLET[[#This Row],[CA]],"") ->  | Q7: Heures estimatives | R7: =PDC_JUILLET[[#Totals],[H estimatives]] -> 0 | T7: Poseur 1 | U7: =INDEX(H_productives[],MATCH(U$6&$T$5,H_productives[N°S]&H_productives[N°Mois],0),MATCH($T7,H_productives[#Headers],0)) -> 17.5 | V7: =INDEX(H_productives[],MATCH(V$6&$T$5,H_productives[N°S]&H_productives[N°Mois],0),MATCH($T7,H_productives[#Headers],0)) -> 43 | W7: =INDEX(H_productives[],MATCH(W$6&$T$5,H_productives[N°S]&H_productives[N°Mois],0),MATCH($T7,H_productives[#Headers],0)) -> 26.25 | X7: =INDEX(H_productives[],MATCH(X$6&$T$5,H_productives[N°S]&H_productives[N°Mois],0),MATCH($T7,H_productives[#Headers],0)) -> 43 | Y7: =INDEX(H_productives[],MATCH(Y$6&$T$5,H_productives[N°S]&H_productives[N°Mois],0),MATCH($T7,H_productives[#Headers],0)) -> 35
J8: =IF(PDC_JUILLET[[#This Row],[Pose prév. S]]=J$3,PDC_JUILLET[[#This Row],[CA]],"") ->  | K8: =IF(PDC_JUILLET[[#This Row],[Pose prév. S]]=K$3,PDC_JUILLET[[#This Row],[CA]],"") ->  | L8: =IF(PDC_JUILLET[[#This Row],[Pose prév. S]]=L$3,PDC_JUILLET[[#This Row],[CA]],"") ->  | M8: =IF(PDC_JUILLET[[#This Row],[Pose prév. S]]=M$3,PDC_JUILLET[[#This Row],[CA]],"") ->  | N8: =IF(PDC_JUILLET[[#This Row],[Pose prév. S]]=N$3,PDC_JUILLET[[#This Row],[CA]],"") ->  | Q8: Heures estimatives cumulées | R8: =R7+JUIN!R8 -> 0 | T8: Poseur 2 | U8: =INDEX(H_productives[],MATCH(U$6&$T$5,H_productives[N°S]&H_productives[N°Mois],0),MATCH($T8,H_productives[#Headers],0)) -> 17.5 | V8: =INDEX(H_productives[],MATCH(V$6&$T$5,H_productives[N°S]&H_productives[N°Mois],0),MATCH($T8,H_productives[#Headers],0)) -> 43 | W8: =INDEX(H_productives[],MATCH(W$6&$T$5,H_productives[N°S]&H_productives[N°Mois],0),MATCH($T8,H_productives[#Headers],0)) -> 26.25 | X8: =INDEX(H_productives[],MATCH(X$6&$T$5,H_productives[N°S]&H_productives[N°Mois],0),MATCH($T8,H_productives[#Headers],0)) -> 43 | Y8: =INDEX(H_productives[],MATCH(Y$6&$T$5,H_productives[N°S]&H_productives[N°Mois],0),MATCH($T8,H_productives[#Headers],0)) -> 35
J9: =IF(PDC_JUILLET[[#This Row],[Pose prév. S]]=J$3,PDC_JUILLET[[#This Row],[CA]],"") ->  | K9: =IF(PDC_JUILLET[[#This Row],[Pose prév. S]]=K$3,PDC_JUILLET[[#This Row],[CA]],"") ->  | L9: =IF(PDC_JUILLET[[#This Row],[Pose prév. S]]=L$3,PDC_JUILLET[[#This Row],[CA]],"") ->  | M9: =IF(PDC_JUILLET[[#This Row],[Pose prév. S]]=M$3,PDC_JUILLET[[#This Row],[CA]],"") ->  | N9: =IF(PDC_JUILLET[[#This Row],[Pose prév. S]]=N$3,PDC_JUILLET[[#This Row],[CA]],"") ->  | T9: Poseur 3 | U9: =INDEX(H_productives[],MATCH(U$6&$T$5,H_productives[N°S]&H_productives[N°Mois],0),MATCH($T9,H_productives[#Headers],0)) -> 17.5 | V9: =INDEX(H_productives[],MATCH(V$6&$T$5,H_productives[N°S]&H_productives[N°Mois],0),MATCH($T9,H_productives[#Headers],0)) -> 43 | W9: =INDEX(H_productives[],MATCH(W$6&$T$5,H_productives[N°S]&H_productives[N°Mois],0),MATCH($T9,H_productives[#Headers],0)) -> 26.25 | X9: =INDEX(H_productives[],MATCH(X$6&$T$5,H_productives[N°S]&H_productives[N°Mois],0),MATCH($T9,H_productives[#Headers],0)) -> 43 | Y9: =INDEX(H_productives[],MATCH(Y$6&$T$5,H_productives[N°S]&H_productives[N°Mois],0),MATCH($T9,H_productives[#Headers],0)) -> 35
A10: =SUBTOTAL(103,PDC_JUILLET[Chantiers]) -> 0 | E10: =SUBTOTAL(109,PDC_JUILLET[H estimatives]) -> 0 | F10: =SUBTOTAL(109,PDC_JUILLET[H réelles réalisées]) -> 0 | G10: =SUBTOTAL(109,PDC_JUILLET[CA]) -> 0 | Q10: Heures en surplus (à décaler) | R10: =IF(TODAY()<=Q1,IF(JUIN!R10>0,IF((R7+JUIN!R10)>R13,(R7+JUIN!R10)-R13,0),IF(R7>R13,R7-R13,0)),IF(R7>R13,R7-R13,0)) -> 0 | T10: Poseur 4 | U10: =INDEX(H_productives[],MATCH(U$6&$T$5,H_productives[N°S]&H_productives[N°Mois],0),MATCH($T10,H_productives[#Headers],0)) -> 17.5 | V10: =INDEX(H_productives[],MATCH(V$6&$T$5,H_productives[N°S]&H_productives[N°Mois],0),MATCH($T10,H_productives[#Headers],0)) -> 43 | W10: =INDEX(H_productives[],MATCH(W$6&$T$5,H_productives[N°S]&H_productives[N°Mois],0),MATCH($T10,H_productives[#Headers],0)) -> 26.25 | X10: =INDEX(H_productives[],MATCH(X$6&$T$5,H_productives[N°S]&H_productives[N°Mois],0),MATCH($T10,H_productives[#Headers],0)) -> 43 | Y10: =INDEX(H_productives[],MATCH(Y$6&$T$5,H_productives[N°S]&H_productives[N°Mois],0),MATCH($T10,H_productives[#Headers],0)) -> 35
F11: Nombre d'h prévues : | J11: =SUMIF(PDC_JUILLET[Pose prév. S],PDC_JUILLET[[#Headers],[27]],PDC_JUILLET[H estimatives]) -> 0 | K11: =SUMIF(PDC_JUILLET[Pose prév. S],PDC_JUILLET[[#Headers],[28]],PDC_JUILLET[H estimatives]) -> 0 | L11: =SUMIF(PDC_JUILLET[Pose prév. S],PDC_JUILLET[[#Headers],[29]],PDC_JUILLET[H estimatives]) -> 0 | M11: =SUMIF(PDC_JUILLET[Pose prév. S],PDC_JUILLET[[#Headers],[30]],PDC_JUILLET[H estimatives]) -> 0 | N11: =SUMIF(PDC_JUILLET[Pose prév. S],PDC_JUILLET[[#Headers],[31]],PDC_JUILLET[H estimatives]) -> 0 | Q11: Heures restantes | R11: =IF(R10=0,IF(TODAY()<=Q1,R13-(R7+JUIN!R10),R13-R7),0) -> 1164.5 | T11: Poseur 5 | U11: =INDEX(H_productives[],MATCH(U$6&$T$5,H_productives[N°S]&H_productives[N°Mois],0),MATCH($T11,H_productives[#Headers],0)) -> 17.5 | V11: =INDEX(H_productives[],MATCH(V$6&$T$5,H_productives[N°S]&H_productives[N°Mois],0),MATCH($T11,H_productives[#Headers],0)) -> 43 | W11: =INDEX(H_productives[],MATCH(W$6&$T$5,H_productives[N°S]&H_productives[N°Mois],0),MATCH($T11,H_productives[#Headers],0)) -> 26.25 | X11: =INDEX(H_productives[],MATCH(X$6&$T$5,H_productives[N°S]&H_productives[N°Mois],0),MATCH($T11,H_productives[#Headers],0)) -> 43 | Y11: =INDEX(H_productives[],MATCH(Y$6&$T$5,H_productives[N°S]&H_productives[N°Mois],0),MATCH($T11,H_productives[#Headers],0)) -> 35
F12: Différence d'h (H prévues - H prod.) : | J12: =J11-U16 -> -109.65 | K12: =K11-V16 -> -253.3 | L12: =L11-W16 -> -161.075 | M12: =M11-X16 -> -253.3 | N12: =N11-Y16 -> -212.5 | T12: Poseur 6 | U12: =INDEX(H_productives[],MATCH(U$6&$T$5,H_productives[N°S]&H_productives[N°Mois],0),MATCH($T12,H_productives[#Headers],0)) -> 17.5 | V12: =INDEX(H_productives[],MATCH(V$6&$T$5,H_productives[N°S]&H_productives[N°Mois],0),MATCH($T12,H_productives[#Headers],0)) -> 43 | W12: =INDEX(H_productives[],MATCH(W$6&$T$5,H_productives[N°S]&H_productives[N°Mois],0),MATCH($T12,H_productives[#Headers],0)) -> 26.25 | X12: =INDEX(H_productives[],MATCH(X$6&$T$5,H_productives[N°S]&H_productives[N°Mois],0),MATCH($T12,H_productives[#Headers],0)) -> 43 | Y12: =INDEX(H_productives[],MATCH(Y$6&$T$5,H_productives[N°S]&H_productives[N°Mois],0),MATCH($T12,H_productives[#Headers],0)) -> 35
F13: CA/mois TOTAL | G13: =SUMIF(PDC_JUILLET[Plannifié et validé],"ü",PDC_JUILLET[CA]) -> 0 | Q13: Heures prod. | R13: =SUM(Tps_travaillées_OCT384386387388389[[#Totals],[27]:[31]]) -> 1164.5 | T13: Poseur 7 | U13: =INDEX(H_productives[],MATCH(U$6&$T$5,H_productives[N°S]&H_productives[N°Mois],0),MATCH($T13,H_productives[#Headers],0)) -> 24 | V13: =INDEX(H_productives[],MATCH(V$6&$T$5,H_productives[N°S]&H_productives[N°Mois],0),MATCH($T13,H_productives[#Headers],0)) -> 40 | W13: =INDEX(H_productives[],MATCH(W$6&$T$5,H_productives[N°S]&H_productives[N°Mois],0),MATCH($T13,H_productives[#Headers],0)) -> 32 | X13: =INDEX(H_productives[],MATCH(X$6&$T$5,H_productives[N°S]&H_productives[N°Mois],0),MATCH($T13,H_productives[#Headers],0)) -> 40 | Y13: =INDEX(H_productives[],MATCH(Y$6&$T$5,H_productives[N°S]&H_productives[N°Mois],0),MATCH($T13,H_productives[#Headers],0)) -> 40
Q14: Heures prod. cumulées | R14: =R13+JUIN!R14 -> 10214.35 | T14: Total | U14: =SUBTOTAL(109,Tps_travaillées_OCT384386387388389[27]) -> 129 | V14: =SUBTOTAL(109,Tps_travaillées_OCT384386387388389[28]) -> 298 | W14: =SUBTOTAL(109,Tps_travaillées_OCT384386387388389[29]) -> 189.5 | X14: =SUBTOTAL(109,Tps_travaillées_OCT384386387388389[30]) -> 298 | Y14: =SUBTOTAL(109,Tps_travaillées_OCT384386387388389[31]) -> 250
T15: -0.15 | U15: =Tps_travaillées_OCT384386387388389[[#Totals],[27]]*$T$15 -> -19.35 | V15: =Tps_travaillées_OCT384386387388389[[#Totals],[28]]*$T$15 -> -44.7 | W15: =Tps_travaillées_OCT384386387388389[[#Totals],[29]]*$T$15 -> -28.425 | X15: =Tps_travaillées_OCT384386387388389[[#Totals],[30]]*$T$15 -> -44.7 | Y15: =Tps_travaillées_OCT384386387388389[[#Totals],[31]]*$T$15 -> -37.5
Q16: Heures réelles réalisées | R16: =PDC_JUILLET[[#Totals],[H réelles réalisées]] -> 0 | T16: Heure réelles travaillées | U16: =SUM(U14:U15) -> 109.65 | V16: =SUM(V14:V15) -> 253.3 | W16: =SUM(W14:W15) -> 161.075 | X16: =SUM(X14:X15) -> 253.3 | Y16: =SUM(Y14:Y15) -> 212.5
Q17: Heures réelles réalisées cumulées | R17: =R16+JUIN!R17 -> 0 | T17: Soit en JOURS | U17: =U16/8.75 -> 12.53142857 | V17: =V16/8.75 -> 28.94857143 | W17: =W16/8.75 -> 18.40857143 | X17: =X16/8.75 -> 28.94857143 | Y17: =Y16/8.75 -> 24.28571429
Q19: Moyenne CA/h estimatives | R19: =SUM(PDC_JUILLET[[#Totals],[CA]]/E10) -> 
Q20: Moyenne CA/h réalisées | R20: =G13/PDC_JUILLET[[#Totals],[H réelles réalisées]] -> 
Q21: Moyenne CA/h réalisées cumulées | R21: =R25/R17 -> 
Q23: CA prévi. à poser au cours de l'année | R23: =PDC_JUILLET[[#Totals],[CA]]+AOUT!S23 -> 0
Q24: CA prévision cumulé | R24: =PDC_JUILLET[[#Totals],[CA]]+JUIN!R24 -> 0
Q25: CA réel cumulé | R25: =G13+JUIN!R25 -> 0

Sheet AOUT
A1: ="PLAN DE CHARGE DU MOIS D'AOUT "&'Fermetures & jours fériés'!D2 -> PLAN DE CHARGE DU MOIS D'AOUT 2020 | R1: =DATE('Fermetures & jours fériés'!D2,U5,1) -> 2020-08-01
A2: Légende : | B2: Chantier fait | D2: Cellule à définir avec feuille de marge réelle | E2: = H estimatives | G2: < H estimatives | I2: > H estimatives | K2: Pose prév. Impératif | M2: Rechercher un client : Ctrl+F > Options > Dans "Classeur" > Décocher "Totalité de la cellule" > Entrer NOM
J3: 31 | K3: =IF(J3<52,J3+1,1) -> 32 | L3: =IF(K3<52,K3+1,1) -> 33 | M3: 34 | N3: 35 | O3: 36
J4: =IF(SUMIFS(PDC_AOUT[H estimatives],PDC_AOUT[Projet],"BOZARC",PDC_AOUT[Pose prév. S],PDC_AOUT[[#Headers],[31]])>70,"Trop de BozArc prévu","") ->  | K4: =IF(SUMIFS(PDC_AOUT[H estimatives],PDC_AOUT[Projet],"BOZARC",PDC_AOUT[Pose prév. S],PDC_AOUT[[#Headers],[32]])>87.5,"Trop de BozArc prévu","") ->  | L4: =IF(SUMIFS(PDC_AOUT[H estimatives],PDC_AOUT[Projet],"BOZARC",PDC_AOUT[Pose prév. S],PDC_AOUT[[#Headers],[33]])>70,"Trop de BozArc prévu","") ->  | M4: =IF(SUMIFS(PDC_AOUT[H estimatives],PDC_AOUT[Projet],"BOZARC",PDC_AOUT[Pose prév. S],PDC_AOUT[[#Headers],[34]])>87.5,"Trop de BozArc prévu","") ->  | N4: =IF(SUMIFS(PDC_AOUT[H estimatives],PDC_AOUT[Projet],"BOZARC",PDC_AOUT[Pose prév. S],PDC_AOUT[[#Headers],[35]])>70,"Trop de BozArc prévu","") ->  | O4: =IF(SUMIFS(PDC_AOUT[H estimatives],PDC_AOUT[Projet],"BOZARC",PDC_AOUT[Pose prév. S],PDC_AOUT[[#Headers],[36]])>87.5,"Trop de BozArc prévu","") -> 
A5: =IF(OR(S7>=S13,S10>0),"MOIS COMPLET - PLUS DE SAISIE","") ->  | J5: =IF(SUMIF(PDC_AOUT[Pose prév. S],PDC_AOUT[[#Headers],[31]],PDC_AOUT[H estimatives])>=V$16,"Semaine complète","") -> Semaine complète | K5: =IF(SUMIF(PDC_AOUT[Pose prév. S],PDC_AOUT[[#Headers],[32]],PDC_AOUT[H estimatives])>=W$16,"Semaine complète","") ->  | L5: =IF(SUMIF(PDC_AOUT[Pose prév. S],PDC_AOUT[[#Headers],[33]],PDC_AOUT[H estimatives])>=X$16,"Semaine complète","") ->  | M5: =IF(SUMIF(PDC_AOUT[Pose prév. S],PDC_AOUT[[#Headers],[34]],PDC_AOUT[H estimatives])>=Y$16,"Semaine complète","") ->  | N5: =IF(SUMIF(PDC_AOUT[Pose prév. S],PDC_AOUT[[#Headers],[35]],PDC_AOUT[H estimatives])>=Z$16,"Semaine complète","") ->  | O5: =IF(SUMIF(PDC_AOUT[Pose prév. S],PDC_AOUT[[#Headers],[36]],PDC_AOUT[H estimatives])>=AA$16,"Semaine complète","") ->  | P5: Décalage | U5: =JUILLET!T5+1 -> 8
A6: Chantiers | B6: Ccial | C6: Projet | D6: Ville | E6: H estimatives | F6: H réelles réalisées | G6: CA | H6: S de liv. | I6: Pose prév. S | J6: 31 | K6: 32 | L6: 33 | M6: 34 | N6: 35 | O6: 36 | P6: Plannifié et validé | R6: Indicateurs | U6: Éxécutants | V6: 31 | W6: 32 | X6: 33 | Y6: 34 | Z6: 35 | AA6: 36
J7: =IF(PDC_AOUT[[#This Row],[Pose prév. S]]=J$3,PDC_AOUT[[#This Row],[CA]],"") ->  | K7: =IF(PDC_AOUT[[#This Row],[Pose prév. S]]=K$3,PDC_AOUT[[#This Row],[CA]],"") ->  | L7: =IF(PDC_AOUT[[#This Row],[Pose prév. S]]=L$3,PDC_AOUT[[#This Row],[CA]],"") ->  | M7: =IF(PDC_AOUT[[#This Row],[Pose prév. S]]=M$3,PDC_AOUT[[#This Row],[CA]],"") ->  | N7: =IF(PDC_AOUT[[#This Row],[Pose prév. S]]=N$3,PDC_AOUT[[#This Row],[CA]],"") ->  | O7: =IF(PDC_AOUT[[#This Row],[Pose prév. S]]=O$3,PDC_AOUT[[#This Row],[CA]],"") ->  | R7: Heures estimatives | S7: =PDC_AOUT[[#Totals],[H estimatives]] -> 0 | U7: Poseur 1 | V7: =INDEX(H_productives[],MATCH(V$6&$U$5,H_productives[N°S]&H_productives[N°Mois],0),MATCH($U7,H_productives[#Headers],0)) -> 0 | W7: =INDEX(H_productives[],MATCH(W$6&$U$5,H_productives[N°S]&H_productives[N°Mois],0),MATCH($U7,H_productives[#Headers],0)) -> 43 | X7: =INDEX(H_productives[],MATCH(X$6&$U$5,H_productives[N°S]&H_productives[N°Mois],0),MATCH($U7,H_productives[#Headers],0)) -> 35 | Y7: =INDEX(H_productives[],MATCH(Y$6&$U$5,H_productives[N°S]&H_productives[N°Mois],0),MATCH($U7,H_productives[#Headers],0)) -> 43 | Z7: =INDEX(H_productives[],MATCH(Z$6&$U$5,H_productives[N°S]&H_productives[N°Mois],0),MATCH($U7,H_productives[#Headers],0)) -> 35 | AA7: =INDEX(H_productives[],MATCH(AA$6&$U$5,H_productives[N°S]&H_productives[N°Mois],0),MATCH($U7,H_productives[#Headers],0)) -> 8.75
J8: =IF(PDC_AOUT[[#This Row],[Pose prév. S]]=J$3,PDC_AOUT[[#This Row],[CA]],"") ->  | K8: =IF(PDC_AOUT[[#This Row],[Pose prév. S]]=K$3,PDC_AOUT[[#This Row],[CA]],"") ->  | L8: =IF(PDC_AOUT[[#This Row],[Pose prév. S]]=L$3,PDC_AOUT[[#This Row],[CA]],"") ->  | M8: =IF(PDC_AOUT[[#This Row],[Pose prév. S]]=M$3,PDC_AOUT[[#This Row],[CA]],"") ->  | N8: =IF(PDC_AOUT[[#This Row],[Pose prév. S]]=N$3,PDC_AOUT[[#This Row],[CA]],"") ->  | O8: =IF(PDC_AOUT[[#This Row],[Pose prév. S]]=O$3,PDC_AOUT[[#This Row],[CA]],"") ->  | R8: Heures estimatives cumulées | S8: =S7+JUILLET!R8 -> 0 | U8: Poseur 2 | V8: =INDEX(H_productives[],MATCH(V$6&$U$5,H_productives[N°S]&H_productives[N°Mois],0),MATCH($U8,H_productives[#Headers],0)) -> 0 | W8: =INDEX(H_productives[],MATCH(W$6&$U$5,H_productives[N°S]&H_productives[N°Mois],0),MATCH($U8,H_productives[#Headers],0)) -> 43 | X8: =INDEX(H_productives[],MATCH(X$6&$U$5,H_productives[N°S]&H_productives[N°Mois],0),MATCH($U8,H_productives[#Headers],0)) -> 35 | Y8: =INDEX(H_productives[],MATCH(Y$6&$U$5,H_productives[N°S]&H_productives[N°Mois],0),MATCH($U8,H_productives[#Headers],0)) -> 43 | Z8: =INDEX(H_productives[],MATCH(Z$6&$U$5,H_productives[N°S]&H_productives[N°Mois],0),MATCH($U8,H_productives[#Headers],0)) -> 35 | AA8: =INDEX(H_productives[],MATCH(AA$6&$U$5,H_productives[N°S]&H_productives[N°Mois],0),MATCH($U8,H_productives[#Headers],0)) -> 8.75
J9: =IF(PDC_AOUT[[#This Row],[Pose prév. S]]=J$3,PDC_AOUT[[#This Row],[CA]],"") ->  | K9: =IF(PDC_AOUT[[#This Row],[Pose prév. S]]=K$3,PDC_AOUT[[#This Row],[CA]],"") ->  | L9: =IF(PDC_AOUT[[#This Row],[Pose prév. S]]=L$3,PDC_AOUT[[#This Row],[CA]],"") ->  | M9: =IF(PDC_AOUT[[#This Row],[Pose prév. S]]=M$3,PDC_AOUT[[#This Row],[CA]],"") ->  | N9: =IF(PDC_AOUT[[#This Row],[Pose prév. S]]=N$3,PDC_AOUT[[#This Row],[CA]],"") ->  | O9: =IF(PDC_AOUT[[#This Row],[Pose prév. S]]=O$3,PDC_AOUT[[#This Row],[CA]],"") ->  | U9: Poseur 3 | V9: =INDEX(H_productives[],MATCH(V$6&$U$5,H_productives[N°S]&H_productives[N°Mois],0),MATCH($U9,H_productives[#Headers],0)) -> 0 | W9: =INDEX(H_productives[],MATCH(W$6&$U$5,H_productives[N°S]&H_productives[N°Mois],0),MATCH($U9,H_productives[#Headers],0)) -> 43 | X9: =INDEX(H_productives[],MATCH(X$6&$U$5,H_productives[N°S]&H_productives[N°Mois],0),MATCH($U9,H_productives[#Headers],0)) -> 35 | Y9: =INDEX(H_productives[],MATCH(Y$6&$U$5,H_productives[N°S]&H_productives[N°Mois],0),MATCH($U9,H_productives[#Headers],0)) -> 43 | Z9: =INDEX(H_productives[],MATCH(Z$6&$U$5,H_productives[N°S]&H_productives[N°Mois],0),MATCH($U9,H_productives[#Headers],0)) -> 35 | AA9: =INDEX(H_productives[],MATCH(AA$6&$U$5,H_productives[N°S]&H_productives[N°Mois],0),MATCH($U9,H_productives[#Headers],0)) -> 8.75
A10: =SUBTOTAL(103,PDC_AOUT[Chantiers]) -> 0 | E10: =SUBTOTAL(109,PDC_AOUT[H estimatives]) -> 0 | F10: =SUBTOTAL(109,PDC_AOUT[H réelles réalisées]) -> 0 | G10: =SUBTOTAL(109,PDC_AOUT[CA]) -> 0 | R10: Heures en surplus (à décaler) | S10: =IF(TODAY()<=R1,IF(JUILLET!R10>0,IF((S7+JUILLET!R10)>S13,(S7+JUILLET!R10)-S13,0),IF(S7>S13,S7-S13,0)),IF(S7>S13,S7-S13,0)) -> 0 | U10: Poseur 4 | V10: =INDEX(H_productives[],MATCH(V$6&$U$5,H_productives[N°S]&H_productives[N°Mois],0),MATCH($U10,H_productives[#Headers],0)) -> 0 | W10: =INDEX(H_productives[],MATCH(W$6&$U$5,H_productives[N°S]&H_productives[N°Mois],0),MATCH($U10,H_productives[#Headers],0)) -> 43 | X10: =INDEX(H_productives[],MATCH(X$6&$U$5,H_productives[N°S]&H_productives[N°Mois],0),MATCH($U10,H_productives[#Headers],0)) -> 35 | Y10: =INDEX(H_productives[],MATCH(Y$6&$U$5,H_productives[N°S]&H_productives[N°Mois],0),MATCH($U10,H_productives[#Headers],0)) -> 43 | Z10: =INDEX(H_productives[],MATCH(Z$6&$U$5,H_productives[N°S]&H_productives[N°Mois],0),MATCH($U10,H_productives[#Headers],0)) -> 35 | AA10: =INDEX(H_productives[],MATCH(AA$6&$U$5,H_productives[N°S]&H_productives[N°Mois],0),MATCH($U10,H_productives[#Headers],0)) -> 8.75
F11: Nombre d'h prévues : | J11: =SUMIF(PDC_AOUT[Pose prév. S],PDC_AOUT[[#Headers],[31]],PDC_AOUT[H estimatives]) -> 0 | K11: =SUMIF(PDC_AOUT[Pose prév. S],PDC_AOUT[[#Headers],[32]],PDC_AOUT[H estimatives]) -> 0 | L11: =SUMIF(PDC_AOUT[Pose prév. S],PDC_AOUT[[#Headers],[33]],PDC_AOUT[H estimatives]) -> 0 | M11: =SUMIF(PDC_AOUT[Pose prév. S],PDC_AOUT[[#Headers],[34]],PDC_AOUT[H estimatives]) -> 0 | N11: =SUMIF(PDC_AOUT[Pose prév. S],PDC_AOUT[[#Headers],[35]],PDC_AOUT[H estimatives]) -> 0 | O11: =SUMIF(PDC_AOUT[Pose prév. S],PDC_AOUT[[#Headers],[36]],PDC_AOUT[H estimatives]) -> 0 | R11: Heures restantes | S11: =IF(S10=0,IF(TODAY()<=R1,S13-(S7+JUILLET!R10),S13-S7),0) -> 1156.5 | U11: Poseur 5 | V11: =INDEX(H_productives[],MATCH(V$6&$U$5,H_productives[N°S]&H_productives[N°Mois],0),MATCH($U11,H_productives[#Headers],0)) -> 0 | W11: =INDEX(H_productives[],MATCH(W$6&$U$5,H_productives[N°S]&H_productives[N°Mois],0),MATCH($U11,H_productives[#Headers],0)) -> 43 | X11: =INDEX(H_productives[],MATCH(X$6&$U$5,H_productives[N°S]&H_productives[N°Mois],0),MATCH($U11,H_productives[#Headers],0)) -> 35 | Y11: =INDEX(H_productives[],MATCH(Y$6&$U$5,H_productives[N°S]&H_productives[N°Mois],0),MATCH($U11,H_productives[#Headers],0)) -> 43 | Z11: =INDEX(H_productives[],MATCH(Z$6&$U$5,H_productives[N°S]&H_productives[N°Mois],0),MATCH($U11,H_productives[#Headers],0)) -> 35 | AA11: =INDEX(H_productives[],MATCH(AA$6&$U$5,H_productives[N°S]&H_productives[N°Mois],0),MATCH($U11,H_productives[#Headers],0)) -> 8.75
F12: Différence d'h (H prévues - H prod.) : | J12: =J11-V16 -> 0 | K12: =K11-W16 -> -253.3 | L12: =L11-X16 -> -212.5 | M12: =M11-Y16 -> -253.3 | N12: =N11-Z16 -> -212.5 | O12: =O11-AA16 -> -51.425 | U12: Poseur 6 | V12: =INDEX(H_productives[],MATCH(V$6&$U$5,H_productives[N°S]&H_productives[N°Mois],0),MATCH($U12,H_productives[#Headers],0)) -> 0 | W12: =INDEX(H_productives[],MATCH(W$6&$U$5,H_productives[N°S]&H_productives[N°Mois],0),MATCH($U12,H_productives[#Headers],0)) -> 43 | X12: =INDEX(H_productives[],MATCH(X$6&$U$5,H_productives[N°S]&H_productives[N°Mois],0),MATCH($U12,H_productives[#Headers],0)) -> 35 | Y12: =INDEX(H_productives[],MATCH(Y$6&$U$5,H_productives[N°S]&H_productives[N°Mois],0),MATCH($U12,H_productives[#Headers],0)) -> 43 | Z12: =INDEX(H_productives[],MATCH(Z$6&$U$5,H_productives[N°S]&H_productives[N°Mois],0),MATCH($U12,H_productives[#Headers],0)) -> 35 | AA12: =INDEX(H_productives[],MATCH(AA$6&$U$5,H_productives[N°S]&H_productives[N°Mois],0),MATCH($U12,H_productives[#Headers],0)) -> 8.75
F13: CA/mois TOTAL | G13: =SUMIF(PDC_AOUT[Plannifié et validé],"ü",PDC_AOUT[CA]) -> 0 | R13: Heures prod. | S13: =SUM(Tps_travaillées_OCT381382385390[[#Totals],[31]:[36]]) -> 1156.5 | U13: Poseur 7 | V13: =INDEX(H_productives[],MATCH(V$6&$U$5,H_productives[N°S]&H_productives[N°Mois],0),MATCH($U13,H_productives[#Headers],0)) -> 0 | W13: =INDEX(H_productives[],MATCH(W$6&$U$5,H_productives[N°S]&H_productives[N°Mois],0),MATCH($U13,H_productives[#Headers],0)) -> 40 | X13: =INDEX(H_productives[],MATCH(X$6&$U$5,H_productives[N°S]&H_productives[N°Mois],0),MATCH($U13,H_productives[#Headers],0)) -> 40 | Y13: =INDEX(H_productives[],MATCH(Y$6&$U$5,H_productives[N°S]&H_productives[N°Mois],0),MATCH($U13,H_productives[#Headers],0)) -> 40 | Z13: =INDEX(H_productives[],MATCH(Z$6&$U$5,H_productives[N°S]&H_productives[N°Mois],0),MATCH($U13,H_productives[#Headers],0)) -> 40 | AA13: =INDEX(H_productives[],MATCH(AA$6&$U$5,H_productives[N°S]&H_productives[N°Mois],0),MATCH($U13,H_productives[#Headers],0)) -> 8
R14: Heures prod. cumulées | S14: =S13+JUILLET!R14 -> 11370.85 | U14: Total | V14: =SUBTOTAL(109,Tps_travaillées_OCT381382385390[31]) -> 0 | W14: =SUBTOTAL(109,Tps_travaillées_OCT381382385390[32]) -> 298 | X14: =SUBTOTAL(109,Tps_travaillées_OCT381382385390[33]) -> 250 | Y14: =SUBTOTAL(109,Tps_travaillées_OCT381382385390[34]) -> 298 | Z14: =SUBTOTAL(109,Tps_travaillées_OCT381382385390[35]) -> 250 | AA14: =SUBTOTAL(109,Tps_travaillées_OCT381382385390[36]) -> 60.5
U15: -0.15 | V15: =Tps_travaillées_OCT381382385390[[#Totals],[31]]*$U$15 -> 0 | W15: =Tps_travaillées_OCT381382385390[[#Totals],[32]]*$U$15 -> -44.7 | X15: =Tps_travaillées_OCT381382385390[[#Totals],[33]]*$U$15 -> -37.5 | Y15: =Tps_travaillées_OCT381382385390[[#Totals],[34]]*$U$15 -> -44.7 | Z15: =Tps_travaillées_OCT381382385390[[#Totals],[35]]*$U$15 -> -37.5 | AA15: =Tps_travaillées_OCT381382385390[[#Totals],[36]]*$U$15 -> -9.075
R16: Heures réelles réalisées | S16: =PDC_AOUT[[#Totals],[H réelles réalisées]] -> 0 | U16: Heure réelles travaillées | V16: =SUM(V14:V15) -> 0 | W16: 253.3 | X16: 212.5 | Y16: 253.3 | Z16: 212.5 | AA16: 51.425
R17: Heures réelles réalisées cumulées | S17: =S16+JUILLET!R17 -> 0 | U17: Soit en JOURS | V17: =V16/8.75 -> 0 | W17: 28.94857143 | X17: 24.28571429 | Y17: 28.94857143 | Z17: 24.28571429 | AA17: 5.877142857
R19: Moyenne CA/h estimatives | S19: =SUM(PDC_AOUT[[#Totals],[CA]]/E10) -> 
R20: Moyenne CA/h réalisées | S20: =G13/PDC_AOUT[[#Totals],[H réelles réalisées]] -> 
R21: Moyenne CA/h réalisées cumulées | S21: =S25/S17 -> 
R23: CA prévi. à poser au cours de l'année | S23: =PDC_AOUT[[#Totals],[CA]]+SEPT!R23 -> 0
R24: CA prévision cumulé | S24: =PDC_AOUT[[#Totals],[CA]]+JUILLET!R24 -> 0
R25: CA réel cumulé | S25: =G13+JUILLET!R25 -> 0

Sheet SEPT
A1: ="PLAN DE CHARGE DU MOIS DE SEPTEMBRE "&'Fermetures & jours fériés'!D2 -> PLAN DE CHARGE DU MOIS DE SEPTEMBRE 2020 | P1: =EDATE(AOUT!R1,1) -> 2020-09-01 | Q1: =DATE('Fermetures & jours fériés'!D2,T5,1) -> 2020-09-01
A2: Légende : | B2: Chantier fait | D2: Cellule à définir avec feuille de marge réelle | E2: = H estimatives | G2: < H estimatives | I2: > H estimatives | K2: Pose prév. Impératif | L2: Rechercher un client : Ctrl+F > Options > Dans "Classeur" > Décocher "Totalité de la cellule" > Entrer NOM
J3: 36 | K3: =IF(J3<52,J3+1,1) -> 37 | L3: =IF(K3<52,K3+1,1) -> 38 | M3: 39 | N3: 40
J4: =IF(SUMIFS(PDC_SEPT[H estimatives],PDC_SEPT[Projet],"BOZARC",PDC_SEPT[Pose prév. S],PDC_SEPT[[#Headers],[36]])>87.5,"Trop de BozArc prévu","") ->  | K4: =IF(SUMIFS(PDC_SEPT[H estimatives],PDC_SEPT[Projet],"BOZARC",PDC_SEPT[Pose prév. S],PDC_SEPT[[#Headers],[37]])>70,"Trop de BozArc prévu","") ->  | L4: =IF(SUMIFS(PDC_SEPT[H estimatives],PDC_SEPT[Projet],"BOZARC",PDC_SEPT[Pose prév. S],PDC_SEPT[[#Headers],[38]])>87.5,"Trop de BozArc prévu","") ->  | M4: =IF(SUMIFS(PDC_SEPT[H estimatives],PDC_SEPT[Projet],"BOZARC",PDC_SEPT[Pose prév. S],PDC_SEPT[[#Headers],[39]])>70,"Trop de BozArc prévu","") ->  | N4: =IF(SUMIFS(PDC_SEPT[H estimatives],PDC_SEPT[Projet],"BOZARC",PDC_SEPT[Pose prév. S],PDC_SEPT[[#Headers],[40]])>87.5,"Trop de BozArc prévu","") -> 
A5: =IF(OR(R7>=R13,R10>0),"MOIS COMPLET - PLUS DE SAISIE","") ->  | J5: =IF(SUMIF(PDC_SEPT[Pose prév. S],PDC_SEPT[[#Headers],[36]],PDC_SEPT[H estimatives])>=U$16,"Semaine complète","") ->  | K5: =IF(SUMIF(PDC_SEPT[Pose prév. S],PDC_SEPT[[#Headers],[37]],PDC_SEPT[H estimatives])>=V$16,"Semaine complète","") ->  | L5: =IF(SUMIF(PDC_SEPT[Pose prév. S],PDC_SEPT[[#Headers],[38]],PDC_SEPT[H estimatives])>=W$16,"Semaine complète","") ->  | M5: =IF(SUMIF(PDC_SEPT[Pose prév. S],PDC_SEPT[[#Headers],[39]],PDC_SEPT[H estimatives])>=X$16,"Semaine complète","") ->  | N5: =IF(SUMIF(PDC_SEPT[Pose prév. S],PDC_SEPT[[#Headers],[40]],PDC_SEPT[H estimatives])>=Y$16,"Semaine complète","") ->  | O5: Décalage | T5: =AOUT!U5+1 -> 9
A6: Chantiers | B6: Ccial | C6: Projet | D6: Ville | E6: H estimatives | F6: H réelles réalisées | G6: CA | H6: S de liv. | I6: Pose prév. S | J6: 36 | K6: 37 | L6: 38 | M6: 39 | N6: 40 | O6: Plannifié et validé | Q6: Indicateurs | T6: Éxécutants | U6: 36 | V6: 37 | W6: 38 | X6: 39 | Y6: 40
J7: =IF(PDC_SEPT[[#This Row],[Pose prév. S]]=J$3,PDC_SEPT[[#This Row],[CA]],"") ->  | K7: =IF(PDC_SEPT[[#This Row],[Pose prév. S]]=K$3,PDC_SEPT[[#This Row],[CA]],"") ->  | L7: =IF(PDC_SEPT[[#This Row],[Pose prév. S]]=L$3,PDC_SEPT[[#This Row],[CA]],"") ->  | M7: =IF(PDC_SEPT[[#This Row],[Pose prév. S]]=M$3,PDC_SEPT[[#This Row],[CA]],"") ->  | N7: =IF(PDC_SEPT[[#This Row],[Pose prév. S]]=N$3,PDC_SEPT[[#This Row],[CA]],"") ->  | Q7: Heures estimatives | R7: =PDC_SEPT[[#Totals],[H estimatives]] -> 0 | T7: Poseur 1 | U7: =INDEX(H_productives[],MATCH(U$6&$T$5,H_productives[N°S]&H_productives[N°Mois],0),MATCH($T7,H_productives[#Headers],0)) -> 34.25 | V7: =INDEX(H_productives[],MATCH(V$6&$T$5,H_productives[N°S]&H_productives[N°Mois],0),MATCH($T7,H_productives[#Headers],0)) -> 35 | W7: =INDEX(H_productives[],MATCH(W$6&$T$5,H_productives[N°S]&H_productives[N°Mois],0),MATCH($T7,H_productives[#Headers],0)) -> 43 | X7: =INDEX(H_productives[],MATCH(X$6&$T$5,H_productives[N°S]&H_productives[N°Mois],0),MATCH($T7,H_productives[#Headers],0)) -> 35 | Y7: =INDEX(H_productives[],MATCH(Y$6&$T$5,H_productives[N°S]&H_productives[N°Mois],0),MATCH($T7,H_productives[#Headers],0)) -> 26.25
J8: =IF(PDC_SEPT[[#This Row],[Pose prév. S]]=J$3,PDC_SEPT[[#This Row],[CA]],"") ->  | K8: =IF(PDC_SEPT[[#This Row],[Pose prév. S]]=K$3,PDC_SEPT[[#This Row],[CA]],"") ->  | L8: =IF(PDC_SEPT[[#This Row],[Pose prév. S]]=L$3,PDC_SEPT[[#This Row],[CA]],"") ->  | M8: =IF(PDC_SEPT[[#This Row],[Pose prév. S]]=M$3,PDC_SEPT[[#This Row],[CA]],"") ->  | N8: =IF(PDC_SEPT[[#This Row],[Pose prév. S]]=N$3,PDC_SEPT[[#This Row],[CA]],"") ->  | Q8: Heures estimatives cumulées | R8: =R7+AOUT!S8 -> 0 | T8: Poseur 2 | U8: =INDEX(H_productives[],MATCH(U$6&$T$5,H_productives[N°S]&H_productives[N°Mois],0),MATCH($T8,H_productives[#Headers],0)) -> 34.25 | V8: =INDEX(H_productives[],MATCH(V$6&$T$5,H_productives[N°S]&H_productives[N°Mois],0),MATCH($T8,H_productives[#Headers],0)) -> 35 | W8: =INDEX(H_productives[],MATCH(W$6&$T$5,H_productives[N°S]&H_productives[N°Mois],0),MATCH($T8,H_productives[#Headers],0)) -> 43 | X8: =INDEX(H_productives[],MATCH(X$6&$T$5,H_productives[N°S]&H_productives[N°Mois],0),MATCH($T8,H_productives[#Headers],0)) -> 35 | Y8: =INDEX(H_productives[],MATCH(Y$6&$T$5,H_productives[N°S]&H_productives[N°Mois],0),MATCH($T8,H_productives[#Headers],0)) -> 26.25
J9: =IF(PDC_SEPT[[#This Row],[Pose prév. S]]=J$3,PDC_SEPT[[#This Row],[CA]],"") ->  | K9: =IF(PDC_SEPT[[#This Row],[Pose prév. S]]=K$3,PDC_SEPT[[#This Row],[CA]],"") ->  | L9: =IF(PDC_SEPT[[#This Row],[Pose prév. S]]=L$3,PDC_SEPT[[#This Row],[CA]],"") ->  | M9: =IF(PDC_SEPT[[#This Row],[Pose prév. S]]=M$3,PDC_SEPT[[#This Row],[CA]],"") ->  | N9: =IF(PDC_SEPT[[#This Row],[Pose prév. S]]=N$3,PDC_SEPT[[#This Row],[CA]],"") ->  | T9: Poseur 3 | U9: =INDEX(H_productives[],MATCH(U$6&$T$5,H_productives[N°S]&H_productives[N°Mois],0),MATCH($T9,H_productives[#Headers],0)) -> 34.25 | V9: =INDEX(H_productives[],MATCH(V$6&$T$5,H_productives[N°S]&H_productives[N°Mois],0),MATCH($T9,H_productives[#Headers],0)) -> 35 | W9: =INDEX(H_productives[],MATCH(W$6&$T$5,H_productives[N°S]&H_productives[N°Mois],0),MATCH($T9,H_productives[#Headers],0)) -> 43 | X9: =INDEX(H_productives[],MATCH(X$6&$T$5,H_productives[N°S]&H_productives[N°Mois],0),MATCH($T9,H_productives[#Headers],0)) -> 35 | Y9: =INDEX(H_productives[],MATCH(Y$6&$T$5,H_productives[N°S]&H_productives[N°Mois],0),MATCH($T9,H_productives[#Headers],0)) -> 26.25
A10: =SUBTOTAL(103,PDC_SEPT[Chantiers]) -> 0 | E10: =SUBTOTAL(109,PDC_SEPT[H estimatives]) -> 0 | F10: =SUBTOTAL(109,PDC_SEPT[H réelles réalisées]) -> 0 | G10: =SUBTOTAL(109,PDC_SEPT[CA]) -> 0 | Q10: Heures en surplus (à décaler) | R10: =IF(TODAY()<=Q1,IF(AOUT!S10>0,IF((R7+AOUT!S10)>R13,(R7+AOUT!S10)-R13,0),IF(R7>R13,R7-R13,0)),IF(R7>R13,R7-R13,0)) -> 0 | T10: Poseur 4 | U10: =INDEX(H_productives[],MATCH(U$6&$T$5,H_productives[N°S]&H_productives[N°Mois],0),MATCH($T10,H_productives[#Headers],0)) -> 34.25 | V10: =INDEX(H_productives[],MATCH(V$6&$T$5,H_productives[N°S]&H_productives[N°Mois],0),MATCH($T10,H_productives[#Headers],0)) -> 35 | W10: =INDEX(H_productives[],MATCH(W$6&$T$5,H_productives[N°S]&H_productives[N°Mois],0),MATCH($T10,H_productives[#Headers],0)) -> 43 | X10: =INDEX(H_productives[],MATCH(X$6&$T$5,H_productives[N°S]&H_productives[N°Mois],0),MATCH($T10,H_productives[#Headers],0)) -> 35 | Y10: =INDEX(H_productives[],MATCH(Y$6&$T$5,H_productives[N°S]&H_productives[N°Mois],0),MATCH($T10,H_productives[#Headers],0)) -> 26.25
F11: Nombre d'h prévues : | J11: =SUMIF(PDC_SEPT[Pose prév. S],PDC_SEPT[[#Headers],[36]],PDC_SEPT[H estimatives]) -> 0 | K11: =SUMIF(PDC_SEPT[Pose prév. S],PDC_SEPT[[#Headers],[37]],PDC_SEPT[H estimatives]) -> 0 | L11: =SUMIF(PDC_SEPT[Pose prév. S],PDC_SEPT[[#Headers],[38]],PDC_SEPT[H estimatives]) -> 0 | M11: =SUMIF(PDC_SEPT[Pose prév. S],PDC_SEPT[[#Headers],[39]],PDC_SEPT[H estimatives]) -> 0 | N11: =SUMIF(PDC_SEPT[Pose prév. S],PDC_SEPT[[#Headers],[40]],PDC_SEPT[H estimatives]) -> 0 | Q11: Heures restantes | R11: =IF(R10=0,IF(TODAY()<=Q1,R13-(R7+AOUT!S10),R13-R7),0) -> 1217 | T11: Poseur 5 | U11: =INDEX(H_productives[],MATCH(U$6&$T$5,H_productives[N°S]&H_productives[N°Mois],0),MATCH($T11,H_productives[#Headers],0)) -> 34.25 | V11: =INDEX(H_productives[],MATCH(V$6&$T$5,H_productives[N°S]&H_productives[N°Mois],0),MATCH($T11,H_productives[#Headers],0)) -> 35 | W11: =INDEX(H_productives[],MATCH(W$6&$T$5,H_productives[N°S]&H_productives[N°Mois],0),MATCH($T11,H_productives[#Headers],0)) -> 43 | X11: =INDEX(H_productives[],MATCH(X$6&$T$5,H_productives[N°S]&H_productives[N°Mois],0),MATCH($T11,H_productives[#Headers],0)) -> 35 | Y11: =INDEX(H_productives[],MATCH(Y$6&$T$5,H_productives[N°S]&H_productives[N°Mois],0),MATCH($T11,H_productives[#Headers],0)) -> 26.25
F12: Différence d'h (H prévues - H prod.) : | J12: =J11-U16 -> -201.875 | K12: =K11-V16 -> -212.5 | L12: =L11-W16 -> -253.3 | M12: =M11-X16 -> -212.5 | N12: =N11-Y16 -> -154.275 | T12: Poseur 6 | U12: =INDEX(H_productives[],MATCH(U$6&$T$5,H_productives[N°S]&H_productives[N°Mois],0),MATCH($T12,H_productives[#Headers],0)) -> 34.25 | V12: =INDEX(H_productives[],MATCH(V$6&$T$5,H_productives[N°S]&H_productives[N°Mois],0),MATCH($T12,H_productives[#Headers],0)) -> 35 | W12: =INDEX(H_productives[],MATCH(W$6&$T$5,H_productives[N°S]&H_productives[N°Mois],0),MATCH($T12,H_productives[#Headers],0)) -> 43 | X12: =INDEX(H_productives[],MATCH(X$6&$T$5,H_productives[N°S]&H_productives[N°Mois],0),MATCH($T12,H_productives[#Headers],0)) -> 35 | Y12: =INDEX(H_productives[],MATCH(Y$6&$T$5,H_productives[N°S]&H_productives[N°Mois],0),MATCH($T12,H_productives[#Headers],0)) -> 26.25
F13: CA/mois TOTAL | G13: =SUMIF(PDC_SEPT[Plannifié et validé],"ü",PDC_SEPT[CA]) -> 0 | Q13: Heures prod. | R13: =SUM(Tps_travaillées_OCT384386387388389391[[#Totals],[36]:[40]]) -> 1217 | T13: Poseur 7 | U13: =INDEX(H_productives[],MATCH(U$6&$T$5,H_productives[N°S]&H_productives[N°Mois],0),MATCH($T13,H_productives[#Headers],0)) -> 32 | V13: =INDEX(H_productives[],MATCH(V$6&$T$5,H_productives[N°S]&H_productives[N°Mois],0),MATCH($T13,H_productives[#Headers],0)) -> 40 | W13: =INDEX(H_productives[],MATCH(W$6&$T$5,H_productives[N°S]&H_productives[N°Mois],0),MATCH($T13,H_productives[#Headers],0)) -> 40 | X13: =INDEX(H_productives[],MATCH(X$6&$T$5,H_productives[N°S]&H_productives[N°Mois],0),MATCH($T13,H_productives[#Headers],0)) -> 40 | Y13: =INDEX(H_productives[],MATCH(Y$6&$T$5,H_productives[N°S]&H_productives[N°Mois],0),MATCH($T13,H_productives[#Headers],0)) -> 24
Q14: Heures prod. cumulées | R14: =R13+AOUT!S14 -> 12587.85 | T14: Total | U14: =SUBTOTAL(109,Tps_travaillées_OCT384386387388389391[36]) -> 237.5 | V14: =SUBTOTAL(109,Tps_travaillées_OCT384386387388389391[37]) -> 250 | W14: =SUBTOTAL(109,Tps_travaillées_OCT384386387388389391[38]) -> 298 | X14: =SUBTOTAL(109,Tps_travaillées_OCT384386387388389391[39]) -> 250 | Y14: =SUBTOTAL(109,Tps_travaillées_OCT384386387388389391[40]) -> 181.5
T15: -0.15 | U15: =Tps_travaillées_OCT384386387388389391[[#Totals],[36]]*$T$15 -> -35.625 | V15: =Tps_travaillées_OCT384386387388389391[[#Totals],[37]]*$T$15 -> -37.5 | W15: =Tps_travaillées_OCT384386387388389391[[#Totals],[38]]*$T$15 -> -44.7 | X15: =Tps_travaillées_OCT384386387388389391[[#Totals],[39]]*$T$15 -> -37.5 | Y15: =Tps_travaillées_OCT384386387388389391[[#Totals],[40]]*$T$15 -> -27.225
Q16: Heures réelles réalisées | R16: =PDC_SEPT[[#Totals],[H réelles réalisées]] -> 0 | T16: Heure réelles travaillées | U16: =SUM(U14:U15) -> 201.875 | V16: =SUM(V14:V15) -> 212.5 | W16: =SUM(W14:W15) -> 253.3 | X16: =SUM(X14:X15) -> 212.5 | Y16: =SUM(Y14:Y15) -> 154.275
Q17: Heures réelles réalisées cumulées | R17: =R16+AOUT!S17 -> 0 | T17: Soit en JOURS | U17: =U16/8.75 -> 23.07142857 | V17: =V16/8.75 -> 24.28571429 | W17: =W16/8.75 -> 28.94857143 | X17: =X16/8.75 -> 24.28571429 | Y17: =Y16/8.75 -> 17.63142857
Q19: Moyenne CA/h estimatives | R19: =SUM(PDC_SEPT[[#Totals],[CA]]/E10) -> 
Q20: Moyenne CA/h réalisées | R20: =G13/PDC_SEPT[[#Totals],[H réelles réalisées]] -> 
Q21: Moyenne CA/h réalisées cumulées | R21: =R25/R17 -> 
Q23: CA prévi. à poser au cours de l'année | R23: =PDC_SEPT[[#Totals],[CA]] -> 0
Q24: CA prévision cumulé | R24: =PDC_SEPT[[#Totals],[CA]]+AOUT!S24 -> 0
Q25: CA réel cumulé | R25: =G13+AOUT!S25 -> 0

Sheet Fermetures & jours fériés (hidden)
B1: Année début d'exercice : | D1: 2019
B2: Année fin d'exercice : | D2: =D1+1 -> 2020
B4: Date | C4: N°S | D4: N° mois | E4: Mois | F4: Jour | G4: Etat | J4: Fermeture | K4: Date début | L4: Date de reprise | M4: Total jour | N4: S de début | O4: S de reprise | Q4: Date | R4: Jours férié ou improductif | S4: Etat | T4: N° S
B5: =DATE(D1,10,1) -> 2019-10-01 | C5: =_xlfn.ISOWEEKNUM(Tableau1[[#This Row],[Date]]) -> 40 | D5: =MONTH(Tableau1[[#This Row],[Date]]) -> 10 | E5: =TEXT(Tableau1[[#This Row],[Date]],"mmmm") -> octobre | F5: =CHOOSE(WEEKDAY(Tableau1[[#This Row],[Date]],2),"lu","ma","me","je","ve","sa","di") -> ma | G5: =IFERROR(VLOOKUP(B5,Tableau30[],3,FALSE),IF(OR(AND($K$5<=B5,$L$5>B5),AND($K$6<=Tableau1[[#This Row],[Date]],$L$6>=Tableau1[[#This Row],[Date]])),"FERMÉE",IF(OR(Tableau1[[#This Row],[Jour]]="sa",Tableau1[[#This Row],[Jour]]="di",AND(Tableau1[[#This Row],[Jour]]="ve",MOD(Tableau1[[#This Row],[N°S]],2)=1)),"REPOS",IF(Tableau1[[#This Row],[Jour]]="ve",8,8.75)))) -> 8.75 | J5: Noël | K5: 2019-12-25 | L5: 2020-01-06 | M5: =Tableau29[[#This Row],[Date de reprise]]-Tableau29[[#This Row],[Date début]]-(COUNTIFS(Tableau30[Date],"<="&Tableau29[[#This Row],[Date de reprise]],Tableau30[Date],">="&Tableau29[[#This Row],[Date début]])) -> 10 | N5: =IF(COUNTA(Tableau29[[#This Row],[Date début]:[Date de reprise]])=2,_xlfn.ISOWEEKNUM(Tableau29[[#This Row],[Date début]]),"") -> 52 | O5: =IF(COUNTA(Tableau29[[#This Row],[Date début]:[Date de reprise]])=2,_xlfn.ISOWEEKNUM(Tableau29[[#This Row],[Date de reprise]]),"") -> 2 | Q5: 2019-10-07 | R5: INVENTAIRE | S5: =IF(COUNTA(Tableau30[[#This Row],[Jours férié ou improductif]])=1,"FÉRIÉ/INACTIF","") -> FÉRIÉ/INACTIF | T5: =_xlfn.ISOWEEKNUM(Tableau30[[#This Row],[Date]]) -> 41
B6: =B5+1 -> 2019-10-02 | C6: =_xlfn.ISOWEEKNUM(Tableau1[[#This Row],[Date]]) -> 40 | D6: =MONTH(Tableau1[[#This Row],[Date]]) -> 10 | E6: =TEXT(Tableau1[[#This Row],[Date]],"mmmm") -> octobre | F6: =CHOOSE(WEEKDAY(Tableau1[[#This Row],[Date]],2),"lu","ma","me","je","ve","sa","di") -> me | G6: =IFERROR(VLOOKUP(B6,Tableau30[],3,FALSE),IF(OR(AND($K$5<=B6,$L$5>B6),AND($K$6<=Tableau1[[#This Row],[Date]],$L$6>=Tableau1[[#This Row],[Date]])),"FERMÉE",IF(OR(Tableau1[[#This Row],[Jour]]="sa",Tableau1[[#This Row],[Jour]]="di",AND(Tableau1[[#This Row],[Jour]]="ve",MOD(Tableau1[[#This Row],[N°S]],2)=1)),"REPOS",IF(Tableau1[[#This Row],[Jour]]="ve",8,8.75)))) -> 8.75 | J6: Été | M6: =Tableau29[[#This Row],[Date de reprise]]-Tableau29[[#This Row],[Date début]]-(COUNTIFS(Tableau30[Date],"<="&Tableau29[[#This Row],[Date de reprise]],Tableau30[Date],">="&Tableau29[[#This Row],[Date début]])) -> 0 | N6: =IF(COUNTA(Tableau29[[#This Row],[Date début]:[Date de reprise]])=2,_xlfn.ISOWEEKNUM(Tableau29[[#This Row],[Date début]]),"") ->  | O6: =IF(COUNTA(Tableau29[[#This Row],[Date début]:[Date de reprise]])=2,_xlfn.ISOWEEKNUM(Tableau29[[#This Row],[Date de reprise]]),"") ->  | Q6: 2019-11-01 | R6: Toussaint | S6: =IF(COUNTA(Tableau30[[#This Row],[Jours férié ou improductif]])=1,"FÉRIÉ/INACTIF","") -> FÉRIÉ/INACTIF | T6: =_xlfn.ISOWEEKNUM(Tableau30[[#This Row],[Date]]) -> 44
B7: =B6+1 -> 2019-10-03 | C7: =_xlfn.ISOWEEKNUM(Tableau1[[#This Row],[Date]]) -> 40 | D7: =MONTH(Tableau1[[#This Row],[Date]]) -> 10 | E7: =TEXT(Tableau1[[#This Row],[Date]],"mmmm") -> octobre | F7: =CHOOSE(WEEKDAY(Tableau1[[#This Row],[Date]],2),"lu","ma","me","je","ve","sa","di") -> je | G7: =IFERROR(VLOOKUP(B7,Tableau30[],3,FALSE),IF(OR(AND($K$5<=B7,$L$5>B7),AND($K$6<=Tableau1[[#This Row],[Date]],$L$6>=Tableau1[[#This Row],[Date]])),"FERMÉE",IF(OR(Tableau1[[#This Row],[Jour]]="sa",Tableau1[[#This Row],[Jour]]="di",AND(Tableau1[[#This Row],[Jour]]="ve",MOD(Tableau1[[#This Row],[N°S]],2)=1)),"REPOS",IF(Tableau1[[#This Row],[Jour]]="ve",8,8.75)))) -> 8.75 | Q7: 2019-11-11 | R7: Armistice 1918 | S7: =IF(COUNTA(Tableau30[[#This Row],[Jours férié ou improductif]])=1,"FÉRIÉ/INACTIF","") -> FÉRIÉ/INACTIF | T7: =_xlfn.ISOWEEKNUM(Tableau30[[#This Row],[Date]]) -> 46
B8: 2019-10-04 | C8: =_xlfn.ISOWEEKNUM(Tableau1[[#This Row],[Date]]) -> 40 | D8: =MONTH(Tableau1[[#This Row],[Date]]) -> 10 | E8: =TEXT(Tableau1[[#This Row],[Date]],"mmmm") -> octobre | F8: =CHOOSE(WEEKDAY(Tableau1[[#This Row],[Date]],2),"lu","ma","me","je","ve","sa","di") -> ve | G8: =IFERROR(VLOOKUP(B8,Tableau30[],3,FALSE),IF(OR(AND($K$5<=B8,$L$5>B8),AND($K$6<=Tableau1[[#This Row],[Date]],$L$6>=Tableau1[[#This Row],[Date]])),"FERMÉE",IF(OR(Tableau1[[#This Row],[Jour]]="sa",Tableau1[[#This Row],[Jour]]="di",AND(Tableau1[[#This Row],[Jour]]="ve",MOD(Tableau1[[#This Row],[N°S]],2)=1)),"REPOS",IF(Tableau1[[#This Row],[Jour]]="ve",8,8.75)))) -> 8 | J8: Etat | K8: Nombre | Q8: 2019-12-25 | R8: Noël | S8: =IF(COUNTA(Tableau30[[#This Row],[Jours férié ou improductif]])=1,"FÉRIÉ/INACTIF","") -> FÉRIÉ/INACTIF | T8: =_xlfn.ISOWEEKNUM(Tableau30[[#This Row],[Date]]) -> 52
B9: 2019-10-05 | C9: =_xlfn.ISOWEEKNUM(Tableau1[[#This Row],[Date]]) -> 40 | D9: =MONTH(Tableau1[[#This Row],[Date]]) -> 10 | E9: =TEXT(Tableau1[[#This Row],[Date]],"mmmm") -> octobre | F9: =CHOOSE(WEEKDAY(Tableau1[[#This Row],[Date]],2),"lu","ma","me","je","ve","sa","di") -> sa | G9: =IFERROR(VLOOKUP(B9,Tableau30[],3,FALSE),IF(OR(AND($K$5<=B9,$L$5>B9),AND($K$6<=Tableau1[[#This Row],[Date]],$L$6>=Tableau1[[#This Row],[Date]])),"FERMÉE",IF(OR(Tableau1[[#This Row],[Jour]]="sa",Tableau1[[#This Row],[Jour]]="di",AND(Tableau1[[#This Row],[Jour]]="ve",MOD(Tableau1[[#This Row],[N°S]],2)=1)),"REPOS",IF(Tableau1[[#This Row],[Jour]]="ve",8,8.75)))) -> REPOS | J9: FÉRIÉ/INACTIF | K9: =COUNTIF(Tableau1[Etat],Tableau31[[#This Row],[Etat]]) -> 11 | Q9: 2020-01-01 | R9: Jour de l'an | S9: =IF(COUNTA(Tableau30[[#This Row],[Jours férié ou improductif]])=1,"FÉRIÉ/INACTIF","") -> FÉRIÉ/INACTIF | T9: =_xlfn.ISOWEEKNUM(Tableau30[[#This Row],[Date]]) -> 1
B10: 2019-10-06 | C10: =_xlfn.ISOWEEKNUM(Tableau1[[#This Row],[Date]]) -> 40 | D10: =MONTH(Tableau1[[#This Row],[Date]]) -> 10 | E10: =TEXT(Tableau1[[#This Row],[Date]],"mmmm") -> octobre | F10: =CHOOSE(WEEKDAY(Tableau1[[#This Row],[Date]],2),"lu","ma","me","je","ve","sa","di") -> di | G10: =IFERROR(VLOOKUP(B10,Tableau30[],3,FALSE),IF(OR(AND($K$5<=B10,$L$5>B10),AND($K$6<=Tableau1[[#This Row],[Date]],$L$6>=Tableau1[[#This Row],[Date]])),"FERMÉE",IF(OR(Tableau1[[#This Row],[Jour]]="sa",Tableau1[[#This Row],[Jour]]="di",AND(Tableau1[[#This Row],[Jour]]="ve",MOD(Tableau1[[#This Row],[N°S]],2)=1)),"REPOS",IF(Tableau1[[#This Row],[Jour]]="ve",8,8.75)))) -> REPOS | J10: FERMÉE | K10: =COUNTIF(Tableau1[Etat],Tableau31[[#This Row],[Etat]]) -> 10 | Q10: 2020-04-13 | R10: Lundi de Pâques | S10: =IF(COUNTA(Tableau30[[#This Row],[Jours férié ou improductif]])=1,"FÉRIÉ/INACTIF","") -> FÉRIÉ/INACTIF | T10: =_xlfn.ISOWEEKNUM(Tableau30[[#This Row],[Date]]) -> 16
B11: 2019-10-07 | C11: =_xlfn.ISOWEEKNUM(Tableau1[[#This Row],[Date]]) -> 41 | D11: =MONTH(Tableau1[[#This Row],[Date]]) -> 10 | E11: =TEXT(Tableau1[[#This Row],[Date]],"mmmm") -> octobre | F11: =CHOOSE(WEEKDAY(Tableau1[[#This Row],[Date]],2),"lu","ma","me","je","ve","sa","di") -> lu | G11: =IFERROR(VLOOKUP(B11,Tableau30[],3,FALSE),IF(OR(AND($K$5<=B11,$L$5>B11),AND($K$6<=Tableau1[[#This Row],[Date]],$L$6>=Tableau1[[#This Row],[Date]])),"FERMÉE",IF(OR(Tableau1[[#This Row],[Jour]]="sa",Tableau1[[#This Row],[Jour]]="di",AND(Tableau1[[#This Row],[Jour]]="ve",MOD(Tableau1[[#This Row],[N°S]],2)=1)),"REPOS",IF(Tableau1[[#This Row],[Jour]]="ve",8,8.75)))) -> FÉRIÉ/INACTIF | J11: REPOS | K11: =COUNTIF(Tableau1[Etat],Tableau31[[#This Row],[Etat]]) -> 124 | Q11: 2020-05-01 | R11: Fête du Travail | S11: =IF(COUNTA(Tableau30[[#This Row],[Jours férié ou improductif]])=1,"FÉRIÉ/INACTIF","") -> FÉRIÉ/INACTIF | T11: =_xlfn.ISOWEEKNUM(Tableau30[[#This Row],[Date]]) -> 18
B12: 2019-10-08 | C12: =_xlfn.ISOWEEKNUM(Tableau1[[#This Row],[Date]]) -> 41 | D12: =MONTH(Tableau1[[#This Row],[Date]]) -> 10 | E12: =TEXT(Tableau1[[#This Row],[Date]],"mmmm") -> octobre | F12: =CHOOSE(WEEKDAY(Tableau1[[#This Row],[Date]],2),"lu","ma","me","je","ve","sa","di") -> ma | G12: =IFERROR(VLOOKUP(B12,Tableau30[],3,FALSE),IF(OR(AND($K$5<=B12,$L$5>B12),AND($K$6<=Tableau1[[#This Row],[Date]],$L$6>=Tableau1[[#This Row],[Date]])),"FERMÉE",IF(OR(Tableau1[[#This Row],[Jour]]="sa",Tableau1[[#This Row],[Jour]]="di",AND(Tableau1[[#This Row],[Jour]]="ve",MOD(Tableau1[[#This Row],[N°S]],2)=1)),"REPOS",IF(Tableau1[[#This Row],[Jour]]="ve",8,8.75)))) -> 8.75 | J12: 8 | K12: =COUNTIF(Tableau1[Etat],Tableau31[[#This Row],[Etat]]) -> 23 | Q12: 2020-05-21 | R12: Jeudi de l'Ascension | S12: =IF(COUNTA(Tableau30[[#This Row],[Jours férié ou improductif]])=1,"FÉRIÉ/INACTIF","") -> FÉRIÉ/INACTIF | T12: =_xlfn.ISOWEEKNUM(Tableau30[[#This Row],[Date]]) -> 21
B13: 2019-10-09 | C13: =_xlfn.ISOWEEKNUM(Tableau1[[#This Row],[Date]]) -> 41 | D13: =MONTH(Tableau1[[#This Row],[Date]]) -> 10 | E13: =TEXT(Tableau1[[#This Row],[Date]],"mmmm") -> octobre | F13: =CHOOSE(WEEKDAY(Tableau1[[#This Row],[Date]],2),"lu","ma","me","je","ve","sa","di") -> me | G13: =IFERROR(VLOOKUP(B13,Tableau30[],3,FALSE),IF(OR(AND($K$5<=B13,$L$5>B13),AND($K$6<=Tableau1[[#This Row],[Date]],$L$6>=Tableau1[[#This Row],[Date]])),"FERMÉE",IF(OR(Tableau1[[#This Row],[Jour]]="sa",Tableau1[[#This Row],[Jour]]="di",AND(Tableau1[[#This Row],[Jour]]="ve",MOD(Tableau1[[#This Row],[N°S]],2)=1)),"REPOS",IF(Tableau1[[#This Row],[Jour]]="ve",8,8.75)))) -> 8.75 | J13: 8.75 | K13: =COUNTIF(Tableau1[Etat],Tableau31[[#This Row],[Etat]]) -> 198 | Q13: 2020-06-01 | R13: Lundi de Pentecote | S13: =IF(COUNTA(Tableau30[[#This Row],[Jours férié ou improductif]])=1,"FÉRIÉ/INACTIF","") -> FÉRIÉ/INACTIF | T13: =_xlfn.ISOWEEKNUM(Tableau30[[#This Row],[Date]]) -> 23
B14: 2019-10-10 | C14: =_xlfn.ISOWEEKNUM(Tableau1[[#This Row],[Date]]) -> 41 | D14: =MONTH(Tableau1[[#This Row],[Date]]) -> 10 | E14: =TEXT(Tableau1[[#This Row],[Date]],"mmmm") -> octobre | F14: =CHOOSE(WEEKDAY(Tableau1[[#This Row],[Date]],2),"lu","ma","me","je","ve","sa","di") -> je | G14: =IFERROR(VLOOKUP(B14,Tableau30[],3,FALSE),IF(OR(AND($K$5<=B14,$L$5>B14),AND($K$6<=Tableau1[[#This Row],[Date]],$L$6>=Tableau1[[#This Row],[Date]])),"FERMÉE",IF(OR(Tableau1[[#This Row],[Jour]]="sa",Tableau1[[#This Row],[Jour]]="di",AND(Tableau1[[#This Row],[Jour]]="ve",MOD(Tableau1[[#This Row],[N°S]],2)=1)),"REPOS",IF(Tableau1[[#This Row],[Jour]]="ve",8,8.75)))) -> 8.75 | J14: Total | K14: =SUBTOTAL(109,Tableau31[Nombre]) -> 366 | Q14: 2020-07-14 | R14: Fête nationale | S14: =IF(COUNTA(Tableau30[[#This Row],[Jours férié ou improductif]])=1,"FÉRIÉ/INACTIF","") -> FÉRIÉ/INACTIF | T14: =_xlfn.ISOWEEKNUM(Tableau30[[#This Row],[Date]]) -> 29
B15: 2019-10-11 | C15: =_xlfn.ISOWEEKNUM(Tableau1[[#This Row],[Date]]) -> 41 | D15: =MONTH(Tableau1[[#This Row],[Date]]) -> 10 | E15: =TEXT(Tableau1[[#This Row],[Date]],"mmmm") -> octobre | F15: =CHOOSE(WEEKDAY(Tableau1[[#This Row],[Date]],2),"lu","ma","me","je","ve","sa","di") -> ve | G15: =IFERROR(VLOOKUP(B15,Tableau30[],3,FALSE),IF(OR(AND($K$5<=B15,$L$5>B15),AND($K$6<=Tableau1[[#This Row],[Date]],$L$6>=Tableau1[[#This Row],[Date]])),"FERMÉE",IF(OR(Tableau1[[#This Row],[Jour]]="sa",Tableau1[[#This Row],[Jour]]="di",AND(Tableau1[[#This Row],[Jour]]="ve",MOD(Tableau1[[#This Row],[N°S]],2)=1)),"REPOS",IF(Tableau1[[#This Row],[Jour]]="ve",8,8.75)))) -> REPOS | Q15: 2020-08-15 | R15: Assomption | S15: =IF(COUNTA(Tableau30[[#This Row],[Jours férié ou improductif]])=1,"FÉRIÉ/INACTIF","") -> FÉRIÉ/INACTIF | T15: =_xlfn.ISOWEEKNUM(Tableau30[[#This Row],[Date]]) -> 33
B16: 2019-10-12 | C16: =_xlfn.ISOWEEKNUM(Tableau1[[#This Row],[Date]]) -> 41 | D16: =MONTH(Tableau1[[#This Row],[Date]]) -> 10 | E16: =TEXT(Tableau1[[#This Row],[Date]],"mmmm") -> octobre | F16: =CHOOSE(WEEKDAY(Tableau1[[#This Row],[Date]],2),"lu","ma","me","je","ve","sa","di") -> sa | G16: =IFERROR(VLOOKUP(B16,Tableau30[],3,FALSE),IF(OR(AND($K$5<=B16,$L$5>B16),AND($K$6<=Tableau1[[#This Row],[Date]],$L$6>=Tableau1[[#This Row],[Date]])),"FERMÉE",IF(OR(Tableau1[[#This Row],[Jour]]="sa",Tableau1[[#This Row],[Jour]]="di",AND(Tableau1[[#This Row],[Jour]]="ve",MOD(Tableau1[[#This Row],[N°S]],2)=1)),"REPOS",IF(Tableau1[[#This Row],[Jour]]="ve",8,8.75)))) -> REPOS | Q16: Total | S16: =SUBTOTAL(103,Tableau30[Etat]) -> 11
B17: 2019-10-13 | C17: =_xlfn.ISOWEEKNUM(Tableau1[[#This Row],[Date]]) -> 41 | D17: =MONTH(Tableau1[[#This Row],[Date]]) -> 10 | E17: =TEXT(Tableau1[[#This Row],[Date]],"mmmm") -> octobre | F17: =CHOOSE(WEEKDAY(Tableau1[[#This Row],[Date]],2),"lu","ma","me","je","ve","sa","di") -> di | G17: =IFERROR(VLOOKUP(B17,Tableau30[],3,FALSE),IF(OR(AND($K$5<=B17,$L$5>B17),AND($K$6<=Tableau1[[#This Row],[Date]],$L$6>=Tableau1[[#This Row],[Date]])),"FERMÉE",IF(OR(Tableau1[[#This Row],[Jour]]="sa",Tableau1[[#This Row],[Jour]]="di",AND(Tableau1[[#This Row],[Jour]]="ve",MOD(Tableau1[[#This Row],[N°S]],2)=1)),"REPOS",IF(Tableau1[[#This Row],[Jour]]="ve",8,8.75)))) -> REPOS
B18: 2019-10-14 | C18: =_xlfn.ISOWEEKNUM(Tableau1[[#This Row],[Date]]) -> 42 | D18: =MONTH(Tableau1[[#This Row],[Date]]) -> 10 | E18: =TEXT(Tableau1[[#This Row],[Date]],"mmmm") -> octobre | F18: =CHOOSE(WEEKDAY(Tableau1[[#This Row],[Date]],2),"lu","ma","me","je","ve","sa","di") -> lu | G18: =IFERROR(VLOOKUP(B18,Tableau30[],3,FALSE),IF(OR(AND($K$5<=B18,$L$5>B18),AND($K$6<=Tableau1[[#This Row],[Date]],$L$6>=Tableau1[[#This Row],[Date]])),"FERMÉE",IF(OR(Tableau1[[#This Row],[Jour]]="sa",Tableau1[[#This Row],[Jour]]="di",AND(Tableau1[[#This Row],[Jour]]="ve",MOD(Tableau1[[#This Row],[N°S]],2)=1)),"REPOS",IF(Tableau1[[#This Row],[Jour]]="ve",8,8.75)))) -> 8.75
B19: 2019-10-15 | C19: =_xlfn.ISOWEEKNUM(Tableau1[[#This Row],[Date]]) -> 42 | D19: =MONTH(Tableau1[[#This Row],[Date]]) -> 10 | E19: =TEXT(Tableau1[[#This Row],[Date]],"mmmm") -> octobre | F19: =CHOOSE(WEEKDAY(Tableau1[[#This Row],[Date]],2),"lu","ma","me","je","ve","sa","di") -> ma | G19: =IFERROR(VLOOKUP(B19,Tableau30[],3,FALSE),IF(OR(AND($K$5<=B19,$L$5>B19),AND($K$6<=Tableau1[[#This Row],[Date]],$L$6>=Tableau1[[#This Row],[Date]])),"FERMÉE",IF(OR(Tableau1[[#This Row],[Jour]]="sa",Tableau1[[#This Row],[Jour]]="di",AND(Tableau1[[#This Row],[Jour]]="ve",MOD(Tableau1[[#This Row],[N°S]],2)=1)),"REPOS",IF(Tableau1[[#This Row],[Jour]]="ve",8,8.75)))) -> 8.75
B20: 2019-10-16 | C20: =_xlfn.ISOWEEKNUM(Tableau1[[#This Row],[Date]]) -> 42 | D20: =MONTH(Tableau1[[#This Row],[Date]]) -> 10 | E20: =TEXT(Tableau1[[#This Row],[Date]],"mmmm") -> octobre | F20: =CHOOSE(WEEKDAY(Tableau1[[#This Row],[Date]],2),"lu","ma","me","je","ve","sa","di") -> me | G20: =IFERROR(VLOOKUP(B20,Tableau30[],3,FALSE),IF(OR(AND($K$5<=B20,$L$5>B20),AND($K$6<=Tableau1[[#This Row],[Date]],$L$6>=Tableau1[[#This Row],[Date]])),"FERMÉE",IF(OR(Tableau1[[#This Row],[Jour]]="sa",Tableau1[[#This Row],[Jour]]="di",AND(Tableau1[[#This Row],[Jour]]="ve",MOD(Tableau1[[#This Row],[N°S]],2)=1)),"REPOS",IF(Tableau1[[#This Row],[Jour]]="ve",8,8.75)))) -> 8.75
B21: 2019-10-17 | C21: =_xlfn.ISOWEEKNUM(Tableau1[[#This Row],[Date]]) -> 42 | D21: =MONTH(Tableau1[[#This Row],[Date]]) -> 10 | E21: =TEXT(Tableau1[[#This Row],[Date]],"mmmm") -> octobre | F21: =CHOOSE(WEEKDAY(Tableau1[[#This Row],[Date]],2),"lu","ma","me","je","ve","sa","di") -> je | G21: =IFERROR(VLOOKUP(B21,Tableau30[],3,FALSE),IF(OR(AND($K$5<=B21,$L$5>B21),AND($K$6<=Tableau1[[#This Row],[Date]],$L$6>=Tableau1[[#This Row],[Date]])),"FERMÉE",IF(OR(Tableau1[[#This Row],[Jour]]="sa",Tableau1[[#This Row],[Jour]]="di",AND(Tableau1[[#This Row],[Jour]]="ve",MOD(Tableau1[[#This Row],[N°S]],2)=1)),"REPOS",IF(Tableau1[[#This Row],[Jour]]="ve",8,8.75)))) -> 8.75
B22: 2019-10-18 | C22: =_xlfn.ISOWEEKNUM(Tableau1[[#This Row],[Date]]) -> 42 | D22: =MONTH(Tableau1[[#This Row],[Date]]) -> 10 | E22: =TEXT(Tableau1[[#This Row],[Date]],"mmmm") -> octobre | F22: =CHOOSE(WEEKDAY(Tableau1[[#This Row],[Date]],2),"lu","ma","me","je","ve","sa","di") -> ve | G22: =IFERROR(VLOOKUP(B22,Tableau30[],3,FALSE),IF(OR(AND($K$5<=B22,$L$5>B22),AND($K$6<=Tableau1[[#This Row],[Date]],$L$6>=Tableau1[[#This Row],[Date]])),"FERMÉE",IF(OR(Tableau1[[#This Row],[Jour]]="sa",Tableau1[[#This Row],[Jour]]="di",AND(Tableau1[[#This Row],[Jour]]="ve",MOD(Tableau1[[#This Row],[N°S]],2)=1)),"REPOS",IF(Tableau1[[#This Row],[Jour]]="ve",8,8.75)))) -> 8
B23: 2019-10-19 | C23: =_xlfn.ISOWEEKNUM(Tableau1[[#This Row],[Date]]) -> 42 | D23: =MONTH(Tableau1[[#This Row],[Date]]) -> 10 | E23: =TEXT(Tableau1[[#This Row],[Date]],"mmmm") -> octobre | F23: =CHOOSE(WEEKDAY(Tableau1[[#This Row],[Date]],2),"lu","ma","me","je","ve","sa","di") -> sa | G23: =IFERROR(VLOOKUP(B23,Tableau30[],3,FALSE),IF(OR(AND($K$5<=B23,$L$5>B23),AND($K$6<=Tableau1[[#This Row],[Date]],$L$6>=Tableau1[[#This Row],[Date]])),"FERMÉE",IF(OR(Tableau1[[#This Row],[Jour]]="sa",Tableau1[[#This Row],[Jour]]="di",AND(Tableau1[[#This Row],[Jour]]="ve",MOD(Tableau1[[#This Row],[N°S]],2)=1)),"REPOS",IF(Tableau1[[#This Row],[Jour]]="ve",8,8.75)))) -> REPOS
B24: 2019-10-20 | C24: =_xlfn.ISOWEEKNUM(Tableau1[[#This Row],[Date]]) -> 42 | D24: =MONTH(Tableau1[[#This Row],[Date]]) -> 10 | E24: =TEXT(Tableau1[[#This Row],[Date]],"mmmm") -> octobre | F24: =CHOOSE(WEEKDAY(Tableau1[[#This Row],[Date]],2),"lu","ma","me","je","ve","sa","di") -> di | G24: =IFERROR(VLOOKUP(B24,Tableau30[],3,FALSE),IF(OR(AND($K$5<=B24,$L$5>B24),AND($K$6<=Tableau1[[#This Row],[Date]],$L$6>=Tableau1[[#This Row],[Date]])),"FERMÉE",IF(OR(Tableau1[[#This Row],[Jour]]="sa",Tableau1[[#This Row],[Jour]]="di",AND(Tableau1[[#This Row],[Jour]]="ve",MOD(Tableau1[[#This Row],[N°S]],2)=1)),"REPOS",IF(Tableau1[[#This Row],[Jour]]="ve",8,8.75)))) -> REPOS
B25: 2019-10-21 | C25: =_xlfn.ISOWEEKNUM(Tableau1[[#This Row],[Date]]) -> 43 | D25: =MONTH(Tableau1[[#This Row],[Date]]) -> 10 | E25: =TEXT(Tableau1[[#This Row],[Date]],"mmmm") -> octobre | F25: =CHOOSE(WEEKDAY(Tableau1[[#This Row],[Date]],2),"lu","ma","me","je","ve","sa","di") -> lu | G25: =IFERROR(VLOOKUP(B25,Tableau30[],3,FALSE),IF(OR(AND($K$5<=B25,$L$5>B25),AND($K$6<=Tableau1[[#This Row],[Date]],$L$6>=Tableau1[[#This Row],[Date]])),"FERMÉE",IF(OR(Tableau1[[#This Row],[Jour]]="sa",Tableau1[[#This Row],[Jour]]="di",AND(Tableau1[[#This Row],[Jour]]="ve",MOD(Tableau1[[#This Row],[N°S]],2)=1)),"REPOS",IF(Tableau1[[#This Row],[Jour]]="ve",8,8.75)))) -> 8.75
B26: 2019-10-22 | C26: =_xlfn.ISOWEEKNUM(Tableau1[[#This Row],[Date]]) -> 43 | D26: =MONTH(Tableau1[[#This Row],[Date]]) -> 10 | E26: =TEXT(Tableau1[[#This Row],[Date]],"mmmm") -> octobre | F26: =CHOOSE(WEEKDAY(Tableau1[[#This Row],[Date]],2),"lu","ma","me","je","ve","sa","di") -> ma | G26: =IFERROR(VLOOKUP(B26,Tableau30[],3,FALSE),IF(OR(AND($K$5<=B26,$L$5>B26),AND($K$6<=Tableau1[[#This Row],[Date]],$L$6>=Tableau1[[#This Row],[Date]])),"FERMÉE",IF(OR(Tableau1[[#This Row],[Jour]]="sa",Tableau1[[#This Row],[Jour]]="di",AND(Tableau1[[#This Row],[Jour]]="ve",MOD(Tableau1[[#This Row],[N°S]],2)=1)),"REPOS",IF(Tableau1[[#This Row],[Jour]]="ve",8,8.75)))) -> 8.75
B27: 2019-10-23 | C27: =_xlfn.ISOWEEKNUM(Tableau1[[#This Row],[Date]]) -> 43 | D27: =MONTH(Tableau1[[#This Row],[Date]]) -> 10 | E27: =TEXT(Tableau1[[#This Row],[Date]],"mmmm") -> octobre | F27: =CHOOSE(WEEKDAY(Tableau1[[#This Row],[Date]],2),"lu","ma","me","je","ve","sa","di") -> me | G27: =IFERROR(VLOOKUP(B27,Tableau30[],3,FALSE),IF(OR(AND($K$5<=B27,$L$5>B27),AND($K$6<=Tableau1[[#This Row],[Date]],$L$6>=Tableau1[[#This Row],[Date]])),"FERMÉE",IF(OR(Tableau1[[#This Row],[Jour]]="sa",Tableau1[[#This Row],[Jour]]="di",AND(Tableau1[[#This Row],[Jour]]="ve",MOD(Tableau1[[#This Row],[N°S]],2)=1)),"REPOS",IF(Tableau1[[#This Row],[Jour]]="ve",8,8.75)))) -> 8.75
B28: 2019-10-24 | C28: =_xlfn.ISOWEEKNUM(Tableau1[[#This Row],[Date]]) -> 43 | D28: =MONTH(Tableau1[[#This Row],[Date]]) -> 10 | E28: =TEXT(Tableau1[[#This Row],[Date]],"mmmm") -> octobre | F28: =CHOOSE(WEEKDAY(Tableau1[[#This Row],[Date]],2),"lu","ma","me","je","ve","sa","di") -> je | G28: =IFERROR(VLOOKUP(B28,Tableau30[],3,FALSE),IF(OR(AND($K$5<=B28,$L$5>B28),AND($K$6<=Tableau1[[#This Row],[Date]],$L$6>=Tableau1[[#This Row],[Date]])),"FERMÉE",IF(OR(Tableau1[[#This Row],[Jour]]="sa",Tableau1[[#This Row],[Jour]]="di",AND(Tableau1[[#This Row],[Jour]]="ve",MOD(Tableau1[[#This Row],[N°S]],2)=1)),"REPOS",IF(Tableau1[[#This Row],[Jour]]="ve",8,8.75)))) -> 8.75
B29: 2019-10-25 | C29: =_xlfn.ISOWEEKNUM(Tableau1[[#This Row],[Date]]) -> 43 | D29: =MONTH(Tableau1[[#This Row],[Date]]) -> 10 | E29: =TEXT(Tableau1[[#This Row],[Date]],"mmmm") -> octobre | F29: =CHOOSE(WEEKDAY(Tableau1[[#This Row],[Date]],2),"lu","ma","me","je","ve","sa","di") -> ve | G29: =IFERROR(VLOOKUP(B29,Tableau30[],3,FALSE),IF(OR(AND($K$5<=B29,$L$5>B29),AND($K$6<=Tableau1[[#This Row],[Date]],$L$6>=Tableau1[[#This Row],[Date]])),"FERMÉE",IF(OR(Tableau1[[#This Row],[Jour]]="sa",Tableau1[[#This Row],[Jour]]="di",AND(Tableau1[[#This Row],[Jour]]="ve",MOD(Tableau1[[#This Row],[N°S]],2)=1)),"REPOS",IF(Tableau1[[#This Row],[Jour]]="ve",8,8.75)))) -> REPOS
B30: =B29+1 -> 2019-10-26 | C30: =_xlfn.ISOWEEKNUM(Tableau1[[#This Row],[Date]]) -> 43 | D30: =MONTH(Tableau1[[#This Row],[Date]]) -> 10 | E30: =TEXT(Tableau1[[#This Row],[Date]],"mmmm") -> octobre | F30: =CHOOSE(WEEKDAY(Tableau1[[#This Row],[Date]],2),"lu","ma","me","je","ve","sa","di") -> sa | G30: =IFERROR(VLOOKUP(B30,Tableau30[],3,FALSE),IF(OR(AND($K$5<=B30,$L$5>B30),AND($K$6<=Tableau1[[#This Row],[Date]],$L$6>=Tableau1[[#This Row],[Date]])),"FERMÉE",IF(OR(Tableau1[[#This Row],[Jour]]="sa",Tableau1[[#This Row],[Jour]]="di",AND(Tableau1[[#This Row],[Jour]]="ve",MOD(Tableau1[[#This Row],[N°S]],2)=1)),"REPOS",IF(Tableau1[[#This Row],[Jour]]="ve",8,8.75)))) -> REPOS
B31: 2019-10-27 | C31: =_xlfn.ISOWEEKNUM(Tableau1[[#This Row],[Date]]) -> 43 | D31: =MONTH(Tableau1[[#This Row],[Date]]) -> 10 | E31: =TEXT(Tableau1[[#This Row],[Date]],"mmmm") -> octobre | F31: =CHOOSE(WEEKDAY(Tableau1[[#This Row],[Date]],2),"lu","ma","me","je","ve","sa","di") -> di | G31: =IFERROR(VLOOKUP(B31,Tableau30[],3,FALSE),IF(OR(AND($K$5<=B31,$L$5>B31),AND($K$6<=Tableau1[[#This Row],[Date]],$L$6>=Tableau1[[#This Row],[Date]])),"FERMÉE",IF(OR(Tableau1[[#This Row],[Jour]]="sa",Tableau1[[#This Row],[Jour]]="di",AND(Tableau1[[#This Row],[Jour]]="ve",MOD(Tableau1[[#This Row],[N°S]],2)=1)),"REPOS",IF(Tableau1[[#This Row],[Jour]]="ve",8,8.75)))) -> REPOS
B32: 2019-10-28 | C32: =_xlfn.ISOWEEKNUM(Tableau1[[#This Row],[Date]]) -> 44 | D32: =MONTH(Tableau1[[#This Row],[Date]]) -> 10 | E32: =TEXT(Tableau1[[#This Row],[Date]],"mmmm") -> octobre | F32: =CHOOSE(WEEKDAY(Tableau1[[#This Row],[Date]],2),"lu","ma","me","je","ve","sa","di") -> lu | G32: =IFERROR(VLOOKUP(B32,Tableau30[],3,FALSE),IF(OR(AND($K$5<=B32,$L$5>B32),AND($K$6<=Tableau1[[#This Row],[Date]],$L$6>=Tableau1[[#This Row],[Date]])),"FERMÉE",IF(OR(Tableau1[[#This Row],[Jour]]="sa",Tableau1[[#This Row],[Jour]]="di",AND(Tableau1[[#This Row],[Jour]]="ve",MOD(Tableau1[[#This Row],[N°S]],2)=1)),"REPOS",IF(Tableau1[[#This Row],[Jour]]="ve",8,8.75)))) -> 8.75
B33: =B32+1 -> 2019-10-29 | C33: =_xlfn.ISOWEEKNUM(Tableau1[[#This Row],[Date]]) -> 44 | D33: =MONTH(Tableau1[[#This Row],[Date]]) -> 10 | E33: =TEXT(Tableau1[[#This Row],[Date]],"mmmm") -> octobre | F33: =CHOOSE(WEEKDAY(Tableau1[[#This Row],[Date]],2),"lu","ma","me","je","ve","sa","di") -> ma | G33: =IFERROR(VLOOKUP(B33,Tableau30[],3,FALSE),IF(OR(AND($K$5<=B33,$L$5>B33),AND($K$6<=Tableau1[[#This Row],[Date]],$L$6>=Tableau1[[#This Row],[Date]])),"FERMÉE",IF(OR(Tableau1[[#This Row],[Jour]]="sa",Tableau1[[#This Row],[Jour]]="di",AND(Tableau1[[#This Row],[Jour]]="ve",MOD(Tableau1[[#This Row],[N°S]],2)=1)),"REPOS",IF(Tableau1[[#This Row],[Jour]]="ve",8,8.75)))) -> 8.75
B34: 2019-10-30 | C34: =_xlfn.ISOWEEKNUM(Tableau1[[#This Row],[Date]]) -> 44 | D34: =MONTH(Tableau1[[#This Row],[Date]]) -> 10 | E34: =TEXT(Tableau1[[#This Row],[Date]],"mmmm") -> octobre | F34: =CHOOSE(WEEKDAY(Tableau1[[#This Row],[Date]],2),"lu","ma","me","je","ve","sa","di") -> me | G34: =IFERROR(VLOOKUP(B34,Tableau30[],3,FALSE),IF(OR(AND($K$5<=B34,$L$5>B34),AND($K$6<=Tableau1[[#This Row],[Date]],$L$6>=Tableau1[[#This Row],[Date]])),"FERMÉE",IF(OR(Tableau1[[#This Row],[Jour]]="sa",Tableau1[[#This Row],[Jour]]="di",AND(Tableau1[[#This Row],[Jour]]="ve",MOD(Tableau1[[#This Row],[N°S]],2)=1)),"REPOS",IF(Tableau1[[#This Row],[Jour]]="ve",8,8.75)))) -> 8.75
B35: =B34+1 -> 2019-10-31 | C35: =_xlfn.ISOWEEKNUM(Tableau1[[#This Row],[Date]]) -> 44 | D35: =MONTH(Tableau1[[#This Row],[Date]]) -> 10 | E35: =TEXT(Tableau1[[#This Row],[Date]],"mmmm") -> octobre | F35: =CHOOSE(WEEKDAY(Tableau1[[#This Row],[Date]],2),"lu","ma","me","je","ve","sa","di") -> je | G35: =IFERROR(VLOOKUP(B35,Tableau30[],3,FALSE),IF(OR(AND($K$5<=B35,$L$5>B35),AND($K$6<=Tableau1[[#This Row],[Date]],$L$6>=Tableau1[[#This Row],[Date]])),"FERMÉE",IF(OR(Tableau1[[#This Row],[Jour]]="sa",Tableau1[[#This Row],[Jour]]="di",AND(Tableau1[[#This Row],[Jour]]="ve",MOD(Tableau1[[#This Row],[N°S]],2)=1)),"REPOS",IF(Tableau1[[#This Row],[Jour]]="ve",8,8.75)))) -> 8.75
B36: 2019-11-01 | C36: =_xlfn.ISOWEEKNUM(Tableau1[[#This Row],[Date]]) -> 44 | D36: =MONTH(Tableau1[[#This Row],[Date]]) -> 11 | E36: =TEXT(Tableau1[[#This Row],[Date]],"mmmm") -> novembre | F36: =CHOOSE(WEEKDAY(Tableau1[[#This Row],[Date]],2),"lu","ma","me","je","ve","sa","di") -> ve | G36: =IFERROR(VLOOKUP(B36,Tableau30[],3,FALSE),IF(OR(AND($K$5<=B36,$L$5>B36),AND($K$6<=Tableau1[[#This Row],[Date]],$L$6>=Tableau1[[#This Row],[Date]])),"FERMÉE",IF(OR(Tableau1[[#This Row],[Jour]]="sa",Tableau1[[#This Row],[Jour]]="di",AND(Tableau1[[#This Row],[Jour]]="ve",MOD(Tableau1[[#This Row],[N°S]],2)=1)),"REPOS",IF(Tableau1[[#This Row],[Jour]]="ve",8,8.75)))) -> FÉRIÉ/INACTIF
B37: 2019-11-02 | C37: =_xlfn.ISOWEEKNUM(Tableau1[[#This Row],[Date]]) -> 44 | D37: =MONTH(Tableau1[[#This Row],[Date]]) -> 11 | E37: =TEXT(Tableau1[[#This Row],[Date]],"mmmm") -> novembre | F37: =CHOOSE(WEEKDAY(Tableau1[[#This Row],[Date]],2),"lu","ma","me","je","ve","sa","di") -> sa | G37: =IFERROR(VLOOKUP(B37,Tableau30[],3,FALSE),IF(OR(AND($K$5<=B37,$L$5>B37),AND($K$6<=Tableau1[[#This Row],[Date]],$L$6>=Tableau1[[#This Row],[Date]])),"FERMÉE",IF(OR(Tableau1[[#This Row],[Jour]]="sa",Tableau1[[#This Row],[Jour]]="di",AND(Tableau1[[#This Row],[Jour]]="ve",MOD(Tableau1[[#This Row],[N°S]],2)=1)),"REPOS",IF(Tableau1[[#This Row],[Jour]]="ve",8,8.75)))) -> REPOS
B38: 2019-11-03 | C38: =_xlfn.ISOWEEKNUM(Tableau1[[#This Row],[Date]]) -> 44 | D38: =MONTH(Tableau1[[#This Row],[Date]]) -> 11 | E38: =TEXT(Tableau1[[#This Row],[Date]],"mmmm") -> novembre | F38: =CHOOSE(WEEKDAY(Tableau1[[#This Row],[Date]],2),"lu","ma","me","je","ve","sa","di") -> di | G38: =IFERROR(VLOOKUP(B38,Tableau30[],3,FALSE),IF(OR(AND($K$5<=B38,$L$5>B38),AND($K$6<=Tableau1[[#This Row],[Date]],$L$6>=Tableau1[[#This Row],[Date]])),"FERMÉE",IF(OR(Tableau1[[#This Row],[Jour]]="sa",Tableau1[[#This Row],[Jour]]="di",AND(Tableau1[[#This Row],[Jour]]="ve",MOD(Tableau1[[#This Row],[N°S]],2)=1)),"REPOS",IF(Tableau1[[#This Row],[Jour]]="ve",8,8.75)))) -> REPOS
B39: 2019-11-04 | C39: =_xlfn.ISOWEEKNUM(Tableau1[[#This Row],[Date]]) -> 45 | D39: =MONTH(Tableau1[[#This Row],[Date]]) -> 11 | E39: =TEXT(Tableau1[[#This Row],[Date]],"mmmm") -> novembre | F39: =CHOOSE(WEEKDAY(Tableau1[[#This Row],[Date]],2),"lu","ma","me","je","ve","sa","di") -> lu | G39: =IFERROR(VLOOKUP(B39,Tableau30[],3,FALSE),IF(OR(AND($K$5<=B39,$L$5>B39),AND($K$6<=Tableau1[[#This Row],[Date]],$L$6>=Tableau1[[#This Row],[Date]])),"FERMÉE",IF(OR(Tableau1[[#This Row],[Jour]]="sa",Tableau1[[#This Row],[Jour]]="di",AND(Tableau1[[#This Row],[Jour]]="ve",MOD(Tableau1[[#This Row],[N°S]],2)=1)),"REPOS",IF(Tableau1[[#This Row],[Jour]]="ve",8,8.75)))) -> 8.75
B40: 2019-11-05 | C40: =_xlfn.ISOWEEKNUM(Tableau1[[#This Row],[Date]]) -> 45 | D40: =MONTH(Tableau1[[#This Row],[Date]]) -> 11 | E40: =TEXT(Tableau1[[#This Row],[Date]],"mmmm") -> novembre | F40: =CHOOSE(WEEKDAY(Tableau1[[#This Row],[Date]],2),"lu","ma","me","je","ve","sa","di") -> ma | G40: =IFERROR(VLOOKUP(B40,Tableau30[],3,FALSE),IF(OR(AND($K$5<=B40,$L$5>B40),AND($K$6<=Tableau1[[#This Row],[Date]],$L$6>=Tableau1[[#This Row],[Date]])),"FERMÉE",IF(OR(Tableau1[[#This Row],[Jour]]="sa",Tableau1[[#This Row],[Jour]]="di",AND(Tableau1[[#This Row],[Jour]]="ve",MOD(Tableau1[[#This Row],[N°S]],2)=1)),"REPOS",IF(Tableau1[[#This Row],[Jour]]="ve",8,8.75)))) -> 8.75
B41: 2019-11-06 | C41: =_xlfn.ISOWEEKNUM(Tableau1[[#This Row],[Date]]) -> 45 | D41: =MONTH(Tableau1[[#This Row],[Date]]) -> 11 | E41: =TEXT(Tableau1[[#This Row],[Date]],"mmmm") -> novembre | F41: =CHOOSE(WEEKDAY(Tableau1[[#This Row],[Date]],2),"lu","ma","me","je","ve","sa","di") -> me | G41: =IFERROR(VLOOKUP(B41,Tableau30[],3,FALSE),IF(OR(AND($K$5<=B41,$L$5>B41),AND($K$6<=Tableau1[[#This Row],[Date]],$L$6>=Tableau1[[#This Row],[Date]])),"FERMÉE",IF(OR(Tableau1[[#This Row],[Jour]]="sa",Tableau1[[#This Row],[Jour]]="di",AND(Tableau1[[#This Row],[Jour]]="ve",MOD(Tableau1[[#This Row],[N°S]],2)=1)),"REPOS",IF(Tableau1[[#This Row],[Jour]]="ve",8,8.75)))) -> 8.75
B42: 2019-11-07 | C42: =_xlfn.ISOWEEKNUM(Tableau1[[#This Row],[Date]]) -> 45 | D42: =MONTH(Tableau1[[#This Row],[Date]]) -> 11 | E42: =TEXT(Tableau1[[#This Row],[Date]],"mmmm") -> novembre | F42: =CHOOSE(WEEKDAY(Tableau1[[#This Row],[Date]],2),"lu","ma","me","je","ve","sa","di") -> je | G42: =IFERROR(VLOOKUP(B42,Tableau30[],3,FALSE),IF(OR(AND($K$5<=B42,$L$5>B42),AND($K$6<=Tableau1[[#This Row],[Date]],$L$6>=Tableau1[[#This Row],[Date]])),"FERMÉE",IF(OR(Tableau1[[#This Row],[Jour]]="sa",Tableau1[[#This Row],[Jour]]="di",AND(Tableau1[[#This Row],[Jour]]="ve",MOD(Tableau1[[#This Row],[N°S]],2)=1)),"REPOS",IF(Tableau1[[#This Row],[Jour]]="ve",8,8.75)))) -> 8.75
B43: 2019-11-08 | C43: =_xlfn.ISOWEEKNUM(Tableau1[[#This Row],[Date]]) -> 45 | D43: =MONTH(Tableau1[[#This Row],[Date]]) -> 11 | E43: =TEXT(Tableau1[[#This Row],[Date]],"mmmm") -> novembre | F43: =CHOOSE(WEEKDAY(Tableau1[[#This Row],[Date]],2),"lu","ma","me","je","ve","sa","di") -> ve | G43: =IFERROR(VLOOKUP(B43,Tableau30[],3,FALSE),IF(OR(AND($K$5<=B43,$L$5>B43),AND($K$6<=Tableau1[[#This Row],[Date]],$L$6>=Tableau1[[#This Row],[Date]])),"FERMÉE",IF(OR(Tableau1[[#This Row],[Jour]]="sa",Tableau1[[#This Row],[Jour]]="di",AND(Tableau1[[#This Row],[Jour]]="ve",MOD(Tableau1[[#This Row],[N°S]],2)=1)),"REPOS",IF(Tableau1[[#This Row],[Jour]]="ve",8,8.75)))) -> REPOS
B44: 2019-11-09 | C44: =_xlfn.ISOWEEKNUM(Tableau1[[#This Row],[Date]]) -> 45 | D44: =MONTH(Tableau1[[#This Row],[Date]]) -> 11 | E44: =TEXT(Tableau1[[#This Row],[Date]],"mmmm") -> novembre | F44: =CHOOSE(WEEKDAY(Tableau1[[#This Row],[Date]],2),"lu","ma","me","je","ve","sa","di") -> sa | G44: =IFERROR(VLOOKUP(B44,Tableau30[],3,FALSE),IF(OR(AND($K$5<=B44,$L$5>B44),AND($K$6<=Tableau1[[#This Row],[Date]],$L$6>=Tableau1[[#This Row],[Date]])),"FERMÉE",IF(OR(Tableau1[[#This Row],[Jour]]="sa",Tableau1[[#This Row],[Jour]]="di",AND(Tableau1[[#This Row],[Jour]]="ve",MOD(Tableau1[[#This Row],[N°S]],2)=1)),"REPOS",IF(Tableau1[[#This Row],[Jour]]="ve",8,8.75)))) -> REPOS
B45: 2019-11-10 | C45: =_xlfn.ISOWEEKNUM(Tableau1[[#This Row],[Date]]) -> 45 | D45: =MONTH(Tableau1[[#This Row],[Date]]) -> 11 | E45: =TEXT(Tableau1[[#This Row],[Date]],"mmmm") -> novembre | F45: =CHOOSE(WEEKDAY(Tableau1[[#This Row],[Date]],2),"lu","ma","me","je","ve","sa","di") -> di | G45: =IFERROR(VLOOKUP(B45,Tableau30[],3,FALSE),IF(OR(AND($K$5<=B45,$L$5>B45),AND($K$6<=Tableau1[[#This Row],[Date]],$L$6>=Tableau1[[#This Row],[Date]])),"FERMÉE",IF(OR(Tableau1[[#This Row],[Jour]]="sa",Tableau1[[#This Row],[Jour]]="di",AND(Tableau1[[#This Row],[Jour]]="ve",MOD(Tableau1[[#This Row],[N°S]],2)=1)),"REPOS",IF(Tableau1[[#This Row],[Jour]]="ve",8,8.75)))) -> REPOS
B46: 2019-11-11 | C46: =_xlfn.ISOWEEKNUM(Tableau1[[#This Row],[Date]]) -> 46 | D46: =MONTH(Tableau1[[#This Row],[Date]]) -> 11 | E46: =TEXT(Tableau1[[#This Row],[Date]],"mmmm") -> novembre | F46: =CHOOSE(WEEKDAY(Tableau1[[#This Row],[Date]],2),"lu","ma","me","je","ve","sa","di") -> lu | G46: =IFERROR(VLOOKUP(B46,Tableau30[],3,FALSE),IF(OR(AND($K$5<=B46,$L$5>B46),AND($K$6<=Tableau1[[#This Row],[Date]],$L$6>=Tableau1[[#This Row],[Date]])),"FERMÉE",IF(OR(Tableau1[[#This Row],[Jour]]="sa",Tableau1[[#This Row],[Jour]]="di",AND(Tableau1[[#This Row],[Jour]]="ve",MOD(Tableau1[[#This Row],[N°S]],2)=1)),"REPOS",IF(Tableau1[[#This Row],[Jour]]="ve",8,8.75)))) -> FÉRIÉ/INACTIF
B47: 2019-11-12 | C47: =_xlfn.ISOWEEKNUM(Tableau1[[#This Row],[Date]]) -> 46 | D47: =MONTH(Tableau1[[#This Row],[Date]]) -> 11 | E47: =TEXT(Tableau1[[#This Row],[Date]],"mmmm") -> novembre | F47: =CHOOSE(WEEKDAY(Tableau1[[#This Row],[Date]],2),"lu","ma","me","je","ve","sa","di") -> ma | G47: =IFERROR(VLOOKUP(B47,Tableau30[],3,FALSE),IF(OR(AND($K$5<=B47,$L$5>B47),AND($K$6<=Tableau1[[#This Row],[Date]],$L$6>=Tableau1[[#This Row],[Date]])),"FERMÉE",IF(OR(Tableau1[[#This Row],[Jour]]="sa",Tableau1[[#This Row],[Jour]]="di",AND(Tableau1[[#This Row],[Jour]]="ve",MOD(Tableau1[[#This Row],[N°S]],2)=1)),"REPOS",IF(Tableau1[[#This Row],[Jour]]="ve",8,8.75)))) -> 8.75
B48: 2019-11-13 | C48: =_xlfn.ISOWEEKNUM(Tableau1[[#This Row],[Date]]) -> 46 | D48: =MONTH(Tableau1[[#This Row],[Date]]) -> 11 | E48: =TEXT(Tableau1[[#This Row],[Date]],"mmmm") -> novembre | F48: =CHOOSE(WEEKDAY(Tableau1[[#This Row],[Date]],2),"lu","ma","me","je","ve","sa","di") -> me | G48: =IFERROR(VLOOKUP(B48,Tableau30[],3,FALSE),IF(OR(AND($K$5<=B48,$L$5>B48),AND($K$6<=Tableau1[[#This Row],[Date]],$L$6>=Tableau1[[#This Row],[Date]])),"FERMÉE",IF(OR(Tableau1[[#This Row],[Jour]]="sa",Tableau1[[#This Row],[Jour]]="di",AND(Tableau1[[#This Row],[Jour]]="ve",MOD(Tableau1[[#This Row],[N°S]],2)=1)),"REPOS",IF(Tableau1[[#This Row],[Jour]]="ve",8,8.75)))) -> 8.75
B49: 2019-11-14 | C49: =_xlfn.ISOWEEKNUM(Tableau1[[#This Row],[Date]]) -> 46 | D49: =MONTH(Tableau1[[#This Row],[Date]]) -> 11 | E49: =TEXT(Tableau1[[#This Row],[Date]],"mmmm") -> novembre | F49: =CHOOSE(WEEKDAY(Tableau1[[#This Row],[Date]],2),"lu","ma","me","je","ve","sa","di") -> je | G49: =IFERROR(VLOOKUP(B49,Tableau30[],3,FALSE),IF(OR(AND($K$5<=B49,$L$5>B49),AND($K$6<=Tableau1[[#This Row],[Date]],$L$6>=Tableau1[[#This Row],[Date]])),"FERMÉE",IF(OR(Tableau1[[#This Row],[Jour]]="sa",Tableau1[[#This Row],[Jour]]="di",AND(Tableau1[[#This Row],[Jour]]="ve",MOD(Tableau1[[#This Row],[N°S]],2)=1)),"REPOS",IF(Tableau1[[#This Row],[Jour]]="ve",8,8.75)))) -> 8.75
B50: 2019-11-15 | C50: =_xlfn.ISOWEEKNUM(Tableau1[[#This Row],[Date]]) -> 46 | D50: =MONTH(Tableau1[[#This Row],[Date]]) -> 11 | E50: =TEXT(Tableau1[[#This Row],[Date]],"mmmm") -> novembre | F50: =CHOOSE(WEEKDAY(Tableau1[[#This Row],[Date]],2),"lu","ma","me","je","ve","sa","di") -> ve | G50: =IFERROR(VLOOKUP(B50,Tableau30[],3,FALSE),IF(OR(AND($K$5<=B50,$L$5>B50),AND($K$6<=Tableau1[[#This Row],[Date]],$L$6>=Tableau1[[#This Row],[Date]])),"FERMÉE",IF(OR(Tableau1[[#This Row],[Jour]]="sa",Tableau1[[#This Row],[Jour]]="di",AND(Tableau1[[#This Row],[Jour]]="ve",MOD(Tableau1[[#This Row],[N°S]],2)=1)),"REPOS",IF(Tableau1[[#This Row],[Jour]]="ve",8,8.75)))) -> 8
B51: 2019-11-16 | C51: =_xlfn.ISOWEEKNUM(Tableau1[[#This Row],[Date]]) -> 46 | D51: =MONTH(Tableau1[[#This Row],[Date]]) -> 11 | E51: =TEXT(Tableau1[[#This Row],[Date]],"mmmm") -> novembre | F51: =CHOOSE(WEEKDAY(Tableau1[[#This Row],[Date]],2),"lu","ma","me","je","ve","sa","di") -> sa | G51: =IFERROR(VLOOKUP(B51,Tableau30[],3,FALSE),IF(OR(AND($K$5<=B51,$L$5>B51),AND($K$6<=Tableau1[[#This Row],[Date]],$L$6>=Tableau1[[#This Row],[Date]])),"FERMÉE",IF(OR(Tableau1[[#This Row],[Jour]]="sa",Tableau1[[#This Row],[Jour]]="di",AND(Tableau1[[#This Row],[Jour]]="ve",MOD(Tableau1[[#This Row],[N°S]],2)=1)),"REPOS",IF(Tableau1[[#This Row],[Jour]]="ve",8,8.75)))) -> REPOS
B52: 2019-11-17 | C52: =_xlfn.ISOWEEKNUM(Tableau1[[#This Row],[Date]]) -> 46 | D52: =MONTH(Tableau1[[#This Row],[Date]]) -> 11 | E52: =TEXT(Tableau1[[#This Row],[Date]],"mmmm") -> novembre | F52: =CHOOSE(WEEKDAY(Tableau1[[#This Row],[Date]],2),"lu","ma","me","je","ve","sa","di") -> di | G52: =IFERROR(VLOOKUP(B52,Tableau30[],3,FALSE),IF(OR(AND($K$5<=B52,$L$5>B52),AND($K$6<=Tableau1[[#This Row],[Date]],$L$6>=Tableau1[[#This Row],[Date]])),"FERMÉE",IF(OR(Tableau1[[#This Row],[Jour]]="sa",Tableau1[[#This Row],[Jour]]="di",AND(Tableau1[[#This Row],[Jour]]="ve",MOD(Tableau1[[#This Row],[N°S]],2)=1)),"REPOS",IF(Tableau1[[#This Row],[Jour]]="ve",8,8.75)))) -> REPOS
B53: 2019-11-18 | C53: =_xlfn.ISOWEEKNUM(Tableau1[[#This Row],[Date]]) -> 47 | D53: =MONTH(Tableau1[[#This Row],[Date]]) -> 11 | E53: =TEXT(Tableau1[[#This Row],[Date]],"mmmm") -> novembre | F53: =CHOOSE(WEEKDAY(Tableau1[[#This Row],[Date]],2),"lu","ma","me","je","ve","sa","di") -> lu | G53: =IFERROR(VLOOKUP(B53,Tableau30[],3,FALSE),IF(OR(AND($K$5<=B53,$L$5>B53),AND($K$6<=Tableau1[[#This Row],[Date]],$L$6>=Tableau1[[#This Row],[Date]])),"FERMÉE",IF(OR(Tableau1[[#This Row],[Jour]]="sa",Tableau1[[#This Row],[Jour]]="di",AND(Tableau1[[#This Row],[Jour]]="ve",MOD(Tableau1[[#This Row],[N°S]],2)=1)),"REPOS",IF(Tableau1[[#This Row],[Jour]]="ve",8,8.75)))) -> 8.75
B54: 2019-11-19 | C54: =_xlfn.ISOWEEKNUM(Tableau1[[#This Row],[Date]]) -> 47 | D54: =MONTH(Tableau1[[#This Row],[Date]]) -> 11 | E54: =TEXT(Tableau1[[#This Row],[Date]],"mmmm") -> novembre | F54: =CHOOSE(WEEKDAY(Tableau1[[#This Row],[Date]],2),"lu","ma","me","je","ve","sa","di") -> ma | G54: =IFERROR(VLOOKUP(B54,Tableau30[],3,FALSE),IF(OR(AND($K$5<=B54,$L$5>B54),AND($K$6<=Tableau1[[#This Row],[Date]],$L$6>=Tableau1[[#This Row],[Date]])),"FERMÉE",IF(OR(Tableau1[[#This Row],[Jour]]="sa",Tableau1[[#This Row],[Jour]]="di",AND(Tableau1[[#This Row],[Jour]]="ve",MOD(Tableau1[[#This Row],[N°S]],2)=1)),"REPOS",IF(Tableau1[[#This Row],[Jour]]="ve",8,8.75)))) -> 8.75
B55: 2019-11-20 | C55: =_xlfn.ISOWEEKNUM(Tableau1[[#This Row],[Date]]) -> 47 | D55: =MONTH(Tableau1[[#This Row],[Date]]) -> 11 | E55: =TEXT(Tableau1[[#This Row],[Date]],"mmmm") -> novembre | F55: =CHOOSE(WEEKDAY(Tableau1[[#This Row],[Date]],2),"lu","ma","me","je","ve","sa","di") -> me | G55: =IFERROR(VLOOKUP(B55,Tableau30[],3,FALSE),IF(OR(AND($K$5<=B55,$L$5>B55),AND($K$6<=Tableau1[[#This Row],[Date]],$L$6>=Tableau1[[#This Row],[Date]])),"FERMÉE",IF(OR(Tableau1[[#This Row],[Jour]]="sa",Tableau1[[#This Row],[Jour]]="di",AND(Tableau1[[#This Row],[Jour]]="ve",MOD(Tableau1[[#This Row],[N°S]],2)=1)),"REPOS",IF(Tableau1[[#This Row],[Jour]]="ve",8,8.75)))) -> 8.75
B56: 2019-11-21 | C56: =_xlfn.ISOWEEKNUM(Tableau1[[#This Row],[Date]]) -> 47 | D56: =MONTH(Tableau1[[#This Row],[Date]]) -> 11 | E56: =TEXT(Tableau1[[#This Row],[Date]],"mmmm") -> novembre | F56: =CHOOSE(WEEKDAY(Tableau1[[#This Row],[Date]],2),"lu","ma","me","je","ve","sa","di") -> je | G56: =IFERROR(VLOOKUP(B56,Tableau30[],3,FALSE),IF(OR(AND($K$5<=B56,$L$5>B56),AND($K$6<=Tableau1[[#This Row],[Date]],$L$6>=Tableau1[[#This Row],[Date]])),"FERMÉE",IF(OR(Tableau1[[#This Row],[Jour]]="sa",Tableau1[[#This Row],[Jour]]="di",AND(Tableau1[[#This Row],[Jour]]="ve",MOD(Tableau1[[#This Row],[N°S]],2)=1)),"REPOS",IF(Tableau1[[#This Row],[Jour]]="ve",8,8.75)))) -> 8.75
B57: 2019-11-22 | C57: =_xlfn.ISOWEEKNUM(Tableau1[[#This Row],[Date]]) -> 47 | D57: =MONTH(Tableau1[[#This Row],[Date]]) -> 11 | E57: =TEXT(Tableau1[[#This Row],[Date]],"mmmm") -> novembre | F57: =CHOOSE(WEEKDAY(Tableau1[[#This Row],[Date]],2),"lu","ma","me","je","ve","sa","di") -> ve | G57: =IFERROR(VLOOKUP(B57,Tableau30[],3,FALSE),IF(OR(AND($K$5<=B57,$L$5>B57),AND($K$6<=Tableau1[[#This Row],[Date]],$L$6>=Tableau1[[#This Row],[Date]])),"FERMÉE",IF(OR(Tableau1[[#This Row],[Jour]]="sa",Tableau1[[#This Row],[Jour]]="di",AND(Tableau1[[#This Row],[Jour]]="ve",MOD(Tableau1[[#This Row],[N°S]],2)=1)),"REPOS",IF(Tableau1[[#This Row],[Jour]]="ve",8,8.75)))) -> REPOS
B58: 2019-11-23 | C58: =_xlfn.ISOWEEKNUM(Tableau1[[#This Row],[Date]]) -> 47 | D58: =MONTH(Tableau1[[#This Row],[Date]]) -> 11 | E58: =TEXT(Tableau1[[#This Row],[Date]],"mmmm") -> novembre | F58: =CHOOSE(WEEKDAY(Tableau1[[#This Row],[Date]],2),"lu","ma","me","je","ve","sa","di") -> sa | G58: =IFERROR(VLOOKUP(B58,Tableau30[],3,FALSE),IF(OR(AND($K$5<=B58,$L$5>B58),AND($K$6<=Tableau1[[#This Row],[Date]],$L$6>=Tableau1[[#This Row],[Date]])),"FERMÉE",IF(OR(Tableau1[[#This Row],[Jour]]="sa",Tableau1[[#This Row],[Jour]]="di",AND(Tableau1[[#This Row],[Jour]]="ve",MOD(Tableau1[[#This Row],[N°S]],2)=1)),"REPOS",IF(Tableau1[[#This Row],[Jour]]="ve",8,8.75)))) -> REPOS
B59: 2019-11-24 | C59: =_xlfn.ISOWEEKNUM(Tableau1[[#This Row],[Date]]) -> 47 | D59: =MONTH(Tableau1[[#This Row],[Date]]) -> 11 | E59: =TEXT(Tableau1[[#This Row],[Date]],"mmmm") -> novembre | F59: =CHOOSE(WEEKDAY(Tableau1[[#This Row],[Date]],2),"lu","ma","me","je","ve","sa","di") -> di | G59: =IFERROR(VLOOKUP(B59,Tableau30[],3,FALSE),IF(OR(AND($K$5<=B59,$L$5>B59),AND($K$6<=Tableau1[[#This Row],[Date]],$L$6>=Tableau1[[#This Row],[Date]])),"FERMÉE",IF(OR(Tableau1[[#This Row],[Jour]]="sa",Tableau1[[#This Row],[Jour]]="di",AND(Tableau1[[#This Row],[Jour]]="ve",MOD(Tableau1[[#This Row],[N°S]],2)=1)),"REPOS",IF(Tableau1[[#This Row],[Jour]]="ve",8,8.75)))) -> REPOS
B60: 2019-11-25 | C60: =_xlfn.ISOWEEKNUM(Tableau1[[#This Row],[Date]]) -> 48 | D60: =MONTH(Tableau1[[#This Row],[Date]]) -> 11 | E60: =TEXT(Tableau1[[#This Row],[Date]],"mmmm") -> novembre | F60: =CHOOSE(WEEKDAY(Tableau1[[#This Row],[Date]],2),"lu","ma","me","je","ve","sa","di") -> lu | G60: =IFERROR(VLOOKUP(B60,Tableau30[],3,FALSE),IF(OR(AND($K$5<=B60,$L$5>B60),AND($K$6<=Tableau1[[#This Row],[Date]],$L$6>=Tableau1[[#This Row],[Date]])),"FERMÉE",IF(OR(Tableau1[[#This Row],[Jour]]="sa",Tableau1[[#This Row],[Jour]]="di",AND(Tableau1[[#This Row],[Jour]]="ve",MOD(Tableau1[[#This Row],[N°S]],2)=1)),"REPOS",IF(Tableau1[[#This Row],[Jour]]="ve",8,8.75)))) -> 8.75
B61: 2019-11-26 | C61: =_xlfn.ISOWEEKNUM(Tableau1[[#This Row],[Date]]) -> 48 | D61: =MONTH(Tableau1[[#This Row],[Date]]) -> 11 | E61: =TEXT(Tableau1[[#This Row],[Date]],"mmmm") -> novembre | F61: =CHOOSE(WEEKDAY(Tableau1[[#This Row],[Date]],2),"lu","ma","me","je","ve","sa","di") -> ma | G61: =IFERROR(VLOOKUP(B61,Tableau30[],3,FALSE),IF(OR(AND($K$5<=B61,$L$5>B61),AND($K$6<=Tableau1[[#This Row],[Date]],$L$6>=Tableau1[[#This Row],[Date]])),"FERMÉE",IF(OR(Tableau1[[#This Row],[Jour]]="sa",Tableau1[[#This Row],[Jour]]="di",AND(Tableau1[[#This Row],[Jour]]="ve",MOD(Tableau1[[#This Row],[N°S]],2)=1)),"REPOS",IF(Tableau1[[#This Row],[Jour]]="ve",8,8.75)))) -> 8.75
B62: 2019-11-27 | C62: =_xlfn.ISOWEEKNUM(Tableau1[[#This Row],[Date]]) -> 48 | D62: =MONTH(Tableau1[[#This Row],[Date]]) -> 11 | E62: =TEXT(Tableau1[[#This Row],[Date]],"mmmm") -> novembre | F62: =CHOOSE(WEEKDAY(Tableau1[[#This Row],[Date]],2),"lu","ma","me","je","ve","sa","di") -> me | G62: =IFERROR(VLOOKUP(B62,Tableau30[],3,FALSE),IF(OR(AND($K$5<=B62,$L$5>B62),AND($K$6<=Tableau1[[#This Row],[Date]],$L$6>=Tableau1[[#This Row],[Date]])),"FERMÉE",IF(OR(Tableau1[[#This Row],[Jour]]="sa",Tableau1[[#This Row],[Jour]]="di",AND(Tableau1[[#This Row],[Jour]]="ve",MOD(Tableau1[[#This Row],[N°S]],2)=1)),"REPOS",IF(Tableau1[[#This Row],[Jour]]="ve",8,8.75)))) -> 8.75
B63: 2019-11-28 | C63: =_xlfn.ISOWEEKNUM(Tableau1[[#This Row],[Date]]) -> 48 | D63: =MONTH(Tableau1[[#This Row],[Date]]) -> 11 | E63: =TEXT(Tableau1[[#This Row],[Date]],"mmmm") -> novembre | F63: =CHOOSE(WEEKDAY(Tableau1[[#This Row],[Date]],2),"lu","ma","me","je","ve","sa","di") -> je | G63: =IFERROR(VLOOKUP(B63,Tableau30[],3,FALSE),IF(OR(AND($K$5<=B63,$L$5>B63),AND($K$6<=Tableau1[[#This Row],[Date]],$L$6>=Tableau1[[#This Row],[Date]])),"FERMÉE",IF(OR(Tableau1[[#This Row],[Jour]]="sa",Tableau1[[#This Row],[Jour]]="di",AND(Tableau1[[#This Row],[Jour]]="ve",MOD(Tableau1[[#This Row],[N°S]],2)=1)),"REPOS",IF(Tableau1[[#This Row],[Jour]]="ve",8,8.75)))) -> 8.75
B64: 2019-11-29 | C64: =_xlfn.ISOWEEKNUM(Tableau1[[#This Row],[Date]]) -> 48 | D64: =MONTH(Tableau1[[#This Row],[Date]]) -> 11 | E64: =TEXT(Tableau1[[#This Row],[Date]],"mmmm") -> novembre | F64: =CHOOSE(WEEKDAY(Tableau1[[#This Row],[Date]],2),"lu","ma","me","je","ve","sa","di") -> ve | G64: =IFERROR(VLOOKUP(B64,Tableau30[],3,FALSE),IF(OR(AND($K$5<=B64,$L$5>B64),AND($K$6<=Tableau1[[#This Row],[Date]],$L$6>=Tableau1[[#This Row],[Date]])),"FERMÉE",IF(OR(Tableau1[[#This Row],[Jour]]="sa",Tableau1[[#This Row],[Jour]]="di",AND(Tableau1[[#This Row],[Jour]]="ve",MOD(Tableau1[[#This Row],[N°S]],2)=1)),"REPOS",IF(Tableau1[[#This Row],[Jour]]="ve",8,8.75)))) -> 8
B65: 2019-11-30 | C65: =_xlfn.ISOWEEKNUM(Tableau1[[#This Row],[Date]]) -> 48 | D65: =MONTH(Tableau1[[#This Row],[Date]]) -> 11 | E65: =TEXT(Tableau1[[#This Row],[Date]],"mmmm") -> novembre | F65: =CHOOSE(WEEKDAY(Tableau1[[#This Row],[Date]],2),"lu","ma","me","je","ve","sa","di") -> sa | G65: =IFERROR(VLOOKUP(B65,Tableau30[],3,FALSE),IF(OR(AND($K$5<=B65,$L$5>B65),AND($K$6<=Tableau1[[#This Row],[Date]],$L$6>=Tableau1[[#This Row],[Date]])),"FERMÉE",IF(OR(Tableau1[[#This Row],[Jour]]="sa",Tableau1[[#This Row],[Jour]]="di",AND(Tableau1[[#This Row],[Jour]]="ve",MOD(Tableau1[[#This Row],[N°S]],2)=1)),"REPOS",IF(Tableau1[[#This Row],[Jour]]="ve",8,8.75)))) -> REPOS
B66: 2019-12-01 | C66: =_xlfn.ISOWEEKNUM(Tableau1[[#This Row],[Date]]) -> 48 | D66: =MONTH(Tableau1[[#This Row],[Date]]) -> 12 | E66: =TEXT(Tableau1[[#This Row],[Date]],"mmmm") -> décembre | F66: =CHOOSE(WEEKDAY(Tableau1[[#This Row],[Date]],2),"lu","ma","me","je","ve","sa","di") -> di | G66: =IFERROR(VLOOKUP(B66,Tableau30[],3,FALSE),IF(OR(AND($K$5<=B66,$L$5>B66),AND($K$6<=Tableau1[[#This Row],[Date]],$L$6>=Tableau1[[#This Row],[Date]])),"FERMÉE",IF(OR(Tableau1[[#This Row],[Jour]]="sa",Tableau1[[#This Row],[Jour]]="di",AND(Tableau1[[#This Row],[Jour]]="ve",MOD(Tableau1[[#This Row],[N°S]],2)=1)),"REPOS",IF(Tableau1[[#This Row],[Jour]]="ve",8,8.75)))) -> REPOS
B67: 2019-12-02 | C67: =_xlfn.ISOWEEKNUM(Tableau1[[#This Row],[Date]]) -> 49 | D67: =MONTH(Tableau1[[#This Row],[Date]]) -> 12 | E67: =TEXT(Tableau1[[#This Row],[Date]],"mmmm") -> décembre | F67: =CHOOSE(WEEKDAY(Tableau1[[#This Row],[Date]],2),"lu","ma","me","je","ve","sa","di") -> lu | G67: =IFERROR(VLOOKUP(B67,Tableau30[],3,FALSE),IF(OR(AND($K$5<=B67,$L$5>B67),AND($K$6<=Tableau1[[#This Row],[Date]],$L$6>=Tableau1[[#This Row],[Date]])),"FERMÉE",IF(OR(Tableau1[[#This Row],[Jour]]="sa",Tableau1[[#This Row],[Jour]]="di",AND(Tableau1[[#This Row],[Jour]]="ve",MOD(Tableau1[[#This Row],[N°S]],2)=1)),"REPOS",IF(Tableau1[[#This Row],[Jour]]="ve",8,8.75)))) -> 8.75
B68: 2019-12-03 | C68: =_xlfn.ISOWEEKNUM(Tableau1[[#This Row],[Date]]) -> 49 | D68: =MONTH(Tableau1[[#This Row],[Date]]) -> 12 | E68: =TEXT(Tableau1[[#This Row],[Date]],"mmmm") -> décembre | F68: =CHOOSE(WEEKDAY(Tableau1[[#This Row],[Date]],2),"lu","ma","me","je","ve","sa","di") -> ma | G68: =IFERROR(VLOOKUP(B68,Tableau30[],3,FALSE),IF(OR(AND($K$5<=B68,$L$5>B68),AND($K$6<=Tableau1[[#This Row],[Date]],$L$6>=Tableau1[[#This Row],[Date]])),"FERMÉE",IF(OR(Tableau1[[#This Row],[Jour]]="sa",Tableau1[[#This Row],[Jour]]="di",AND(Tableau1[[#This Row],[Jour]]="ve",MOD(Tableau1[[#This Row],[N°S]],2)=1)),"REPOS",IF(Tableau1[[#This Row],[Jour]]="ve",8,8.75)))) -> 8.75
B69: 2019-12-04 | C69: =_xlfn.ISOWEEKNUM(Tableau1[[#This Row],[Date]]) -> 49 | D69: =MONTH(Tableau1[[#This Row],[Date]]) -> 12 | E69: =TEXT(Tableau1[[#This Row],[Date]],"mmmm") -> décembre | F69: =CHOOSE(WEEKDAY(Tableau1[[#This Row],[Date]],2),"lu","ma","me","je","ve","sa","di") -> me | G69: =IFERROR(VLOOKUP(B69,Tableau30[],3,FALSE),IF(OR(AND($K$5<=B69,$L$5>B69),AND($K$6<=Tableau1[[#This Row],[Date]],$L$6>=Tableau1[[#This Row],[Date]])),"FERMÉE",IF(OR(Tableau1[[#This Row],[Jour]]="sa",Tableau1[[#This Row],[Jour]]="di",AND(Tableau1[[#This Row],[Jour]]="ve",MOD(Tableau1[[#This Row],[N°S]],2)=1)),"REPOS",IF(Tableau1[[#This Row],[Jour]]="ve",8,8.75)))) -> 8.75
B70: 2019-12-05 | C70: =_xlfn.ISOWEEKNUM(Tableau1[[#This Row],[Date]]) -> 49 | D70: =MONTH(Tableau1[[#This Row],[Date]]) -> 12 | E70: =TEXT(Tableau1[[#This Row],[Date]],"mmmm") -> décembre | F70: =CHOOSE(WEEKDAY(Tableau1[[#This Row],[Date]],2),"lu","ma","me","je","ve","sa","di") -> je | G70: =IFERROR(VLOOKUP(B70,Tableau30[],3,FALSE),IF(OR(AND($K$5<=B70,$L$5>B70),AND($K$6<=Tableau1[[#This Row],[Date]],$L$6>=Tableau1[[#This Row],[Date]])),"FERMÉE",IF(OR(Tableau1[[#This Row],[Jour]]="sa",Tableau1[[#This Row],[Jour]]="di",AND(Tableau1[[#This Row],[Jour]]="ve",MOD(Tableau1[[#This Row],[N°S]],2)=1)),"REPOS",IF(Tableau1[[#This Row],[Jour]]="ve",8,8.75)))) -> 8.75
B71: =B70+1 -> 2019-12-06 | C71: =_xlfn.ISOWEEKNUM(Tableau1[[#This Row],[Date]]) -> 49 | D71: =MONTH(Tableau1[[#This Row],[Date]]) -> 12 | E71: =TEXT(Tableau1[[#This Row],[Date]],"mmmm") -> décembre | F71: =CHOOSE(WEEKDAY(Tableau1[[#This Row],[Date]],2),"lu","ma","me","je","ve","sa","di") -> ve | G71: =IFERROR(VLOOKUP(B71,Tableau30[],3,FALSE),IF(OR(AND($K$5<=B71,$L$5>B71),AND($K$6<=Tableau1[[#This Row],[Date]],$L$6>=Tableau1[[#This Row],[Date]])),"FERMÉE",IF(OR(Tableau1[[#This Row],[Jour]]="sa",Tableau1[[#This Row],[Jour]]="di",AND(Tableau1[[#This Row],[Jour]]="ve",MOD(Tableau1[[#This Row],[N°S]],2)=1)),"REPOS",IF(Tableau1[[#This Row],[Jour]]="ve",8,8.75)))) -> REPOS
B72: 2019-12-07 | C72: =_xlfn.ISOWEEKNUM(Tableau1[[#This Row],[Date]]) -> 49 | D72: =MONTH(Tableau1[[#This Row],[Date]]) -> 12 | E72: =TEXT(Tableau1[[#This Row],[Date]],"mmmm") -> décembre | F72: =CHOOSE(WEEKDAY(Tableau1[[#This Row],[Date]],2),"lu","ma","me","je","ve","sa","di") -> sa | G72: =IFERROR(VLOOKUP(B72,Tableau30[],3,FALSE),IF(OR(AND($K$5<=B72,$L$5>B72),AND($K$6<=Tableau1[[#This Row],[Date]],$L$6>=Tableau1[[#This Row],[Date]])),"FERMÉE",IF(OR(Tableau1[[#This Row],[Jour]]="sa",Tableau1[[#This Row],[Jour]]="di",AND(Tableau1[[#This Row],[Jour]]="ve",MOD(Tableau1[[#This Row],[N°S]],2)=1)),"REPOS",IF(Tableau1[[#This Row],[Jour]]="ve",8,8.75)))) -> REPOS
B73: 2019-12-08 | C73: =_xlfn.ISOWEEKNUM(Tableau1[[#This Row],[Date]]) -> 49 | D73: =MONTH(Tableau1[[#This Row],[Date]]) -> 12 | E73: =TEXT(Tableau1[[#This Row],[Date]],"mmmm") -> décembre | F73: =CHOOSE(WEEKDAY(Tableau1[[#This Row],[Date]],2),"lu","ma","me","je","ve","sa","di") -> di | G73: =IFERROR(VLOOKUP(B73,Tableau30[],3,FALSE),IF(OR(AND($K$5<=B73,$L$5>B73),AND($K$6<=Tableau1[[#This Row],[Date]],$L$6>=Tableau1[[#This Row],[Date]])),"FERMÉE",IF(OR(Tableau1[[#This Row],[Jour]]="sa",Tableau1[[#This Row],[Jour]]="di",AND(Tableau1[[#This Row],[Jour]]="ve",MOD(Tableau1[[#This Row],[N°S]],2)=1)),"REPOS",IF(Tableau1[[#This Row],[Jour]]="ve",8,8.75)))) -> REPOS
B74: 2019-12-09 | C74: =_xlfn.ISOWEEKNUM(Tableau1[[#This Row],[Date]]) -> 50 | D74: =MONTH(Tableau1[[#This Row],[Date]]) -> 12 | E74: =TEXT(Tableau1[[#This Row],[Date]],"mmmm") -> décembre | F74: =CHOOSE(WEEKDAY(Tableau1[[#This Row],[Date]],2),"lu","ma","me","je","ve","sa","di") -> lu | G74: =IFERROR(VLOOKUP(B74,Tableau30[],3,FALSE),IF(OR(AND($K$5<=B74,$L$5>B74),AND($K$6<=Tableau1[[#This Row],[Date]],$L$6>=Tableau1[[#This Row],[Date]])),"FERMÉE",IF(OR(Tableau1[[#This Row],[Jour]]="sa",Tableau1[[#This Row],[Jour]]="di",AND(Tableau1[[#This Row],[Jour]]="ve",MOD(Tableau1[[#This Row],[N°S]],2)=1)),"REPOS",IF(Tableau1[[#This Row],[Jour]]="ve",8,8.75)))) -> 8.75
B75: 2019-12-10 | C75: =_xlfn.ISOWEEKNUM(Tableau1[[#This Row],[Date]]) -> 50 | D75: =MONTH(Tableau1[[#This Row],[Date]]) -> 12 | E75: =TEXT(Tableau1[[#This Row],[Date]],"mmmm") -> décembre | F75: =CHOOSE(WEEKDAY(Tableau1[[#This Row],[Date]],2),"lu","ma","me","je","ve","sa","di") -> ma | G75: =IFERROR(VLOOKUP(B75,Tableau30[],3,FALSE),IF(OR(AND($K$5<=B75,$L$5>B75),AND($K$6<=Tableau1[[#This Row],[Date]],$L$6>=Tableau1[[#This Row],[Date]])),"FERMÉE",IF(OR(Tableau1[[#This Row],[Jour]]="sa",Tableau1[[#This Row],[Jour]]="di",AND(Tableau1[[#This Row],[Jour]]="ve",MOD(Tableau1[[#This Row],[N°S]],2)=1)),"REPOS",IF(Tableau1[[#This Row],[Jour]]="ve",8,8.75)))) -> 8.75
B76: 2019-12-11 | C76: =_xlfn.ISOWEEKNUM(Tableau1[[#This Row],[Date]]) -> 50 | D76: =MONTH(Tableau1[[#This Row],[Date]]) -> 12 | E76: =TEXT(Tableau1[[#This Row],[Date]],"mmmm") -> décembre | F76: =CHOOSE(WEEKDAY(Tableau1[[#This Row],[Date]],2),"lu","ma","me","je","ve","sa","di") -> me | G76: =IFERROR(VLOOKUP(B76,Tableau30[],3,FALSE),IF(OR(AND($K$5<=B76,$L$5>B76),AND($K$6<=Tableau1[[#This Row],[Date]],$L$6>=Tableau1[[#This Row],[Date]])),"FERMÉE",IF(OR(Tableau1[[#This Row],[Jour]]="sa",Tableau1[[#This Row],[Jour]]="di",AND(Tableau1[[#This Row],[Jour]]="ve",MOD(Tableau1[[#This Row],[N°S]],2)=1)),"REPOS",IF(Tableau1[[#This Row],[Jour]]="ve",8,8.75)))) -> 8.75
B77: 2019-12-12 | C77: =_xlfn.ISOWEEKNUM(Tableau1[[#This Row],[Date]]) -> 50 | D77: =MONTH(Tableau1[[#This Row],[Date]]) -> 12 | E77: =TEXT(Tableau1[[#This Row],[Date]],"mmmm") -> décembre | F77: =CHOOSE(WEEKDAY(Tableau1[[#This Row],[Date]],2),"lu","ma","me","je","ve","sa","di") -> je | G77: =IFERROR(VLOOKUP(B77,Tableau30[],3,FALSE),IF(OR(AND($K$5<=B77,$L$5>B77),AND($K$6<=Tableau1[[#This Row],[Date]],$L$6>=Tableau1[[#This Row],[Date]])),"FERMÉE",IF(OR(Tableau1[[#This Row],[Jour]]="sa",Tableau1[[#This Row],[Jour]]="di",AND(Tableau1[[#This Row],[Jour]]="ve",MOD(Tableau1[[#This Row],[N°S]],2)=1)),"REPOS",IF(Tableau1[[#This Row],[Jour]]="ve",8,8.75)))) -> 8.75
B78: 2019-12-13 | C78: =_xlfn.ISOWEEKNUM(Tableau1[[#This Row],[Date]]) -> 50 | D78: =MONTH(Tableau1[[#This Row],[Date]]) -> 12 | E78: =TEXT(Tableau1[[#This Row],[Date]],"mmmm") -> décembre | F78: =CHOOSE(WEEKDAY(Tableau1[[#This Row],[Date]],2),"lu","ma","me","je","ve","sa","di") -> ve | G78: =IFERROR(VLOOKUP(B78,Tableau30[],3,FALSE),IF(OR(AND($K$5<=B78,$L$5>B78),AND($K$6<=Tableau1[[#This Row],[Date]],$L$6>=Tableau1[[#This Row],[Date]])),"FERMÉE",IF(OR(Tableau1[[#This Row],[Jour]]="sa",Tableau1[[#This Row],[Jour]]="di",AND(Tableau1[[#This Row],[Jour]]="ve",MOD(Tableau1[[#This Row],[N°S]],2)=1)),"REPOS",IF(Tableau1[[#This Row],[Jour]]="ve",8,8.75)))) -> 8
B79: 2019-12-14 | C79: =_xlfn.ISOWEEKNUM(Tableau1[[#This Row],[Date]]) -> 50 | D79: =MONTH(Tableau1[[#This Row],[Date]]) -> 12 | E79: =TEXT(Tableau1[[#This Row],[Date]],"mmmm") -> décembre | F79: =CHOOSE(WEEKDAY(Tableau1[[#This Row],[Date]],2),"lu","ma","me","je","ve","sa","di") -> sa | G79: =IFERROR(VLOOKUP(B79,Tableau30[],3,FALSE),IF(OR(AND($K$5<=B79,$L$5>B79),AND($K$6<=Tableau1[[#This Row],[Date]],$L$6>=Tableau1[[#This Row],[Date]])),"FERMÉE",IF(OR(Tableau1[[#This Row],[Jour]]="sa",Tableau1[[#This Row],[Jour]]="di",AND(Tableau1[[#This Row],[Jour]]="ve",MOD(Tableau1[[#This Row],[N°S]],2)=1)),"REPOS",IF(Tableau1[[#This Row],[Jour]]="ve",8,8.75)))) -> REPOS
B80: 2019-12-15 | C80: =_xlfn.ISOWEEKNUM(Tableau1[[#This Row],[Date]]) -> 50 | D80: =MONTH(Tableau1[[#This Row],[Date]]) -> 12 | E80: =TEXT(Tableau1[[#This Row],[Date]],"mmmm") -> décembre | F80: =CHOOSE(WEEKDAY(Tableau1[[#This Row],[Date]],2),"lu","ma","me","je","ve","sa","di") -> di | G80: =IFERROR(VLOOKUP(B80,Tableau30[],3,FALSE),IF(OR(AND($K$5<=B80,$L$5>B80),AND($K$6<=Tableau1[[#This Row],[Date]],$L$6>=Tableau1[[#This Row],[Date]])),"FERMÉE",IF(OR(Tableau1[[#This Row],[Jour]]="sa",Tableau1[[#This Row],[Jour]]="di",AND(Tableau1[[#This Row],[Jour]]="ve",MOD(Tableau1[[#This Row],[N°S]],2)=1)),"REPOS",IF(Tableau1[[#This Row],[Jour]]="ve",8,8.75)))) -> REPOS
B81: 2019-12-16 | C81: =_xlfn.ISOWEEKNUM(Tableau1[[#This Row],[Date]]) -> 51 | D81: =MONTH(Tableau1[[#This Row],[Date]]) -> 12 | E81: =TEXT(Tableau1[[#This Row],[Date]],"mmmm") -> décembre | F81: =CHOOSE(WEEKDAY(Tableau1[[#This Row],[Date]],2),"lu","ma","me","je","ve","sa","di") -> lu | G81: =IFERROR(VLOOKUP(B81,Tableau30[],3,FALSE),IF(OR(AND($K$5<=B81,$L$5>B81),AND($K$6<=Tableau1[[#This Row],[Date]],$L$6>=Tableau1[[#This Row],[Date]])),"FERMÉE",IF(OR(Tableau1[[#This Row],[Jour]]="sa",Tableau1[[#This Row],[Jour]]="di",AND(Tableau1[[#This Row],[Jour]]="ve",MOD(Tableau1[[#This Row],[N°S]],2)=1)),"REPOS",IF(Tableau1[[#This Row],[Jour]]="ve",8,8.75)))) -> 8.75
B82: 2019-12-17 | C82: =_xlfn.ISOWEEKNUM(Tableau1[[#This Row],[Date]]) -> 51 | D82: =MONTH(Tableau1[[#This Row],[Date]]) -> 12 | E82: =TEXT(Tableau1[[#This Row],[Date]],"mmmm") -> décembre | F82: =CHOOSE(WEEKDAY(Tableau1[[#This Row],[Date]],2),"lu","ma","me","je","ve","sa","di") -> ma | G82: =IFERROR(VLOOKUP(B82,Tableau30[],3,FALSE),IF(OR(AND($K$5<=B82,$L$5>B82),AND($K$6<=Tableau1[[#This Row],[Date]],$L$6>=Tableau1[[#This Row],[Date]])),"FERMÉE",IF(OR(Tableau1[[#This Row],[Jour]]="sa",Tableau1[[#This Row],[Jour]]="di",AND(Tableau1[[#This Row],[Jour]]="ve",MOD(Tableau1[[#This Row],[N°S]],2)=1)),"REPOS",IF(Tableau1[[#This Row],[Jour]]="ve",8,8.75)))) -> 8.75
B83: 2019-12-18 | C83: =_xlfn.ISOWEEKNUM(Tableau1[[#This Row],[Date]]) -> 51 | D83: =MONTH(Tableau1[[#This Row],[Date]]) -> 12 | E83: =TEXT(Tableau1[[#This Row],[Date]],"mmmm") -> décembre | F83: =CHOOSE(WEEKDAY(Tableau1[[#This Row],[Date]],2),"lu","ma","me","je","ve","sa","di") -> me | G83: =IFERROR(VLOOKUP(B83,Tableau30[],3,FALSE),IF(OR(AND($K$5<=B83,$L$5>B83),AND($K$6<=Tableau1[[#This Row],[Date]],$L$6>=Tableau1[[#This Row],[Date]])),"FERMÉE",IF(OR(Tableau1[[#This Row],[Jour]]="sa",Tableau1[[#This Row],[Jour]]="di",AND(Tableau1[[#This Row],[Jour]]="ve",MOD(Tableau1[[#This Row],[N°S]],2)=1)),"REPOS",IF(Tableau1[[#This Row],[Jour]]="ve",8,8.75)))) -> 8.75
B84: 2019-12-19 | C84: =_xlfn.ISOWEEKNUM(Tableau1[[#This Row],[Date]]) -> 51 | D84: =MONTH(Tableau1[[#This Row],[Date]]) -> 12 | E84: =TEXT(Tableau1[[#This Row],[Date]],"mmmm") -> décembre | F84: =CHOOSE(WEEKDAY(Tableau1[[#This Row],[Date]],2),"lu","ma","me","je","ve","sa","di") -> je | G84: =IFERROR(VLOOKUP(B84,Tableau30[],3,FALSE),IF(OR(AND($K$5<=B84,$L$5>B84),AND($K$6<=Tableau1[[#This Row],[Date]],$L$6>=Tableau1[[#This Row],[Date]])),"FERMÉE",IF(OR(Tableau1[[#This Row],[Jour]]="sa",Tableau1[[#This Row],[Jour]]="di",AND(Tableau1[[#This Row],[Jour]]="ve",MOD(Tableau1[[#This Row],[N°S]],2)=1)),"REPOS",IF(Tableau1[[#This Row],[Jour]]="ve",8,8.75)))) -> 8.75
B85: 2019-12-20 | C85: =_xlfn.ISOWEEKNUM(Tableau1[[#This Row],[Date]]) -> 51 | D85: =MONTH(Tableau1[[#This Row],[Date]]) -> 12 | E85: =TEXT(Tableau1[[#This Row],[Date]],"mmmm") -> décembre | F85: =CHOOSE(WEEKDAY(Tableau1[[#This Row],[Date]],2),"lu","ma","me","je","ve","sa","di") -> ve | G85: =IFERROR(VLOOKUP(B85,Tableau30[],3,FALSE),IF(OR(AND($K$5<=B85,$L$5>B85),AND($K$6<=Tableau1[[#This Row],[Date]],$L$6>=Tableau1[[#This Row],[Date]])),"FERMÉE",IF(OR(Tableau1[[#This Row],[Jour]]="sa",Tableau1[[#This Row],[Jour]]="di",AND(Tableau1[[#This Row],[Jour]]="ve",MOD(Tableau1[[#This Row],[N°S]],2)=1)),"REPOS",IF(Tableau1[[#This Row],[Jour]]="ve",8,8.75)))) -> REPOS
B86: 2019-12-21 | C86: =_xlfn.ISOWEEKNUM(Tableau1[[#This Row],[Date]]) -> 51 | D86: =MONTH(Tableau1[[#This Row],[Date]]) -> 12 | E86: =TEXT(Tableau1[[#This Row],[Date]],"mmmm") -> décembre | F86: =CHOOSE(WEEKDAY(Tableau1[[#This Row],[Date]],2),"lu","ma","me","je","ve","sa","di") -> sa | G86: =IFERROR(VLOOKUP(B86,Tableau30[],3,FALSE),IF(OR(AND($K$5<=B86,$L$5>B86),AND($K$6<=Tableau1[[#This Row],[Date]],$L$6>=Tableau1[[#This Row],[Date]])),"FERMÉE",IF(OR(Tableau1[[#This Row],[Jour]]="sa",Tableau1[[#This Row],[Jour]]="di",AND(Tableau1[[#This Row],[Jour]]="ve",MOD(Tableau1[[#This Row],[N°S]],2)=1)),"REPOS",IF(Tableau1[[#This Row],[Jour]]="ve",8,8.75)))) -> REPOS
B87: 2019-12-22 | C87: =_xlfn.ISOWEEKNUM(Tableau1[[#This Row],[Date]]) -> 51 | D87: =MONTH(Tableau1[[#This Row],[Date]]) -> 12 | E87: =TEXT(Tableau1[[#This Row],[Date]],"mmmm") -> décembre | F87: =CHOOSE(WEEKDAY(Tableau1[[#This Row],[Date]],2),"lu","ma","me","je","ve","sa","di") -> di | G87: =IFERROR(VLOOKUP(B87,Tableau30[],3,FALSE),IF(OR(AND($K$5<=B87,$L$5>B87),AND($K$6<=Tableau1[[#This Row],[Date]],$L$6>=Tableau1[[#This Row],[Date]])),"FERMÉE",IF(OR(Tableau1[[#This Row],[Jour]]="sa",Tableau1[[#This Row],[Jour]]="di",AND(Tableau1[[#This Row],[Jour]]="ve",MOD(Tableau1[[#This Row],[N°S]],2)=1)),"REPOS",IF(Tableau1[[#This Row],[Jour]]="ve",8,8.75)))) -> REPOS
B88: 2019-12-23 | C88: =_xlfn.ISOWEEKNUM(Tableau1[[#This Row],[Date]]) -> 52 | D88: =MONTH(Tableau1[[#This Row],[Date]]) -> 12 | E88: =TEXT(Tableau1[[#This Row],[Date]],"mmmm") -> décembre | F88: =CHOOSE(WEEKDAY(Tableau1[[#This Row],[Date]],2),"lu","ma","me","je","ve","sa","di") -> lu | G88: =IFERROR(VLOOKUP(B88,Tableau30[],3,FALSE),IF(OR(AND($K$5<=B88,$L$5>B88),AND($K$6<=Tableau1[[#This Row],[Date]],$L$6>=Tableau1[[#This Row],[Date]])),"FERMÉE",IF(OR(Tableau1[[#This Row],[Jour]]="sa",Tableau1[[#This Row],[Jour]]="di",AND(Tableau1[[#This Row],[Jour]]="ve",MOD(Tableau1[[#This Row],[N°S]],2)=1)),"REPOS",IF(Tableau1[[#This Row],[Jour]]="ve",8,8.75)))) -> 8.75
B89: 2019-12-24 | C89: =_xlfn.ISOWEEKNUM(Tableau1[[#This Row],[Date]]) -> 52 | D89: =MONTH(Tableau1[[#This Row],[Date]]) -> 12 | E89: =TEXT(Tableau1[[#This Row],[Date]],"mmmm") -> décembre | F89: =CHOOSE(WEEKDAY(Tableau1[[#This Row],[Date]],2),"lu","ma","me","je","ve","sa","di") -> ma | G89: =IFERROR(VLOOKUP(B89,Tableau30[],3,FALSE),IF(OR(AND($K$5<=B89,$L$5>B89),AND($K$6<=Tableau1[[#This Row],[Date]],$L$6>=Tableau1[[#This Row],[Date]])),"FERMÉE",IF(OR(Tableau1[[#This Row],[Jour]]="sa",Tableau1[[#This Row],[Jour]]="di",AND(Tableau1[[#This Row],[Jour]]="ve",MOD(Tableau1[[#This Row],[N°S]],2)=1)),"REPOS",IF(Tableau1[[#This Row],[Jour]]="ve",8,8.75)))) -> 8.75
B90: 2019-12-25 | C90: =_xlfn.ISOWEEKNUM(Tableau1[[#This Row],[Date]]) -> 52 | D90: =MONTH(Tableau1[[#This Row],[Date]]) -> 12 | E90: =TEXT(Tableau1[[#This Row],[Date]],"mmmm") -> décembre | F90: =CHOOSE(WEEKDAY(Tableau1[[#This Row],[Date]],2),"lu","ma","me","je","ve","sa","di") -> me | G90: =IFERROR(VLOOKUP(B90,Tableau30[],3,FALSE),IF(OR(AND($K$5<=B90,$L$5>B90),AND($K$6<=Tableau1[[#This Row],[Date]],$L$6>=Tableau1[[#This Row],[Date]])),"FERMÉE",IF(OR(Tableau1[[#This Row],[Jour]]="sa",Tableau1[[#This Row],[Jour]]="di",AND(Tableau1[[#This Row],[Jour]]="ve",MOD(Tableau1[[#This Row],[N°S]],2)=1)),"REPOS",IF(Tableau1[[#This Row],[Jour]]="ve",8,8.75)))) -> FÉRIÉ/INACTIF
B91: 2019-12-26 | C91: =_xlfn.ISOWEEKNUM(Tableau1[[#This Row],[Date]]) -> 52 | D91: =MONTH(Tableau1[[#This Row],[Date]]) -> 12 | E91: =TEXT(Tableau1[[#This Row],[Date]],"mmmm") -> décembre | F91: =CHOOSE(WEEKDAY(Tableau1[[#This Row],[Date]],2),"lu","ma","me","je","ve","sa","di") -> je | G91: =IFERROR(VLOOKUP(B91,Tableau30[],3,FALSE),IF(OR(AND($K$5<=B91,$L$5>B91),AND($K$6<=Tableau1[[#This Row],[Date]],$L$6>=Tableau1[[#This Row],[Date]])),"FERMÉE",IF(OR(Tableau1[[#This Row],[Jour]]="sa",Tableau1[[#This Row],[Jour]]="di",AND(Tableau1[[#This Row],[Jour]]="ve",MOD(Tableau1[[#This Row],[N°S]],2)=1)),"REPOS",IF(Tableau1[[#This Row],[Jour]]="ve",8,8.75)))) -> FERMÉE
B92: 2019-12-27 | C92: =_xlfn.ISOWEEKNUM(Tableau1[[#This Row],[Date]]) -> 52 | D92: =MONTH(Tableau1[[#This Row],[Date]]) -> 12 | E92: =TEXT(Tableau1[[#This Row],[Date]],"mmmm") -> décembre | F92: =CHOOSE(WEEKDAY(Tableau1[[#This Row],[Date]],2),"lu","ma","me","je","ve","sa","di") -> ve | G92: =IFERROR(VLOOKUP(B92,Tableau30[],3,FALSE),IF(OR(AND($K$5<=B92,$L$5>B92),AND($K$6<=Tableau1[[#This Row],[Date]],$L$6>=Tableau1[[#This Row],[Date]])),"FERMÉE",IF(OR(Tableau1[[#This Row],[Jour]]="sa",Tableau1[[#This Row],[Jour]]="di",AND(Tableau1[[#This Row],[Jour]]="ve",MOD(Tableau1[[#This Row],[N°S]],2)=1)),"REPOS",IF(Tableau1[[#This Row],[Jour]]="ve",8,8.75)))) -> FERMÉE
B93: 2019-12-28 | C93: =_xlfn.ISOWEEKNUM(Tableau1[[#This Row],[Date]]) -> 52 | D93: =MONTH(Tableau1[[#This Row],[Date]]) -> 12 | E93: =TEXT(Tableau1[[#This Row],[Date]],"mmmm") -> décembre | F93: =CHOOSE(WEEKDAY(Tableau1[[#This Row],[Date]],2),"lu","ma","me","je","ve","sa","di") -> sa | G93: =IFERROR(VLOOKUP(B93,Tableau30[],3,FALSE),IF(OR(AND($K$5<=B93,$L$5>B93),AND($K$6<=Tableau1[[#This Row],[Date]],$L$6>=Tableau1[[#This Row],[Date]])),"FERMÉE",IF(OR(Tableau1[[#This Row],[Jour]]="sa",Tableau1[[#This Row],[Jour]]="di",AND(Tableau1[[#This Row],[Jour]]="ve",MOD(Tableau1[[#This Row],[N°S]],2)=1)),"REPOS",IF(Tableau1[[#This Row],[Jour]]="ve",8,8.75)))) -> FERMÉE
B94: 2019-12-29 | C94: =_xlfn.ISOWEEKNUM(Tableau1[[#This Row],[Date]]) -> 52 | D94: =MONTH(Tableau1[[#This Row],[Date]]) -> 12 | E94: =TEXT(Tableau1[[#This Row],[Date]],"mmmm") -> décembre | F94: =CHOOSE(WEEKDAY(Tableau1[[#This Row],[Date]],2),"lu","ma","me","je","ve","sa","di") -> di | G94: =IFERROR(VLOOKUP(B94,Tableau30[],3,FALSE),IF(OR(AND($K$5<=B94,$L$5>B94),AND($K$6<=Tableau1[[#This Row],[Date]],$L$6>=Tableau1[[#This Row],[Date]])),"FERMÉE",IF(OR(Tableau1[[#This Row],[Jour]]="sa",Tableau1[[#This Row],[Jour]]="di",AND(Tableau1[[#This Row],[Jour]]="ve",MOD(Tableau1[[#This Row],[N°S]],2)=1)),"REPOS",IF(Tableau1[[#This Row],[Jour]]="ve",8,8.75)))) -> FERMÉE
B95: 2019-12-30 | C95: =_xlfn.ISOWEEKNUM(Tableau1[[#This Row],[Date]]) -> 1 | D95: =MONTH(Tableau1[[#This Row],[Date]]) -> 12 | E95: =TEXT(Tableau1[[#This Row],[Date]],"mmmm") -> décembre | F95: =CHOOSE(WEEKDAY(Tableau1[[#This Row],[Date]],2),"lu","ma","me","je","ve","sa","di") -> lu | G95: =IFERROR(VLOOKUP(B95,Tableau30[],3,FALSE),IF(OR(AND($K$5<=B95,$L$5>B95),AND($K$6<=Tableau1[[#This Row],[Date]],$L$6>=Tableau1[[#This Row],[Date]])),"FERMÉE",IF(OR(Tableau1[[#This Row],[Jour]]="sa",Tableau1[[#This Row],[Jour]]="di",AND(Tableau1[[#This Row],[Jour]]="ve",MOD(Tableau1[[#This Row],[N°S]],2)=1)),"REPOS",IF(Tableau1[[#This Row],[Jour]]="ve",8,8.75)))) -> FERMÉE
B96: 2019-12-31 | C96: =_xlfn.ISOWEEKNUM(Tableau1[[#This Row],[Date]]) -> 1 | D96: =MONTH(Tableau1[[#This Row],[Date]]) -> 12 | E96: =TEXT(Tableau1[[#This Row],[Date]],"mmmm") -> décembre | F96: =CHOOSE(WEEKDAY(Tableau1[[#This Row],[Date]],2),"lu","ma","me","je","ve","sa","di") -> ma | G96: =IFERROR(VLOOKUP(B96,Tableau30[],3,FALSE),IF(OR(AND($K$5<=B96,$L$5>B96),AND($K$6<=Tableau1[[#This Row],[Date]],$L$6>=Tableau1[[#This Row],[Date]])),"FERMÉE",IF(OR(Tableau1[[#This Row],[Jour]]="sa",Tableau1[[#This Row],[Jour]]="di",AND(Tableau1[[#This Row],[Jour]]="ve",MOD(Tableau1[[#This Row],[N°S]],2)=1)),"REPOS",IF(Tableau1[[#This Row],[Jour]]="ve",8,8.75)))) -> FERMÉE
B97: 2020-01-01 | C97: =_xlfn.ISOWEEKNUM(Tableau1[[#This Row],[Date]]) -> 1 | D97: =MONTH(Tableau1[[#This Row],[Date]]) -> 1 | E97: =TEXT(Tableau1[[#This Row],[Date]],"mmmm") -> janvier | F97: =CHOOSE(WEEKDAY(Tableau1[[#This Row],[Date]],2),"lu","ma","me","je","ve","sa","di") -> me | G97: =IFERROR(VLOOKUP(B97,Tableau30[],3,FALSE),IF(OR(AND($K$5<=B97,$L$5>B97),AND($K$6<=Tableau1[[#This Row],[Date]],$L$6>=Tableau1[[#This Row],[Date]])),"FERMÉE",IF(OR(Tableau1[[#This Row],[Jour]]="sa",Tableau1[[#This Row],[Jour]]="di",AND(Tableau1[[#This Row],[Jour]]="ve",MOD(Tableau1[[#This Row],[N°S]],2)=1)),"REPOS",IF(Tableau1[[#This Row],[Jour]]="ve",8,8.75)))) -> FÉRIÉ/INACTIF
B98: 2020-01-02 | C98: =_xlfn.ISOWEEKNUM(Tableau1[[#This Row],[Date]]) -> 1 | D98: =MONTH(Tableau1[[#This Row],[Date]]) -> 1 | E98: =TEXT(Tableau1[[#This Row],[Date]],"mmmm") -> janvier | F98: =CHOOSE(WEEKDAY(Tableau1[[#This Row],[Date]],2),"lu","ma","me","je","ve","sa","di") -> je | G98: =IFERROR(VLOOKUP(B98,Tableau30[],3,FALSE),IF(OR(AND($K$5<=B98,$L$5>B98),AND($K$6<=Tableau1[[#This Row],[Date]],$L$6>=Tableau1[[#This Row],[Date]])),"FERMÉE",IF(OR(Tableau1[[#This Row],[Jour]]="sa",Tableau1[[#This Row],[Jour]]="di",AND(Tableau1[[#This Row],[Jour]]="ve",MOD(Tableau1[[#This Row],[N°S]],2)=1)),"REPOS",IF(Tableau1[[#This Row],[Jour]]="ve",8,8.75)))) -> FERMÉE
B99: 2020-01-03 | C99: =_xlfn.ISOWEEKNUM(Tableau1[[#This Row],[Date]]) -> 1 | D99: =MONTH(Tableau1[[#This Row],[Date]]) -> 1 | E99: =TEXT(Tableau1[[#This Row],[Date]],"mmmm") -> janvier | F99: =CHOOSE(WEEKDAY(Tableau1[[#This Row],[Date]],2),"lu","ma","me","je","ve","sa","di") -> ve | G99: =IFERROR(VLOOKUP(B99,Tableau30[],3,FALSE),IF(OR(AND($K$5<=B99,$L$5>B99),AND($K$6<=Tableau1[[#This Row],[Date]],$L$6>=Tableau1[[#This Row],[Date]])),"FERMÉE",IF(OR(Tableau1[[#This Row],[Jour]]="sa",Tableau1[[#This Row],[Jour]]="di",AND(Tableau1[[#This Row],[Jour]]="ve",MOD(Tableau1[[#This Row],[N°S]],2)=1)),"REPOS",IF(Tableau1[[#This Row],[Jour]]="ve",8,8.75)))) -> FERMÉE
B100: 2020-01-04 | C100: =_xlfn.ISOWEEKNUM(Tableau1[[#This Row],[Date]]) -> 1 | D100: =MONTH(Tableau1[[#This Row],[Date]]) -> 1 | E100: =TEXT(Tableau1[[#This Row],[Date]],"mmmm") -> janvier | F100: =CHOOSE(WEEKDAY(Tableau1[[#This Row],[Date]],2),"lu","ma","me","je","ve","sa","di") -> sa | G100: =IFERROR(VLOOKUP(B100,Tableau30[],3,FALSE),IF(OR(AND($K$5<=B100,$L$5>B100),AND($K$6<=Tableau1[[#This Row],[Date]],$L$6>=Tableau1[[#This Row],[Date]])),"FERMÉE",IF(OR(Tableau1[[#This Row],[Jour]]="sa",Tableau1[[#This Row],[Jour]]="di",AND(Tableau1[[#This Row],[Jour]]="ve",MOD(Tableau1[[#This Row],[N°S]],2)=1)),"REPOS",IF(Tableau1[[#This Row],[Jour]]="ve",8,8.75)))) -> FERMÉE
B101: 2020-01-05 | C101: =_xlfn.ISOWEEKNUM(Tableau1[[#This Row],[Date]]) -> 1 | D101: =MONTH(Tableau1[[#This Row],[Date]]) -> 1 | E101: =TEXT(Tableau1[[#This Row],[Date]],"mmmm") -> janvier | F101: =CHOOSE(WEEKDAY(Tableau1[[#This Row],[Date]],2),"lu","ma","me","je","ve","sa","di") -> di | G101: =IFERROR(VLOOKUP(B101,Tableau30[],3,FALSE),IF(OR(AND($K$5<=B101,$L$5>B101),AND($K$6<=Tableau1[[#This Row],[Date]],$L$6>=Tableau1[[#This Row],[Date]])),"FERMÉE",IF(OR(Tableau1[[#This Row],[Jour]]="sa",Tableau1[[#This Row],[Jour]]="di",AND(Tableau1[[#This Row],[Jour]]="ve",MOD(Tableau1[[#This Row],[N°S]],2)=1)),"REPOS",IF(Tableau1[[#This Row],[Jour]]="ve",8,8.75)))) -> FERMÉE
B102: 2020-01-06 | C102: =_xlfn.ISOWEEKNUM(Tableau1[[#This Row],[Date]]) -> 2 | D102: =MONTH(Tableau1[[#This Row],[Date]]) -> 1 | E102: =TEXT(Tableau1[[#This Row],[Date]],"mmmm") -> janvier | F102: =CHOOSE(WEEKDAY(Tableau1[[#This Row],[Date]],2),"lu","ma","me","je","ve","sa","di") -> lu | G102: =IFERROR(VLOOKUP(B102,Tableau30[],3,FALSE),IF(OR(AND($K$5<=B102,$L$5>B102),AND($K$6<=Tableau1[[#This Row],[Date]],$L$6>=Tableau1[[#This Row],[Date]])),"FERMÉE",IF(OR(Tableau1[[#This Row],[Jour]]="sa",Tableau1[[#This Row],[Jour]]="di",AND(Tableau1[[#This Row],[Jour]]="ve",MOD(Tableau1[[#This Row],[N°S]],2)=1)),"REPOS",IF(Tableau1[[#This Row],[Jour]]="ve",8,8.75)))) -> 8.75
B103: 2020-01-07 | C103: =_xlfn.ISOWEEKNUM(Tableau1[[#This Row],[Date]]) -> 2 | D103: =MONTH(Tableau1[[#This Row],[Date]]) -> 1 | E103: =TEXT(Tableau1[[#This Row],[Date]],"mmmm") -> janvier | F103: =CHOOSE(WEEKDAY(Tableau1[[#This Row],[Date]],2),"lu","ma","me","je","ve","sa","di") -> ma | G103: =IFERROR(VLOOKUP(B103,Tableau30[],3,FALSE),IF(OR(AND($K$5<=B103,$L$5>B103),AND($K$6<=Tableau1[[#This Row],[Date]],$L$6>=Tableau1[[#This Row],[Date]])),"FERMÉE",IF(OR(Tableau1[[#This Row],[Jour]]="sa",Tableau1[[#This Row],[Jour]]="di",AND(Tableau1[[#This Row],[Jour]]="ve",MOD(Tableau1[[#This Row],[N°S]],2)=1)),"REPOS",IF(Tableau1[[#This Row],[Jour]]="ve",8,8.75)))) -> 8.75
B104: 2020-01-08 | C104: =_xlfn.ISOWEEKNUM(Tableau1[[#This Row],[Date]]) -> 2 | D104: =MONTH(Tableau1[[#This Row],[Date]]) -> 1 | E104: =TEXT(Tableau1[[#This Row],[Date]],"mmmm") -> janvier | F104: =CHOOSE(WEEKDAY(Tableau1[[#This Row],[Date]],2),"lu","ma","me","je","ve","sa","di") -> me | G104: =IFERROR(VLOOKUP(B104,Tableau30[],3,FALSE),IF(OR(AND($K$5<=B104,$L$5>B104),AND($K$6<=Tableau1[[#This Row],[Date]],$L$6>=Tableau1[[#This Row],[Date]])),"FERMÉE",IF(OR(Tableau1[[#This Row],[Jour]]="sa",Tableau1[[#This Row],[Jour]]="di",AND(Tableau1[[#This Row],[Jour]]="ve",MOD(Tableau1[[#This Row],[N°S]],2)=1)),"REPOS",IF(Tableau1[[#This Row],[Jour]]="ve",8,8.75)))) -> 8.75
B105: 2020-01-09 | C105: =_xlfn.ISOWEEKNUM(Tableau1[[#This Row],[Date]]) -> 2 | D105: =MONTH(Tableau1[[#This Row],[Date]]) -> 1 | E105: =TEXT(Tableau1[[#This Row],[Date]],"mmmm") -> janvier | F105: =CHOOSE(WEEKDAY(Tableau1[[#This Row],[Date]],2),"lu","ma","me","je","ve","sa","di") -> je | G105: =IFERROR(VLOOKUP(B105,Tableau30[],3,FALSE),IF(OR(AND($K$5<=B105,$L$5>B105),AND($K$6<=Tableau1[[#This Row],[Date]],$L$6>=Tableau1[[#This Row],[Date]])),"FERMÉE",IF(OR(Tableau1[[#This Row],[Jour]]="sa",Tableau1[[#This Row],[Jour]]="di",AND(Tableau1[[#This Row],[Jour]]="ve",MOD(Tableau1[[#This Row],[N°S]],2)=1)),"REPOS",IF(Tableau1[[#This Row],[Jour]]="ve",8,8.75)))) -> 8.75
B106: 2020-01-10 | C106: =_xlfn.ISOWEEKNUM(Tableau1[[#This Row],[Date]]) -> 2 | D106: =MONTH(Tableau1[[#This Row],[Date]]) -> 1 | E106: =TEXT(Tableau1[[#This Row],[Date]],"mmmm") -> janvier | F106: =CHOOSE(WEEKDAY(Tableau1[[#This Row],[Date]],2),"lu","ma","me","je","ve","sa","di") -> ve | G106: =IFERROR(VLOOKUP(B106,Tableau30[],3,FALSE),IF(OR(AND($K$5<=B106,$L$5>B106),AND($K$6<=Tableau1[[#This Row],[Date]],$L$6>=Tableau1[[#This Row],[Date]])),"FERMÉE",IF(OR(Tableau1[[#This Row],[Jour]]="sa",Tableau1[[#This Row],[Jour]]="di",AND(Tableau1[[#This Row],[Jour]]="ve",MOD(Tableau1[[#This Row],[N°S]],2)=1)),"REPOS",IF(Tableau1[[#This Row],[Jour]]="ve",8,8.75)))) -> 8
B107: 2020-01-11 | C107: =_xlfn.ISOWEEKNUM(Tableau1[[#This Row],[Date]]) -> 2 | D107: =MONTH(Tableau1[[#This Row],[Date]]) -> 1 | E107: =TEXT(Tableau1[[#This Row],[Date]],"mmmm") -> janvier | F107: =CHOOSE(WEEKDAY(Tableau1[[#This Row],[Date]],2),"lu","ma","me","je","ve","sa","di") -> sa | G107: =IFERROR(VLOOKUP(B107,Tableau30[],3,FALSE),IF(OR(AND($K$5<=B107,$L$5>B107),AND($K$6<=Tableau1[[#This Row],[Date]],$L$6>=Tableau1[[#This Row],[Date]])),"FERMÉE",IF(OR(Tableau1[[#This Row],[Jour]]="sa",Tableau1[[#This Row],[Jour]]="di",AND(Tableau1[[#This Row],[Jour]]="ve",MOD(Tableau1[[#This Row],[N°S]],2)=1)),"REPOS",IF(Tableau1[[#This Row],[Jour]]="ve",8,8.75)))) -> REPOS
B108: 2020-01-12 | C108: =_xlfn.ISOWEEKNUM(Tableau1[[#This Row],[Date]]) -> 2 | D108: =MONTH(Tableau1[[#This Row],[Date]]) -> 1 | E108: =TEXT(Tableau1[[#This Row],[Date]],"mmmm") -> janvier | F108: =CHOOSE(WEEKDAY(Tableau1[[#This Row],[Date]],2),"lu","ma","me","je","ve","sa","di") -> di | G108: =IFERROR(VLOOKUP(B108,Tableau30[],3,FALSE),IF(OR(AND($K$5<=B108,$L$5>B108),AND($K$6<=Tableau1[[#This Row],[Date]],$L$6>=Tableau1[[#This Row],[Date]])),"FERMÉE",IF(OR(Tableau1[[#This Row],[Jour]]="sa",Tableau1[[#This Row],[Jour]]="di",AND(Tableau1[[#This Row],[Jour]]="ve",MOD(Tableau1[[#This Row],[N°S]],2)=1)),"REPOS",IF(Tableau1[[#This Row],[Jour]]="ve",8,8.75)))) -> REPOS
B109: 2020-01-13 | C109: =_xlfn.ISOWEEKNUM(Tableau1[[#This Row],[Date]]) -> 3 | D109: =MONTH(Tableau1[[#This Row],[Date]]) -> 1 | E109: =TEXT(Tableau1[[#This Row],[Date]],"mmmm") -> janvier | F109: =CHOOSE(WEEKDAY(Tableau1[[#This Row],[Date]],2),"lu","ma","me","je","ve","sa","di") -> lu | G109: =IFERROR(VLOOKUP(B109,Tableau30[],3,FALSE),IF(OR(AND($K$5<=B109,$L$5>B109),AND($K$6<=Tableau1[[#This Row],[Date]],$L$6>=Tableau1[[#This Row],[Date]])),"FERMÉE",IF(OR(Tableau1[[#This Row],[Jour]]="sa",Tableau1[[#This Row],[Jour]]="di",AND(Tableau1[[#This Row],[Jour]]="ve",MOD(Tableau1[[#This Row],[N°S]],2)=1)),"REPOS",IF(Tableau1[[#This Row],[Jour]]="ve",8,8.75)))) -> 8.75
B110: 2020-01-14 | C110: =_xlfn.ISOWEEKNUM(Tableau1[[#This Row],[Date]]) -> 3 | D110: =MONTH(Tableau1[[#This Row],[Date]]) -> 1 | E110: =TEXT(Tableau1[[#This Row],[Date]],"mmmm") -> janvier | F110: =CHOOSE(WEEKDAY(Tableau1[[#This Row],[Date]],2),"lu","ma","me","je","ve","sa","di") -> ma | G110: =IFERROR(VLOOKUP(B110,Tableau30[],3,FALSE),IF(OR(AND($K$5<=B110,$L$5>B110),AND($K$6<=Tableau1[[#This Row],[Date]],$L$6>=Tableau1[[#This Row],[Date]])),"FERMÉE",IF(OR(Tableau1[[#This Row],[Jour]]="sa",Tableau1[[#This Row],[Jour]]="di",AND(Tableau1[[#This Row],[Jour]]="ve",MOD(Tableau1[[#This Row],[N°S]],2)=1)),"REPOS",IF(Tableau1[[#This Row],[Jour]]="ve",8,8.75)))) -> 8.75
B111: 2020-01-15 | C111: =_xlfn.ISOWEEKNUM(Tableau1[[#This Row],[Date]]) -> 3 | D111: =MONTH(Tableau1[[#This Row],[Date]]) -> 1 | E111: =TEXT(Tableau1[[#This Row],[Date]],"mmmm") -> janvier | F111: =CHOOSE(WEEKDAY(Tableau1[[#This Row],[Date]],2),"lu","ma","me","je","ve","sa","di") -> me | G111: =IFERROR(VLOOKUP(B111,Tableau30[],3,FALSE),IF(OR(AND($K$5<=B111,$L$5>B111),AND($K$6<=Tableau1[[#This Row],[Date]],$L$6>=Tableau1[[#This Row],[Date]])),"FERMÉE",IF(OR(Tableau1[[#This Row],[Jour]]="sa",Tableau1[[#This Row],[Jour]]="di",AND(Tableau1[[#This Row],[Jour]]="ve",MOD(Tableau1[[#This Row],[N°S]],2)=1)),"REPOS",IF(Tableau1[[#This Row],[Jour]]="ve",8,8.75)))) -> 8.75
B112: 2020-01-16 | C112: =_xlfn.ISOWEEKNUM(Tableau1[[#This Row],[Date]]) -> 3 | D112: =MONTH(Tableau1[[#This Row],[Date]]) -> 1 | E112: =TEXT(Tableau1[[#This Row],[Date]],"mmmm") -> janvier | F112: =CHOOSE(WEEKDAY(Tableau1[[#This Row],[Date]],2),"lu","ma","me","je","ve","sa","di") -> je | G112: =IFERROR(VLOOKUP(B112,Tableau30[],3,FALSE),IF(OR(AND($K$5<=B112,$L$5>B112),AND($K$6<=Tableau1[[#This Row],[Date]],$L$6>=Tableau1[[#This Row],[Date]])),"FERMÉE",IF(OR(Tableau1[[#This Row],[Jour]]="sa",Tableau1[[#This Row],[Jour]]="di",AND(Tableau1[[#This Row],[Jour]]="ve",MOD(Tableau1[[#This Row],[N°S]],2)=1)),"REPOS",IF(Tableau1[[#This Row],[Jour]]="ve",8,8.75)))) -> 8.75
B113: 2020-01-17 | C113: =_xlfn.ISOWEEKNUM(Tableau1[[#This Row],[Date]]) -> 3 | D113: =MONTH(Tableau1[[#This Row],[Date]]) -> 1 | E113: =TEXT(Tableau1[[#This Row],[Date]],"mmmm") -> janvier | F113: =CHOOSE(WEEKDAY(Tableau1[[#This Row],[Date]],2),"lu","ma","me","je","ve","sa","di") -> ve | G113: =IFERROR(VLOOKUP(B113,Tableau30[],3,FALSE),IF(OR(AND($K$5<=B113,$L$5>B113),AND($K$6<=Tableau1[[#This Row],[Date]],$L$6>=Tableau1[[#This Row],[Date]])),"FERMÉE",IF(OR(Tableau1[[#This Row],[Jour]]="sa",Tableau1[[#This Row],[Jour]]="di",AND(Tableau1[[#This Row],[Jour]]="ve",MOD(Tableau1[[#This Row],[N°S]],2)=1)),"REPOS",IF(Tableau1[[#This Row],[Jour]]="ve",8,8.75)))) -> REPOS
B114: 2020-01-18 | C114: =_xlfn.ISOWEEKNUM(Tableau1[[#This Row],[Date]]) -> 3 | D114: =MONTH(Tableau1[[#This Row],[Date]]) -> 1 | E114: =TEXT(Tableau1[[#This Row],[Date]],"mmmm") -> janvier | F114: =CHOOSE(WEEKDAY(Tableau1[[#This Row],[Date]],2),"lu","ma","me","je","ve","sa","di") -> sa | G114: =IFERROR(VLOOKUP(B114,Tableau30[],3,FALSE),IF(OR(AND($K$5<=B114,$L$5>B114),AND($K$6<=Tableau1[[#This Row],[Date]],$L$6>=Tableau1[[#This Row],[Date]])),"FERMÉE",IF(OR(Tableau1[[#This Row],[Jour]]="sa",Tableau1[[#This Row],[Jour]]="di",AND(Tableau1[[#This Row],[Jour]]="ve",MOD(Tableau1[[#This Row],[N°S]],2)=1)),"REPOS",IF(Tableau1[[#This Row],[Jour]]="ve",8,8.75)))) -> REPOS
B115: 2020-01-19 | C115: =_xlfn.ISOWEEKNUM(Tableau1[[#This Row],[Date]]) -> 3 | D115: =MONTH(Tableau1[[#This Row],[Date]]) -> 1 | E115: =TEXT(Tableau1[[#This Row],[Date]],"mmmm") -> janvier | F115: =CHOOSE(WEEKDAY(Tableau1[[#This Row],[Date]],2),"lu","ma","me","je","ve","sa","di") -> di | G115: =IFERROR(VLOOKUP(B115,Tableau30[],3,FALSE),IF(OR(AND($K$5<=B115,$L$5>B115),AND($K$6<=Tableau1[[#This Row],[Date]],$L$6>=Tableau1[[#This Row],[Date]])),"FERMÉE",IF(OR(Tableau1[[#This Row],[Jour]]="sa",Tableau1[[#This Row],[Jour]]="di",AND(Tableau1[[#This Row],[Jour]]="ve",MOD(Tableau1[[#This Row],[N°S]],2)=1)),"REPOS",IF(Tableau1[[#This Row],[Jour]]="ve",8,8.75)))) -> REPOS
B116: 2020-01-20 | C116: =_xlfn.ISOWEEKNUM(Tableau1[[#This Row],[Date]]) -> 4 | D116: =MONTH(Tableau1[[#This Row],[Date]]) -> 1 | E116: =TEXT(Tableau1[[#This Row],[Date]],"mmmm") -> janvier | F116: =CHOOSE(WEEKDAY(Tableau1[[#This Row],[Date]],2),"lu","ma","me","je","ve","sa","di") -> lu | G116: =IFERROR(VLOOKUP(B116,Tableau30[],3,FALSE),IF(OR(AND($K$5<=B116,$L$5>B116),AND($K$6<=Tableau1[[#This Row],[Date]],$L$6>=Tableau1[[#This Row],[Date]])),"FERMÉE",IF(OR(Tableau1[[#This Row],[Jour]]="sa",Tableau1[[#This Row],[Jour]]="di",AND(Tableau1[[#This Row],[Jour]]="ve",MOD(Tableau1[[#This Row],[N°S]],2)=1)),"REPOS",IF(Tableau1[[#This Row],[Jour]]="ve",8,8.75)))) -> 8.75
B117: 2020-01-21 | C117: =_xlfn.ISOWEEKNUM(Tableau1[[#This Row],[Date]]) -> 4 | D117: =MONTH(Tableau1[[#This Row],[Date]]) -> 1 | E117: =TEXT(Tableau1[[#This Row],[Date]],"mmmm") -> janvier | F117: =CHOOSE(WEEKDAY(Tableau1[[#This Row],[Date]],2),"lu","ma","me","je","ve","sa","di") -> ma | G117: =IFERROR(VLOOKUP(B117,Tableau30[],3,FALSE),IF(OR(AND($K$5<=B117,$L$5>B117),AND($K$6<=Tableau1[[#This Row],[Date]],$L$6>=Tableau1[[#This Row],[Date]])),"FERMÉE",IF(OR(Tableau1[[#This Row],[Jour]]="sa",Tableau1[[#This Row],[Jour]]="di",AND(Tableau1[[#This Row],[Jour]]="ve",MOD(Tableau1[[#This Row],[N°S]],2)=1)),"REPOS",IF(Tableau1[[#This Row],[Jour]]="ve",8,8.75)))) -> 8.75
B118: 2020-01-22 | C118: =_xlfn.ISOWEEKNUM(Tableau1[[#This Row],[Date]]) -> 4 | D118: =MONTH(Tableau1[[#This Row],[Date]]) -> 1 | E118: =TEXT(Tableau1[[#This Row],[Date]],"mmmm") -> janvier | F118: =CHOOSE(WEEKDAY(Tableau1[[#This Row],[Date]],2),"lu","ma","me","je","ve","sa","di") -> me | G118: =IFERROR(VLOOKUP(B118,Tableau30[],3,FALSE),IF(OR(AND($K$5<=B118,$L$5>B118),AND($K$6<=Tableau1[[#This Row],[Date]],$L$6>=Tableau1[[#This Row],[Date]])),"FERMÉE",IF(OR(Tableau1[[#This Row],[Jour]]="sa",Tableau1[[#This Row],[Jour]]="di",AND(Tableau1[[#This Row],[Jour]]="ve",MOD(Tableau1[[#This Row],[N°S]],2)=1)),"REPOS",IF(Tableau1[[#This Row],[Jour]]="ve",8,8.75)))) -> 8.75
B119: 2020-01-23 | C119: =_xlfn.ISOWEEKNUM(Tableau1[[#This Row],[Date]]) -> 4 | D119: =MONTH(Tableau1[[#This Row],[Date]]) -> 1 | E119: =TEXT(Tableau1[[#This Row],[Date]],"mmmm") -> janvier | F119: =CHOOSE(WEEKDAY(Tableau1[[#This Row],[Date]],2),"lu","ma","me","je","ve","sa","di") -> je | G119: =IFERROR(VLOOKUP(B119,Tableau30[],3,FALSE),IF(OR(AND($K$5<=B119,$L$5>B119),AND($K$6<=Tableau1[[#This Row],[Date]],$L$6>=Tableau1[[#This Row],[Date]])),"FERMÉE",IF(OR(Tableau1[[#This Row],[Jour]]="sa",Tableau1[[#This Row],[Jour]]="di",AND(Tableau1[[#This Row],[Jour]]="ve",MOD(Tableau1[[#This Row],[N°S]],2)=1)),"REPOS",IF(Tableau1[[#This Row],[Jour]]="ve",8,8.75)))) -> 8.75
B120: 2020-01-24 | C120: =_xlfn.ISOWEEKNUM(Tableau1[[#This Row],[Date]]) -> 4 | D120: =MONTH(Tableau1[[#This Row],[Date]]) -> 1 | E120: =TEXT(Tableau1[[#This Row],[Date]],"mmmm") -> janvier | F120: =CHOOSE(WEEKDAY(Tableau1[[#This Row],[Date]],2),"lu","ma","me","je","ve","sa","di") -> ve | G120: =IFERROR(VLOOKUP(B120,Tableau30[],3,FALSE),IF(OR(AND($K$5<=B120,$L$5>B120),AND($K$6<=Tableau1[[#This Row],[Date]],$L$6>=Tableau1[[#This Row],[Date]])),"FERMÉE",IF(OR(Tableau1[[#This Row],[Jour]]="sa",Tableau1[[#This Row],[Jour]]="di",AND(Tableau1[[#This Row],[Jour]]="ve",MOD(Tableau1[[#This Row],[N°S]],2)=1)),"REPOS",IF(Tableau1[[#This Row],[Jour]]="ve",8,8.75)))) -> 8
B121: 2020-01-25 | C121: =_xlfn.ISOWEEKNUM(Tableau1[[#This Row],[Date]]) -> 4 | D121: =MONTH(Tableau1[[#This Row],[Date]]) -> 1 | E121: =TEXT(Tableau1[[#This Row],[Date]],"mmmm") -> janvier | F121: =CHOOSE(WEEKDAY(Tableau1[[#This Row],[Date]],2),"lu","ma","me","je","ve","sa","di") -> sa | G121: =IFERROR(VLOOKUP(B121,Tableau30[],3,FALSE),IF(OR(AND($K$5<=B121,$L$5>B121),AND($K$6<=Tableau1[[#This Row],[Date]],$L$6>=Tableau1[[#This Row],[Date]])),"FERMÉE",IF(OR(Tableau1[[#This Row],[Jour]]="sa",Tableau1[[#This Row],[Jour]]="di",AND(Tableau1[[#This Row],[Jour]]="ve",MOD(Tableau1[[#This Row],[N°S]],2)=1)),"REPOS",IF(Tableau1[[#This Row],[Jour]]="ve",8,8.75)))) -> REPOS
B122: 2020-01-26 | C122: =_xlfn.ISOWEEKNUM(Tableau1[[#This Row],[Date]]) -> 4 | D122: =MONTH(Tableau1[[#This Row],[Date]]) -> 1 | E122: =TEXT(Tableau1[[#This Row],[Date]],"mmmm") -> janvier | F122: =CHOOSE(WEEKDAY(Tableau1[[#This Row],[Date]],2),"lu","ma","me","je","ve","sa","di") -> di | G122: =IFERROR(VLOOKUP(B122,Tableau30[],3,FALSE),IF(OR(AND($K$5<=B122,$L$5>B122),AND($K$6<=Tableau1[[#This Row],[Date]],$L$6>=Tableau1[[#This Row],[Date]])),"FERMÉE",IF(OR(Tableau1[[#This Row],[Jour]]="sa",Tableau1[[#This Row],[Jour]]="di",AND(Tableau1[[#This Row],[Jour]]="ve",MOD(Tableau1[[#This Row],[N°S]],2)=1)),"REPOS",IF(Tableau1[[#This Row],[Jour]]="ve",8,8.75)))) -> REPOS
B123: 2020-01-27 | C123: =_xlfn.ISOWEEKNUM(Tableau1[[#This Row],[Date]]) -> 5 | D123: =MONTH(Tableau1[[#This Row],[Date]]) -> 1 | E123: =TEXT(Tableau1[[#This Row],[Date]],"mmmm") -> janvier | F123: =CHOOSE(WEEKDAY(Tableau1[[#This Row],[Date]],2),"lu","ma","me","je","ve","sa","di") -> lu | G123: =IFERROR(VLOOKUP(B123,Tableau30[],3,FALSE),IF(OR(AND($K$5<=B123,$L$5>B123),AND($K$6<=Tableau1[[#This Row],[Date]],$L$6>=Tableau1[[#This Row],[Date]])),"FERMÉE",IF(OR(Tableau1[[#This Row],[Jour]]="sa",Tableau1[[#This Row],[Jour]]="di",AND(Tableau1[[#This Row],[Jour]]="ve",MOD(Tableau1[[#This Row],[N°S]],2)=1)),"REPOS",IF(Tableau1[[#This Row],[Jour]]="ve",8,8.75)))) -> 8.75
B124: 2020-01-28 | C124: =_xlfn.ISOWEEKNUM(Tableau1[[#This Row],[Date]]) -> 5 | D124: =MONTH(Tableau1[[#This Row],[Date]]) -> 1 | E124: =TEXT(Tableau1[[#This Row],[Date]],"mmmm") -> janvier | F124: =CHOOSE(WEEKDAY(Tableau1[[#This Row],[Date]],2),"lu","ma","me","je","ve","sa","di") -> ma | G124: =IFERROR(VLOOKUP(B124,Tableau30[],3,FALSE),IF(OR(AND($K$5<=B124,$L$5>B124),AND($K$6<=Tableau1[[#This Row],[Date]],$L$6>=Tableau1[[#This Row],[Date]])),"FERMÉE",IF(OR(Tableau1[[#This Row],[Jour]]="sa",Tableau1[[#This Row],[Jour]]="di",AND(Tableau1[[#This Row],[Jour]]="ve",MOD(Tableau1[[#This Row],[N°S]],2)=1)),"REPOS",IF(Tableau1[[#This Row],[Jour]]="ve",8,8.75)))) -> 8.75
B125: 2020-01-29 | C125: =_xlfn.ISOWEEKNUM(Tableau1[[#This Row],[Date]]) -> 5 | D125: =MONTH(Tableau1[[#This Row],[Date]]) -> 1 | E125: =TEXT(Tableau1[[#This Row],[Date]],"mmmm") -> janvier | F125: =CHOOSE(WEEKDAY(Tableau1[[#This Row],[Date]],2),"lu","ma","me","je","ve","sa","di") -> me | G125: =IFERROR(VLOOKUP(B125,Tableau30[],3,FALSE),IF(OR(AND($K$5<=B125,$L$5>B125),AND($K$6<=Tableau1[[#This Row],[Date]],$L$6>=Tableau1[[#This Row],[Date]])),"FERMÉE",IF(OR(Tableau1[[#This Row],[Jour]]="sa",Tableau1[[#This Row],[Jour]]="di",AND(Tableau1[[#This Row],[Jour]]="ve",MOD(Tableau1[[#This Row],[N°S]],2)=1)),"REPOS",IF(Tableau1[[#This Row],[Jour]]="ve",8,8.75)))) -> 8.75
B126: 2020-01-30 | C126: =_xlfn.ISOWEEKNUM(Tableau1[[#This Row],[Date]]) -> 5 | D126: =MONTH(Tableau1[[#This Row],[Date]]) -> 1 | E126: =TEXT(Tableau1[[#This Row],[Date]],"mmmm") -> janvier | F126: =CHOOSE(WEEKDAY(Tableau1[[#This Row],[Date]],2),"lu","ma","me","je","ve","sa","di") -> je | G126: =IFERROR(VLOOKUP(B126,Tableau30[],3,FALSE),IF(OR(AND($K$5<=B126,$L$5>B126),AND($K$6<=Tableau1[[#This Row],[Date]],$L$6>=Tableau1[[#This Row],[Date]])),"FERMÉE",IF(OR(Tableau1[[#This Row],[Jour]]="sa",Tableau1[[#This Row],[Jour]]="di",AND(Tableau1[[#This Row],[Jour]]="ve",MOD(Tableau1[[#This Row],[N°S]],2)=1)),"REPOS",IF(Tableau1[[#This Row],[Jour]]="ve",8,8.75)))) -> 8.75
B127: 2020-01-31 | C127: =_xlfn.ISOWEEKNUM(Tableau1[[#This Row],[Date]]) -> 5 | D127: =MONTH(Tableau1[[#This Row],[Date]]) -> 1 | E127: =TEXT(Tableau1[[#This Row],[Date]],"mmmm") -> janvier | F127: =CHOOSE(WEEKDAY(Tableau1[[#This Row],[Date]],2),"lu","ma","me","je","ve","sa","di") -> ve | G127: =IFERROR(VLOOKUP(B127,Tableau30[],3,FALSE),IF(OR(AND($K$5<=B127,$L$5>B127),AND($K$6<=Tableau1[[#This Row],[Date]],$L$6>=Tableau1[[#This Row],[Date]])),"FERMÉE",IF(OR(Tableau1[[#This Row],[Jour]]="sa",Tableau1[[#This Row],[Jour]]="di",AND(Tableau1[[#This Row],[Jour]]="ve",MOD(Tableau1[[#This Row],[N°S]],2)=1)),"REPOS",IF(Tableau1[[#This Row],[Jour]]="ve",8,8.75)))) -> REPOS
B128: 2020-02-01 | C128: =_xlfn.ISOWEEKNUM(Tableau1[[#This Row],[Date]]) -> 5 | D128: =MONTH(Tableau1[[#This Row],[Date]]) -> 2 | E128: =TEXT(Tableau1[[#This Row],[Date]],"mmmm") -> février | F128: =CHOOSE(WEEKDAY(Tableau1[[#This Row],[Date]],2),"lu","ma","me","je","ve","sa","di") -> sa | G128: =IFERROR(VLOOKUP(B128,Tableau30[],3,FALSE),IF(OR(AND($K$5<=B128,$L$5>B128),AND($K$6<=Tableau1[[#This Row],[Date]],$L$6>=Tableau1[[#This Row],[Date]])),"FERMÉE",IF(OR(Tableau1[[#This Row],[Jour]]="sa",Tableau1[[#This Row],[Jour]]="di",AND(Tableau1[[#This Row],[Jour]]="ve",MOD(Tableau1[[#This Row],[N°S]],2)=1)),"REPOS",IF(Tableau1[[#This Row],[Jour]]="ve",8,8.75)))) -> REPOS
B129: 2020-02-02 | C129: =_xlfn.ISOWEEKNUM(Tableau1[[#This Row],[Date]]) -> 5 | D129: =MONTH(Tableau1[[#This Row],[Date]]) -> 2 | E129: =TEXT(Tableau1[[#This Row],[Date]],"mmmm") -> février | F129: =CHOOSE(WEEKDAY(Tableau1[[#This Row],[Date]],2),"lu","ma","me","je","ve","sa","di") -> di | G129: =IFERROR(VLOOKUP(B129,Tableau30[],3,FALSE),IF(OR(AND($K$5<=B129,$L$5>B129),AND($K$6<=Tableau1[[#This Row],[Date]],$L$6>=Tableau1[[#This Row],[Date]])),"FERMÉE",IF(OR(Tableau1[[#This Row],[Jour]]="sa",Tableau1[[#This Row],[Jour]]="di",AND(Tableau1[[#This Row],[Jour]]="ve",MOD(Tableau1[[#This Row],[N°S]],2)=1)),"REPOS",IF(Tableau1[[#This Row],[Jour]]="ve",8,8.75)))) -> REPOS
B130: 2020-02-03 | C130: =_xlfn.ISOWEEKNUM(Tableau1[[#This Row],[Date]]) -> 6 | D130: =MONTH(Tableau1[[#This Row],[Date]]) -> 2 | E130: =TEXT(Tableau1[[#This Row],[Date]],"mmmm") -> février | F130: =CHOOSE(WEEKDAY(Tableau1[[#This Row],[Date]],2),"lu","ma","me","je","ve","sa","di") -> lu | G130: =IFERROR(VLOOKUP(B130,Tableau30[],3,FALSE),IF(OR(AND($K$5<=B130,$L$5>B130),AND($K$6<=Tableau1[[#This Row],[Date]],$L$6>=Tableau1[[#This Row],[Date]])),"FERMÉE",IF(OR(Tableau1[[#This Row],[Jour]]="sa",Tableau1[[#This Row],[Jour]]="di",AND(Tableau1[[#This Row],[Jour]]="ve",MOD(Tableau1[[#This Row],[N°S]],2)=1)),"REPOS",IF(Tableau1[[#This Row],[Jour]]="ve",8,8.75)))) -> 8.75
B131: 2020-02-04 | C131: =_xlfn.ISOWEEKNUM(Tableau1[[#This Row],[Date]]) -> 6 | D131: =MONTH(Tableau1[[#This Row],[Date]]) -> 2 | E131: =TEXT(Tableau1[[#This Row],[Date]],"mmmm") -> février | F131: =CHOOSE(WEEKDAY(Tableau1[[#This Row],[Date]],2),"lu","ma","me","je","ve","sa","di") -> ma | G131: =IFERROR(VLOOKUP(B131,Tableau30[],3,FALSE),IF(OR(AND($K$5<=B131,$L$5>B131),AND($K$6<=Tableau1[[#This Row],[Date]],$L$6>=Tableau1[[#This Row],[Date]])),"FERMÉE",IF(OR(Tableau1[[#This Row],[Jour]]="sa",Tableau1[[#This Row],[Jour]]="di",AND(Tableau1[[#This Row],[Jour]]="ve",MOD(Tableau1[[#This Row],[N°S]],2)=1)),"REPOS",IF(Tableau1[[#This Row],[Jour]]="ve",8,8.75)))) -> 8.75
B132: 2020-02-05 | C132: =_xlfn.ISOWEEKNUM(Tableau1[[#This Row],[Date]]) -> 6 | D132: =MONTH(Tableau1[[#This Row],[Date]]) -> 2 | E132: =TEXT(Tableau1[[#This Row],[Date]],"mmmm") -> février | F132: =CHOOSE(WEEKDAY(Tableau1[[#This Row],[Date]],2),"lu","ma","me","je","ve","sa","di") -> me | G132: =IFERROR(VLOOKUP(B132,Tableau30[],3,FALSE),IF(OR(AND($K$5<=B132,$L$5>B132),AND($K$6<=Tableau1[[#This Row],[Date]],$L$6>=Tableau1[[#This Row],[Date]])),"FERMÉE",IF(OR(Tableau1[[#This Row],[Jour]]="sa",Tableau1[[#This Row],[Jour]]="di",AND(Tableau1[[#This Row],[Jour]]="ve",MOD(Tableau1[[#This Row],[N°S]],2)=1)),"REPOS",IF(Tableau1[[#This Row],[Jour]]="ve",8,8.75)))) -> 8.75
B133: 2020-02-06 | C133: =_xlfn.ISOWEEKNUM(Tableau1[[#This Row],[Date]]) -> 6 | D133: =MONTH(Tableau1[[#This Row],[Date]]) -> 2 | E133: =TEXT(Tableau1[[#This Row],[Date]],"mmmm") -> février | F133: =CHOOSE(WEEKDAY(Tableau1[[#This Row],[Date]],2),"lu","ma","me","je","ve","sa","di") -> je | G133: =IFERROR(VLOOKUP(B133,Tableau30[],3,FALSE),IF(OR(AND($K$5<=B133,$L$5>B133),AND($K$6<=Tableau1[[#This Row],[Date]],$L$6>=Tableau1[[#This Row],[Date]])),"FERMÉE",IF(OR(Tableau1[[#This Row],[Jour]]="sa",Tableau1[[#This Row],[Jour]]="di",AND(Tableau1[[#This Row],[Jour]]="ve",MOD(Tableau1[[#This Row],[N°S]],2)=1)),"REPOS",IF(Tableau1[[#This Row],[Jour]]="ve",8,8.75)))) -> 8.75
B134: 2020-02-07 | C134: =_xlfn.ISOWEEKNUM(Tableau1[[#This Row],[Date]]) -> 6 | D134: =MONTH(Tableau1[[#This Row],[Date]]) -> 2 | E134: =TEXT(Tableau1[[#This Row],[Date]],"mmmm") -> février | F134: =CHOOSE(WEEKDAY(Tableau1[[#This Row],[Date]],2),"lu","ma","me","je","ve","sa","di") -> ve | G134: =IFERROR(VLOOKUP(B134,Tableau30[],3,FALSE),IF(OR(AND($K$5<=B134,$L$5>B134),AND($K$6<=Tableau1[[#This Row],[Date]],$L$6>=Tableau1[[#This Row],[Date]])),"FERMÉE",IF(OR(Tableau1[[#This Row],[Jour]]="sa",Tableau1[[#This Row],[Jour]]="di",AND(Tableau1[[#This Row],[Jour]]="ve",MOD(Tableau1[[#This Row],[N°S]],2)=1)),"REPOS",IF(Tableau1[[#This Row],[Jour]]="ve",8,8.75)))) -> 8
B135: =B134+1 -> 2020-02-08 | C135: =_xlfn.ISOWEEKNUM(Tableau1[[#This Row],[Date]]) -> 6 | D135: =MONTH(Tableau1[[#This Row],[Date]]) -> 2 | E135: =TEXT(Tableau1[[#This Row],[Date]],"mmmm") -> février | F135: =CHOOSE(WEEKDAY(Tableau1[[#This Row],[Date]],2),"lu","ma","me","je","ve","sa","di") -> sa | G135: =IFERROR(VLOOKUP(B135,Tableau30[],3,FALSE),IF(OR(AND($K$5<=B135,$L$5>B135),AND($K$6<=Tableau1[[#This Row],[Date]],$L$6>=Tableau1[[#This Row],[Date]])),"FERMÉE",IF(OR(Tableau1[[#This Row],[Jour]]="sa",Tableau1[[#This Row],[Jour]]="di",AND(Tableau1[[#This Row],[Jour]]="ve",MOD(Tableau1[[#This Row],[N°S]],2)=1)),"REPOS",IF(Tableau1[[#This Row],[Jour]]="ve",8,8.75)))) -> REPOS
B136: 2020-02-09 | C136: =_xlfn.ISOWEEKNUM(Tableau1[[#This Row],[Date]]) -> 6 | D136: =MONTH(Tableau1[[#This Row],[Date]]) -> 2 | E136: =TEXT(Tableau1[[#This Row],[Date]],"mmmm") -> février | F136: =CHOOSE(WEEKDAY(Tableau1[[#This Row],[Date]],2),"lu","ma","me","je","ve","sa","di") -> di | G136: =IFERROR(VLOOKUP(B136,Tableau30[],3,FALSE),IF(OR(AND($K$5<=B136,$L$5>B136),AND($K$6<=Tableau1[[#This Row],[Date]],$L$6>=Tableau1[[#This Row],[Date]])),"FERMÉE",IF(OR(Tableau1[[#This Row],[Jour]]="sa",Tableau1[[#This Row],[Jour]]="di",AND(Tableau1[[#This Row],[Jour]]="ve",MOD(Tableau1[[#This Row],[N°S]],2)=1)),"REPOS",IF(Tableau1[[#This Row],[Jour]]="ve",8,8.75)))) -> REPOS
B137: 2020-02-10 | C137: =_xlfn.ISOWEEKNUM(Tableau1[[#This Row],[Date]]) -> 7 | D137: =MONTH(Tableau1[[#This Row],[Date]]) -> 2 | E137: =TEXT(Tableau1[[#This Row],[Date]],"mmmm") -> février | F137: =CHOOSE(WEEKDAY(Tableau1[[#This Row],[Date]],2),"lu","ma","me","je","ve","sa","di") -> lu | G137: =IFERROR(VLOOKUP(B137,Tableau30[],3,FALSE),IF(OR(AND($K$5<=B137,$L$5>B137),AND($K$6<=Tableau1[[#This Row],[Date]],$L$6>=Tableau1[[#This Row],[Date]])),"FERMÉE",IF(OR(Tableau1[[#This Row],[Jour]]="sa",Tableau1[[#This Row],[Jour]]="di",AND(Tableau1[[#This Row],[Jour]]="ve",MOD(Tableau1[[#This Row],[N°S]],2)=1)),"REPOS",IF(Tableau1[[#This Row],[Jour]]="ve",8,8.75)))) -> 8.75
B138: 2020-02-11 | C138: =_xlfn.ISOWEEKNUM(Tableau1[[#This Row],[Date]]) -> 7 | D138: =MONTH(Tableau1[[#This Row],[Date]]) -> 2 | E138: =TEXT(Tableau1[[#This Row],[Date]],"mmmm") -> février | F138: =CHOOSE(WEEKDAY(Tableau1[[#This Row],[Date]],2),"lu","ma","me","je","ve","sa","di") -> ma | G138: =IFERROR(VLOOKUP(B138,Tableau30[],3,FALSE),IF(OR(AND($K$5<=B138,$L$5>B138),AND($K$6<=Tableau1[[#This Row],[Date]],$L$6>=Tableau1[[#This Row],[Date]])),"FERMÉE",IF(OR(Tableau1[[#This Row],[Jour]]="sa",Tableau1[[#This Row],[Jour]]="di",AND(Tableau1[[#This Row],[Jour]]="ve",MOD(Tableau1[[#This Row],[N°S]],2)=1)),"REPOS",IF(Tableau1[[#This Row],[Jour]]="ve",8,8.75)))) -> 8.75
B139: 2020-02-12 | C139: =_xlfn.ISOWEEKNUM(Tableau1[[#This Row],[Date]]) -> 7 | D139: =MONTH(Tableau1[[#This Row],[Date]]) -> 2 | E139: =TEXT(Tableau1[[#This Row],[Date]],"mmmm") -> février | F139: =CHOOSE(WEEKDAY(Tableau1[[#This Row],[Date]],2),"lu","ma","me","je","ve","sa","di") -> me | G139: =IFERROR(VLOOKUP(B139,Tableau30[],3,FALSE),IF(OR(AND($K$5<=B139,$L$5>B139),AND($K$6<=Tableau1[[#This Row],[Date]],$L$6>=Tableau1[[#This Row],[Date]])),"FERMÉE",IF(OR(Tableau1[[#This Row],[Jour]]="sa",Tableau1[[#This Row],[Jour]]="di",AND(Tableau1[[#This Row],[Jour]]="ve",MOD(Tableau1[[#This Row],[N°S]],2)=1)),"REPOS",IF(Tableau1[[#This Row],[Jour]]="ve",8,8.75)))) -> 8.75
B140: 2020-02-13 | C140: =_xlfn.ISOWEEKNUM(Tableau1[[#This Row],[Date]]) -> 7 | D140: =MONTH(Tableau1[[#This Row],[Date]]) -> 2 | E140: =TEXT(Tableau1[[#This Row],[Date]],"mmmm") -> février | F140: =CHOOSE(WEEKDAY(Tableau1[[#This Row],[Date]],2),"lu","ma","me","je","ve","sa","di") -> je | G140: =IFERROR(VLOOKUP(B140,Tableau30[],3,FALSE),IF(OR(AND($K$5<=B140,$L$5>B140),AND($K$6<=Tableau1[[#This Row],[Date]],$L$6>=Tableau1[[#This Row],[Date]])),"FERMÉE",IF(OR(Tableau1[[#This Row],[Jour]]="sa",Tableau1[[#This Row],[Jour]]="di",AND(Tableau1[[#This Row],[Jour]]="ve",MOD(Tableau1[[#This Row],[N°S]],2)=1)),"REPOS",IF(Tableau1[[#This Row],[Jour]]="ve",8,8.75)))) -> 8.75
B141: 2020-02-14 | C141: =_xlfn.ISOWEEKNUM(Tableau1[[#This Row],[Date]]) -> 7 | D141: =MONTH(Tableau1[[#This Row],[Date]]) -> 2 | E141: =TEXT(Tableau1[[#This Row],[Date]],"mmmm") -> février | F141: =CHOOSE(WEEKDAY(Tableau1[[#This Row],[Date]],2),"lu","ma","me","je","ve","sa","di") -> ve | G141: =IFERROR(VLOOKUP(B141,Tableau30[],3,FALSE),IF(OR(AND($K$5<=B141,$L$5>B141),AND($K$6<=Tableau1[[#This Row],[Date]],$L$6>=Tableau1[[#This Row],[Date]])),"FERMÉE",IF(OR(Tableau1[[#This Row],[Jour]]="sa",Tableau1[[#This Row],[Jour]]="di",AND(Tableau1[[#This Row],[Jour]]="ve",MOD(Tableau1[[#This Row],[N°S]],2)=1)),"REPOS",IF(Tableau1[[#This Row],[Jour]]="ve",8,8.75)))) -> REPOS
B142: 2020-02-15 | C142: =_xlfn.ISOWEEKNUM(Tableau1[[#This Row],[Date]]) -> 7 | D142: =MONTH(Tableau1[[#This Row],[Date]]) -> 2 | E142: =TEXT(Tableau1[[#This Row],[Date]],"mmmm") -> février | F142: =CHOOSE(WEEKDAY(Tableau1[[#This Row],[Date]],2),"lu","ma","me","je","ve","sa","di") -> sa | G142: =IFERROR(VLOOKUP(B142,Tableau30[],3,FALSE),IF(OR(AND($K$5<=B142,$L$5>B142),AND($K$6<=Tableau1[[#This Row],[Date]],$L$6>=Tableau1[[#This Row],[Date]])),"FERMÉE",IF(OR(Tableau1[[#This Row],[Jour]]="sa",Tableau1[[#This Row],[Jour]]="di",AND(Tableau1[[#This Row],[Jour]]="ve",MOD(Tableau1[[#This Row],[N°S]],2)=1)),"REPOS",IF(Tableau1[[#This Row],[Jour]]="ve",8,8.75)))) -> REPOS
B143: 2020-02-16 | C143: =_xlfn.ISOWEEKNUM(Tableau1[[#This Row],[Date]]) -> 7 | D143: =MONTH(Tableau1[[#This Row],[Date]]) -> 2 | E143: =TEXT(Tableau1[[#This Row],[Date]],"mmmm") -> février | F143: =CHOOSE(WEEKDAY(Tableau1[[#This Row],[Date]],2),"lu","ma","me","je","ve","sa","di") -> di | G143: =IFERROR(VLOOKUP(B143,Tableau30[],3,FALSE),IF(OR(AND($K$5<=B143,$L$5>B143),AND($K$6<=Tableau1[[#This Row],[Date]],$L$6>=Tableau1[[#This Row],[Date]])),"FERMÉE",IF(OR(Tableau1[[#This Row],[Jour]]="sa",Tableau1[[#This Row],[Jour]]="di",AND(Tableau1[[#This Row],[Jour]]="ve",MOD(Tableau1[[#This Row],[N°S]],2)=1)),"REPOS",IF(Tableau1[[#This Row],[Jour]]="ve",8,8.75)))) -> REPOS
B144: 2020-02-17 | C144: =_xlfn.ISOWEEKNUM(Tableau1[[#This Row],[Date]]) -> 8 | D144: =MONTH(Tableau1[[#This Row],[Date]]) -> 2 | E144: =TEXT(Tableau1[[#This Row],[Date]],"mmmm") -> février | F144: =CHOOSE(WEEKDAY(Tableau1[[#This Row],[Date]],2),"lu","ma","me","je","ve","sa","di") -> lu | G144: =IFERROR(VLOOKUP(B144,Tableau30[],3,FALSE),IF(OR(AND($K$5<=B144,$L$5>B144),AND($K$6<=Tableau1[[#This Row],[Date]],$L$6>=Tableau1[[#This Row],[Date]])),"FERMÉE",IF(OR(Tableau1[[#This Row],[Jour]]="sa",Tableau1[[#This Row],[Jour]]="di",AND(Tableau1[[#This Row],[Jour]]="ve",MOD(Tableau1[[#This Row],[N°S]],2)=1)),"REPOS",IF(Tableau1[[#This Row],[Jour]]="ve",8,8.75)))) -> 8.75
B145: 2020-02-18 | C145: =_xlfn.ISOWEEKNUM(Tableau1[[#This Row],[Date]]) -> 8 | D145: =MONTH(Tableau1[[#This Row],[Date]]) -> 2 | E145: =TEXT(Tableau1[[#This Row],[Date]],"mmmm") -> février | F145: =CHOOSE(WEEKDAY(Tableau1[[#This Row],[Date]],2),"lu","ma","me","je","ve","sa","di") -> ma | G145: =IFERROR(VLOOKUP(B145,Tableau30[],3,FALSE),IF(OR(AND($K$5<=B145,$L$5>B145),AND($K$6<=Tableau1[[#This Row],[Date]],$L$6>=Tableau1[[#This Row],[Date]])),"FERMÉE",IF(OR(Tableau1[[#This Row],[Jour]]="sa",Tableau1[[#This Row],[Jour]]="di",AND(Tableau1[[#This Row],[Jour]]="ve",MOD(Tableau1[[#This Row],[N°S]],2)=1)),"REPOS",IF(Tableau1[[#This Row],[Jour]]="ve",8,8.75)))) -> 8.75
B146: 2020-02-19 | C146: =_xlfn.ISOWEEKNUM(Tableau1[[#This Row],[Date]]) -> 8 | D146: =MONTH(Tableau1[[#This Row],[Date]]) -> 2 | E146: =TEXT(Tableau1[[#This Row],[Date]],"mmmm") -> février | F146: =CHOOSE(WEEKDAY(Tableau1[[#This Row],[Date]],2),"lu","ma","me","je","ve","sa","di") -> me | G146: =IFERROR(VLOOKUP(B146,Tableau30[],3,FALSE),IF(OR(AND($K$5<=B146,$L$5>B146),AND($K$6<=Tableau1[[#This Row],[Date]],$L$6>=Tableau1[[#This Row],[Date]])),"FERMÉE",IF(OR(Tableau1[[#This Row],[Jour]]="sa",Tableau1[[#This Row],[Jour]]="di",AND(Tableau1[[#This Row],[Jour]]="ve",MOD(Tableau1[[#This Row],[N°S]],2)=1)),"REPOS",IF(Tableau1[[#This Row],[Jour]]="ve",8,8.75)))) -> 8.75
B147: 2020-02-20 | C147: =_xlfn.ISOWEEKNUM(Tableau1[[#This Row],[Date]]) -> 8 | D147: =MONTH(Tableau1[[#This Row],[Date]]) -> 2 | E147: =TEXT(Tableau1[[#This Row],[Date]],"mmmm") -> février | F147: =CHOOSE(WEEKDAY(Tableau1[[#This Row],[Date]],2),"lu","ma","me","je","ve","sa","di") -> je | G147: =IFERROR(VLOOKUP(B147,Tableau30[],3,FALSE),IF(OR(AND($K$5<=B147,$L$5>B147),AND($K$6<=Tableau1[[#This Row],[Date]],$L$6>=Tableau1[[#This Row],[Date]])),"FERMÉE",IF(OR(Tableau1[[#This Row],[Jour]]="sa",Tableau1[[#This Row],[Jour]]="di",AND(Tableau1[[#This Row],[Jour]]="ve",MOD(Tableau1[[#This Row],[N°S]],2)=1)),"REPOS",IF(Tableau1[[#This Row],[Jour]]="ve",8,8.75)))) -> 8.75
B148: 2020-02-21 | C148: =_xlfn.ISOWEEKNUM(Tableau1[[#This Row],[Date]]) -> 8 | D148: =MONTH(Tableau1[[#This Row],[Date]]) -> 2 | E148: =TEXT(Tableau1[[#This Row],[Date]],"mmmm") -> février | F148: =CHOOSE(WEEKDAY(Tableau1[[#This Row],[Date]],2),"lu","ma","me","je","ve","sa","di") -> ve | G148: =IFERROR(VLOOKUP(B148,Tableau30[],3,FALSE),IF(OR(AND($K$5<=B148,$L$5>B148),AND($K$6<=Tableau1[[#This Row],[Date]],$L$6>=Tableau1[[#This Row],[Date]])),"FERMÉE",IF(OR(Tableau1[[#This Row],[Jour]]="sa",Tableau1[[#This Row],[Jour]]="di",AND(Tableau1[[#This Row],[Jour]]="ve",MOD(Tableau1[[#This Row],[N°S]],2)=1)),"REPOS",IF(Tableau1[[#This Row],[Jour]]="ve",8,8.75)))) -> 8
B149: 2020-02-22 | C149: =_xlfn.ISOWEEKNUM(Tableau1[[#This Row],[Date]]) -> 8 | D149: =MONTH(Tableau1[[#This Row],[Date]]) -> 2 | E149: =TEXT(Tableau1[[#This Row],[Date]],"mmmm") -> février | F149: =CHOOSE(WEEKDAY(Tableau1[[#This Row],[Date]],2),"lu","ma","me","je","ve","sa","di") -> sa | G149: =IFERROR(VLOOKUP(B149,Tableau30[],3,FALSE),IF(OR(AND($K$5<=B149,$L$5>B149),AND($K$6<=Tableau1[[#This Row],[Date]],$L$6>=Tableau1[[#This Row],[Date]])),"FERMÉE",IF(OR(Tableau1[[#This Row],[Jour]]="sa",Tableau1[[#This Row],[Jour]]="di",AND(Tableau1[[#This Row],[Jour]]="ve",MOD(Tableau1[[#This Row],[N°S]],2)=1)),"REPOS",IF(Tableau1[[#This Row],[Jour]]="ve",8,8.75)))) -> REPOS
B150: 2020-02-23 | C150: =_xlfn.ISOWEEKNUM(Tableau1[[#This Row],[Date]]) -> 8 | D150: =MONTH(Tableau1[[#This Row],[Date]]) -> 2 | E150: =TEXT(Tableau1[[#This Row],[Date]],"mmmm") -> février | F150: =CHOOSE(WEEKDAY(Tableau1[[#This Row],[Date]],2),"lu","ma","me","je","ve","sa","di") -> di | G150: =IFERROR(VLOOKUP(B150,Tableau30[],3,FALSE),IF(OR(AND($K$5<=B150,$L$5>B150),AND($K$6<=Tableau1[[#This Row],[Date]],$L$6>=Tableau1[[#This Row],[Date]])),"FERMÉE",IF(OR(Tableau1[[#This Row],[Jour]]="sa",Tableau1[[#This Row],[Jour]]="di",AND(Tableau1[[#This Row],[Jour]]="ve",MOD(Tableau1[[#This Row],[N°S]],2)=1)),"REPOS",IF(Tableau1[[#This Row],[Jour]]="ve",8,8.75)))) -> REPOS
B151: 2020-02-24 | C151: =_xlfn.ISOWEEKNUM(Tableau1[[#This Row],[Date]]) -> 9 | D151: =MONTH(Tableau1[[#This Row],[Date]]) -> 2 | E151: =TEXT(Tableau1[[#This Row],[Date]],"mmmm") -> février | F151: =CHOOSE(WEEKDAY(Tableau1[[#This Row],[Date]],2),"lu","ma","me","je","ve","sa","di") -> lu | G151: =IFERROR(VLOOKUP(B151,Tableau30[],3,FALSE),IF(OR(AND($K$5<=B151,$L$5>B151),AND($K$6<=Tableau1[[#This Row],[Date]],$L$6>=Tableau1[[#This Row],[Date]])),"FERMÉE",IF(OR(Tableau1[[#This Row],[Jour]]="sa",Tableau1[[#This Row],[Jour]]="di",AND(Tableau1[[#This Row],[Jour]]="ve",MOD(Tableau1[[#This Row],[N°S]],2)=1)),"REPOS",IF(Tableau1[[#This Row],[Jour]]="ve",8,8.75)))) -> 8.75
B152: 2020-02-25 | C152: =_xlfn.ISOWEEKNUM(Tableau1[[#This Row],[Date]]) -> 9 | D152: =MONTH(Tableau1[[#This Row],[Date]]) -> 2 | E152: =TEXT(Tableau1[[#This Row],[Date]],"mmmm") -> février | F152: =CHOOSE(WEEKDAY(Tableau1[[#This Row],[Date]],2),"lu","ma","me","je","ve","sa","di") -> ma | G152: =IFERROR(VLOOKUP(B152,Tableau30[],3,FALSE),IF(OR(AND($K$5<=B152,$L$5>B152),AND($K$6<=Tableau1[[#This Row],[Date]],$L$6>=Tableau1[[#This Row],[Date]])),"FERMÉE",IF(OR(Tableau1[[#This Row],[Jour]]="sa",Tableau1[[#This Row],[Jour]]="di",AND(Tableau1[[#This Row],[Jour]]="ve",MOD(Tableau1[[#This Row],[N°S]],2)=1)),"REPOS",IF(Tableau1[[#This Row],[Jour]]="ve",8,8.75)))) -> 8.75
B153: 2020-02-26 | C153: =_xlfn.ISOWEEKNUM(Tableau1[[#This Row],[Date]]) -> 9 | D153: =MONTH(Tableau1[[#This Row],[Date]]) -> 2 | E153: =TEXT(Tableau1[[#This Row],[Date]],"mmmm") -> février | F153: =CHOOSE(WEEKDAY(Tableau1[[#This Row],[Date]],2),"lu","ma","me","je","ve","sa","di") -> me | G153: =IFERROR(VLOOKUP(B153,Tableau30[],3,FALSE),IF(OR(AND($K$5<=B153,$L$5>B153),AND($K$6<=Tableau1[[#This Row],[Date]],$L$6>=Tableau1[[#This Row],[Date]])),"FERMÉE",IF(OR(Tableau1[[#This Row],[Jour]]="sa",Tableau1[[#This Row],[Jour]]="di",AND(Tableau1[[#This Row],[Jour]]="ve",MOD(Tableau1[[#This Row],[N°S]],2)=1)),"REPOS",IF(Tableau1[[#This Row],[Jour]]="ve",8,8.75)))) -> 8.75
B154: 2020-02-27 | C154: =_xlfn.ISOWEEKNUM(Tableau1[[#This Row],[Date]]) -> 9 | D154: =MONTH(Tableau1[[#This Row],[Date]]) -> 2 | E154: =TEXT(Tableau1[[#This Row],[Date]],"mmmm") -> février | F154: =CHOOSE(WEEKDAY(Tableau1[[#This Row],[Date]],2),"lu","ma","me","je","ve","sa","di") -> je | G154: =IFERROR(VLOOKUP(B154,Tableau30[],3,FALSE),IF(OR(AND($K$5<=B154,$L$5>B154),AND($K$6<=Tableau1[[#This Row],[Date]],$L$6>=Tableau1[[#This Row],[Date]])),"FERMÉE",IF(OR(Tableau1[[#This Row],[Jour]]="sa",Tableau1[[#This Row],[Jour]]="di",AND(Tableau1[[#This Row],[Jour]]="ve",MOD(Tableau1[[#This Row],[N°S]],2)=1)),"REPOS",IF(Tableau1[[#This Row],[Jour]]="ve",8,8.75)))) -> 8.75
B155: 2020-02-28 | C155: =_xlfn.ISOWEEKNUM(Tableau1[[#This Row],[Date]]) -> 9 | D155: =MONTH(Tableau1[[#This Row],[Date]]) -> 2 | E155: =TEXT(Tableau1[[#This Row],[Date]],"mmmm") -> février | F155: =CHOOSE(WEEKDAY(Tableau1[[#This Row],[Date]],2),"lu","ma","me","je","ve","sa","di") -> ve | G155: =IFERROR(VLOOKUP(B155,Tableau30[],3,FALSE),IF(OR(AND($K$5<=B155,$L$5>B155),AND($K$6<=Tableau1[[#This Row],[Date]],$L$6>=Tableau1[[#This Row],[Date]])),"FERMÉE",IF(OR(Tableau1[[#This Row],[Jour]]="sa",Tableau1[[#This Row],[Jour]]="di",AND(Tableau1[[#This Row],[Jour]]="ve",MOD(Tableau1[[#This Row],[N°S]],2)=1)),"REPOS",IF(Tableau1[[#This Row],[Jour]]="ve",8,8.75)))) -> REPOS
B156: 2020-02-29 | C156: =_xlfn.ISOWEEKNUM(Tableau1[[#This Row],[Date]]) -> 9 | D156: =MONTH(Tableau1[[#This Row],[Date]]) -> 2 | E156: =TEXT(Tableau1[[#This Row],[Date]],"mmmm") -> février | F156: =CHOOSE(WEEKDAY(Tableau1[[#This Row],[Date]],2),"lu","ma","me","je","ve","sa","di") -> sa | G156: =IFERROR(VLOOKUP(B156,Tableau30[],3,FALSE),IF(OR(AND($K$5<=B156,$L$5>B156),AND($K$6<=Tableau1[[#This Row],[Date]],$L$6>=Tableau1[[#This Row],[Date]])),"FERMÉE",IF(OR(Tableau1[[#This Row],[Jour]]="sa",Tableau1[[#This Row],[Jour]]="di",AND(Tableau1[[#This Row],[Jour]]="ve",MOD(Tableau1[[#This Row],[N°S]],2)=1)),"REPOS",IF(Tableau1[[#This Row],[Jour]]="ve",8,8.75)))) -> REPOS
B157: 2020-03-01 | C157: =_xlfn.ISOWEEKNUM(Tableau1[[#This Row],[Date]]) -> 9 | D157: =MONTH(Tableau1[[#This Row],[Date]]) -> 3 | E157: =TEXT(Tableau1[[#This Row],[Date]],"mmmm") -> mars | F157: =CHOOSE(WEEKDAY(Tableau1[[#This Row],[Date]],2),"lu","ma","me","je","ve","sa","di") -> di | G157: =IFERROR(VLOOKUP(B157,Tableau30[],3,FALSE),IF(OR(AND($K$5<=B157,$L$5>B157),AND($K$6<=Tableau1[[#This Row],[Date]],$L$6>=Tableau1[[#This Row],[Date]])),"FERMÉE",IF(OR(Tableau1[[#This Row],[Jour]]="sa",Tableau1[[#This Row],[Jour]]="di",AND(Tableau1[[#This Row],[Jour]]="ve",MOD(Tableau1[[#This Row],[N°S]],2)=1)),"REPOS",IF(Tableau1[[#This Row],[Jour]]="ve",8,8.75)))) -> REPOS
B158: 2020-03-02 | C158: =_xlfn.ISOWEEKNUM(Tableau1[[#This Row],[Date]]) -> 10 | D158: =MONTH(Tableau1[[#This Row],[Date]]) -> 3 | E158: =TEXT(Tableau1[[#This Row],[Date]],"mmmm") -> mars | F158: =CHOOSE(WEEKDAY(Tableau1[[#This Row],[Date]],2),"lu","ma","me","je","ve","sa","di") -> lu | G158: =IFERROR(VLOOKUP(B158,Tableau30[],3,FALSE),IF(OR(AND($K$5<=B158,$L$5>B158),AND($K$6<=Tableau1[[#This Row],[Date]],$L$6>=Tableau1[[#This Row],[Date]])),"FERMÉE",IF(OR(Tableau1[[#This Row],[Jour]]="sa",Tableau1[[#This Row],[Jour]]="di",AND(Tableau1[[#This Row],[Jour]]="ve",MOD(Tableau1[[#This Row],[N°S]],2)=1)),"REPOS",IF(Tableau1[[#This Row],[Jour]]="ve",8,8.75)))) -> 8.75
B159: 2020-03-03 | C159: =_xlfn.ISOWEEKNUM(Tableau1[[#This Row],[Date]]) -> 10 | D159: =MONTH(Tableau1[[#This Row],[Date]]) -> 3 | E159: =TEXT(Tableau1[[#This Row],[Date]],"mmmm") -> mars | F159: =CHOOSE(WEEKDAY(Tableau1[[#This Row],[Date]],2),"lu","ma","me","je","ve","sa","di") -> ma | G159: =IFERROR(VLOOKUP(B159,Tableau30[],3,FALSE),IF(OR(AND($K$5<=B159,$L$5>B159),AND($K$6<=Tableau1[[#This Row],[Date]],$L$6>=Tableau1[[#This Row],[Date]])),"FERMÉE",IF(OR(Tableau1[[#This Row],[Jour]]="sa",Tableau1[[#This Row],[Jour]]="di",AND(Tableau1[[#This Row],[Jour]]="ve",MOD(Tableau1[[#This Row],[N°S]],2)=1)),"REPOS",IF(Tableau1[[#This Row],[Jour]]="ve",8,8.75)))) -> 8.75
B160: 2020-03-04 | C160: =_xlfn.ISOWEEKNUM(Tableau1[[#This Row],[Date]]) -> 10 | D160: =MONTH(Tableau1[[#This Row],[Date]]) -> 3 | E160: =TEXT(Tableau1[[#This Row],[Date]],"mmmm") -> mars | F160: =CHOOSE(WEEKDAY(Tableau1[[#This Row],[Date]],2),"lu","ma","me","je","ve","sa","di") -> me | G160: =IFERROR(VLOOKUP(B160,Tableau30[],3,FALSE),IF(OR(AND($K$5<=B160,$L$5>B160),AND($K$6<=Tableau1[[#This Row],[Date]],$L$6>=Tableau1[[#This Row],[Date]])),"FERMÉE",IF(OR(Tableau1[[#This Row],[Jour]]="sa",Tableau1[[#This Row],[Jour]]="di",AND(Tableau1[[#This Row],[Jour]]="ve",MOD(Tableau1[[#This Row],[N°S]],2)=1)),"REPOS",IF(Tableau1[[#This Row],[Jour]]="ve",8,8.75)))) -> 8.75
B161: 2020-03-05 | C161: =_xlfn.ISOWEEKNUM(Tableau1[[#This Row],[Date]]) -> 10 | D161: =MONTH(Tableau1[[#This Row],[Date]]) -> 3 | E161: =TEXT(Tableau1[[#This Row],[Date]],"mmmm") -> mars | F161: =CHOOSE(WEEKDAY(Tableau1[[#This Row],[Date]],2),"lu","ma","me","je","ve","sa","di") -> je | G161: =IFERROR(VLOOKUP(B161,Tableau30[],3,FALSE),IF(OR(AND($K$5<=B161,$L$5>B161),AND($K$6<=Tableau1[[#This Row],[Date]],$L$6>=Tableau1[[#This Row],[Date]])),"FERMÉE",IF(OR(Tableau1[[#This Row],[Jour]]="sa",Tableau1[[#This Row],[Jour]]="di",AND(Tableau1[[#This Row],[Jour]]="ve",MOD(Tableau1[[#This Row],[N°S]],2)=1)),"REPOS",IF(Tableau1[[#This Row],[Jour]]="ve",8,8.75)))) -> 8.75
B162: 2020-03-06 | C162: =_xlfn.ISOWEEKNUM(Tableau1[[#This Row],[Date]]) -> 10 | D162: =MONTH(Tableau1[[#This Row],[Date]]) -> 3 | E162: =TEXT(Tableau1[[#This Row],[Date]],"mmmm") -> mars | F162: =CHOOSE(WEEKDAY(Tableau1[[#This Row],[Date]],2),"lu","ma","me","je","ve","sa","di") -> ve | G162: =IFERROR(VLOOKUP(B162,Tableau30[],3,FALSE),IF(OR(AND($K$5<=B162,$L$5>B162),AND($K$6<=Tableau1[[#This Row],[Date]],$L$6>=Tableau1[[#This Row],[Date]])),"FERMÉE",IF(OR(Tableau1[[#This Row],[Jour]]="sa",Tableau1[[#This Row],[Jour]]="di",AND(Tableau1[[#This Row],[Jour]]="ve",MOD(Tableau1[[#This Row],[N°S]],2)=1)),"REPOS",IF(Tableau1[[#This Row],[Jour]]="ve",8,8.75)))) -> 8
B163: 2020-03-07 | C163: =_xlfn.ISOWEEKNUM(Tableau1[[#This Row],[Date]]) -> 10 | D163: =MONTH(Tableau1[[#This Row],[Date]]) -> 3 | E163: =TEXT(Tableau1[[#This Row],[Date]],"mmmm") -> mars | F163: =CHOOSE(WEEKDAY(Tableau1[[#This Row],[Date]],2),"lu","ma","me","je","ve","sa","di") -> sa | G163: =IFERROR(VLOOKUP(B163,Tableau30[],3,FALSE),IF(OR(AND($K$5<=B163,$L$5>B163),AND($K$6<=Tableau1[[#This Row],[Date]],$L$6>=Tableau1[[#This Row],[Date]])),"FERMÉE",IF(OR(Tableau1[[#This Row],[Jour]]="sa",Tableau1[[#This Row],[Jour]]="di",AND(Tableau1[[#This Row],[Jour]]="ve",MOD(Tableau1[[#This Row],[N°S]],2)=1)),"REPOS",IF(Tableau1[[#This Row],[Jour]]="ve",8,8.75)))) -> REPOS
B164: 2020-03-08 | C164: =_xlfn.ISOWEEKNUM(Tableau1[[#This Row],[Date]]) -> 10 | D164: =MONTH(Tableau1[[#This Row],[Date]]) -> 3 | E164: =TEXT(Tableau1[[#This Row],[Date]],"mmmm") -> mars | F164: =CHOOSE(WEEKDAY(Tableau1[[#This Row],[Date]],2),"lu","ma","me","je","ve","sa","di") -> di | G164: =IFERROR(VLOOKUP(B164,Tableau30[],3,FALSE),IF(OR(AND($K$5<=B164,$L$5>B164),AND($K$6<=Tableau1[[#This Row],[Date]],$L$6>=Tableau1[[#This Row],[Date]])),"FERMÉE",IF(OR(Tableau1[[#This Row],[Jour]]="sa",Tableau1[[#This Row],[Jour]]="di",AND(Tableau1[[#This Row],[Jour]]="ve",MOD(Tableau1[[#This Row],[N°S]],2)=1)),"REPOS",IF(Tableau1[[#This Row],[Jour]]="ve",8,8.75)))) -> REPOS
B165: 2020-03-09 | C165: =_xlfn.ISOWEEKNUM(Tableau1[[#This Row],[Date]]) -> 11 | D165: =MONTH(Tableau1[[#This Row],[Date]]) -> 3 | E165: =TEXT(Tableau1[[#This Row],[Date]],"mmmm") -> mars | F165: =CHOOSE(WEEKDAY(Tableau1[[#This Row],[Date]],2),"lu","ma","me","je","ve","sa","di") -> lu | G165: =IFERROR(VLOOKUP(B165,Tableau30[],3,FALSE),IF(OR(AND($K$5<=B165,$L$5>B165),AND($K$6<=Tableau1[[#This Row],[Date]],$L$6>=Tableau1[[#This Row],[Date]])),"FERMÉE",IF(OR(Tableau1[[#This Row],[Jour]]="sa",Tableau1[[#This Row],[Jour]]="di",AND(Tableau1[[#This Row],[Jour]]="ve",MOD(Tableau1[[#This Row],[N°S]],2)=1)),"REPOS",IF(Tableau1[[#This Row],[Jour]]="ve",8,8.75)))) -> 8.75
B166: 2020-03-10 | C166: =_xlfn.ISOWEEKNUM(Tableau1[[#This Row],[Date]]) -> 11 | D166: =MONTH(Tableau1[[#This Row],[Date]]) -> 3 | E166: =TEXT(Tableau1[[#This Row],[Date]],"mmmm") -> mars | F166: =CHOOSE(WEEKDAY(Tableau1[[#This Row],[Date]],2),"lu","ma","me","je","ve","sa","di") -> ma | G166: =IFERROR(VLOOKUP(B166,Tableau30[],3,FALSE),IF(OR(AND($K$5<=B166,$L$5>B166),AND($K$6<=Tableau1[[#This Row],[Date]],$L$6>=Tableau1[[#This Row],[Date]])),"FERMÉE",IF(OR(Tableau1[[#This Row],[Jour]]="sa",Tableau1[[#This Row],[Jour]]="di",AND(Tableau1[[#This Row],[Jour]]="ve",MOD(Tableau1[[#This Row],[N°S]],2)=1)),"REPOS",IF(Tableau1[[#This Row],[Jour]]="ve",8,8.75)))) -> 8.75
B167: 2020-03-11 | C167: =_xlfn.ISOWEEKNUM(Tableau1[[#This Row],[Date]]) -> 11 | D167: =MONTH(Tableau1[[#This Row],[Date]]) -> 3 | E167: =TEXT(Tableau1[[#This Row],[Date]],"mmmm") -> mars | F167: =CHOOSE(WEEKDAY(Tableau1[[#This Row],[Date]],2),"lu","ma","me","je","ve","sa","di") -> me | G167: =IFERROR(VLOOKUP(B167,Tableau30[],3,FALSE),IF(OR(AND($K$5<=B167,$L$5>B167),AND($K$6<=Tableau1[[#This Row],[Date]],$L$6>=Tableau1[[#This Row],[Date]])),"FERMÉE",IF(OR(Tableau1[[#This Row],[Jour]]="sa",Tableau1[[#This Row],[Jour]]="di",AND(Tableau1[[#This Row],[Jour]]="ve",MOD(Tableau1[[#This Row],[N°S]],2)=1)),"REPOS",IF(Tableau1[[#This Row],[Jour]]="ve",8,8.75)))) -> 8.75
B168: 2020-03-12 | C168: =_xlfn.ISOWEEKNUM(Tableau1[[#This Row],[Date]]) -> 11 | D168: =MONTH(Tableau1[[#This Row],[Date]]) -> 3 | E168: =TEXT(Tableau1[[#This Row],[Date]],"mmmm") -> mars | F168: =CHOOSE(WEEKDAY(Tableau1[[#This Row],[Date]],2),"lu","ma","me","je","ve","sa","di") -> je | G168: =IFERROR(VLOOKUP(B168,Tableau30[],3,FALSE),IF(OR(AND($K$5<=B168,$L$5>B168),AND($K$6<=Tableau1[[#This Row],[Date]],$L$6>=Tableau1[[#This Row],[Date]])),"FERMÉE",IF(OR(Tableau1[[#This Row],[Jour]]="sa",Tableau1[[#This Row],[Jour]]="di",AND(Tableau1[[#This Row],[Jour]]="ve",MOD(Tableau1[[#This Row],[N°S]],2)=1)),"REPOS",IF(Tableau1[[#This Row],[Jour]]="ve",8,8.75)))) -> 8.75
B169: 2020-03-13 | C169: =_xlfn.ISOWEEKNUM(Tableau1[[#This Row],[Date]]) -> 11 | D169: =MONTH(Tableau1[[#This Row],[Date]]) -> 3 | E169: =TEXT(Tableau1[[#This Row],[Date]],"mmmm") -> mars | F169: =CHOOSE(WEEKDAY(Tableau1[[#This Row],[Date]],2),"lu","ma","me","je","ve","sa","di") -> ve | G169: =IFERROR(VLOOKUP(B169,Tableau30[],3,FALSE),IF(OR(AND($K$5<=B169,$L$5>B169),AND($K$6<=Tableau1[[#This Row],[Date]],$L$6>=Tableau1[[#This Row],[Date]])),"FERMÉE",IF(OR(Tableau1[[#This Row],[Jour]]="sa",Tableau1[[#This Row],[Jour]]="di",AND(Tableau1[[#This Row],[Jour]]="ve",MOD(Tableau1[[#This Row],[N°S]],2)=1)),"REPOS",IF(Tableau1[[#This Row],[Jour]]="ve",8,8.75)))) -> REPOS
B170: 2020-03-14 | C170: =_xlfn.ISOWEEKNUM(Tableau1[[#This Row],[Date]]) -> 11 | D170: =MONTH(Tableau1[[#This Row],[Date]]) -> 3 | E170: =TEXT(Tableau1[[#This Row],[Date]],"mmmm") -> mars | F170: =CHOOSE(WEEKDAY(Tableau1[[#This Row],[Date]],2),"lu","ma","me","je","ve","sa","di") -> sa | G170: =IFERROR(VLOOKUP(B170,Tableau30[],3,FALSE),IF(OR(AND($K$5<=B170,$L$5>B170),AND($K$6<=Tableau1[[#This Row],[Date]],$L$6>=Tableau1[[#This Row],[Date]])),"FERMÉE",IF(OR(Tableau1[[#This Row],[Jour]]="sa",Tableau1[[#This Row],[Jour]]="di",AND(Tableau1[[#This Row],[Jour]]="ve",MOD(Tableau1[[#This Row],[N°S]],2)=1)),"REPOS",IF(Tableau1[[#This Row],[Jour]]="ve",8,8.75)))) -> REPOS
B171: 2020-03-15 | C171: =_xlfn.ISOWEEKNUM(Tableau1[[#This Row],[Date]]) -> 11 | D171: =MONTH(Tableau1[[#This Row],[Date]]) -> 3 | E171: =TEXT(Tableau1[[#This Row],[Date]],"mmmm") -> mars | F171: =CHOOSE(WEEKDAY(Tableau1[[#This Row],[Date]],2),"lu","ma","me","je","ve","sa","di") -> di | G171: =IFERROR(VLOOKUP(B171,Tableau30[],3,FALSE),IF(OR(AND($K$5<=B171,$L$5>B171),AND($K$6<=Tableau1[[#This Row],[Date]],$L$6>=Tableau1[[#This Row],[Date]])),"FERMÉE",IF(OR(Tableau1[[#This Row],[Jour]]="sa",Tableau1[[#This Row],[Jour]]="di",AND(Tableau1[[#This Row],[Jour]]="ve",MOD(Tableau1[[#This Row],[N°S]],2)=1)),"REPOS",IF(Tableau1[[#This Row],[Jour]]="ve",8,8.75)))) -> REPOS
B172: 2020-03-16 | C172: =_xlfn.ISOWEEKNUM(Tableau1[[#This Row],[Date]]) -> 12 | D172: =MONTH(Tableau1[[#This Row],[Date]]) -> 3 | E172: =TEXT(Tableau1[[#This Row],[Date]],"mmmm") -> mars | F172: =CHOOSE(WEEKDAY(Tableau1[[#This Row],[Date]],2),"lu","ma","me","je","ve","sa","di") -> lu | G172: =IFERROR(VLOOKUP(B172,Tableau30[],3,FALSE),IF(OR(AND($K$5<=B172,$L$5>B172),AND($K$6<=Tableau1[[#This Row],[Date]],$L$6>=Tableau1[[#This Row],[Date]])),"FERMÉE",IF(OR(Tableau1[[#This Row],[Jour]]="sa",Tableau1[[#This Row],[Jour]]="di",AND(Tableau1[[#This Row],[Jour]]="ve",MOD(Tableau1[[#This Row],[N°S]],2)=1)),"REPOS",IF(Tableau1[[#This Row],[Jour]]="ve",8,8.75)))) -> 8.75
B173: 2020-03-17 | C173: =_xlfn.ISOWEEKNUM(Tableau1[[#This Row],[Date]]) -> 12 | D173: =MONTH(Tableau1[[#This Row],[Date]]) -> 3 | E173: =TEXT(Tableau1[[#This Row],[Date]],"mmmm") -> mars | F173: =CHOOSE(WEEKDAY(Tableau1[[#This Row],[Date]],2),"lu","ma","me","je","ve","sa","di") -> ma | G173: =IFERROR(VLOOKUP(B173,Tableau30[],3,FALSE),IF(OR(AND($K$5<=B173,$L$5>B173),AND($K$6<=Tableau1[[#This Row],[Date]],$L$6>=Tableau1[[#This Row],[Date]])),"FERMÉE",IF(OR(Tableau1[[#This Row],[Jour]]="sa",Tableau1[[#This Row],[Jour]]="di",AND(Tableau1[[#This Row],[Jour]]="ve",MOD(Tableau1[[#This Row],[N°S]],2)=1)),"REPOS",IF(Tableau1[[#This Row],[Jour]]="ve",8,8.75)))) -> 8.75
B174: 2020-03-18 | C174: =_xlfn.ISOWEEKNUM(Tableau1[[#This Row],[Date]]) -> 12 | D174: =MONTH(Tableau1[[#This Row],[Date]]) -> 3 | E174: =TEXT(Tableau1[[#This Row],[Date]],"mmmm") -> mars | F174: =CHOOSE(WEEKDAY(Tableau1[[#This Row],[Date]],2),"lu","ma","me","je","ve","sa","di") -> me | G174: =IFERROR(VLOOKUP(B174,Tableau30[],3,FALSE),IF(OR(AND($K$5<=B174,$L$5>B174),AND($K$6<=Tableau1[[#This Row],[Date]],$L$6>=Tableau1[[#This Row],[Date]])),"FERMÉE",IF(OR(Tableau1[[#This Row],[Jour]]="sa",Tableau1[[#This Row],[Jour]]="di",AND(Tableau1[[#This Row],[Jour]]="ve",MOD(Tableau1[[#This Row],[N°S]],2)=1)),"REPOS",IF(Tableau1[[#This Row],[Jour]]="ve",8,8.75)))) -> 8.75
B175: 2020-03-19 | C175: =_xlfn.ISOWEEKNUM(Tableau1[[#This Row],[Date]]) -> 12 | D175: =MONTH(Tableau1[[#This Row],[Date]]) -> 3 | E175: =TEXT(Tableau1[[#This Row],[Date]],"mmmm") -> mars | F175: =CHOOSE(WEEKDAY(Tableau1[[#This Row],[Date]],2),"lu","ma","me","je","ve","sa","di") -> je | G175: =IFERROR(VLOOKUP(B175,Tableau30[],3,FALSE),IF(OR(AND($K$5<=B175,$L$5>B175),AND($K$6<=Tableau1[[#This Row],[Date]],$L$6>=Tableau1[[#This Row],[Date]])),"FERMÉE",IF(OR(Tableau1[[#This Row],[Jour]]="sa",Tableau1[[#This Row],[Jour]]="di",AND(Tableau1[[#This Row],[Jour]]="ve",MOD(Tableau1[[#This Row],[N°S]],2)=1)),"REPOS",IF(Tableau1[[#This Row],[Jour]]="ve",8,8.75)))) -> 8.75
B176: 2020-03-20 | C176: =_xlfn.ISOWEEKNUM(Tableau1[[#This Row],[Date]]) -> 12 | D176: =MONTH(Tableau1[[#This Row],[Date]]) -> 3 | E176: =TEXT(Tableau1[[#This Row],[Date]],"mmmm") -> mars | F176: =CHOOSE(WEEKDAY(Tableau1[[#This Row],[Date]],2),"lu","ma","me","je","ve","sa","di") -> ve | G176: =IFERROR(VLOOKUP(B176,Tableau30[],3,FALSE),IF(OR(AND($K$5<=B176,$L$5>B176),AND($K$6<=Tableau1[[#This Row],[Date]],$L$6>=Tableau1[[#This Row],[Date]])),"FERMÉE",IF(OR(Tableau1[[#This Row],[Jour]]="sa",Tableau1[[#This Row],[Jour]]="di",AND(Tableau1[[#This Row],[Jour]]="ve",MOD(Tableau1[[#This Row],[N°S]],2)=1)),"REPOS",IF(Tableau1[[#This Row],[Jour]]="ve",8,8.75)))) -> 8
B177: 2020-03-21 | C177: =_xlfn.ISOWEEKNUM(Tableau1[[#This Row],[Date]]) -> 12 | D177: =MONTH(Tableau1[[#This Row],[Date]]) -> 3 | E177: =TEXT(Tableau1[[#This Row],[Date]],"mmmm") -> mars | F177: =CHOOSE(WEEKDAY(Tableau1[[#This Row],[Date]],2),"lu","ma","me","je","ve","sa","di") -> sa | G177: =IFERROR(VLOOKUP(B177,Tableau30[],3,FALSE),IF(OR(AND($K$5<=B177,$L$5>B177),AND($K$6<=Tableau1[[#This Row],[Date]],$L$6>=Tableau1[[#This Row],[Date]])),"FERMÉE",IF(OR(Tableau1[[#This Row],[Jour]]="sa",Tableau1[[#This Row],[Jour]]="di",AND(Tableau1[[#This Row],[Jour]]="ve",MOD(Tableau1[[#This Row],[N°S]],2)=1)),"REPOS",IF(Tableau1[[#This Row],[Jour]]="ve",8,8.75)))) -> REPOS
B178: 2020-03-22 | C178: =_xlfn.ISOWEEKNUM(Tableau1[[#This Row],[Date]]) -> 12 | D178: =MONTH(Tableau1[[#This Row],[Date]]) -> 3 | E178: =TEXT(Tableau1[[#This Row],[Date]],"mmmm") -> mars | F178: =CHOOSE(WEEKDAY(Tableau1[[#This Row],[Date]],2),"lu","ma","me","je","ve","sa","di") -> di | G178: =IFERROR(VLOOKUP(B178,Tableau30[],3,FALSE),IF(OR(AND($K$5<=B178,$L$5>B178),AND($K$6<=Tableau1[[#This Row],[Date]],$L$6>=Tableau1[[#This Row],[Date]])),"FERMÉE",IF(OR(Tableau1[[#This Row],[Jour]]="sa",Tableau1[[#This Row],[Jour]]="di",AND(Tableau1[[#This Row],[Jour]]="ve",MOD(Tableau1[[#This Row],[N°S]],2)=1)),"REPOS",IF(Tableau1[[#This Row],[Jour]]="ve",8,8.75)))) -> REPOS
B179: 2020-03-23 | C179: =_xlfn.ISOWEEKNUM(Tableau1[[#This Row],[Date]]) -> 13 | D179: =MONTH(Tableau1[[#This Row],[Date]]) -> 3 | E179: =TEXT(Tableau1[[#This Row],[Date]],"mmmm") -> mars | F179: =CHOOSE(WEEKDAY(Tableau1[[#This Row],[Date]],2),"lu","ma","me","je","ve","sa","di") -> lu | G179: =IFERROR(VLOOKUP(B179,Tableau30[],3,FALSE),IF(OR(AND($K$5<=B179,$L$5>B179),AND($K$6<=Tableau1[[#This Row],[Date]],$L$6>=Tableau1[[#This Row],[Date]])),"FERMÉE",IF(OR(Tableau1[[#This Row],[Jour]]="sa",Tableau1[[#This Row],[Jour]]="di",AND(Tableau1[[#This Row],[Jour]]="ve",MOD(Tableau1[[#This Row],[N°S]],2)=1)),"REPOS",IF(Tableau1[[#This Row],[Jour]]="ve",8,8.75)))) -> 8.75
B180: 2020-03-24 | C180: =_xlfn.ISOWEEKNUM(Tableau1[[#This Row],[Date]]) -> 13 | D180: =MONTH(Tableau1[[#This Row],[Date]]) -> 3 | E180: =TEXT(Tableau1[[#This Row],[Date]],"mmmm") -> mars | F180: =CHOOSE(WEEKDAY(Tableau1[[#This Row],[Date]],2),"lu","ma","me","je","ve","sa","di") -> ma | G180: =IFERROR(VLOOKUP(B180,Tableau30[],3,FALSE),IF(OR(AND($K$5<=B180,$L$5>B180),AND($K$6<=Tableau1[[#This Row],[Date]],$L$6>=Tableau1[[#This Row],[Date]])),"FERMÉE",IF(OR(Tableau1[[#This Row],[Jour]]="sa",Tableau1[[#This Row],[Jour]]="di",AND(Tableau1[[#This Row],[Jour]]="ve",MOD(Tableau1[[#This Row],[N°S]],2)=1)),"REPOS",IF(Tableau1[[#This Row],[Jour]]="ve",8,8.75)))) -> 8.75
B181: 2020-03-25 | C181: =_xlfn.ISOWEEKNUM(Tableau1[[#This Row],[Date]]) -> 13 | D181: =MONTH(Tableau1[[#This Row],[Date]]) -> 3 | E181: =TEXT(Tableau1[[#This Row],[Date]],"mmmm") -> mars | F181: =CHOOSE(WEEKDAY(Tableau1[[#This Row],[Date]],2),"lu","ma","me","je","ve","sa","di") -> me | G181: =IFERROR(VLOOKUP(B181,Tableau30[],3,FALSE),IF(OR(AND($K$5<=B181,$L$5>B181),AND($K$6<=Tableau1[[#This Row],[Date]],$L$6>=Tableau1[[#This Row],[Date]])),"FERMÉE",IF(OR(Tableau1[[#This Row],[Jour]]="sa",Tableau1[[#This Row],[Jour]]="di",AND(Tableau1[[#This Row],[Jour]]="ve",MOD(Tableau1[[#This Row],[N°S]],2)=1)),"REPOS",IF(Tableau1[[#This Row],[Jour]]="ve",8,8.75)))) -> 8.75
B182: 2020-03-26 | C182: =_xlfn.ISOWEEKNUM(Tableau1[[#This Row],[Date]]) -> 13 | D182: =MONTH(Tableau1[[#This Row],[Date]]) -> 3 | E182: =TEXT(Tableau1[[#This Row],[Date]],"mmmm") -> mars | F182: =CHOOSE(WEEKDAY(Tableau1[[#This Row],[Date]],2),"lu","ma","me","je","ve","sa","di") -> je | G182: =IFERROR(VLOOKUP(B182,Tableau30[],3,FALSE),IF(OR(AND($K$5<=B182,$L$5>B182),AND($K$6<=Tableau1[[#This Row],[Date]],$L$6>=Tableau1[[#This Row],[Date]])),"FERMÉE",IF(OR(Tableau1[[#This Row],[Jour]]="sa",Tableau1[[#This Row],[Jour]]="di",AND(Tableau1[[#This Row],[Jour]]="ve",MOD(Tableau1[[#This Row],[N°S]],2)=1)),"REPOS",IF(Tableau1[[#This Row],[Jour]]="ve",8,8.75)))) -> 8.75
B183: 2020-03-27 | C183: =_xlfn.ISOWEEKNUM(Tableau1[[#This Row],[Date]]) -> 13 | D183: =MONTH(Tableau1[[#This Row],[Date]]) -> 3 | E183: =TEXT(Tableau1[[#This Row],[Date]],"mmmm") -> mars | F183: =CHOOSE(WEEKDAY(Tableau1[[#This Row],[Date]],2),"lu","ma","me","je","ve","sa","di") -> ve | G183: =IFERROR(VLOOKUP(B183,Tableau30[],3,FALSE),IF(OR(AND($K$5<=B183,$L$5>B183),AND($K$6<=Tableau1[[#This Row],[Date]],$L$6>=Tableau1[[#This Row],[Date]])),"FERMÉE",IF(OR(Tableau1[[#This Row],[Jour]]="sa",Tableau1[[#This Row],[Jour]]="di",AND(Tableau1[[#This Row],[Jour]]="ve",MOD(Tableau1[[#This Row],[N°S]],2)=1)),"REPOS",IF(Tableau1[[#This Row],[Jour]]="ve",8,8.75)))) -> REPOS
B184: 2020-03-28 | C184: =_xlfn.ISOWEEKNUM(Tableau1[[#This Row],[Date]]) -> 13 | D184: =MONTH(Tableau1[[#This Row],[Date]]) -> 3 | E184: =TEXT(Tableau1[[#This Row],[Date]],"mmmm") -> mars | F184: =CHOOSE(WEEKDAY(Tableau1[[#This Row],[Date]],2),"lu","ma","me","je","ve","sa","di") -> sa | G184: =IFERROR(VLOOKUP(B184,Tableau30[],3,FALSE),IF(OR(AND($K$5<=B184,$L$5>B184),AND($K$6<=Tableau1[[#This Row],[Date]],$L$6>=Tableau1[[#This Row],[Date]])),"FERMÉE",IF(OR(Tableau1[[#This Row],[Jour]]="sa",Tableau1[[#This Row],[Jour]]="di",AND(Tableau1[[#This Row],[Jour]]="ve",MOD(Tableau1[[#This Row],[N°S]],2)=1)),"REPOS",IF(Tableau1[[#This Row],[Jour]]="ve",8,8.75)))) -> REPOS
B185: 2020-03-29 | C185: =_xlfn.ISOWEEKNUM(Tableau1[[#This Row],[Date]]) -> 13 | D185: =MONTH(Tableau1[[#This Row],[Date]]) -> 3 | E185: =TEXT(Tableau1[[#This Row],[Date]],"mmmm") -> mars | F185: =CHOOSE(WEEKDAY(Tableau1[[#This Row],[Date]],2),"lu","ma","me","je","ve","sa","di") -> di | G185: =IFERROR(VLOOKUP(B185,Tableau30[],3,FALSE),IF(OR(AND($K$5<=B185,$L$5>B185),AND($K$6<=Tableau1[[#This Row],[Date]],$L$6>=Tableau1[[#This Row],[Date]])),"FERMÉE",IF(OR(Tableau1[[#This Row],[Jour]]="sa",Tableau1[[#This Row],[Jour]]="di",AND(Tableau1[[#This Row],[Jour]]="ve",MOD(Tableau1[[#This Row],[N°S]],2)=1)),"REPOS",IF(Tableau1[[#This Row],[Jour]]="ve",8,8.75)))) -> REPOS
B186: 2020-03-30 | C186: =_xlfn.ISOWEEKNUM(Tableau1[[#This Row],[Date]]) -> 14 | D186: =MONTH(Tableau1[[#This Row],[Date]]) -> 3 | E186: =TEXT(Tableau1[[#This Row],[Date]],"mmmm") -> mars | F186: =CHOOSE(WEEKDAY(Tableau1[[#This Row],[Date]],2),"lu","ma","me","je","ve","sa","di") -> lu | G186: =IFERROR(VLOOKUP(B186,Tableau30[],3,FALSE),IF(OR(AND($K$5<=B186,$L$5>B186),AND($K$6<=Tableau1[[#This Row],[Date]],$L$6>=Tableau1[[#This Row],[Date]])),"FERMÉE",IF(OR(Tableau1[[#This Row],[Jour]]="sa",Tableau1[[#This Row],[Jour]]="di",AND(Tableau1[[#This Row],[Jour]]="ve",MOD(Tableau1[[#This Row],[N°S]],2)=1)),"REPOS",IF(Tableau1[[#This Row],[Jour]]="ve",8,8.75)))) -> 8.75
B187: 2020-03-31 | C187: =_xlfn.ISOWEEKNUM(Tableau1[[#This Row],[Date]]) -> 14 | D187: =MONTH(Tableau1[[#This Row],[Date]]) -> 3 | E187: =TEXT(Tableau1[[#This Row],[Date]],"mmmm") -> mars | F187: =CHOOSE(WEEKDAY(Tableau1[[#This Row],[Date]],2),"lu","ma","me","je","ve","sa","di") -> ma | G187: =IFERROR(VLOOKUP(B187,Tableau30[],3,FALSE),IF(OR(AND($K$5<=B187,$L$5>B187),AND($K$6<=Tableau1[[#This Row],[Date]],$L$6>=Tableau1[[#This Row],[Date]])),"FERMÉE",IF(OR(Tableau1[[#This Row],[Jour]]="sa",Tableau1[[#This Row],[Jour]]="di",AND(Tableau1[[#This Row],[Jour]]="ve",MOD(Tableau1[[#This Row],[N°S]],2)=1)),"REPOS",IF(Tableau1[[#This Row],[Jour]]="ve",8,8.75)))) -> 8.75
B188: 2020-04-01 | C188: =_xlfn.ISOWEEKNUM(Tableau1[[#This Row],[Date]]) -> 14 | D188: =MONTH(Tableau1[[#This Row],[Date]]) -> 4 | E188: =TEXT(Tableau1[[#This Row],[Date]],"mmmm") -> avril | F188: =CHOOSE(WEEKDAY(Tableau1[[#This Row],[Date]],2),"lu","ma","me","je","ve","sa","di") -> me | G188: =IFERROR(VLOOKUP(B188,Tableau30[],3,FALSE),IF(OR(AND($K$5<=B188,$L$5>B188),AND($K$6<=Tableau1[[#This Row],[Date]],$L$6>=Tableau1[[#This Row],[Date]])),"FERMÉE",IF(OR(Tableau1[[#This Row],[Jour]]="sa",Tableau1[[#This Row],[Jour]]="di",AND(Tableau1[[#This Row],[Jour]]="ve",MOD(Tableau1[[#This Row],[N°S]],2)=1)),"REPOS",IF(Tableau1[[#This Row],[Jour]]="ve",8,8.75)))) -> 8.75
B189: 2020-04-02 | C189: =_xlfn.ISOWEEKNUM(Tableau1[[#This Row],[Date]]) -> 14 | D189: =MONTH(Tableau1[[#This Row],[Date]]) -> 4 | E189: =TEXT(Tableau1[[#This Row],[Date]],"mmmm") -> avril | F189: =CHOOSE(WEEKDAY(Tableau1[[#This Row],[Date]],2),"lu","ma","me","je","ve","sa","di") -> je | G189: =IFERROR(VLOOKUP(B189,Tableau30[],3,FALSE),IF(OR(AND($K$5<=B189,$L$5>B189),AND($K$6<=Tableau1[[#This Row],[Date]],$L$6>=Tableau1[[#This Row],[Date]])),"FERMÉE",IF(OR(Tableau1[[#This Row],[Jour]]="sa",Tableau1[[#This Row],[Jour]]="di",AND(Tableau1[[#This Row],[Jour]]="ve",MOD(Tableau1[[#This Row],[N°S]],2)=1)),"REPOS",IF(Tableau1[[#This Row],[Jour]]="ve",8,8.75)))) -> 8.75
B190: 2020-04-03 | C190: =_xlfn.ISOWEEKNUM(Tableau1[[#This Row],[Date]]) -> 14 | D190: =MONTH(Tableau1[[#This Row],[Date]]) -> 4 | E190: =TEXT(Tableau1[[#This Row],[Date]],"mmmm") -> avril | F190: =CHOOSE(WEEKDAY(Tableau1[[#This Row],[Date]],2),"lu","ma","me","je","ve","sa","di") -> ve | G190: =IFERROR(VLOOKUP(B190,Tableau30[],3,FALSE),IF(OR(AND($K$5<=B190,$L$5>B190),AND($K$6<=Tableau1[[#This Row],[Date]],$L$6>=Tableau1[[#This Row],[Date]])),"FERMÉE",IF(OR(Tableau1[[#This Row],[Jour]]="sa",Tableau1[[#This Row],[Jour]]="di",AND(Tableau1[[#This Row],[Jour]]="ve",MOD(Tableau1[[#This Row],[N°S]],2)=1)),"REPOS",IF(Tableau1[[#This Row],[Jour]]="ve",8,8.75)))) -> 8
B191: 2020-04-04 | C191: =_xlfn.ISOWEEKNUM(Tableau1[[#This Row],[Date]]) -> 14 | D191: =MONTH(Tableau1[[#This Row],[Date]]) -> 4 | E191: =TEXT(Tableau1[[#This Row],[Date]],"mmmm") -> avril | F191: =CHOOSE(WEEKDAY(Tableau1[[#This Row],[Date]],2),"lu","ma","me","je","ve","sa","di") -> sa | G191: =IFERROR(VLOOKUP(B191,Tableau30[],3,FALSE),IF(OR(AND($K$5<=B191,$L$5>B191),AND($K$6<=Tableau1[[#This Row],[Date]],$L$6>=Tableau1[[#This Row],[Date]])),"FERMÉE",IF(OR(Tableau1[[#This Row],[Jour]]="sa",Tableau1[[#This Row],[Jour]]="di",AND(Tableau1[[#This Row],[Jour]]="ve",MOD(Tableau1[[#This Row],[N°S]],2)=1)),"REPOS",IF(Tableau1[[#This Row],[Jour]]="ve",8,8.75)))) -> REPOS
B192: 2020-04-05 | C192: =_xlfn.ISOWEEKNUM(Tableau1[[#This Row],[Date]]) -> 14 | D192: =MONTH(Tableau1[[#This Row],[Date]]) -> 4 | E192: =TEXT(Tableau1[[#This Row],[Date]],"mmmm") -> avril | F192: =CHOOSE(WEEKDAY(Tableau1[[#This Row],[Date]],2),"lu","ma","me","je","ve","sa","di") -> di | G192: =IFERROR(VLOOKUP(B192,Tableau30[],3,FALSE),IF(OR(AND($K$5<=B192,$L$5>B192),AND($K$6<=Tableau1[[#This Row],[Date]],$L$6>=Tableau1[[#This Row],[Date]])),"FERMÉE",IF(OR(Tableau1[[#This Row],[Jour]]="sa",Tableau1[[#This Row],[Jour]]="di",AND(Tableau1[[#This Row],[Jour]]="ve",MOD(Tableau1[[#This Row],[N°S]],2)=1)),"REPOS",IF(Tableau1[[#This Row],[Jour]]="ve",8,8.75)))) -> REPOS
B193: 2020-04-06 | C193: =_xlfn.ISOWEEKNUM(Tableau1[[#This Row],[Date]]) -> 15 | D193: =MONTH(Tableau1[[#This Row],[Date]]) -> 4 | E193: =TEXT(Tableau1[[#This Row],[Date]],"mmmm") -> avril | F193: =CHOOSE(WEEKDAY(Tableau1[[#This Row],[Date]],2),"lu","ma","me","je","ve","sa","di") -> lu | G193: =IFERROR(VLOOKUP(B193,Tableau30[],3,FALSE),IF(OR(AND($K$5<=B193,$L$5>B193),AND($K$6<=Tableau1[[#This Row],[Date]],$L$6>=Tableau1[[#This Row],[Date]])),"FERMÉE",IF(OR(Tableau1[[#This Row],[Jour]]="sa",Tableau1[[#This Row],[Jour]]="di",AND(Tableau1[[#This Row],[Jour]]="ve",MOD(Tableau1[[#This Row],[N°S]],2)=1)),"REPOS",IF(Tableau1[[#This Row],[Jour]]="ve",8,8.75)))) -> 8.75
B194: 2020-04-07 | C194: =_xlfn.ISOWEEKNUM(Tableau1[[#This Row],[Date]]) -> 15 | D194: =MONTH(Tableau1[[#This Row],[Date]]) -> 4 | E194: =TEXT(Tableau1[[#This Row],[Date]],"mmmm") -> avril | F194: =CHOOSE(WEEKDAY(Tableau1[[#This Row],[Date]],2),"lu","ma","me","je","ve","sa","di") -> ma | G194: =IFERROR(VLOOKUP(B194,Tableau30[],3,FALSE),IF(OR(AND($K$5<=B194,$L$5>B194),AND($K$6<=Tableau1[[#This Row],[Date]],$L$6>=Tableau1[[#This Row],[Date]])),"FERMÉE",IF(OR(Tableau1[[#This Row],[Jour]]="sa",Tableau1[[#This Row],[Jour]]="di",AND(Tableau1[[#This Row],[Jour]]="ve",MOD(Tableau1[[#This Row],[N°S]],2)=1)),"REPOS",IF(Tableau1[[#This Row],[Jour]]="ve",8,8.75)))) -> 8.75
B195: 2020-04-08 | C195: =_xlfn.ISOWEEKNUM(Tableau1[[#This Row],[Date]]) -> 15 | D195: =MONTH(Tableau1[[#This Row],[Date]]) -> 4 | E195: =TEXT(Tableau1[[#This Row],[Date]],"mmmm") -> avril | F195: =CHOOSE(WEEKDAY(Tableau1[[#This Row],[Date]],2),"lu","ma","me","je","ve","sa","di") -> me | G195: =IFERROR(VLOOKUP(B195,Tableau30[],3,FALSE),IF(OR(AND($K$5<=B195,$L$5>B195),AND($K$6<=Tableau1[[#This Row],[Date]],$L$6>=Tableau1[[#This Row],[Date]])),"FERMÉE",IF(OR(Tableau1[[#This Row],[Jour]]="sa",Tableau1[[#This Row],[Jour]]="di",AND(Tableau1[[#This Row],[Jour]]="ve",MOD(Tableau1[[#This Row],[N°S]],2)=1)),"REPOS",IF(Tableau1[[#This Row],[Jour]]="ve",8,8.75)))) -> 8.75
B196: 2020-04-09 | C196: =_xlfn.ISOWEEKNUM(Tableau1[[#This Row],[Date]]) -> 15 | D196: =MONTH(Tableau1[[#This Row],[Date]]) -> 4 | E196: =TEXT(Tableau1[[#This Row],[Date]],"mmmm") -> avril | F196: =CHOOSE(WEEKDAY(Tableau1[[#This Row],[Date]],2),"lu","ma","me","je","ve","sa","di") -> je | G196: =IFERROR(VLOOKUP(B196,Tableau30[],3,FALSE),IF(OR(AND($K$5<=B196,$L$5>B196),AND($K$6<=Tableau1[[#This Row],[Date]],$L$6>=Tableau1[[#This Row],[Date]])),"FERMÉE",IF(OR(Tableau1[[#This Row],[Jour]]="sa",Tableau1[[#This Row],[Jour]]="di",AND(Tableau1[[#This Row],[Jour]]="ve",MOD(Tableau1[[#This Row],[N°S]],2)=1)),"REPOS",IF(Tableau1[[#This Row],[Jour]]="ve",8,8.75)))) -> 8.75
B197: 2020-04-10 | C197: =_xlfn.ISOWEEKNUM(Tableau1[[#This Row],[Date]]) -> 15 | D197: =MONTH(Tableau1[[#This Row],[Date]]) -> 4 | E197: =TEXT(Tableau1[[#This Row],[Date]],"mmmm") -> avril | F197: =CHOOSE(WEEKDAY(Tableau1[[#This Row],[Date]],2),"lu","ma","me","je","ve","sa","di") -> ve | G197: =IFERROR(VLOOKUP(B197,Tableau30[],3,FALSE),IF(OR(AND($K$5<=B197,$L$5>B197),AND($K$6<=Tableau1[[#This Row],[Date]],$L$6>=Tableau1[[#This Row],[Date]])),"FERMÉE",IF(OR(Tableau1[[#This Row],[Jour]]="sa",Tableau1[[#This Row],[Jour]]="di",AND(Tableau1[[#This Row],[Jour]]="ve",MOD(Tableau1[[#This Row],[N°S]],2)=1)),"REPOS",IF(Tableau1[[#This Row],[Jour]]="ve",8,8.75)))) -> REPOS
B198: 2020-04-11 | C198: =_xlfn.ISOWEEKNUM(Tableau1[[#This Row],[Date]]) -> 15 | D198: =MONTH(Tableau1[[#This Row],[Date]]) -> 4 | E198: =TEXT(Tableau1[[#This Row],[Date]],"mmmm") -> avril | F198: =CHOOSE(WEEKDAY(Tableau1[[#This Row],[Date]],2),"lu","ma","me","je","ve","sa","di") -> sa | G198: =IFERROR(VLOOKUP(B198,Tableau30[],3,FALSE),IF(OR(AND($K$5<=B198,$L$5>B198),AND($K$6<=Tableau1[[#This Row],[Date]],$L$6>=Tableau1[[#This Row],[Date]])),"FERMÉE",IF(OR(Tableau1[[#This Row],[Jour]]="sa",Tableau1[[#This Row],[Jour]]="di",AND(Tableau1[[#This Row],[Jour]]="ve",MOD(Tableau1[[#This Row],[N°S]],2)=1)),"REPOS",IF(Tableau1[[#This Row],[Jour]]="ve",8,8.75)))) -> REPOS
B199: =B198+1 -> 2020-04-12 | C199: =_xlfn.ISOWEEKNUM(Tableau1[[#This Row],[Date]]) -> 15 | D199: =MONTH(Tableau1[[#This Row],[Date]]) -> 4 | E199: =TEXT(Tableau1[[#This Row],[Date]],"mmmm") -> avril | F199: =CHOOSE(WEEKDAY(Tableau1[[#This Row],[Date]],2),"lu","ma","me","je","ve","sa","di") -> di | G199: =IFERROR(VLOOKUP(B199,Tableau30[],3,FALSE),IF(OR(AND($K$5<=B199,$L$5>B199),AND($K$6<=Tableau1[[#This Row],[Date]],$L$6>=Tableau1[[#This Row],[Date]])),"FERMÉE",IF(OR(Tableau1[[#This Row],[Jour]]="sa",Tableau1[[#This Row],[Jour]]="di",AND(Tableau1[[#This Row],[Jour]]="ve",MOD(Tableau1[[#This Row],[N°S]],2)=1)),"REPOS",IF(Tableau1[[#This Row],[Jour]]="ve",8,8.75)))) -> REPOS
B200: 2020-04-13 | C200: =_xlfn.ISOWEEKNUM(Tableau1[[#This Row],[Date]]) -> 16 | D200: =MONTH(Tableau1[[#This Row],[Date]]) -> 4 | E200: =TEXT(Tableau1[[#This Row],[Date]],"mmmm") -> avril | F200: =CHOOSE(WEEKDAY(Tableau1[[#This Row],[Date]],2),"lu","ma","me","je","ve","sa","di") -> lu | G200: =IFERROR(VLOOKUP(B200,Tableau30[],3,FALSE),IF(OR(AND($K$5<=B200,$L$5>B200),AND($K$6<=Tableau1[[#This Row],[Date]],$L$6>=Tableau1[[#This Row],[Date]])),"FERMÉE",IF(OR(Tableau1[[#This Row],[Jour]]="sa",Tableau1[[#This Row],[Jour]]="di",AND(Tableau1[[#This Row],[Jour]]="ve",MOD(Tableau1[[#This Row],[N°S]],2)=1)),"REPOS",IF(Tableau1[[#This Row],[Jour]]="ve",8,8.75)))) -> FÉRIÉ/INACTIF
B201: 2020-04-14 | C201: =_xlfn.ISOWEEKNUM(Tableau1[[#This Row],[Date]]) -> 16 | D201: =MONTH(Tableau1[[#This Row],[Date]]) -> 4 | E201: =TEXT(Tableau1[[#This Row],[Date]],"mmmm") -> avril | F201: =CHOOSE(WEEKDAY(Tableau1[[#This Row],[Date]],2),"lu","ma","me","je","ve","sa","di") -> ma | G201: =IFERROR(VLOOKUP(B201,Tableau30[],3,FALSE),IF(OR(AND($K$5<=B201,$L$5>B201),AND($K$6<=Tableau1[[#This Row],[Date]],$L$6>=Tableau1[[#This Row],[Date]])),"FERMÉE",IF(OR(Tableau1[[#This Row],[Jour]]="sa",Tableau1[[#This Row],[Jour]]="di",AND(Tableau1[[#This Row],[Jour]]="ve",MOD(Tableau1[[#This Row],[N°S]],2)=1)),"REPOS",IF(Tableau1[[#This Row],[Jour]]="ve",8,8.75)))) -> 8.75
... 169 more rows

Sheet H productives (hidden)
B1: N°S | C1: N°Mois | D1: Mois | E1: Poseur 1 | F1: Poseur 2 | G1: Poseur 3 | H1: Poseur 4 | I1: Poseur 5 | J1: Poseur 6 | K1: Poseur 7
B2: 40 | C2: 10 | D2: =TEXT(DATE('Fermetures & jours fériés'!$D$1,H_productives[[#This Row],[N°Mois]],1),"mmmm") -> octobre | E2: =COUNTIFS(Tableau1[Etat],"8,75",Tableau1[Mois],H_productives[[#This Row],[Mois]],Tableau1[N°S],H_productives[[#This Row],[N°S]])*8.75+COUNTIFS(Tableau1[Etat],"8",Tableau1[Mois],H_productives[[#This Row],[Mois]],Tableau1[N°S],H_productives[[#This Row],[N°S]])*8 -> 34.25 | F2: =COUNTIFS(Tableau1[Etat],"8,75",Tableau1[Mois],H_productives[[#This Row],[Mois]],Tableau1[N°S],H_productives[[#This Row],[N°S]])*8.75+COUNTIFS(Tableau1[Etat],"8",Tableau1[Mois],H_productives[[#This Row],[Mois]],Tableau1[N°S],H_productives[[#This Row],[N°S]])*8 -> 34.25 | G2: =COUNTIFS(Tableau1[Etat],"8,75",Tableau1[Mois],H_productives[[#This Row],[Mois]],Tableau1[N°S],H_productives[[#This Row],[N°S]])*8.75+COUNTIFS(Tableau1[Etat],"8",Tableau1[Mois],H_productives[[#This Row],[Mois]],Tableau1[N°S],H_productives[[#This Row],[N°S]])*8 -> 34.25 | H2: =COUNTIFS(Tableau1[Etat],"8,75",Tableau1[Mois],H_productives[[#This Row],[Mois]],Tableau1[N°S],H_productives[[#This Row],[N°S]])*8.75+COUNTIFS(Tableau1[Etat],"8",Tableau1[Mois],H_productives[[#This Row],[Mois]],Tableau1[N°S],H_productives[[#This Row],[N°S]])*8 -> 34.25 | I2: =COUNTIFS(Tableau1[Etat],"8,75",Tableau1[Mois],H_productives[[#This Row],[Mois]],Tableau1[N°S],H_productives[[#This Row],[N°S]])*8.75+COUNTIFS(Tableau1[Etat],"8",Tableau1[Mois],H_productives[[#This Row],[Mois]],Tableau1[N°S],H_productives[[#This Row],[N°S]])*8 -> 34.25 | J2: =COUNTIFS(Tableau1[Etat],"8,75",Tableau1[Mois],H_productives[[#This Row],[Mois]],Tableau1[N°S],H_productives[[#This Row],[N°S]])*8.75+COUNTIFS(Tableau1[Etat],"8",Tableau1[Mois],H_productives[[#This Row],[Mois]],Tableau1[N°S],H_productives[[#This Row],[N°S]])*8 -> 34.25 | K2: 0 | M2: Jours
B3: 41 | C3: 10 | D3: =TEXT(DATE('Fermetures & jours fériés'!$D$1,H_productives[[#This Row],[N°Mois]],1),"mmmm") -> octobre | E3: =COUNTIFS(Tableau1[Etat],"8,75",Tableau1[Mois],H_productives[[#This Row],[Mois]],Tableau1[N°S],H_productives[[#This Row],[N°S]])*8.75+COUNTIFS(Tableau1[Etat],"8",Tableau1[Mois],H_productives[[#This Row],[Mois]],Tableau1[N°S],H_productives[[#This Row],[N°S]])*8 -> 26.25 | F3: =COUNTIFS(Tableau1[Etat],"8,75",Tableau1[Mois],H_productives[[#This Row],[Mois]],Tableau1[N°S],H_productives[[#This Row],[N°S]])*8.75+COUNTIFS(Tableau1[Etat],"8",Tableau1[Mois],H_productives[[#This Row],[Mois]],Tableau1[N°S],H_productives[[#This Row],[N°S]])*8 -> 26.25 | G3: =COUNTIFS(Tableau1[Etat],"8,75",Tableau1[Mois],H_productives[[#This Row],[Mois]],Tableau1[N°S],H_productives[[#This Row],[N°S]])*8.75+COUNTIFS(Tableau1[Etat],"8",Tableau1[Mois],H_productives[[#This Row],[Mois]],Tableau1[N°S],H_productives[[#This Row],[N°S]])*8 -> 26.25 | H3: =COUNTIFS(Tableau1[Etat],"8,75",Tableau1[Mois],H_productives[[#This Row],[Mois]],Tableau1[N°S],H_productives[[#This Row],[N°S]])*8.75+COUNTIFS(Tableau1[Etat],"8",Tableau1[Mois],H_productives[[#This Row],[Mois]],Tableau1[N°S],H_productives[[#This Row],[N°S]])*8 -> 26.25 | I3: =COUNTIFS(Tableau1[Etat],"8,75",Tableau1[Mois],H_productives[[#This Row],[Mois]],Tableau1[N°S],H_productives[[#This Row],[N°S]])*8.75+COUNTIFS(Tableau1[Etat],"8",Tableau1[Mois],H_productives[[#This Row],[Mois]],Tableau1[N°S],H_productives[[#This Row],[N°S]])*8 -> 26.25 | J3: =COUNTIFS(Tableau1[Etat],"8,75",Tableau1[Mois],H_productives[[#This Row],[Mois]],Tableau1[N°S],H_productives[[#This Row],[N°S]])*8.75+COUNTIFS(Tableau1[Etat],"8",Tableau1[Mois],H_productives[[#This Row],[Mois]],Tableau1[N°S],H_productives[[#This Row],[N°S]])*8 -> 26.25 | K3: 0 | M3: S n° | N3: REPOS | O3: 8.75 | P3: 8 | Q3: FÉRIÉ/INACTIF | R3: Total
B4: 42 | C4: 10 | D4: =TEXT(DATE('Fermetures & jours fériés'!$D$1,H_productives[[#This Row],[N°Mois]],1),"mmmm") -> octobre | E4: =COUNTIFS(Tableau1[Etat],"8,75",Tableau1[Mois],H_productives[[#This Row],[Mois]],Tableau1[N°S],H_productives[[#This Row],[N°S]])*8.75+COUNTIFS(Tableau1[Etat],"8",Tableau1[Mois],H_productives[[#This Row],[Mois]],Tableau1[N°S],H_productives[[#This Row],[N°S]])*8 -> 43 | F4: =COUNTIFS(Tableau1[Etat],"8,75",Tableau1[Mois],H_productives[[#This Row],[Mois]],Tableau1[N°S],H_productives[[#This Row],[N°S]])*8.75+COUNTIFS(Tableau1[Etat],"8",Tableau1[Mois],H_productives[[#This Row],[Mois]],Tableau1[N°S],H_productives[[#This Row],[N°S]])*8 -> 43 | G4: =COUNTIFS(Tableau1[Etat],"8,75",Tableau1[Mois],H_productives[[#This Row],[Mois]],Tableau1[N°S],H_productives[[#This Row],[N°S]])*8.75+COUNTIFS(Tableau1[Etat],"8",Tableau1[Mois],H_productives[[#This Row],[Mois]],Tableau1[N°S],H_productives[[#This Row],[N°S]])*8 -> 43 | H4: =COUNTIFS(Tableau1[Etat],"8,75",Tableau1[Mois],H_productives[[#This Row],[Mois]],Tableau1[N°S],H_productives[[#This Row],[N°S]])*8.75+COUNTIFS(Tableau1[Etat],"8",Tableau1[Mois],H_productives[[#This Row],[Mois]],Tableau1[N°S],H_productives[[#This Row],[N°S]])*8 -> 43 | I4: =COUNTIFS(Tableau1[Etat],"8,75",Tableau1[Mois],H_productives[[#This Row],[Mois]],Tableau1[N°S],H_productives[[#This Row],[N°S]])*8.75+COUNTIFS(Tableau1[Etat],"8",Tableau1[Mois],H_productives[[#This Row],[Mois]],Tableau1[N°S],H_productives[[#This Row],[N°S]])*8 -> 43 | J4: =COUNTIFS(Tableau1[Etat],"8,75",Tableau1[Mois],H_productives[[#This Row],[Mois]],Tableau1[N°S],H_productives[[#This Row],[N°S]])*8.75+COUNTIFS(Tableau1[Etat],"8",Tableau1[Mois],H_productives[[#This Row],[Mois]],Tableau1[N°S],H_productives[[#This Row],[N°S]])*8 -> 43 | K4: 0 | M4: 40 | N4: 2 | O4: 3 | P4: 1 | R4: 6
B5: 43 | C5: 10 | D5: =TEXT(DATE('Fermetures & jours fériés'!$D$1,H_productives[[#This Row],[N°Mois]],1),"mmmm") -> octobre | E5: =COUNTIFS(Tableau1[Etat],"8,75",Tableau1[Mois],H_productives[[#This Row],[Mois]],Tableau1[N°S],H_productives[[#This Row],[N°S]])*8.75+COUNTIFS(Tableau1[Etat],"8",Tableau1[Mois],H_productives[[#This Row],[Mois]],Tableau1[N°S],H_productives[[#This Row],[N°S]])*8 -> 35 | F5: =COUNTIFS(Tableau1[Etat],"8,75",Tableau1[Mois],H_productives[[#This Row],[Mois]],Tableau1[N°S],H_productives[[#This Row],[N°S]])*8.75+COUNTIFS(Tableau1[Etat],"8",Tableau1[Mois],H_productives[[#This Row],[Mois]],Tableau1[N°S],H_productives[[#This Row],[N°S]])*8 -> 35 | G5: =COUNTIFS(Tableau1[Etat],"8,75",Tableau1[Mois],H_productives[[#This Row],[Mois]],Tableau1[N°S],H_productives[[#This Row],[N°S]])*8.75+COUNTIFS(Tableau1[Etat],"8",Tableau1[Mois],H_productives[[#This Row],[Mois]],Tableau1[N°S],H_productives[[#This Row],[N°S]])*8 -> 35 | H5: =COUNTIFS(Tableau1[Etat],"8,75",Tableau1[Mois],H_productives[[#This Row],[Mois]],Tableau1[N°S],H_productives[[#This Row],[N°S]])*8.75+COUNTIFS(Tableau1[Etat],"8",Tableau1[Mois],H_productives[[#This Row],[Mois]],Tableau1[N°S],H_productives[[#This Row],[N°S]])*8 -> 35 | I5: =COUNTIFS(Tableau1[Etat],"8,75",Tableau1[Mois],H_productives[[#This Row],[Mois]],Tableau1[N°S],H_productives[[#This Row],[N°S]])*8.75+COUNTIFS(Tableau1[Etat],"8",Tableau1[Mois],H_productives[[#This Row],[Mois]],Tableau1[N°S],H_productives[[#This Row],[N°S]])*8 -> 35 | J5: =COUNTIFS(Tableau1[Etat],"8,75",Tableau1[Mois],H_productives[[#This Row],[Mois]],Tableau1[N°S],H_productives[[#This Row],[N°S]])*8.75+COUNTIFS(Tableau1[Etat],"8",Tableau1[Mois],H_productives[[#This Row],[Mois]],Tableau1[N°S],H_productives[[#This Row],[N°S]])*8 -> 35 | K5: 0 | M5: 41 | N5: 3 | O5: 3 | Q5: 1 | R5: 7
B6: 44 | C6: 10 | D6: =TEXT(DATE('Fermetures & jours fériés'!$D$1,H_productives[[#This Row],[N°Mois]],1),"mmmm") -> octobre | E6: =COUNTIFS(Tableau1[Etat],"8,75",Tableau1[Mois],H_productives[[#This Row],[Mois]],Tableau1[N°S],H_productives[[#This Row],[N°S]])*8.75+COUNTIFS(Tableau1[Etat],"8",Tableau1[Mois],H_productives[[#This Row],[Mois]],Tableau1[N°S],H_productives[[#This Row],[N°S]])*8 -> 35 | F6: =COUNTIFS(Tableau1[Etat],"8,75",Tableau1[Mois],H_productives[[#This Row],[Mois]],Tableau1[N°S],H_productives[[#This Row],[N°S]])*8.75+COUNTIFS(Tableau1[Etat],"8",Tableau1[Mois],H_productives[[#This Row],[Mois]],Tableau1[N°S],H_productives[[#This Row],[N°S]])*8 -> 35 | G6: =COUNTIFS(Tableau1[Etat],"8,75",Tableau1[Mois],H_productives[[#This Row],[Mois]],Tableau1[N°S],H_productives[[#This Row],[N°S]])*8.75+COUNTIFS(Tableau1[Etat],"8",Tableau1[Mois],H_productives[[#This Row],[Mois]],Tableau1[N°S],H_productives[[#This Row],[N°S]])*8 -> 35 | H6: =COUNTIFS(Tableau1[Etat],"8,75",Tableau1[Mois],H_productives[[#This Row],[Mois]],Tableau1[N°S],H_productives[[#This Row],[N°S]])*8.75+COUNTIFS(Tableau1[Etat],"8",Tableau1[Mois],H_productives[[#This Row],[Mois]],Tableau1[N°S],H_productives[[#This Row],[N°S]])*8 -> 35 | I6: =COUNTIFS(Tableau1[Etat],"8,75",Tableau1[Mois],H_productives[[#This Row],[Mois]],Tableau1[N°S],H_productives[[#This Row],[N°S]])*8.75+COUNTIFS(Tableau1[Etat],"8",Tableau1[Mois],H_productives[[#This Row],[Mois]],Tableau1[N°S],H_productives[[#This Row],[N°S]])*8 -> 35 | J6: =COUNTIFS(Tableau1[Etat],"8,75",Tableau1[Mois],H_productives[[#This Row],[Mois]],Tableau1[N°S],H_productives[[#This Row],[N°S]])*8.75+COUNTIFS(Tableau1[Etat],"8",Tableau1[Mois],H_productives[[#This Row],[Mois]],Tableau1[N°S],H_productives[[#This Row],[N°S]])*8 -> 35 | K6: 0 | M6: 42 | N6: 2 | O6: 4 | P6: 1 | R6: 7
B7: 44 | C7: 11 | D7: =TEXT(DATE('Fermetures & jours fériés'!$D$1,H_productives[[#This Row],[N°Mois]],1),"mmmm") -> novembre | E7: =COUNTIFS(Tableau1[Etat],"8,75",Tableau1[Mois],H_productives[[#This Row],[Mois]],Tableau1[N°S],H_productives[[#This Row],[N°S]])*8.75+COUNTIFS(Tableau1[Etat],"8",Tableau1[Mois],H_productives[[#This Row],[Mois]],Tableau1[N°S],H_productives[[#This Row],[N°S]])*8 -> 0 | F7: =COUNTIFS(Tableau1[Etat],"8,75",Tableau1[Mois],H_productives[[#This Row],[Mois]],Tableau1[N°S],H_productives[[#This Row],[N°S]])*8.75+COUNTIFS(Tableau1[Etat],"8",Tableau1[Mois],H_productives[[#This Row],[Mois]],Tableau1[N°S],H_productives[[#This Row],[N°S]])*8 -> 0 | G7: =COUNTIFS(Tableau1[Etat],"8,75",Tableau1[Mois],H_productives[[#This Row],[Mois]],Tableau1[N°S],H_productives[[#This Row],[N°S]])*8.75+COUNTIFS(Tableau1[Etat],"8",Tableau1[Mois],H_productives[[#This Row],[Mois]],Tableau1[N°S],H_productives[[#This Row],[N°S]])*8 -> 0 | H7: =COUNTIFS(Tableau1[Etat],"8,75",Tableau1[Mois],H_productives[[#This Row],[Mois]],Tableau1[N°S],H_productives[[#This Row],[N°S]])*8.75+COUNTIFS(Tableau1[Etat],"8",Tableau1[Mois],H_productives[[#This Row],[Mois]],Tableau1[N°S],H_productives[[#This Row],[N°S]])*8 -> 0 | I7: =COUNTIFS(Tableau1[Etat],"8,75",Tableau1[Mois],H_productives[[#This Row],[Mois]],Tableau1[N°S],H_productives[[#This Row],[N°S]])*8.75+COUNTIFS(Tableau1[Etat],"8",Tableau1[Mois],H_productives[[#This Row],[Mois]],Tableau1[N°S],H_productives[[#This Row],[N°S]])*8 -> 0 | J7: =COUNTIFS(Tableau1[Etat],"8,75",Tableau1[Mois],H_productives[[#This Row],[Mois]],Tableau1[N°S],H_productives[[#This Row],[N°S]])*8.75+COUNTIFS(Tableau1[Etat],"8",Tableau1[Mois],H_productives[[#This Row],[Mois]],Tableau1[N°S],H_productives[[#This Row],[N°S]])*8 -> 0 | K7: 0 | M7: 43 | N7: 3 | O7: 4 | R7: 7
B8: 45 | C8: 11 | D8: =TEXT(DATE('Fermetures & jours fériés'!$D$1,H_productives[[#This Row],[N°Mois]],1),"mmmm") -> novembre | E8: =COUNTIFS(Tableau1[Etat],"8,75",Tableau1[Mois],H_productives[[#This Row],[Mois]],Tableau1[N°S],H_productives[[#This Row],[N°S]])*8.75+COUNTIFS(Tableau1[Etat],"8",Tableau1[Mois],H_productives[[#This Row],[Mois]],Tableau1[N°S],H_productives[[#This Row],[N°S]])*8 -> 35 | F8: =COUNTIFS(Tableau1[Etat],"8,75",Tableau1[Mois],H_productives[[#This Row],[Mois]],Tableau1[N°S],H_productives[[#This Row],[N°S]])*8.75+COUNTIFS(Tableau1[Etat],"8",Tableau1[Mois],H_productives[[#This Row],[Mois]],Tableau1[N°S],H_productives[[#This Row],[N°S]])*8 -> 35 | G8: =COUNTIFS(Tableau1[Etat],"8,75",Tableau1[Mois],H_productives[[#This Row],[Mois]],Tableau1[N°S],H_productives[[#This Row],[N°S]])*8.75+COUNTIFS(Tableau1[Etat],"8",Tableau1[Mois],H_productives[[#This Row],[Mois]],Tableau1[N°S],H_productives[[#This Row],[N°S]])*8 -> 35 | H8: =COUNTIFS(Tableau1[Etat],"8,75",Tableau1[Mois],H_productives[[#This Row],[Mois]],Tableau1[N°S],H_productives[[#This Row],[N°S]])*8.75+COUNTIFS(Tableau1[Etat],"8",Tableau1[Mois],H_productives[[#This Row],[Mois]],Tableau1[N°S],H_productives[[#This Row],[N°S]])*8 -> 35 | I8: =COUNTIFS(Tableau1[Etat],"8,75",Tableau1[Mois],H_productives[[#This Row],[Mois]],Tableau1[N°S],H_productives[[#This Row],[N°S]])*8.75+COUNTIFS(Tableau1[Etat],"8",Tableau1[Mois],H_productives[[#This Row],[Mois]],Tableau1[N°S],H_productives[[#This Row],[N°S]])*8 -> 35 | J8: =COUNTIFS(Tableau1[Etat],"8,75",Tableau1[Mois],H_productives[[#This Row],[Mois]],Tableau1[N°S],H_productives[[#This Row],[N°S]])*8.75+COUNTIFS(Tableau1[Etat],"8",Tableau1[Mois],H_productives[[#This Row],[Mois]],Tableau1[N°S],H_productives[[#This Row],[N°S]])*8 -> 35 | K8: 0 | M8: 44 | O8: 4 | R8: 4
B9: 46 | C9: 11 | D9: =TEXT(DATE('Fermetures & jours fériés'!$D$1,H_productives[[#This Row],[N°Mois]],1),"mmmm") -> novembre | E9: =COUNTIFS(Tableau1[Etat],"8,75",Tableau1[Mois],H_productives[[#This Row],[Mois]],Tableau1[N°S],H_productives[[#This Row],[N°S]])*8.75+COUNTIFS(Tableau1[Etat],"8",Tableau1[Mois],H_productives[[#This Row],[Mois]],Tableau1[N°S],H_productives[[#This Row],[N°S]])*8 -> 34.25 | F9: =COUNTIFS(Tableau1[Etat],"8,75",Tableau1[Mois],H_productives[[#This Row],[Mois]],Tableau1[N°S],H_productives[[#This Row],[N°S]])*8.75+COUNTIFS(Tableau1[Etat],"8",Tableau1[Mois],H_productives[[#This Row],[Mois]],Tableau1[N°S],H_productives[[#This Row],[N°S]])*8 -> 34.25 | G9: =COUNTIFS(Tableau1[Etat],"8,75",Tableau1[Mois],H_productives[[#This Row],[Mois]],Tableau1[N°S],H_productives[[#This Row],[N°S]])*8.75+COUNTIFS(Tableau1[Etat],"8",Tableau1[Mois],H_productives[[#This Row],[Mois]],Tableau1[N°S],H_productives[[#This Row],[N°S]])*8 -> 34.25 | H9: =COUNTIFS(Tableau1[Etat],"8,75",Tableau1[Mois],H_productives[[#This Row],[Mois]],Tableau1[N°S],H_productives[[#This Row],[N°S]])*8.75+COUNTIFS(Tableau1[Etat],"8",Tableau1[Mois],H_productives[[#This Row],[Mois]],Tableau1[N°S],H_productives[[#This Row],[N°S]])*8 -> 34.25 | I9: =COUNTIFS(Tableau1[Etat],"8,75",Tableau1[Mois],H_productives[[#This Row],[Mois]],Tableau1[N°S],H_productives[[#This Row],[N°S]])*8.75+COUNTIFS(Tableau1[Etat],"8",Tableau1[Mois],H_productives[[#This Row],[Mois]],Tableau1[N°S],H_productives[[#This Row],[N°S]])*8 -> 34.25 | J9: =COUNTIFS(Tableau1[Etat],"8,75",Tableau1[Mois],H_productives[[#This Row],[Mois]],Tableau1[N°S],H_productives[[#This Row],[N°S]])*8.75+COUNTIFS(Tableau1[Etat],"8",Tableau1[Mois],H_productives[[#This Row],[Mois]],Tableau1[N°S],H_productives[[#This Row],[N°S]])*8 -> 34.25 | K9: 0 | M9: Total | N9: 10 | O9: 18 | P9: 2 | Q9: 1 | R9: 31
B10: 47 | C10: 11 | D10: =TEXT(DATE('Fermetures & jours fériés'!$D$1,H_productives[[#This Row],[N°Mois]],1),"mmmm") -> novembre | E10: =COUNTIFS(Tableau1[Etat],"8,75",Tableau1[Mois],H_productives[[#This Row],[Mois]],Tableau1[N°S],H_productives[[#This Row],[N°S]])*8.75+COUNTIFS(Tableau1[Etat],"8",Tableau1[Mois],H_productives[[#This Row],[Mois]],Tableau1[N°S],H_productives[[#This Row],[N°S]])*8 -> 35 | F10: =COUNTIFS(Tableau1[Etat],"8,75",Tableau1[Mois],H_productives[[#This Row],[Mois]],Tableau1[N°S],H_productives[[#This Row],[N°S]])*8.75+COUNTIFS(Tableau1[Etat],"8",Tableau1[Mois],H_productives[[#This Row],[Mois]],Tableau1[N°S],H_productives[[#This Row],[N°S]])*8 -> 35 | G10: =COUNTIFS(Tableau1[Etat],"8,75",Tableau1[Mois],H_productives[[#This Row],[Mois]],Tableau1[N°S],H_productives[[#This Row],[N°S]])*8.75+COUNTIFS(Tableau1[Etat],"8",Tableau1[Mois],H_productives[[#This Row],[Mois]],Tableau1[N°S],H_productives[[#This Row],[N°S]])*8 -> 35 | H10: =COUNTIFS(Tableau1[Etat],"8,75",Tableau1[Mois],H_productives[[#This Row],[Mois]],Tableau1[N°S],H_productives[[#This Row],[N°S]])*8.75+COUNTIFS(Tableau1[Etat],"8",Tableau1[Mois],H_productives[[#This Row],[Mois]],Tableau1[N°S],H_productives[[#This Row],[N°S]])*8 -> 35 | I10: =COUNTIFS(Tableau1[Etat],"8,75",Tableau1[Mois],H_productives[[#This Row],[Mois]],Tableau1[N°S],H_productives[[#This Row],[N°S]])*8.75+COUNTIFS(Tableau1[Etat],"8",Tableau1[Mois],H_productives[[#This Row],[Mois]],Tableau1[N°S],H_productives[[#This Row],[N°S]])*8 -> 35 | J10: =COUNTIFS(Tableau1[Etat],"8,75",Tableau1[Mois],H_productives[[#This Row],[Mois]],Tableau1[N°S],H_productives[[#This Row],[N°S]])*8.75+COUNTIFS(Tableau1[Etat],"8",Tableau1[Mois],H_productives[[#This Row],[Mois]],Tableau1[N°S],H_productives[[#This Row],[N°S]])*8 -> 35 | K10: 35
B11: 48 | C11: 11 | D11: =TEXT(DATE('Fermetures & jours fériés'!$D$1,H_productives[[#This Row],[N°Mois]],1),"mmmm") -> novembre | E11: =COUNTIFS(Tableau1[Etat],"8,75",Tableau1[Mois],H_productives[[#This Row],[Mois]],Tableau1[N°S],H_productives[[#This Row],[N°S]])*8.75+COUNTIFS(Tableau1[Etat],"8",Tableau1[Mois],H_productives[[#This Row],[Mois]],Tableau1[N°S],H_productives[[#This Row],[N°S]])*8 -> 43 | F11: =COUNTIFS(Tableau1[Etat],"8,75",Tableau1[Mois],H_productives[[#This Row],[Mois]],Tableau1[N°S],H_productives[[#This Row],[N°S]])*8.75+COUNTIFS(Tableau1[Etat],"8",Tableau1[Mois],H_productives[[#This Row],[Mois]],Tableau1[N°S],H_productives[[#This Row],[N°S]])*8 -> 43 | G11: =COUNTIFS(Tableau1[Etat],"8,75",Tableau1[Mois],H_productives[[#This Row],[Mois]],Tableau1[N°S],H_productives[[#This Row],[N°S]])*8.75+COUNTIFS(Tableau1[Etat],"8",Tableau1[Mois],H_productives[[#This Row],[Mois]],Tableau1[N°S],H_productives[[#This Row],[N°S]])*8 -> 43 | H11: =COUNTIFS(Tableau1[Etat],"8,75",Tableau1[Mois],H_productives[[#This Row],[Mois]],Tableau1[N°S],H_productives[[#This Row],[N°S]])*8.75+COUNTIFS(Tableau1[Etat],"8",Tableau1[Mois],H_productives[[#This Row],[Mois]],Tableau1[N°S],H_productives[[#This Row],[N°S]])*8 -> 43 | I11: =COUNTIFS(Tableau1[Etat],"8,75",Tableau1[Mois],H_productives[[#This Row],[Mois]],Tableau1[N°S],H_productives[[#This Row],[N°S]])*8.75+COUNTIFS(Tableau1[Etat],"8",Tableau1[Mois],H_productives[[#This Row],[Mois]],Tableau1[N°S],H_productives[[#This Row],[N°S]])*8 -> 43 | J11: =COUNTIFS(Tableau1[Etat],"8,75",Tableau1[Mois],H_productives[[#This Row],[Mois]],Tableau1[N°S],H_productives[[#This Row],[N°S]])*8.75+COUNTIFS(Tableau1[Etat],"8",Tableau1[Mois],H_productives[[#This Row],[Mois]],Tableau1[N°S],H_productives[[#This Row],[N°S]])*8 -> 43 | K11: 35
B12: 48 | C12: 12 | D12: =TEXT(DATE('Fermetures & jours fériés'!$D$1,H_productives[[#This Row],[N°Mois]],1),"mmmm") -> décembre | E12: =COUNTIFS(Tableau1[Etat],"8,75",Tableau1[Mois],H_productives[[#This Row],[Mois]],Tableau1[N°S],H_productives[[#This Row],[N°S]])*8.75+COUNTIFS(Tableau1[Etat],"8",Tableau1[Mois],H_productives[[#This Row],[Mois]],Tableau1[N°S],H_productives[[#This Row],[N°S]])*8 -> 0 | F12: =COUNTIFS(Tableau1[Etat],"8,75",Tableau1[Mois],H_productives[[#This Row],[Mois]],Tableau1[N°S],H_productives[[#This Row],[N°S]])*8.75+COUNTIFS(Tableau1[Etat],"8",Tableau1[Mois],H_productives[[#This Row],[Mois]],Tableau1[N°S],H_productives[[#This Row],[N°S]])*8 -> 0 | G12: =COUNTIFS(Tableau1[Etat],"8,75",Tableau1[Mois],H_productives[[#This Row],[Mois]],Tableau1[N°S],H_productives[[#This Row],[N°S]])*8.75+COUNTIFS(Tableau1[Etat],"8",Tableau1[Mois],H_productives[[#This Row],[Mois]],Tableau1[N°S],H_productives[[#This Row],[N°S]])*8 -> 0 | H12: =COUNTIFS(Tableau1[Etat],"8,75",Tableau1[Mois],H_productives[[#This Row],[Mois]],Tableau1[N°S],H_productives[[#This Row],[N°S]])*8.75+COUNTIFS(Tableau1[Etat],"8",Tableau1[Mois],H_productives[[#This Row],[Mois]],Tableau1[N°S],H_productives[[#This Row],[N°S]])*8 -> 0 | I12: =COUNTIFS(Tableau1[Etat],"8,75",Tableau1[Mois],H_productives[[#This Row],[Mois]],Tableau1[N°S],H_productives[[#This Row],[N°S]])*8.75+COUNTIFS(Tableau1[Etat],"8",Tableau1[Mois],H_productives[[#This Row],[Mois]],Tableau1[N°S],H_productives[[#This Row],[N°S]])*8 -> 0 | J12: =COUNTIFS(Tableau1[Etat],"8,75",Tableau1[Mois],H_productives[[#This Row],[Mois]],Tableau1[N°S],H_productives[[#This Row],[N°S]])*8.75+COUNTIFS(Tableau1[Etat],"8",Tableau1[Mois],H_productives[[#This Row],[Mois]],Tableau1[N°S],H_productives[[#This Row],[N°S]])*8 -> 0 | K12: 0
